Workbook

Sheet Sample Report (hidden)
A2: Date
A3: Hen
A4: Program
A5: Start at 999999
A6: Sequence component 1 | B6: Time 1 | C6: Seqeunce Component 2 | D6: Time 2 | E6: Seqeunce Component 3 | F6: Time 3 | G6: Correct 0 = No 1=Yes | J6: Seqeunce | K6: Time
A7: 12 | B7: 7 | C7: 12 | D7: 42 | E7: 13 | F7: 18 | G7: if 77 new line, if 31 or 41 = yes new line on 77, | J7: =string of Seqeunce compponent 1, 2 & 3 | K7: =time 3
A8: This continues until ther is a 1 on its own to indicate start of summary data
J9: 10-19 =1
A10: Summary Data | J10: 20-29 =2
A11: Correct | B11: Incorrect | C11: Rft | D11: total | E11: Av Correct | F11: Av Incorrect | G11: Percent correct | H11: Time | J11: in this example the seqeunce would be 111
A12: 40 | B12: 33 | C12: 40 | D12: 73 | E12: 23.95 | F12: 15 | G12: 54 | H12: 806

Sheet Summary
A2: Day | B2: Date | C2: Average Response Rate | D2: Target % | E2: RF for non correct sequence | F2: U Value | K2: Block 1 | L2: Block 2 | M2: Block 3 | N2: Block 4 | O2: Block 5 | P2: Block 6
A3: 1 | B3: ='!LC31B5B.axt'!B2:C2 -> <date> | C3: =('!LC31B5B.axt'!H63/60)/'!LC31B5B.axt'!Q3 -> 0 | D3: ='!LC31B5B.axt'!N28/'!LC31B5B.axt'!Q3 -> 0.0350877193 | E3: =SUM('!LC31B5B.axt'!L28:Q28)/'!LC31B5B.axt'!Q3 -> 39.35087719 | F3: ='!LC31B5B.axt'!Q24 -> 0.3803810674 | J3: Average Response Rate | K3: =AVERAGE(C3:C7) -> 1.657932331 | L3: =AVERAGE(C8:C12) -> 14.56412698 | M3: =AVERAGE(C13:C17) -> 101.4033333 | N3: =AVERAGE(C18:C22) -> 14.00666667 | O3: =AVERAGE(C23:C27) -> 8.767430108 | P3: =AVERAGE(C28:C32) -> 62.22430556
A4: 2 | B4: ='!M104B1B.axt'!B2:C2 -> <date> | C4: =('!M104B1B.axt'!H24/60)/'!M104B1B.axt'!Q3 -> 5.728947368 | D4: ='!M104B1B.axt'!N28/'!M104B1B.axt'!Q3 -> 0 | E4: =SUM('!M104B1B.axt'!L28:Q28)/'!M104B1B.axt'!Q3 -> 0.3157894737 | F4: ='!M104B1B.axt'!Q24 -> 0.7134271 | J4: Target % | K4: =AVERAGE(D3:D7) -> 0.02954501639 | L4: =AVERAGE(D8:D12) -> 0 | M4: =AVERAGE(D13:D17) -> 0 | N4: =AVERAGE(D18:D22) -> 0 | O4: =AVERAGE(D23:D27) -> 0.0764516129 | P4: =AVERAGE(D28:D32) -> 0
A5: 3 | B5: ='!M105B4B.axt'!B2:C2 -> <date> | C5: =('!M105B4B.axt'!H19/60)/'!M105B4B.axt'!Q3 -> 0 | D5: ='!M105B4B.axt'!N28/'!M105B4B.axt'!Q3 -> 0.07692307692 | E5: =SUM('!M105B4B.axt'!L28:Q28)/'!M105B4B.axt'!Q3 -> 0.3846153846 | F5: ='!M105B4B.axt'!Q24 -> 0.6196025302 | J5: CCRF | K5: =AVERAGE(E3:E7) -> 16.86025641 | L5: =AVERAGE(E8:E12) -> 0.3298701299 | M5: =AVERAGE(E13:E17) -> 0.3 | N5: =AVERAGE(E18:E22) -> 0.1333333333 | O5: =AVERAGE(E23:E27) -> 8.288387097 | P5: =AVERAGE(E28:E32) -> 0.3422619048
A6: 4 | B6: ='!M106B1B.axt'!B2:C2 -> <date> | C6: =('!M106B1B.axt'!H33/60)/'!M106B1B.axt'!Q3 -> 2.560714286 | D6: ='!M106B1B.axt'!N28/'!M106B1B.axt'!Q3 -> 0.03571428571 | E6: =SUM('!M106B1B.axt'!L28:Q28)/'!M106B1B.axt'!Q3 -> 44 | F6: ='!M106B1B.axt'!Q24 -> 0.4913384434 | J6: U Value | K6: =AVERAGE(F3:F7) -> 0.6409498282 | L6: =AVERAGE(F8:F12) -> 0.8410423787 | M6: =AVERAGE(F13:F17) -> 0.6 | N6: =AVERAGE(F18:F22) -> 0.3655458754 | O6: =AVERAGE(F23:F27) -> 0.6156235448 | P6: =AVERAGE(F28:F32) -> 0.8185149295
A7: 5 | B7: ='!M109B2B.axt'!B2:C2 -> <date> | C7: =('!M109B2B.axt'!H10/60)/'!M109B2B.axt'!Q3 -> 0 | D7: ='!M109B2B.axt'!N28/'!M109B2B.axt'!Q3 -> 0 | E7: =SUM('!M109B2B.axt'!L28:Q28)/'!M109B2B.axt'!Q3 -> 0.25 | F7: ='!M109B2B.axt'!Q24 -> 1
A8: 6 | B8: ='!M110A5B.axt'!B2:C2 -> <date> | C8: =('!M110A5B.axt'!H13/60)/'!M110A5B.axt'!Q3 -> 10.07619048 | D8: ='!M110A5B.axt'!N28/'!M110A5B.axt'!Q3 -> 0 | E8: =SUM('!M110A5B.axt'!L28:Q28)/'!M110A5B.axt'!Q3 -> 0.2857142857 | F8: ='!M110A5B.axt'!Q24 -> 0.7580392711
A9: 7 | B9: ='!M111B3B.axt'!B2:C2 -> <date> | C9: =('!M111B3B.axt'!H17/60)/'!M111B3B.axt'!Q3 -> 0 | D9: ='!M111B3B.axt'!N28/'!M111B3B.axt'!Q3 -> 0 | E9: =SUM('!M111B3B.axt'!L28:Q28)/'!M111B3B.axt'!Q3 -> 0.3636363636 | F9: ='!M111B3B.axt'!Q24 -> 0.4471726223 | G9: =K3 -> 1.657932331 | H9: =L3 -> 14.56412698 | I9: 101.4033333 | J9: 14.00666667 | K9: 8.767430108 | L9: 62.22430556 | M9: =K4 -> 0.02954501639 | N9: =L4 -> 0 | O9: 0 | P9: 0 | Q9: 0.0764516129 | R9: 0 | S9: =K6 -> 0.6409498282 | T9: =L6 -> 0.8410423787 | U9: 0.6 | V9: 0.3655458754 | W9: 0.6156235448 | X9: 0.8185149295
A10: 8 | B10: ='!M112B2B.axt'!B2:C2 -> <date> | C10: =('!M112B2B.axt'!H8/60)/'!M112B2B.axt'!Q3 -> 11.86666667 | D10: ='!M112B2B.axt'!N28/'!M112B2B.axt'!Q3 -> 0 | E10: =SUM('!M112B2B.axt'!L28:Q28)/'!M112B2B.axt'!Q3 -> 0.3333333333 | F10: ='!M112B2B.axt'!Q24 -> 1
A11: 9 | B11: ='!M113A5B.axt'!B2:C2 -> <date> | C11: =('!M113A5B.axt'!H9/60)/'!M113A5B.axt'!Q3 -> 48.7 | D11: ='!M113A5B.axt'!N28/'!M113A5B.axt'!Q3 -> 0 | E11: =SUM('!M113A5B.axt'!L28:Q28)/'!M113A5B.axt'!Q3 -> 0.3333333333 | F11: ='!M113A5B.axt'!Q24 -> 1
A12: 10 | B12: ='!M114B5B.axt'!B2:C2 -> <date> | C12: =('!M114B5B.axt'!H8/60)/'!M114B5B.axt'!Q3 -> 2.177777778 | D12: ='!M114B5B.axt'!N28/'!M114B5B.axt'!Q3 -> 0 | E12: =SUM('!M114B5B.axt'!L28:Q28)/'!M114B5B.axt'!Q3 -> 0.3333333333 | F12: ='!M114B5B.axt'!Q24 -> 1
A13: 11 | B13: ='!M115A3B.axt'!B2:C2 -> <date> | C13: =('!M115A3B.axt'!H9/60)/'!M115A3B.axt'!Q3 -> 4.744444444 | D13: ='!M115A3B.axt'!N28/'!M115A3B.axt'!Q3 -> 0 | E13: =SUM('!M115A3B.axt'!L28:Q28)/'!M115A3B.axt'!Q3 -> 0.3333333333 | F13: ='!M115A3B.axt'!Q24 -> 1
A14: 12 | B14: ='!M116B2B.axt'!B2:C2 -> <date> | C14: =('!M116B2B.axt'!H8/60)/'!M116B2B.axt'!Q3 -> 22.58333333 | D14: ='!M116B2B.axt'!N28/'!M116B2B.axt'!Q3 -> 0 | E14: =SUM('!M116B2B.axt'!L28:Q28)/'!M116B2B.axt'!Q3 -> 0.3333333333 | F14: ='!M116B2B.axt'!Q24 -> 1
A15: 13 | B15: ='!M117A2B.axt'!B2:C2 -> <date> | C15: =('!M117A2B.axt'!H8/60)/'!M117A2B.axt'!Q3 -> 4.388888889 | D15: ='!M117A2B.axt'!N28/'!M117A2B.axt'!Q3 -> 0 | E15: =SUM('!M117A2B.axt'!L28:Q28)/'!M117A2B.axt'!Q3 -> 0.3333333333 | F15: ='!M117A2B.axt'!Q24 -> 1
A16: 14 | B16: ='!M118B3B.axt'!B2:C2 -> <date> | C16: =('!M118B3B.axt'!H7/60)/'!M118B3B.axt'!Q3 -> 95.01666667 | D16: ='!M118B3B.axt'!N28/'!M118B3B.axt'!Q3 -> 0 | E16: =SUM('!M118B3B.axt'!L28:Q28)/'!M118B3B.axt'!Q3 -> 0.5 | F16: 0
A17: 15 | B17: ='!M119B4B.axt'!B2:C2 -> <date> | C17: =('!M119B4B.axt'!H7/60)/'!M119B4B.axt'!Q3 -> 380.2833333 | D17: ='!M119B4B.axt'!N28/'!M119B4B.axt'!Q3 -> 0 | E17: =SUM('!M119B4B.axt'!L28:Q28)/'!M119B4B.axt'!Q3 -> 0 | F17: 0
A18: 16 | B18: ='!M120A3B.axt'!B2:C2 -> <date> | C18: =('!M120A3B.axt'!H11/60)/'!M120A3B.axt'!Q3 -> 0 | D18: ='!M120A3B.axt'!N28/'!M120A3B.axt'!Q3 -> 0 | E18: =SUM('!M120A3B.axt'!L28:Q28)/'!M120A3B.axt'!Q3 -> 0.3333333333 | F18: ='!M120A3B.axt'!Q24 -> 0.8277293768
A19: 17 | B19: ='!M121A0B.axt'!B2:C2 -> <date> | C19: =('!M121A0B.axt'!H7/60)/'!M121A0B.axt'!Q3 -> 0 | D19: ='!M121A0B.axt'!N28/'!M121A0B.axt'!Q3 -> 0 | E19: =SUM('!M121A0B.axt'!L28:Q28)/'!M121A0B.axt'!Q3 -> 0 | F19: 0
A20: 18 | B20: ='!M12295B.axt'!B2:C2 -> <date> | C20: =('!M12295B.axt'!H7/60)/'!M12295B.axt'!Q3 -> 0 | D20: ='!M12295B.axt'!N28/'!M12295B.axt'!Q3 -> 0 | E20: =SUM('!M12295B.axt'!L28:Q28)/'!M12295B.axt'!Q3 -> 0 | F20: 0
A21: 19 | B21: ='!M123B0B.axt'!B2:C2 -> <date> | C21: =('!M123B0B.axt'!H8/60)/'!M123B0B.axt'!Q3 -> 70.03333333 | D21: ='!M123B0B.axt'!N28/'!M123B0B.axt'!Q3 -> 0 | E21: =SUM('!M123B0B.axt'!L28:Q28)/'!M123B0B.axt'!Q3 -> 0.3333333333 | F21: ='!M123B0B.axt'!Q24 -> 1
A22: 20 | B22: ='!M124B1B.axt'!B2:C2 -> <date> | C22: =('!M124B1B.axt'!H7/60)/'!M124B1B.axt'!Q3 -> 0 | D22: ='!M124B1B.axt'!N28/'!M124B1B.axt'!Q3 -> 0 | E22: =SUM('!M124B1B.axt'!L28:Q28)/'!M124B1B.axt'!Q3 -> 0 | F22: 0
A23: 21 | B23: ='!M126A3B.axt'!B2:C2 -> <date> | C23: =('!M126A3B.axt'!H8/60)/'!M126A3B.axt'!Q3 -> 6.916666667 | D23: ='!M126A3B.axt'!N28/'!M126A3B.axt'!Q3 -> 0 | E23: =SUM('!M126A3B.axt'!L28:Q28)/'!M126A3B.axt'!Q3 -> 0.5 | F23: ='!M126A3B.axt'!Q24 -> 1
A24: 22 | B24: ='!M12795B.axt'!B2:C2 -> <date> | C24: =('!M12795B.axt'!H8/60)/'!M12795B.axt'!Q3 -> 13.05 | D24: ='!M12795B.axt'!N28/'!M12795B.axt'!Q3 -> 0 | E24: =SUM('!M12795B.axt'!L28:Q28)/'!M12795B.axt'!Q3 -> 0.5 | F24: ='!M12795B.axt'!Q24 -> 1
A25: 23 | B25: ='!M128B2B.axt'!B2:C2 -> <date> | C25: =('!M128B2B.axt'!H26/60)/'!M128B2B.axt'!Q3 -> 19.985 | D25: ='!M128B2B.axt'!N28/'!M128B2B.axt'!Q3 -> 0.35 | E25: =SUM('!M128B2B.axt'!L28:Q28)/'!M128B2B.axt'!Q3 -> 0.7 | F25: ='!M128B2B.axt'!Q24 -> 0.5875511615
A26: 24 | B26: ='!M129B1B.axt'!B2:C2 -> <date> | C26: =('!M129B1B.axt'!H37/60)/'!M129B1B.axt'!Q3 -> 3.885483871 | D26: ='!M129B1B.axt'!N28/'!M129B1B.axt'!Q3 -> 0.03225806452 | E26: =SUM('!M129B1B.axt'!L28:Q28)/'!M129B1B.axt'!Q3 -> 39.74193548 | F26: ='!M129B1B.axt'!Q24 -> 0.4905665625
A27: 25 | B27: ='!M130B0B.axt'!B2:C2 -> <date> | C27: 0 | D27: 0 | E27: 0 | F27: 0
A28: 26 | B28: ='!M131A4B.axt'!B2:C2 -> <date> | C28: =('!M131A4B.axt'!H9/60)/'!M131A4B.axt'!Q3 -> 51.78888889 | D28: ='!M131A4B.axt'!N28/'!M131A4B.axt'!Q3 -> 0 | E28: =SUM('!M131A4B.axt'!L28:Q28)/'!M131A4B.axt'!Q3 -> 0.3333333333 | F28: ='!M131A4B.axt'!Q24 -> 0.5793801643
A29: 27 | B29: ='!M201A4B.axt'!B2:C2 -> <date> | C29: =('!M201A4B.axt'!H13/60)/'!M201A4B.axt'!Q3 -> 13.23333333 | D29: ='!M201A4B.axt'!N28/'!M201A4B.axt'!Q3 -> 0 | E29: =SUM('!M201A4B.axt'!L28:Q28)/'!M201A4B.axt'!Q3 -> 0.2857142857 | F29: ='!M201A4B.axt'!Q24 -> 0.6946795539
A30: 28 | B30: ='!M202B4B.axt'!B2:C2 -> <date> | C30: =('!M202B4B.axt'!H8/60)/'!M202B4B.axt'!Q3 -> 183.875 | D30: ='!M202B4B.axt'!N28/'!M202B4B.axt'!Q3 -> 0 | E30: =SUM('!M202B4B.axt'!L28:Q28)/'!M202B4B.axt'!Q3 -> 0.5 | F30: ='!M202B4B.axt'!Q24 -> 1
A31: 29 | B31: ='!M205B3B.axt'!B2:C2 -> <date> | C31: =('!M205B3B.axt'!H10/60)/'!M205B3B.axt'!Q3 -> 0 | D31: ='!M205B3B.axt'!N28/'!M205B3B.axt'!Q3 -> 0 | E31: =SUM('!M205B3B.axt'!L28:Q28)/'!M205B3B.axt'!Q3 -> 0.25 | F31: ='!M205B3B.axt'!Q24 -> 1
A32: 30

Sheet Start
F1: Use Folder 51 | H1: Auto Clean Up | J1: Correct sequence
F2: FALSE | H2: TRUE | J2: 2212
A4: Working with Folder | G4: Process All/Or Pick A number: ALL or an integer
A5: F:\Possum Chapter\Raw Data\baxter\RRLR\ | G5: ALL
A6: Filenames:
A7: !M130B0B.axt | G7: Paint Cells
A8: !M131A4B.axt | G8: FALSE
A9: !M201A4B.axt
A10: !M202B4B.axt
A11: !M205B3B.axt
A12: !LC31B5B.axt
A13: !M104B1B.axt
A14: !M105B4B.axt
A15: !M106B1B.axt
A16: !M109B2B.axt
A17: !M110A5B.axt
A18: !M111B3B.axt
A19: !M112B2B.axt
A20: !M113A5B.axt
A21: !M114B5B.axt
A22: !M115A3B.axt
A23: !M116B2B.axt
A24: !M117A2B.axt
A25: !M118B3B.axt
A26: !M119B4B.axt
A27: !M120A3B.axt
A28: !M121A0B.axt
A29: !M123B0B.axt
A30: !M126A3B.axt
A31: !M12795B.axt
A32: !M128B2B.axt
A33: !M129B1B.axt
A34: !M12295B.axt
A35: !M124B1B.axt

Sheet !LC31B5B.axt
A1: Report for:!LC31B5B.axt
A2: Date: | B2: <date>
A3: Hen: | B3: <hen> | F3: Correct Sequence | G3: =Start!J2 -> 2212 | P3: Total Sequences in Data | Q3: =4994-COUNTBLANK(L7:L5000) -> 57 | V3: Total Sequences in Block Data | W3: =COUNTA(L7:L16) -> 10 | AA3: Total Sequences in Block Data | AB3: =COUNTA(L17:L25) -> 9 | AF3: Total Sequences in Block Data | AG3: =COUNTA(L26:L35) -> 10 | AK3: Total Sequences in Block Data | AL3: =COUNTA(L36:L44) -> 9 | AP3: Total Sequences in Block Data | AQ3: =COUNTA(L45:L54) -> 10 | AU3: Total Sequences in Block Data | AV3: =COUNTA(L55:L63) -> 9
P4: Total Sequences in Summary | Q4: =SUM(O7:O22) -> 56 | V4: Total Sequences in Block Summary | W4: =SUM(U7:U22) -> 10 | AA4: Total Sequences in Block Summary | AB4: =SUM(Z7:Z22) -> 9 | AF4: Total Sequences in Block Summary | AG4: =SUM(AE7:AE22) -> 10 | AK4: Total Sequences in Block Summary | AL4: =SUM(AJ7:AJ22) -> 9 | AP4: Total Sequences in Block Summary | AQ4: =SUM(AO7:AO22) -> 10 | AU4: Total Sequences in Block Summary | AV4: =SUM(AT7:AT22) -> 8
T5: Block 1 | Y5: Block 2 | AD5: Block 3 | AI5: Block 4 | AN5: Block 5 | AS5: Block 6
A6: Sequence Component 1 | B6: Time 1 | C6: Sequence Component 2 | D6: Time 2 | E6: Sequence Component 3 | F6: Time 3 | G6: Sequence Component 4 | H6: Time 4 | I6: Sequence Component 5 | J6: Time 5 | K6: Correct? 0=No 1=Yes | L6: Sequence | N6: Frequency | P6: Relative Frequency | Q6: Variability | T6: Frequency | V6: Relative Frequency | W6: Variability | Y6: Frequency | AA6: Relative Frequency | AB6: Variability | AD6: Frequency | AF6: Relative Frequency | AG6: Variability | AI6: Frequency | AK6: Relative Frequency | AL6: Variability | AN6: Frequency | AP6: Relative Frequency | AQ6: Variability | AS6: Frequency | AU6: Relative Frequency | AV6: Variability
A7: 21 | B7: 84 | C7: 21 | D7: 114 | E7: 22 | F7: 122 | G7: 23 | H7: 131 | K7: 0 | L7: 2222 | N7: 1111 | O7: =COUNTIF($L$7:$L$500,N7) -> 0 | P7: =O7/$Q$4 -> 0 | Q7: =IF(P7=0,0,(P7*((LOG(P7))/LOG(2)))) -> 0 | T7: =N7 -> 1111 | U7: =COUNTIF(L7:L16,T7) -> 0 | V7: =U7/(W4-U20) -> 0 | W7: =IF(V7=0,0,(V7*((LOG(V7))/LOG(2)))) -> 0 | Y7: =N7 -> 1111 | Z7: =COUNTIF(L17:L25,Y7) -> 0 | AA7: =Z7/(AB4-Z20) -> 0 | AB7: =IF(AA7=0,0,(AA7*((LOG(AA7))/LOG(2)))) -> 0 | AD7: =N7 -> 1111 | AE7: =COUNTIF(L26:L35,AD7) -> 0 | AF7: =AE7/(AG4-AE20) -> 0 | AG7: =IF(AF7=0,0,(AF7*((LOG(AF7))/LOG(2)))) -> 0 | AI7: =N7 -> 1111 | AJ7: =COUNTIF(L36:L44,AI7) -> 0 | AK7: =AJ7/(AL4-AJ20) -> 0 | AL7: =IF(AK7=0,0,(AK7*((LOG(AK7))/LOG(2)))) -> 0 | AN7: =N7 -> 1111 | AO7: =COUNTIF(L45:L54,AN7) -> 0 | AP7: =AO7/(AQ4-AO20) -> 0 | AQ7: =IF(AP7=0,0,(AP7*((LOG(AP7))/LOG(2)))) -> 0 | AS7: =N7 -> 1111 | AT7: =COUNTIF(L55:L63,AS7) -> 0 | AU7: =AT7/(AV4-AT20) -> 0 | AV7: =IF(AU7=0,0,(AU7*((LOG(AU7))/LOG(2)))) -> 0
A8: 21 | B8: 227 | C8: 21 | D8: 234 | E8: 22 | F8: 275 | G8: 23 | H8: 284 | K8: 0 | L8: 2222 | N8: 1112 | O8: =COUNTIF($L$7:$L$500,N8) -> 1 | P8: =O8/$Q$4 -> 0.01785714286 | Q8: =IF(P8=0,0,(P8*((LOG(P8))/LOG(2)))) -> -0.1037027665 | T8: =N8 -> 1112 | U8: =COUNTIF(L7:L16,T8) -> 0 | V8: =U8/(W4-U20) -> 0 | W8: =IF(V8=0,0,(V8*((LOG(V8))/LOG(2)))) -> 0 | Y8: =N8 -> 1112 | Z8: =COUNTIF(L17:L25,Y8) -> 0 | AA8: =Z8/(AB4-Z20) -> 0 | AB8: =IF(AA8=0,0,(AA8*((LOG(AA8))/LOG(2)))) -> 0 | AD8: =N8 -> 1112 | AE8: =COUNTIF(L26:L35,AD8) -> 0 | AF8: =AE8/(AG4-AE20) -> 0 | AG8: =IF(AF8=0,0,(AF8*((LOG(AF8))/LOG(2)))) -> 0 | AI8: =N8 -> 1112 | AJ8: =COUNTIF(L36:L44,AI8) -> 0 | AK8: =AJ8/(AL4-AJ20) -> 0 | AL8: =IF(AK8=0,0,(AK8*((LOG(AK8))/LOG(2)))) -> 0 | AN8: =N8 -> 1112 | AO8: =COUNTIF(L45:L54,AN8) -> 0 | AP8: =AO8/(AQ4-AO20) -> 0 | AQ8: =IF(AP8=0,0,(AP8*((LOG(AP8))/LOG(2)))) -> 0 | AS8: =N8 -> 1112 | AT8: =COUNTIF(L55:L63,AS8) -> 1 | AU8: =AT8/(AV4-AT20) -> 0.125 | AV8: =IF(AU8=0,0,(AU8*((LOG(AU8))/LOG(2)))) -> -0.375
A9: 12 | B9: 379 | C9: 23 | D9: 386 | E9: 24 | F9: 395 | G9: 23 | H9: 407 | K9: 0 | L9: 1222 | N9: 1121 | O9: =COUNTIF($L$7:$L$500,N9) -> 0 | P9: =O9/$Q$4 -> 0 | Q9: =IF(P9=0,0,(P9*((LOG(P9))/LOG(2)))) -> 0 | T9: =N9 -> 1121 | U9: =COUNTIF(L7:L16,T9) -> 0 | V9: =U9/(W4-U20) -> 0 | W9: =IF(V9=0,0,(V9*((LOG(V9))/LOG(2)))) -> 0 | Y9: =N9 -> 1121 | Z9: =COUNTIF(L17:L25,Y9) -> 0 | AA9: =Z9/(AB4-Z20) -> 0 | AB9: =IF(AA9=0,0,(AA9*((LOG(AA9))/LOG(2)))) -> 0 | AD9: =N9 -> 1121 | AE9: =COUNTIF(L26:L35,AD9) -> 0 | AF9: =AE9/(AG4-AE20) -> 0 | AG9: =IF(AF9=0,0,(AF9*((LOG(AF9))/LOG(2)))) -> 0 | AI9: =N9 -> 1121 | AJ9: =COUNTIF(L36:L44,AI9) -> 0 | AK9: =AJ9/(AL4-AJ20) -> 0 | AL9: =IF(AK9=0,0,(AK9*((LOG(AK9))/LOG(2)))) -> 0 | AN9: =N9 -> 1121 | AO9: =COUNTIF(L45:L54,AN9) -> 0 | AP9: =AO9/(AQ4-AO20) -> 0 | AQ9: =IF(AP9=0,0,(AP9*((LOG(AP9))/LOG(2)))) -> 0 | AS9: =N9 -> 1121 | AT9: =COUNTIF(L55:L63,AS9) -> 0 | AU9: =AT9/(AV4-AT20) -> 0 | AV9: =IF(AU9=0,0,(AU9*((LOG(AU9))/LOG(2)))) -> 0
A10: 12 | B10: 506 | C10: 23 | D10: 517 | E10: 24 | F10: 519 | G10: 23 | H10: 538 | K10: 0 | L10: 1222 | N10: 1122 | O10: =COUNTIF($L$7:$L$500,N10) -> 1 | P10: =O10/$Q$4 -> 0.01785714286 | Q10: =IF(P10=0,0,(P10*((LOG(P10))/LOG(2)))) -> -0.1037027665 | T10: =N10 -> 1122 | U10: =COUNTIF(L7:L16,T10) -> 0 | V10: =U10/(W4-U20) -> 0 | W10: =IF(V10=0,0,(V10*((LOG(V10))/LOG(2)))) -> 0 | Y10: =N10 -> 1122 | Z10: =COUNTIF(L17:L25,Y10) -> 0 | AA10: =Z10/(AB4-Z20) -> 0 | AB10: =IF(AA10=0,0,(AA10*((LOG(AA10))/LOG(2)))) -> 0 | AD10: =N10 -> 1122 | AE10: =COUNTIF(L26:L35,AD10) -> 0 | AF10: =AE10/(AG4-AE20) -> 0 | AG10: =IF(AF10=0,0,(AF10*((LOG(AF10))/LOG(2)))) -> 0 | AI10: =N10 -> 1122 | AJ10: =COUNTIF(L36:L44,AI10) -> 1 | AK10: =AJ10/(AL4-AJ20) -> 0.1111111111 | AL10: =IF(AK10=0,0,(AK10*((LOG(AK10))/LOG(2)))) -> -0.352213889 | AN10: =N10 -> 1122 | AO10: =COUNTIF(L45:L54,AN10) -> 0 | AP10: =AO10/(AQ4-AO20) -> 0 | AQ10: =IF(AP10=0,0,(AP10*((LOG(AP10))/LOG(2)))) -> 0 | AS10: =N10 -> 1122 | AT10: =COUNTIF(L55:L63,AS10) -> 0 | AU10: =AT10/(AV4-AT20) -> 0 | AV10: =IF(AU10=0,0,(AU10*((LOG(AU10))/LOG(2)))) -> 0
A11: 12 | B11: 646 | C11: 23 | D11: 654 | E11: 24 | F11: 664 | G11: 14 | H11: 693 | K11: 0 | L11: 1221 | N11: 1211 | O11: =COUNTIF($L$7:$L$500,N11) -> 0 | P11: =O11/$Q$4 -> 0 | Q11: =IF(P11=0,0,(P11*((LOG(P11))/LOG(2)))) -> 0 | T11: =N11 -> 1211 | U11: =COUNTIF(L7:L16,T11) -> 0 | V11: =U11/(W4-U20) -> 0 | W11: =IF(V11=0,0,(V11*((LOG(V11))/LOG(2)))) -> 0 | Y11: =N11 -> 1211 | Z11: =COUNTIF(L17:L25,Y11) -> 0 | AA11: =Z11/(AB4-Z20) -> 0 | AB11: =IF(AA11=0,0,(AA11*((LOG(AA11))/LOG(2)))) -> 0 | AD11: =N11 -> 1211 | AE11: =COUNTIF(L26:L35,AD11) -> 0 | AF11: =AE11/(AG4-AE20) -> 0 | AG11: =IF(AF11=0,0,(AF11*((LOG(AF11))/LOG(2)))) -> 0 | AI11: =N11 -> 1211 | AJ11: =COUNTIF(L36:L44,AI11) -> 0 | AK11: =AJ11/(AL4-AJ20) -> 0 | AL11: =IF(AK11=0,0,(AK11*((LOG(AK11))/LOG(2)))) -> 0 | AN11: =N11 -> 1211 | AO11: =COUNTIF(L45:L54,AN11) -> 0 | AP11: =AO11/(AQ4-AO20) -> 0 | AQ11: =IF(AP11=0,0,(AP11*((LOG(AP11))/LOG(2)))) -> 0 | AS11: =N11 -> 1211 | AT11: =COUNTIF(L55:L63,AS11) -> 0 | AU11: =AT11/(AV4-AT20) -> 0 | AV11: =IF(AU11=0,0,(AU11*((LOG(AU11))/LOG(2)))) -> 0
A12: 21 | B12: 827 | C12: 21 | D12: 831 | E12: 22 | F12: 860 | G12: 23 | H12: 870 | K12: 0 | L12: 2222 | N12: 1212 | O12: =COUNTIF($L$7:$L$500,N12) -> 3 | P12: =O12/$Q$4 -> 0.05357142857 | Q12: =IF(P12=0,0,(P12*((LOG(P12))/LOG(2)))) -> -0.226199594 | T12: =N12 -> 1212 | U12: =COUNTIF(L7:L16,T12) -> 0 | V12: =U12/(W4-U20) -> 0 | W12: =IF(V12=0,0,(V12*((LOG(V12))/LOG(2)))) -> 0 | Y12: =N12 -> 1212 | Z12: =COUNTIF(L17:L25,Y12) -> 0 | AA12: =Z12/(AB4-Z20) -> 0 | AB12: =IF(AA12=0,0,(AA12*((LOG(AA12))/LOG(2)))) -> 0 | AD12: =N12 -> 1212 | AE12: =COUNTIF(L26:L35,AD12) -> 0 | AF12: =AE12/(AG4-AE20) -> 0 | AG12: =IF(AF12=0,0,(AF12*((LOG(AF12))/LOG(2)))) -> 0 | AI12: =N12 -> 1212 | AJ12: =COUNTIF(L36:L44,AI12) -> 2 | AK12: =AJ12/(AL4-AJ20) -> 0.2222222222 | AL12: =IF(AK12=0,0,(AK12*((LOG(AK12))/LOG(2)))) -> -0.4822055559 | AN12: =N12 -> 1212 | AO12: =COUNTIF(L45:L54,AN12) -> 0 | AP12: =AO12/(AQ4-AO20) -> 0 | AQ12: =IF(AP12=0,0,(AP12*((LOG(AP12))/LOG(2)))) -> 0 | AS12: =N12 -> 1212 | AT12: =COUNTIF(L55:L63,AS12) -> 1 | AU12: =AT12/(AV4-AT20) -> 0.125 | AV12: =IF(AU12=0,0,(AU12*((LOG(AU12))/LOG(2)))) -> -0.375
A13: 12 | B13: 980 | C13: 23 | D13: 989 | E13: 24 | F13: 994 | G13: 23 | H13: 1006 | K13: 0 | L13: 1222 | N13: 1221 | O13: =COUNTIF($L$7:$L$500,N13) -> 4 | P13: =O13/$Q$4 -> 0.07142857143 | Q13: =IF(P13=0,0,(P13*((LOG(P13))/LOG(2)))) -> -0.271953923 | T13: =N13 -> 1221 | U13: =COUNTIF(L7:L16,T13) -> 2 | V13: =U13/(W4-U20) -> 0.2 | W13: =IF(V13=0,0,(V13*((LOG(V13))/LOG(2)))) -> -0.464385619 | Y13: =N13 -> 1221 | Z13: =COUNTIF(L17:L25,Y13) -> 0 | AA13: =Z13/(AB4-Z20) -> 0 | AB13: =IF(AA13=0,0,(AA13*((LOG(AA13))/LOG(2)))) -> 0 | AD13: =N13 -> 1221 | AE13: =COUNTIF(L26:L35,AD13) -> 0 | AF13: =AE13/(AG4-AE20) -> 0 | AG13: =IF(AF13=0,0,(AF13*((LOG(AF13))/LOG(2)))) -> 0 | AI13: =N13 -> 1221 | AJ13: =COUNTIF(L36:L44,AI13) -> 0 | AK13: =AJ13/(AL4-AJ20) -> 0 | AL13: =IF(AK13=0,0,(AK13*((LOG(AK13))/LOG(2)))) -> 0 | AN13: =N13 -> 1221 | AO13: =COUNTIF(L45:L54,AN13) -> 1 | AP13: =AO13/(AQ4-AO20) -> 0.1 | AQ13: =IF(AP13=0,0,(AP13*((LOG(AP13))/LOG(2)))) -> -0.3321928095 | AS13: =N13 -> 1221 | AT13: =COUNTIF(L55:L63,AS13) -> 1 | AU13: =AT13/(AV4-AT20) -> 0.125 | AV13: =IF(AU13=0,0,(AU13*((LOG(AU13))/LOG(2)))) -> -0.375
A14: 21 | B14: 1108 | C14: 21 | D14: 1124 | E14: 22 | F14: 1136 | G14: 23 | H14: 1149 | K14: 0 | L14: 2222 | N14: 1222 | O14: =COUNTIF($L$7:$L$500,N14) -> 23 | P14: =O14/$Q$4 -> 0.4107142857 | Q14: =IF(P14=0,0,(P14*((LOG(P14))/LOG(2)))) -> -0.527272111 | T14: =N14 -> 1222 | U14: =COUNTIF(L7:L16,T14) -> 4 | V14: =U14/(W4-U20) -> 0.4 | W14: =IF(V14=0,0,(V14*((LOG(V14))/LOG(2)))) -> -0.528771238 | Y14: =N14 -> 1222 | Z14: =COUNTIF(L17:L25,Y14) -> 2 | AA14: =Z14/(AB4-Z20) -> 0.25 | AB14: =IF(AA14=0,0,(AA14*((LOG(AA14))/LOG(2)))) -> -0.5 | AD14: =N14 -> 1222 | AE14: =COUNTIF(L26:L35,AD14) -> 3 | AF14: =AE14/(AG4-AE20) -> 0.3333333333 | AG14: =IF(AF14=0,0,(AF14*((LOG(AF14))/LOG(2)))) -> -0.5283208336 | AI14: =N14 -> 1222 | AJ14: =COUNTIF(L36:L44,AI14) -> 6 | AK14: =AJ14/(AL4-AJ20) -> 0.6666666667 | AL14: =IF(AK14=0,0,(AK14*((LOG(AK14))/LOG(2)))) -> -0.3899750005 | AN14: =N14 -> 1222 | AO14: =COUNTIF(L45:L54,AN14) -> 5 | AP14: =AO14/(AQ4-AO20) -> 0.5 | AQ14: =IF(AP14=0,0,(AP14*((LOG(AP14))/LOG(2)))) -> -0.5 | AS14: =N14 -> 1222 | AT14: =COUNTIF(L55:L63,AS14) -> 3 | AU14: =AT14/(AV4-AT20) -> 0.375 | AV14: =IF(AU14=0,0,(AU14*((LOG(AU14))/LOG(2)))) -> -0.5306390622
A15: 12 | B15: 1250 | C15: 23 | D15: 1262 | E15: 24 | F15: 1272 | G15: 14 | H15: 1305 | K15: 0 | L15: 1221 | N15: 2111 | O15: =COUNTIF($L$7:$L$500,N15) -> 0 | P15: =O15/$Q$4 -> 0 | Q15: =IF(P15=0,0,(P15*((LOG(P15))/LOG(2)))) -> 0 | T15: =N15 -> 2111 | U15: =COUNTIF(L7:L16,T15) -> 0 | V15: =U15/(W4-U20) -> 0 | W15: =IF(V15=0,0,(V15*((LOG(V15))/LOG(2)))) -> 0 | Y15: =N15 -> 2111 | Z15: =COUNTIF(L17:L25,Y15) -> 0 | AA15: =Z15/(AB4-Z20) -> 0 | AB15: =IF(AA15=0,0,(AA15*((LOG(AA15))/LOG(2)))) -> 0 | AD15: =N15 -> 2111 | AE15: =COUNTIF(L26:L35,AD15) -> 0 | AF15: =AE15/(AG4-AE20) -> 0 | AG15: =IF(AF15=0,0,(AF15*((LOG(AF15))/LOG(2)))) -> 0 | AI15: =N15 -> 2111 | AJ15: =COUNTIF(L36:L44,AI15) -> 0 | AK15: =AJ15/(AL4-AJ20) -> 0 | AL15: =IF(AK15=0,0,(AK15*((LOG(AK15))/LOG(2)))) -> 0 | AN15: =N15 -> 2111 | AO15: =COUNTIF(L45:L54,AN15) -> 0 | AP15: =AO15/(AQ4-AO20) -> 0 | AQ15: =IF(AP15=0,0,(AP15*((LOG(AP15))/LOG(2)))) -> 0 | AS15: =N15 -> 2111 | AT15: =COUNTIF(L55:L63,AS15) -> 0 | AU15: =AT15/(AV4-AT20) -> 0 | AV15: =IF(AU15=0,0,(AU15*((LOG(AU15))/LOG(2)))) -> 0
A16: 12 | B16: 1400 | C16: 23 | D16: 1409 | E16: 24 | F16: 1411 | G16: 23 | H16: 1414 | K16: 0 | L16: 1222 | N16: 2112 | O16: =COUNTIF($L$7:$L$500,N16) -> 0 | P16: =O16/$Q$4 -> 0 | Q16: =IF(P16=0,0,(P16*((LOG(P16))/LOG(2)))) -> 0 | T16: =N16 -> 2112 | U16: =COUNTIF(L7:L16,T16) -> 0 | V16: =U16/(W4-U20) -> 0 | W16: =IF(V16=0,0,(V16*((LOG(V16))/LOG(2)))) -> 0 | Y16: =N16 -> 2112 | Z16: =COUNTIF(L17:L25,Y16) -> 0 | AA16: =Z16/(AB4-Z20) -> 0 | AB16: =IF(AA16=0,0,(AA16*((LOG(AA16))/LOG(2)))) -> 0 | AD16: =N16 -> 2112 | AE16: =COUNTIF(L26:L35,AD16) -> 0 | AF16: =AE16/(AG4-AE20) -> 0 | AG16: =IF(AF16=0,0,(AF16*((LOG(AF16))/LOG(2)))) -> 0 | AI16: =N16 -> 2112 | AJ16: =COUNTIF(L36:L44,AI16) -> 0 | AK16: =AJ16/(AL4-AJ20) -> 0 | AL16: =IF(AK16=0,0,(AK16*((LOG(AK16))/LOG(2)))) -> 0 | AN16: =N16 -> 2112 | AO16: =COUNTIF(L45:L54,AN16) -> 0 | AP16: =AO16/(AQ4-AO20) -> 0 | AQ16: =IF(AP16=0,0,(AP16*((LOG(AP16))/LOG(2)))) -> 0 | AS16: =N16 -> 2112 | AT16: =COUNTIF(L55:L63,AS16) -> 0 | AU16: =AT16/(AV4-AT20) -> 0 | AV16: =IF(AU16=0,0,(AU16*((LOG(AU16))/LOG(2)))) -> 0
A17: 21 | B17: 1583 | C17: 21 | D17: 1586 | E17: 22 | F17: 1594 | G17: 23 | H17: 1602 | K17: 0 | L17: 2222 | N17: 2121 | O17: =COUNTIF($L$7:$L$500,N17) -> 0 | P17: =O17/$Q$4 -> 0 | Q17: =IF(P17=0,0,(P17*((LOG(P17))/LOG(2)))) -> 0 | T17: =N17 -> 2121 | U17: =COUNTIF(L7:L16,T17) -> 0 | V17: =U17/(W4-U20) -> 0 | W17: =IF(V17=0,0,(V17*((LOG(V17))/LOG(2)))) -> 0 | Y17: =N17 -> 2121 | Z17: =COUNTIF(L17:L25,Y17) -> 0 | AA17: =Z17/(AB4-Z20) -> 0 | AB17: =IF(AA17=0,0,(AA17*((LOG(AA17))/LOG(2)))) -> 0 | AD17: =N17 -> 2121 | AE17: =COUNTIF(L26:L35,AD17) -> 0 | AF17: =AE17/(AG4-AE20) -> 0 | AG17: =IF(AF17=0,0,(AF17*((LOG(AF17))/LOG(2)))) -> 0 | AI17: =N17 -> 2121 | AJ17: =COUNTIF(L36:L44,AI17) -> 0 | AK17: =AJ17/(AL4-AJ20) -> 0 | AL17: =IF(AK17=0,0,(AK17*((LOG(AK17))/LOG(2)))) -> 0 | AN17: =N17 -> 2121 | AO17: =COUNTIF(L45:L54,AN17) -> 0 | AP17: =AO17/(AQ4-AO20) -> 0 | AQ17: =IF(AP17=0,0,(AP17*((LOG(AP17))/LOG(2)))) -> 0 | AS17: =N17 -> 2121 | AT17: =COUNTIF(L55:L63,AS17) -> 0 | AU17: =AT17/(AV4-AT20) -> 0 | AV17: =IF(AU17=0,0,(AU17*((LOG(AU17))/LOG(2)))) -> 0
A18: 21 | B18: 1710 | C18: 21 | D18: 1711 | E18: 22 | F18: 1716 | G18: 23 | H18: 1726 | K18: 0 | L18: 2222 | N18: 2122 | O18: =COUNTIF($L$7:$L$500,N18) -> 0 | P18: =O18/$Q$4 -> 0 | Q18: =IF(P18=0,0,(P18*((LOG(P18))/LOG(2)))) -> 0 | T18: =N18 -> 2122 | U18: =COUNTIF(L7:L16,T18) -> 0 | V18: =U18/(W4-U20) -> 0 | W18: =IF(V18=0,0,(V18*((LOG(V18))/LOG(2)))) -> 0 | Y18: =N18 -> 2122 | Z18: =COUNTIF(L17:L25,Y18) -> 0 | AA18: =Z18/(AB4-Z20) -> 0 | AB18: =IF(AA18=0,0,(AA18*((LOG(AA18))/LOG(2)))) -> 0 | AD18: =N18 -> 2122 | AE18: =COUNTIF(L26:L35,AD18) -> 0 | AF18: =AE18/(AG4-AE20) -> 0 | AG18: =IF(AF18=0,0,(AF18*((LOG(AF18))/LOG(2)))) -> 0 | AI18: =N18 -> 2122 | AJ18: =COUNTIF(L36:L44,AI18) -> 0 | AK18: =AJ18/(AL4-AJ20) -> 0 | AL18: =IF(AK18=0,0,(AK18*((LOG(AK18))/LOG(2)))) -> 0 | AN18: =N18 -> 2122 | AO18: =COUNTIF(L45:L54,AN18) -> 0 | AP18: =AO18/(AQ4-AO20) -> 0 | AQ18: =IF(AP18=0,0,(AP18*((LOG(AP18))/LOG(2)))) -> 0 | AS18: =N18 -> 2122 | AT18: =COUNTIF(L55:L63,AS18) -> 0 | AU18: =AT18/(AV4-AT20) -> 0 | AV18: =IF(AU18=0,0,(AU18*((LOG(AU18))/LOG(2)))) -> 0
A19: 12 | B19: 1828 | C19: 23 | D19: 1838 | E19: 24 | F19: 1848 | G19: 23 | H19: 1858 | K19: 0 | L19: 1222 | N19: 2211 | O19: =COUNTIF($L$7:$L$500,N19) -> 2 | P19: =O19/$Q$4 -> 0.03571428571 | Q19: =IF(P19=0,0,(P19*((LOG(P19))/LOG(2)))) -> -0.1716912472 | T19: =N19 -> 2211 | U19: =COUNTIF(L7:L16,T19) -> 0 | V19: =U19/(W4-U20) -> 0 | W19: =IF(V19=0,0,(V19*((LOG(V19))/LOG(2)))) -> 0 | Y19: =N19 -> 2211 | Z19: =COUNTIF(L17:L25,Y19) -> 0 | AA19: =Z19/(AB4-Z20) -> 0 | AB19: =IF(AA19=0,0,(AA19*((LOG(AA19))/LOG(2)))) -> 0 | AD19: =N19 -> 2211 | AE19: =COUNTIF(L26:L35,AD19) -> 0 | AF19: =AE19/(AG4-AE20) -> 0 | AG19: =IF(AF19=0,0,(AF19*((LOG(AF19))/LOG(2)))) -> 0 | AI19: =N19 -> 2211 | AJ19: =COUNTIF(L36:L44,AI19) -> 0 | AK19: =AJ19/(AL4-AJ20) -> 0 | AL19: =IF(AK19=0,0,(AK19*((LOG(AK19))/LOG(2)))) -> 0 | AN19: =N19 -> 2211 | AO19: =COUNTIF(L45:L54,AN19) -> 1 | AP19: =AO19/(AQ4-AO20) -> 0.1 | AQ19: =IF(AP19=0,0,(AP19*((LOG(AP19))/LOG(2)))) -> -0.3321928095 | AS19: =N19 -> 2211 | AT19: =COUNTIF(L55:L63,AS19) -> 1 | AU19: =AT19/(AV4-AT20) -> 0.125 | AV19: =IF(AU19=0,0,(AU19*((LOG(AU19))/LOG(2)))) -> -0.375
A20: 21 | B20: 1961 | C20: 21 | D20: 1967 | E20: 22 | F20: 1976 | G20: 23 | H20: 1978 | K20: 0 | L20: 2222 | N20: 2212 | O20: =COUNTIF($L$7:$L$500,N20) -> 2 | P20: =O20/$Q$4 -> 0.03571428571 | Q20: =IF(P20=0,0,(P20*((LOG(P20))/LOG(2)))) -> -0.1716912472 | T20: =N20 -> 2212 | U20: =COUNTIF(L7:L16,T20) -> 0 | Y20: =N20 -> 2212 | Z20: =COUNTIF(L17:L25,Y20) -> 1 | AD20: =N20 -> 2212 | AE20: =COUNTIF(L26:L35,AD20) -> 1 | AI20: =N20 -> 2212 | AJ20: =COUNTIF(L36:L44,AI20) -> 0 | AN20: =N20 -> 2212 | AO20: =COUNTIF(L45:L54,AN20) -> 0 | AS20: =N20 -> 2212 | AT20: =COUNTIF(L55:L63,AS20) -> 0
A21: 21 | B21: 2092 | C21: 21 | D21: 2103 | E21: 22 | F21: 2112 | G21: 23 | H21: 2127 | K21: 0 | L21: 2222 | N21: 2221 | O21: =COUNTIF($L$7:$L$500,N21) -> 1 | P21: =O21/$Q$4 -> 0.01785714286 | Q21: =IF(P21=0,0,(P21*((LOG(P21))/LOG(2)))) -> -0.1037027665 | T21: =N21 -> 2221 | U21: =COUNTIF(L7:L16,T21) -> 0 | V21: =U21/(W4-U20) -> 0 | W21: =IF(V21=0,0,(V21*((LOG(V21))/LOG(2)))) -> 0 | Y21: =N21 -> 2221 | Z21: =COUNTIF(L17:L25,Y21) -> 0 | AA21: =Z21/(AB4-Z20) -> 0 | AB21: =IF(AA21=0,0,(AA21*((LOG(AA21))/LOG(2)))) -> 0 | AD21: =N21 -> 2221 | AE21: =COUNTIF(L26:L35,AD21) -> 0 | AF21: =AE21/(AG4-AE20) -> 0 | AG21: =IF(AF21=0,0,(AF21*((LOG(AF21))/LOG(2)))) -> 0 | AI21: =N21 -> 2221 | AJ21: =COUNTIF(L36:L44,AI21) -> 0 | AK21: =AJ21/(AL4-AJ20) -> 0 | AL21: =IF(AK21=0,0,(AK21*((LOG(AK21))/LOG(2)))) -> 0 | AN21: =N21 -> 2221 | AO21: =COUNTIF(L45:L54,AN21) -> 1 | AP21: =AO21/(AQ4-AO20) -> 0.1 | AQ21: =IF(AP21=0,0,(AP21*((LOG(AP21))/LOG(2)))) -> -0.3321928095 | AS21: =N21 -> 2221 | AT21: =COUNTIF(L55:L63,AS21) -> 0 | AU21: =AT21/(AV4-AT20) -> 0 | AV21: =IF(AU21=0,0,(AU21*((LOG(AU21))/LOG(2)))) -> 0
A22: 21 | B22: 2233 | C22: 21 | D22: 2247 | E22: 11 | F22: 2281 | G22: 21 | H22: 2289 | K22: 0 | L22: 2212 | N22: 2222 | O22: =COUNTIF($L$7:$L$500,N22) -> 19 | P22: =O22/$Q$4 -> 0.3392857143 | Q22: =IF(P22=0,0,(P22*((LOG(P22))/LOG(2)))) -> -0.5290914422 | T22: =N22 -> 2222 | U22: =COUNTIF(L7:L16,T22) -> 4 | V22: =U22/(W4-U20) -> 0.4 | W22: =IF(V22=0,0,(V22*((LOG(V22))/LOG(2)))) -> -0.528771238 | Y22: =N22 -> 2222 | Z22: =COUNTIF(L17:L25,Y22) -> 6 | AA22: =Z22/(AB4-Z20) -> 0.75 | AB22: =IF(AA22=0,0,(AA22*((LOG(AA22))/LOG(2)))) -> -0.3112781245 | AD22: =N22 -> 2222 | AE22: =COUNTIF(L26:L35,AD22) -> 6 | AF22: =AE22/(AG4-AE20) -> 0.6666666667 | AG22: =IF(AF22=0,0,(AF22*((LOG(AF22))/LOG(2)))) -> -0.3899750005 | AI22: =N22 -> 2222 | AJ22: =COUNTIF(L36:L44,AI22) -> 0 | AK22: =AJ22/(AL4-AJ20) -> 0 | AL22: =IF(AK22=0,0,(AK22*((LOG(AK22))/LOG(2)))) -> 0 | AN22: =N22 -> 2222 | AO22: =COUNTIF(L45:L54,AN22) -> 2 | AP22: =AO22/(AQ4-AO20) -> 0.2 | AQ22: =IF(AP22=0,0,(AP22*((LOG(AP22))/LOG(2)))) -> -0.464385619 | AS22: =N22 -> 2222 | AT22: =COUNTIF(L55:L63,AS22) -> 1 | AU22: =AT22/(AV4-AT20) -> 0.125 | AV22: =IF(AU22=0,0,(AU22*((LOG(AU22))/LOG(2)))) -> -0.375
A23: 12 | B23: 2421 | C23: 23 | D23: 2451 | E23: 24 | F23: 2465 | G23: 23 | H23: 2481 | K23: 0 | L23: 1222 | P23: =SUM(P7:P22) -> 1 | Q23: =-SUM(Q7:Q22) -> 2.209007864 | V23: =SUM(V7:V22) -> 1 | W23: =-SUM(W7:W22) -> 1.521928095 | AA23: =SUM(AA7:AA22) -> 1 | AB23: =-SUM(AB7:AB22) -> 0.8112781245 | AF23: =SUM(AF7:AF22) -> 1 | AG23: =-SUM(AG7:AG22) -> 0.9182958341 | AK23: =SUM(AK7:AK22) -> 1 | AL23: =-SUM(AL7:AL22) -> 1.224394445 | AP23: =SUM(AP7:AP22) -> 1 | AQ23: =-SUM(AQ7:AQ22) -> 1.960964047 | AU23: =SUM(AU7:AU22) -> 1 | AV23: =-SUM(AV7:AV22) -> 2.405639062
A24: 21 | B24: 2604 | C24: 21 | D24: 2619 | E24: 22 | F24: 2631 | G24: 23 | H24: 2642 | K24: 0 | L24: 2222 | P24: U= | Q24: =Q23/(LOG(Q4)/LOG(2)) -> 0.3803810674 | V24: U1= | W24: =W23/(LOG(W4)/LOG(2)) -> 0.4581460078 | AA24: U2= | AB24: =AB23/(LOG(AB4)/LOG(2)) -> 0.2559297536 | AF24: U3= | AG24: =AG23/(LOG(AG4)/LOG(2)) -> 0.2764345909 | AK24: U4= | AL24: =AL23/(LOG(AL4)/LOG(2)) -> 0.3862534429 | AP24: U5= | AQ24: =AQ23/(LOG(AQ4)/LOG(2)) -> 0.5903089987 | AU24: U6= | AV24: =AV23/(LOG(AV4)/LOG(2)) -> 0.8018796874
A25: 21 | B25: 2743 | C25: 21 | D25: 2756 | E25: 22 | F25: 2759 | G25: 23 | H25: 2779 | K25: 0 | L25: 2222
A26: 12 | B26: 2948 | C26: 23 | D26: 2951 | E26: 24 | F26: 2962 | G26: 23 | H26: 2978 | K26: 0 | L26: 1222
A27: 12 | B27: 3070 | C27: 23 | D27: 3075 | E27: 24 | F27: 3087 | G27: 23 | H27: 3096 | K27: 0 | L27: 1222 | N27: Total Target Seq
A28: 21 | B28: 3199 | C28: 21 | D28: 3202 | E28: 22 | F28: 3206 | G28: 23 | H28: 3217 | K28: 0 | L28: 2222 | N28: =COUNTIF(L7:L63,G3) -> 2 | P28: 10 | Q28: 9 | R28: 10 | S28: 9 | T28: 10 | U28: 9
A29: 21 | B29: 3317 | C29: 21 | D29: 3324 | E29: 22 | F29: 3335 | G29: 23 | H29: 3351 | K29: 0 | L29: 2222 | P29: % of reinforcement given in 6 equal intervals based on number of trials
A30: 21 | B30: 3450 | C30: 21 | D30: 3453 | E30: 22 | F30: 3488 | G30: 23 | H30: 3496 | K30: 0 | L30: 2222 | P30: %_1 | Q30: %_2 | R30: %_3 | S30: %_4 | T30: %_5 | U30: %_6
A31: 21 | B31: 3630 | C31: 21 | D31: 3643 | E31: 22 | F31: 3660 | G31: 23 | H31: 3666 | K31: 0 | L31: 2222 | O31: target sequence | P31: =$G$3 -> 2212 | Q31: =$G$3 -> 2212 | R31: =$G$3 -> 2212 | S31: =$G$3 -> 2212 | T31: =$G$3 -> 2212 | U31: =$G$3 -> 2212
A32: 12 | B32: 3762 | C32: 23 | D32: 3769 | E32: 24 | F32: 3780 | G32: 23 | H32: 3794 | K32: 0 | L32: 1222 | O32: total reinforcement | P32: =U20 -> 0 | Q32: =Z20 -> 1 | R32: =AE20 -> 1 | S32: =AJ20 -> 0 | T32: =AO20 -> 0 | U32: =AT20 -> 0
A33: 21 | B33: 3909 | C33: 21 | D33: 3912 | E33: 22 | F33: 3913 | G33: 23 | H33: 3928 | K33: 0 | L33: 2222 | O33: % target
A34: 21 | B34: 4030 | C34: 21 | D34: 4045 | E34: 11 | F34: 4077 | G34: 21 | H34: 4083 | K34: 0 | L34: 2212 | O34: CCRF
A35: 21 | B35: 4242 | C35: 21 | D35: 4254 | E35: 22 | F35: 4269 | G35: 23 | H35: 4282 | K35: 0 | L35: 2222 | O35: % CCRf
A36: 12 | B36: 4382 | C36: 23 | D36: 4389 | E36: 13 | F36: 4421 | G36: 23 | H36: 4431 | K36: 0 | L36: 1212 | O36: average response rate | P36: =H16/P28 -> 141.4 | Q36: =(H25-H16)/Q28 -> 151.6666667 | R36: =(H35-H25)/R28 -> 150.3 | S36: =(H44-H35)/S28 -> 141.6666667 | T36: =(H54-H44)/T28 -> 157.1 | U36: =(H63-H54)/U28 -> -792
A37: 12 | B37: 4536 | C37: 23 | D37: 4545 | E37: 24 | F37: 4553 | G37: 23 | H37: 4563 | K37: 0 | L37: 1222
A38: 12 | B38: 4656 | C38: 23 | D38: 4666 | E38: 24 | F38: 4675 | G38: 23 | H38: 4694 | K38: 0 | L38: 1222
A39: 12 | B39: 4786 | C39: 23 | D39: 4794 | E39: 24 | F39: 4805 | G39: 23 | H39: 4821 | K39: 0 | L39: 1222
A40: 12 | B40: 5021 | C40: 23 | D40: 5023 | E40: 13 | F40: 5027 | G40: 23 | H40: 5029 | K40: 0 | L40: 1212
A41: 12 | B41: 5158 | C41: 23 | D41: 5168 | E41: 24 | F41: 5179 | G41: 23 | H41: 5190 | K41: 0 | L41: 1222
A42: 12 | B42: 5282 | C42: 23 | D42: 5296 | E42: 24 | F42: 5311 | G42: 23 | H42: 5325 | K42: 0 | L42: 1222
A43: 12 | B43: 5416 | C43: 14 | D43: 5419 | E43: 24 | F43: 5430 | G43: 23 | H43: 5435 | K43: 0 | L43: 1122
A44: 12 | B44: 5533 | C44: 23 | D44: 5541 | E44: 24 | F44: 5547 | G44: 23 | H44: 5557 | K44: 0 | L44: 1222
A45: 12 | B45: 5680 | C45: 23 | D45: 5688 | E45: 24 | F45: 5694 | G45: 14 | H45: 5726 | K45: 0 | L45: 1221
A46: 21 | B46: 5826 | C46: 21 | D46: 5831 | E46: 22 | F46: 5833 | G46: 23 | H46: 5848 | K46: 0 | L46: 2222
A47: 21 | B47: 5951 | C47: 21 | D47: 5967 | E47: 22 | F47: 5985 | G47: 23 | H47: 6010 | K47: 0 | L47: 2222
A48: 12 | B48: 6172 | C48: 23 | D48: 6179 | E48: 24 | F48: 6189 | G48: 23 | H48: 6206 | K48: 0 | L48: 1222
A49: 12 | B49: 6312 | C49: 23 | D49: 6321 | E49: 24 | F49: 6336 | G49: 23 | H49: 6355 | K49: 0 | L49: 1222
A50: 12 | B50: 6452 | C50: 23 | D50: 6467 | E50: 24 | F50: 6470 | G50: 23 | H50: 6486 | K50: 0 | L50: 1222
A51: 12 | B51: 6584 | C51: 23 | D51: 6594 | E51: 24 | F51: 6603 | G51: 23 | H51: 6615 | K51: 0 | L51: 1222
A52: 21 | B52: 6752 | C52: 21 | D52: 6760 | E52: 22 | F52: 6773 | G52: 14 | H52: 6798 | K52: 0 | L52: 2221
A53: 12 | B53: 6898 | C53: 23 | D53: 6911 | E53: 24 | F53: 6916 | G53: 23 | H53: 6928 | K53: 0 | L53: 1222
A54: 21 | B54: 7079 | C54: 21 | D54: 7087 | E54: 11 | F54: 7119 | G54: 12 | H54: 7128 | K54: 0 | L54: 2211
A55: 21 | B55: 7250 | C55: 21 | D55: 7260 | E55: 22 | F55: 7292 | G55: 23 | H55: 7303 | K55: 0 | L55: 2222
A56: 12 | B56: 7669 | C56: 23 | D56: 7685 | E56: 24 | F56: 7697 | G56: 23 | H56: 7700 | K56: 0 | L56: 1222
A57: 21 | B57: 8609 | C57: 21 | D57: 8611 | E57: 11 | F57: 8632 | G57: 12 | H57: 8639 | K57: 0 | L57: 2211
A58: 12 | B58: 9808 | C58: 23 | D58: 9823 | E58: 13 | F58: 9830 | G58: 23 | H58: 9837 | K58: 0 | L58: 1212
A59: 12 | B59: 10322 | C59: 23 | D59: 10332 | E59: 24 | F59: 10352 | G59: 14 | H59: 10379 | K59: 0 | L59: 1221
A60: 12 | B60: 10511 | C60: 23 | D60: 10521 | E60: 24 | F60: 10528 | G60: 23 | H60: 10537 | K60: 0 | L60: 1222
A61: 12 | B61: 10826 | C61: 23 | D61: 10841 | E61: 24 | F61: 10851 | G61: 23 | H61: 10862 | K61: 0 | L61: 1222
A62: 12 | B62: 11132 | C62: 14 | D62: 11135 | E62: 13 | F62: 11143 | G62: 23 | H62: 11162 | K62: 0 | L62: 1112
A63: 21 | B63: 21704 | C63: 21 | D63: 21714 | E63: 22 | F63: 21728 | L63: 222

Sheet !M104B1B.axt
A1: Report for:!M104B1B.axt
A2: Date: | B2: <date>
A3: Hen: | B3: <hen> | F3: Correct Sequence | G3: =Start!J2 -> 2212 | P3: Total Sequences in Data | Q3: =4994-COUNTBLANK(L7:L5000) -> 19 | V3: Total Sequences in Block Data | W3: =COUNTA(L7:L9) -> 3 | AA3: Total Sequences in Block Data | AB3: =COUNTA(L10:L12) -> 3 | AF3: Total Sequences in Block Data | AG3: =COUNTA(L13:L16) -> 4 | AK3: Total Sequences in Block Data | AL3: =COUNTA(L17:L19) -> 3 | AP3: Total Sequences in Block Data | AQ3: =COUNTA(L20:L22) -> 3 | AU3: Total Sequences in Block Data | AV3: =COUNTA(L23:L25) -> 3
P4: Total Sequences in Summary | Q4: =SUM(O7:O22) -> 18 | V4: Total Sequences in Block Summary | W4: =SUM(U7:U22) -> 3 | AA4: Total Sequences in Block Summary | AB4: =SUM(Z7:Z22) -> 3 | AF4: Total Sequences in Block Summary | AG4: =SUM(AE7:AE22) -> 4 | AK4: Total Sequences in Block Summary | AL4: =SUM(AJ7:AJ22) -> 3 | AP4: Total Sequences in Block Summary | AQ4: =SUM(AO7:AO22) -> 3 | AU4: Total Sequences in Block Summary | AV4: =SUM(AT7:AT22) -> 2
T5: Block 1 | Y5: Block 2 | AD5: Block 3 | AI5: Block 4 | AN5: Block 5 | AS5: Block 6
A6: Sequence Component 1 | B6: Time 1 | C6: Sequence Component 2 | D6: Time 2 | E6: Sequence Component 3 | F6: Time 3 | G6: Sequence Component 4 | H6: Time 4 | I6: Sequence Component 5 | J6: Time 5 | K6: Correct? 0=No 1=Yes | L6: Sequence | N6: Frequency | P6: Relative Frequency | Q6: Variability | T6: Frequency | V6: Relative Frequency | W6: Variability | Y6: Frequency | AA6: Relative Frequency | AB6: Variability | AD6: Frequency | AF6: Relative Frequency | AG6: Variability | AI6: Frequency | AK6: Relative Frequency | AL6: Variability | AN6: Frequency | AP6: Relative Frequency | AQ6: Variability | AS6: Frequency | AU6: Relative Frequency | AV6: Variability
A7: 21 | B7: 693 | C7: 21 | D7: 696 | E7: 22 | F7: 705 | G7: 23 | H7: 718 | K7: 0 | L7: 2222 | N7: 1111 | O7: =COUNTIF($L$7:$L$500,N7) -> 0 | P7: =O7/$Q$4 -> 0 | Q7: =IF(P7=0,0,(P7*((LOG(P7))/LOG(2)))) -> 0 | T7: =N7 -> 1111 | U7: =COUNTIF(L7:L9,T7) -> 0 | V7: =U7/(W4-U20) -> 0 | W7: =IF(V7=0,0,(V7*((LOG(V7))/LOG(2)))) -> 0 | Y7: =N7 -> 1111 | Z7: =COUNTIF(L10:L12,Y7) -> 0 | AA7: =Z7/(AB4-Z20) -> 0 | AB7: =IF(AA7=0,0,(AA7*((LOG(AA7))/LOG(2)))) -> 0 | AD7: =N7 -> 1111 | AE7: =COUNTIF(L13:L16,AD7) -> 0 | AF7: =AE7/(AG4-AE20) -> 0 | AG7: =IF(AF7=0,0,(AF7*((LOG(AF7))/LOG(2)))) -> 0 | AI7: =N7 -> 1111 | AJ7: =COUNTIF(L17:L19,AI7) -> 0 | AK7: =AJ7/(AL4-AJ20) -> 0 | AL7: =IF(AK7=0,0,(AK7*((LOG(AK7))/LOG(2)))) -> 0 | AN7: =N7 -> 1111 | AO7: =COUNTIF(L20:L22,AN7) -> 0 | AP7: =AO7/(AQ4-AO20) -> 0 | AQ7: =IF(AP7=0,0,(AP7*((LOG(AP7))/LOG(2)))) -> 0 | AS7: =N7 -> 1111 | AT7: =COUNTIF(L23:L25,AS7) -> 0 | AU7: =AT7/(AV4-AT20) -> 0 | AV7: =IF(AU7=0,0,(AU7*((LOG(AU7))/LOG(2)))) -> 0
A8: 21 | B8: 821 | C8: 21 | D8: 825 | E8: 22 | F8: 836 | G8: 23 | H8: 842 | K8: 0 | L8: 2222 | N8: 1112 | O8: =COUNTIF($L$7:$L$500,N8) -> 1 | P8: =O8/$Q$4 -> 0.05555555556 | Q8: =IF(P8=0,0,(P8*((LOG(P8))/LOG(2)))) -> -0.2316625001 | T8: =N8 -> 1112 | U8: =COUNTIF(L7:L9,T8) -> 0 | V8: =U8/(W4-U20) -> 0 | W8: =IF(V8=0,0,(V8*((LOG(V8))/LOG(2)))) -> 0 | Y8: =N8 -> 1112 | Z8: =COUNTIF(L10:L12,Y8) -> 0 | AA8: =Z8/(AB4-Z20) -> 0 | AB8: =IF(AA8=0,0,(AA8*((LOG(AA8))/LOG(2)))) -> 0 | AD8: =N8 -> 1112 | AE8: =COUNTIF(L13:L16,AD8) -> 0 | AF8: =AE8/(AG4-AE20) -> 0 | AG8: =IF(AF8=0,0,(AF8*((LOG(AF8))/LOG(2)))) -> 0 | AI8: =N8 -> 1112 | AJ8: =COUNTIF(L17:L19,AI8) -> 0 | AK8: =AJ8/(AL4-AJ20) -> 0 | AL8: =IF(AK8=0,0,(AK8*((LOG(AK8))/LOG(2)))) -> 0 | AN8: =N8 -> 1112 | AO8: =COUNTIF(L20:L22,AN8) -> 1 | AP8: =AO8/(AQ4-AO20) -> 0.3333333333 | AQ8: =IF(AP8=0,0,(AP8*((LOG(AP8))/LOG(2)))) -> -0.5283208336 | AS8: =N8 -> 1112 | AT8: =COUNTIF(L23:L25,AS8) -> 0 | AU8: =AT8/(AV4-AT20) -> 0 | AV8: =IF(AU8=0,0,(AU8*((LOG(AU8))/LOG(2)))) -> 0
A9: 21 | B9: 949 | C9: 21 | D9: 957 | E9: 22 | F9: 969 | G9: 23 | H9: 984 | K9: 0 | L9: 2222 | N9: 1121 | O9: =COUNTIF($L$7:$L$500,N9) -> 0 | P9: =O9/$Q$4 -> 0 | Q9: =IF(P9=0,0,(P9*((LOG(P9))/LOG(2)))) -> 0 | T9: =N9 -> 1121 | U9: =COUNTIF(L7:L9,T9) -> 0 | V9: =U9/(W4-U20) -> 0 | W9: =IF(V9=0,0,(V9*((LOG(V9))/LOG(2)))) -> 0 | Y9: =N9 -> 1121 | Z9: =COUNTIF(L10:L12,Y9) -> 0 | AA9: =Z9/(AB4-Z20) -> 0 | AB9: =IF(AA9=0,0,(AA9*((LOG(AA9))/LOG(2)))) -> 0 | AD9: =N9 -> 1121 | AE9: =COUNTIF(L13:L16,AD9) -> 0 | AF9: =AE9/(AG4-AE20) -> 0 | AG9: =IF(AF9=0,0,(AF9*((LOG(AF9))/LOG(2)))) -> 0 | AI9: =N9 -> 1121 | AJ9: =COUNTIF(L17:L19,AI9) -> 0 | AK9: =AJ9/(AL4-AJ20) -> 0 | AL9: =IF(AK9=0,0,(AK9*((LOG(AK9))/LOG(2)))) -> 0 | AN9: =N9 -> 1121 | AO9: =COUNTIF(L20:L22,AN9) -> 0 | AP9: =AO9/(AQ4-AO20) -> 0 | AQ9: =IF(AP9=0,0,(AP9*((LOG(AP9))/LOG(2)))) -> 0 | AS9: =N9 -> 1121 | AT9: =COUNTIF(L23:L25,AS9) -> 0 | AU9: =AT9/(AV4-AT20) -> 0 | AV9: =IF(AU9=0,0,(AU9*((LOG(AU9))/LOG(2)))) -> 0
A10: 21 | B10: 1092 | C10: 21 | D10: 1097 | E10: 22 | F10: 1115 | G10: 23 | H10: 1147 | K10: 0 | L10: 2222 | N10: 1122 | O10: =COUNTIF($L$7:$L$500,N10) -> 2 | P10: =O10/$Q$4 -> 0.1111111111 | Q10: =IF(P10=0,0,(P10*((LOG(P10))/LOG(2)))) -> -0.352213889 | T10: =N10 -> 1122 | U10: =COUNTIF(L7:L9,T10) -> 0 | V10: =U10/(W4-U20) -> 0 | W10: =IF(V10=0,0,(V10*((LOG(V10))/LOG(2)))) -> 0 | Y10: =N10 -> 1122 | Z10: =COUNTIF(L10:L12,Y10) -> 0 | AA10: =Z10/(AB4-Z20) -> 0 | AB10: =IF(AA10=0,0,(AA10*((LOG(AA10))/LOG(2)))) -> 0 | AD10: =N10 -> 1122 | AE10: =COUNTIF(L13:L16,AD10) -> 2 | AF10: =AE10/(AG4-AE20) -> 0.5 | AG10: =IF(AF10=0,0,(AF10*((LOG(AF10))/LOG(2)))) -> -0.5 | AI10: =N10 -> 1122 | AJ10: =COUNTIF(L17:L19,AI10) -> 0 | AK10: =AJ10/(AL4-AJ20) -> 0 | AL10: =IF(AK10=0,0,(AK10*((LOG(AK10))/LOG(2)))) -> 0 | AN10: =N10 -> 1122 | AO10: =COUNTIF(L20:L22,AN10) -> 0 | AP10: =AO10/(AQ4-AO20) -> 0 | AQ10: =IF(AP10=0,0,(AP10*((LOG(AP10))/LOG(2)))) -> 0 | AS10: =N10 -> 1122 | AT10: =COUNTIF(L23:L25,AS10) -> 0 | AU10: =AT10/(AV4-AT20) -> 0 | AV10: =IF(AU10=0,0,(AU10*((LOG(AU10))/LOG(2)))) -> 0
A11: 12 | B11: 1249 | C11: 23 | D11: 1258 | E11: 24 | F11: 1269 | G11: 23 | H11: 1281 | K11: 0 | L11: 1222 | N11: 1211 | O11: =COUNTIF($L$7:$L$500,N11) -> 1 | P11: =O11/$Q$4 -> 0.05555555556 | Q11: =IF(P11=0,0,(P11*((LOG(P11))/LOG(2)))) -> -0.2316625001 | T11: =N11 -> 1211 | U11: =COUNTIF(L7:L9,T11) -> 0 | V11: =U11/(W4-U20) -> 0 | W11: =IF(V11=0,0,(V11*((LOG(V11))/LOG(2)))) -> 0 | Y11: =N11 -> 1211 | Z11: =COUNTIF(L10:L12,Y11) -> 0 | AA11: =Z11/(AB4-Z20) -> 0 | AB11: =IF(AA11=0,0,(AA11*((LOG(AA11))/LOG(2)))) -> 0 | AD11: =N11 -> 1211 | AE11: =COUNTIF(L13:L16,AD11) -> 0 | AF11: =AE11/(AG4-AE20) -> 0 | AG11: =IF(AF11=0,0,(AF11*((LOG(AF11))/LOG(2)))) -> 0 | AI11: =N11 -> 1211 | AJ11: =COUNTIF(L17:L19,AI11) -> 1 | AK11: =AJ11/(AL4-AJ20) -> 0.3333333333 | AL11: =IF(AK11=0,0,(AK11*((LOG(AK11))/LOG(2)))) -> -0.5283208336 | AN11: =N11 -> 1211 | AO11: =COUNTIF(L20:L22,AN11) -> 0 | AP11: =AO11/(AQ4-AO20) -> 0 | AQ11: =IF(AP11=0,0,(AP11*((LOG(AP11))/LOG(2)))) -> 0 | AS11: =N11 -> 1211 | AT11: =COUNTIF(L23:L25,AS11) -> 0 | AU11: =AT11/(AV4-AT20) -> 0 | AV11: =IF(AU11=0,0,(AU11*((LOG(AU11))/LOG(2)))) -> 0
A12: 21 | B12: 1383 | C12: 12 | D12: 1406 | E12: 13 | F12: 1414 | G12: 23 | H12: 1431 | K12: 0 | L12: 2112 | N12: 1212 | O12: =COUNTIF($L$7:$L$500,N12) -> 0 | P12: =O12/$Q$4 -> 0 | Q12: =IF(P12=0,0,(P12*((LOG(P12))/LOG(2)))) -> 0 | T12: =N12 -> 1212 | U12: =COUNTIF(L7:L9,T12) -> 0 | V12: =U12/(W4-U20) -> 0 | W12: =IF(V12=0,0,(V12*((LOG(V12))/LOG(2)))) -> 0 | Y12: =N12 -> 1212 | Z12: =COUNTIF(L10:L12,Y12) -> 0 | AA12: =Z12/(AB4-Z20) -> 0 | AB12: =IF(AA12=0,0,(AA12*((LOG(AA12))/LOG(2)))) -> 0 | AD12: =N12 -> 1212 | AE12: =COUNTIF(L13:L16,AD12) -> 0 | AF12: =AE12/(AG4-AE20) -> 0 | AG12: =IF(AF12=0,0,(AF12*((LOG(AF12))/LOG(2)))) -> 0 | AI12: =N12 -> 1212 | AJ12: =COUNTIF(L17:L19,AI12) -> 0 | AK12: =AJ12/(AL4-AJ20) -> 0 | AL12: =IF(AK12=0,0,(AK12*((LOG(AK12))/LOG(2)))) -> 0 | AN12: =N12 -> 1212 | AO12: =COUNTIF(L20:L22,AN12) -> 0 | AP12: =AO12/(AQ4-AO20) -> 0 | AQ12: =IF(AP12=0,0,(AP12*((LOG(AP12))/LOG(2)))) -> 0 | AS12: =N12 -> 1212 | AT12: =COUNTIF(L23:L25,AS12) -> 0 | AU12: =AT12/(AV4-AT20) -> 0 | AV12: =IF(AU12=0,0,(AU12*((LOG(AU12))/LOG(2)))) -> 0
A13: 21 | B13: 1542 | C13: 21 | D13: 1567 | E13: 22 | F13: 1575 | G13: 23 | H13: 1610 | K13: 0 | L13: 2222 | N13: 1221 | O13: =COUNTIF($L$7:$L$500,N13) -> 1 | P13: =O13/$Q$4 -> 0.05555555556 | Q13: =IF(P13=0,0,(P13*((LOG(P13))/LOG(2)))) -> -0.2316625001 | T13: =N13 -> 1221 | U13: =COUNTIF(L7:L9,T13) -> 0 | V13: =U13/(W4-U20) -> 0 | W13: =IF(V13=0,0,(V13*((LOG(V13))/LOG(2)))) -> 0 | Y13: =N13 -> 1221 | Z13: =COUNTIF(L10:L12,Y13) -> 0 | AA13: =Z13/(AB4-Z20) -> 0 | AB13: =IF(AA13=0,0,(AA13*((LOG(AA13))/LOG(2)))) -> 0 | AD13: =N13 -> 1221 | AE13: =COUNTIF(L13:L16,AD13) -> 0 | AF13: =AE13/(AG4-AE20) -> 0 | AG13: =IF(AF13=0,0,(AF13*((LOG(AF13))/LOG(2)))) -> 0 | AI13: =N13 -> 1221 | AJ13: =COUNTIF(L17:L19,AI13) -> 1 | AK13: =AJ13/(AL4-AJ20) -> 0.3333333333 | AL13: =IF(AK13=0,0,(AK13*((LOG(AK13))/LOG(2)))) -> -0.5283208336 | AN13: =N13 -> 1221 | AO13: =COUNTIF(L20:L22,AN13) -> 0 | AP13: =AO13/(AQ4-AO20) -> 0 | AQ13: =IF(AP13=0,0,(AP13*((LOG(AP13))/LOG(2)))) -> 0 | AS13: =N13 -> 1221 | AT13: =COUNTIF(L23:L25,AS13) -> 0 | AU13: =AT13/(AV4-AT20) -> 0 | AV13: =IF(AU13=0,0,(AU13*((LOG(AU13))/LOG(2)))) -> 0
A14: 12 | B14: 1705 | C14: 14 | D14: 1717 | E14: 24 | F14: 1733 | G14: 23 | H14: 1735 | K14: 0 | L14: 1122 | N14: 1222 | O14: =COUNTIF($L$7:$L$500,N14) -> 2 | P14: =O14/$Q$4 -> 0.1111111111 | Q14: =IF(P14=0,0,(P14*((LOG(P14))/LOG(2)))) -> -0.352213889 | T14: =N14 -> 1222 | U14: =COUNTIF(L7:L9,T14) -> 0 | V14: =U14/(W4-U20) -> 0 | W14: =IF(V14=0,0,(V14*((LOG(V14))/LOG(2)))) -> 0 | Y14: =N14 -> 1222 | Z14: =COUNTIF(L10:L12,Y14) -> 1 | AA14: =Z14/(AB4-Z20) -> 0.3333333333 | AB14: =IF(AA14=0,0,(AA14*((LOG(AA14))/LOG(2)))) -> -0.5283208336 | AD14: =N14 -> 1222 | AE14: =COUNTIF(L13:L16,AD14) -> 1 | AF14: =AE14/(AG4-AE20) -> 0.25 | AG14: =IF(AF14=0,0,(AF14*((LOG(AF14))/LOG(2)))) -> -0.5 | AI14: =N14 -> 1222 | AJ14: =COUNTIF(L17:L19,AI14) -> 0 | AK14: =AJ14/(AL4-AJ20) -> 0 | AL14: =IF(AK14=0,0,(AK14*((LOG(AK14))/LOG(2)))) -> 0 | AN14: =N14 -> 1222 | AO14: =COUNTIF(L20:L22,AN14) -> 0 | AP14: =AO14/(AQ4-AO20) -> 0 | AQ14: =IF(AP14=0,0,(AP14*((LOG(AP14))/LOG(2)))) -> 0 | AS14: =N14 -> 1222 | AT14: =COUNTIF(L23:L25,AS14) -> 0 | AU14: =AT14/(AV4-AT20) -> 0 | AV14: =IF(AU14=0,0,(AU14*((LOG(AU14))/LOG(2)))) -> 0
A15: 12 | B15: 1833 | C15: 23 | D15: 1844 | E15: 24 | F15: 1847 | G15: 23 | H15: 1861 | K15: 0 | L15: 1222 | N15: 2111 | O15: =COUNTIF($L$7:$L$500,N15) -> 2 | P15: =O15/$Q$4 -> 0.1111111111 | Q15: =IF(P15=0,0,(P15*((LOG(P15))/LOG(2)))) -> -0.352213889 | T15: =N15 -> 2111 | U15: =COUNTIF(L7:L9,T15) -> 0 | V15: =U15/(W4-U20) -> 0 | W15: =IF(V15=0,0,(V15*((LOG(V15))/LOG(2)))) -> 0 | Y15: =N15 -> 2111 | Z15: =COUNTIF(L10:L12,Y15) -> 0 | AA15: =Z15/(AB4-Z20) -> 0 | AB15: =IF(AA15=0,0,(AA15*((LOG(AA15))/LOG(2)))) -> 0 | AD15: =N15 -> 2111 | AE15: =COUNTIF(L13:L16,AD15) -> 0 | AF15: =AE15/(AG4-AE20) -> 0 | AG15: =IF(AF15=0,0,(AF15*((LOG(AF15))/LOG(2)))) -> 0 | AI15: =N15 -> 2111 | AJ15: =COUNTIF(L17:L19,AI15) -> 0 | AK15: =AJ15/(AL4-AJ20) -> 0 | AL15: =IF(AK15=0,0,(AK15*((LOG(AK15))/LOG(2)))) -> 0 | AN15: =N15 -> 2111 | AO15: =COUNTIF(L20:L22,AN15) -> 1 | AP15: =AO15/(AQ4-AO20) -> 0.3333333333 | AQ15: =IF(AP15=0,0,(AP15*((LOG(AP15))/LOG(2)))) -> -0.5283208336 | AS15: =N15 -> 2111 | AT15: =COUNTIF(L23:L25,AS15) -> 1 | AU15: =AT15/(AV4-AT20) -> 0.5 | AV15: =IF(AU15=0,0,(AU15*((LOG(AU15))/LOG(2)))) -> -0.5
A16: 12 | B16: 1964 | C16: 14 | D16: 1987 | E16: 24 | F16: 2000 | G16: 23 | H16: 2004 | K16: 0 | L16: 1122 | N16: 2112 | O16: =COUNTIF($L$7:$L$500,N16) -> 1 | P16: =O16/$Q$4 -> 0.05555555556 | Q16: =IF(P16=0,0,(P16*((LOG(P16))/LOG(2)))) -> -0.2316625001 | T16: =N16 -> 2112 | U16: =COUNTIF(L7:L9,T16) -> 0 | V16: =U16/(W4-U20) -> 0 | W16: =IF(V16=0,0,(V16*((LOG(V16))/LOG(2)))) -> 0 | Y16: =N16 -> 2112 | Z16: =COUNTIF(L10:L12,Y16) -> 1 | AA16: =Z16/(AB4-Z20) -> 0.3333333333 | AB16: =IF(AA16=0,0,(AA16*((LOG(AA16))/LOG(2)))) -> -0.5283208336 | AD16: =N16 -> 2112 | AE16: =COUNTIF(L13:L16,AD16) -> 0 | AF16: =AE16/(AG4-AE20) -> 0 | AG16: =IF(AF16=0,0,(AF16*((LOG(AF16))/LOG(2)))) -> 0 | AI16: =N16 -> 2112 | AJ16: =COUNTIF(L17:L19,AI16) -> 0 | AK16: =AJ16/(AL4-AJ20) -> 0 | AL16: =IF(AK16=0,0,(AK16*((LOG(AK16))/LOG(2)))) -> 0 | AN16: =N16 -> 2112 | AO16: =COUNTIF(L20:L22,AN16) -> 0 | AP16: =AO16/(AQ4-AO20) -> 0 | AQ16: =IF(AP16=0,0,(AP16*((LOG(AP16))/LOG(2)))) -> 0 | AS16: =N16 -> 2112 | AT16: =COUNTIF(L23:L25,AS16) -> 0 | AU16: =AT16/(AV4-AT20) -> 0 | AV16: =IF(AU16=0,0,(AU16*((LOG(AU16))/LOG(2)))) -> 0
A17: 12 | B17: 2121 | C17: 23 | D17: 2129 | E17: 24 | F17: 2139 | G17: 14 | H17: 2167 | K17: 0 | L17: 1221 | N17: 2121 | O17: =COUNTIF($L$7:$L$500,N17) -> 0 | P17: =O17/$Q$4 -> 0 | Q17: =IF(P17=0,0,(P17*((LOG(P17))/LOG(2)))) -> 0 | T17: =N17 -> 2121 | U17: =COUNTIF(L7:L9,T17) -> 0 | V17: =U17/(W4-U20) -> 0 | W17: =IF(V17=0,0,(V17*((LOG(V17))/LOG(2)))) -> 0 | Y17: =N17 -> 2121 | Z17: =COUNTIF(L10:L12,Y17) -> 0 | AA17: =Z17/(AB4-Z20) -> 0 | AB17: =IF(AA17=0,0,(AA17*((LOG(AA17))/LOG(2)))) -> 0 | AD17: =N17 -> 2121 | AE17: =COUNTIF(L13:L16,AD17) -> 0 | AF17: =AE17/(AG4-AE20) -> 0 | AG17: =IF(AF17=0,0,(AF17*((LOG(AF17))/LOG(2)))) -> 0 | AI17: =N17 -> 2121 | AJ17: =COUNTIF(L17:L19,AI17) -> 0 | AK17: =AJ17/(AL4-AJ20) -> 0 | AL17: =IF(AK17=0,0,(AK17*((LOG(AK17))/LOG(2)))) -> 0 | AN17: =N17 -> 2121 | AO17: =COUNTIF(L20:L22,AN17) -> 0 | AP17: =AO17/(AQ4-AO20) -> 0 | AQ17: =IF(AP17=0,0,(AP17*((LOG(AP17))/LOG(2)))) -> 0 | AS17: =N17 -> 2121 | AT17: =COUNTIF(L23:L25,AS17) -> 0 | AU17: =AT17/(AV4-AT20) -> 0 | AV17: =IF(AU17=0,0,(AU17*((LOG(AU17))/LOG(2)))) -> 0
A18: 21 | B18: 2323 | C18: 21 | D18: 2334 | E18: 22 | F18: 2338 | G18: 14 | H18: 2369 | K18: 0 | L18: 2221 | N18: 2122 | O18: =COUNTIF($L$7:$L$500,N18) -> 0 | P18: =O18/$Q$4 -> 0 | Q18: =IF(P18=0,0,(P18*((LOG(P18))/LOG(2)))) -> 0 | T18: =N18 -> 2122 | U18: =COUNTIF(L7:L9,T18) -> 0 | V18: =U18/(W4-U20) -> 0 | W18: =IF(V18=0,0,(V18*((LOG(V18))/LOG(2)))) -> 0 | Y18: =N18 -> 2122 | Z18: =COUNTIF(L10:L12,Y18) -> 0 | AA18: =Z18/(AB4-Z20) -> 0 | AB18: =IF(AA18=0,0,(AA18*((LOG(AA18))/LOG(2)))) -> 0 | AD18: =N18 -> 2122 | AE18: =COUNTIF(L13:L16,AD18) -> 0 | AF18: =AE18/(AG4-AE20) -> 0 | AG18: =IF(AF18=0,0,(AF18*((LOG(AF18))/LOG(2)))) -> 0 | AI18: =N18 -> 2122 | AJ18: =COUNTIF(L17:L19,AI18) -> 0 | AK18: =AJ18/(AL4-AJ20) -> 0 | AL18: =IF(AK18=0,0,(AK18*((LOG(AK18))/LOG(2)))) -> 0 | AN18: =N18 -> 2122 | AO18: =COUNTIF(L20:L22,AN18) -> 0 | AP18: =AO18/(AQ4-AO20) -> 0 | AQ18: =IF(AP18=0,0,(AP18*((LOG(AP18))/LOG(2)))) -> 0 | AS18: =N18 -> 2122 | AT18: =COUNTIF(L23:L25,AS18) -> 0 | AU18: =AT18/(AV4-AT20) -> 0 | AV18: =IF(AU18=0,0,(AU18*((LOG(AU18))/LOG(2)))) -> 0
A19: 12 | B19: 2488 | C19: 23 | D19: 2494 | E19: 13 | F19: 2508 | G19: 14 | H19: 2514 | K19: 0 | L19: 1211 | N19: 2211 | O19: =COUNTIF($L$7:$L$500,N19) -> 1 | P19: =O19/$Q$4 -> 0.05555555556 | Q19: =IF(P19=0,0,(P19*((LOG(P19))/LOG(2)))) -> -0.2316625001 | T19: =N19 -> 2211 | U19: =COUNTIF(L7:L9,T19) -> 0 | V19: =U19/(W4-U20) -> 0 | W19: =IF(V19=0,0,(V19*((LOG(V19))/LOG(2)))) -> 0 | Y19: =N19 -> 2211 | Z19: =COUNTIF(L10:L12,Y19) -> 0 | AA19: =Z19/(AB4-Z20) -> 0 | AB19: =IF(AA19=0,0,(AA19*((LOG(AA19))/LOG(2)))) -> 0 | AD19: =N19 -> 2211 | AE19: =COUNTIF(L13:L16,AD19) -> 0 | AF19: =AE19/(AG4-AE20) -> 0 | AG19: =IF(AF19=0,0,(AF19*((LOG(AF19))/LOG(2)))) -> 0 | AI19: =N19 -> 2211 | AJ19: =COUNTIF(L17:L19,AI19) -> 0 | AK19: =AJ19/(AL4-AJ20) -> 0 | AL19: =IF(AK19=0,0,(AK19*((LOG(AK19))/LOG(2)))) -> 0 | AN19: =N19 -> 2211 | AO19: =COUNTIF(L20:L22,AN19) -> 0 | AP19: =AO19/(AQ4-AO20) -> 0 | AQ19: =IF(AP19=0,0,(AP19*((LOG(AP19))/LOG(2)))) -> 0 | AS19: =N19 -> 2211 | AT19: =COUNTIF(L23:L25,AS19) -> 1 | AU19: =AT19/(AV4-AT20) -> 0.5 | AV19: =IF(AU19=0,0,(AU19*((LOG(AU19))/LOG(2)))) -> -0.5
A20: 21 | B20: 2638 | C20: 21 | D20: 2641 | E20: 22 | F20: 2643 | G20: 23 | H20: 2657 | K20: 0 | L20: 2222 | N20: 2212 | O20: =COUNTIF($L$7:$L$500,N20) -> 0 | P20: =O20/$Q$4 -> 0 | Q20: =IF(P20=0,0,(P20*((LOG(P20))/LOG(2)))) -> 0 | T20: =N20 -> 2212 | U20: =COUNTIF(L7:L9,T20) -> 0 | Y20: =N20 -> 2212 | Z20: =COUNTIF(L10:L12,Y20) -> 0 | AD20: =N20 -> 2212 | AE20: =COUNTIF(L13:L16,AD20) -> 0 | AI20: =N20 -> 2212 | AJ20: =COUNTIF(L17:L19,AI20) -> 0 | AN20: =N20 -> 2212 | AO20: =COUNTIF(L20:L22,AN20) -> 0 | AS20: =N20 -> 2212 | AT20: =COUNTIF(L23:L25,AS20) -> 0
A21: 12 | B21: 2785 | C21: 14 | D21: 2789 | E21: 13 | F21: 2792 | G21: 23 | H21: 2802 | K21: 0 | L21: 1112 | N21: 2221 | O21: =COUNTIF($L$7:$L$500,N21) -> 1 | P21: =O21/$Q$4 -> 0.05555555556 | Q21: =IF(P21=0,0,(P21*((LOG(P21))/LOG(2)))) -> -0.2316625001 | T21: =N21 -> 2221 | U21: =COUNTIF(L7:L9,T21) -> 0 | V21: =U21/(W4-U20) -> 0 | W21: =IF(V21=0,0,(V21*((LOG(V21))/LOG(2)))) -> 0 | Y21: =N21 -> 2221 | Z21: =COUNTIF(L10:L12,Y21) -> 0 | AA21: =Z21/(AB4-Z20) -> 0 | AB21: =IF(AA21=0,0,(AA21*((LOG(AA21))/LOG(2)))) -> 0 | AD21: =N21 -> 2221 | AE21: =COUNTIF(L13:L16,AD21) -> 0 | AF21: =AE21/(AG4-AE20) -> 0 | AG21: =IF(AF21=0,0,(AF21*((LOG(AF21))/LOG(2)))) -> 0 | AI21: =N21 -> 2221 | AJ21: =COUNTIF(L17:L19,AI21) -> 1 | AK21: =AJ21/(AL4-AJ20) -> 0.3333333333 | AL21: =IF(AK21=0,0,(AK21*((LOG(AK21))/LOG(2)))) -> -0.5283208336 | AN21: =N21 -> 2221 | AO21: =COUNTIF(L20:L22,AN21) -> 0 | AP21: =AO21/(AQ4-AO20) -> 0 | AQ21: =IF(AP21=0,0,(AP21*((LOG(AP21))/LOG(2)))) -> 0 | AS21: =N21 -> 2221 | AT21: =COUNTIF(L23:L25,AS21) -> 0 | AU21: =AT21/(AV4-AT20) -> 0 | AV21: =IF(AU21=0,0,(AU21*((LOG(AU21))/LOG(2)))) -> 0
A22: 21 | B22: 2936 | C22: 12 | D22: 2976 | E22: 13 | F22: 2986 | G22: 14 | H22: 2995 | K22: 0 | L22: 2111 | N22: 2222 | O22: =COUNTIF($L$7:$L$500,N22) -> 6 | P22: =O22/$Q$4 -> 0.3333333333 | Q22: =IF(P22=0,0,(P22*((LOG(P22))/LOG(2)))) -> -0.5283208336 | T22: =N22 -> 2222 | U22: =COUNTIF(L7:L9,T22) -> 3 | V22: =U22/(W4-U20) -> 1 | W22: =IF(V22=0,0,(V22*((LOG(V22))/LOG(2)))) -> 0 | Y22: =N22 -> 2222 | Z22: =COUNTIF(L10:L12,Y22) -> 1 | AA22: =Z22/(AB4-Z20) -> 0.3333333333 | AB22: =IF(AA22=0,0,(AA22*((LOG(AA22))/LOG(2)))) -> -0.5283208336 | AD22: =N22 -> 2222 | AE22: =COUNTIF(L13:L16,AD22) -> 1 | AF22: =AE22/(AG4-AE20) -> 0.25 | AG22: =IF(AF22=0,0,(AF22*((LOG(AF22))/LOG(2)))) -> -0.5 | AI22: =N22 -> 2222 | AJ22: =COUNTIF(L17:L19,AI22) -> 0 | AK22: =AJ22/(AL4-AJ20) -> 0 | AL22: =IF(AK22=0,0,(AK22*((LOG(AK22))/LOG(2)))) -> 0 | AN22: =N22 -> 2222 | AO22: =COUNTIF(L20:L22,AN22) -> 1 | AP22: =AO22/(AQ4-AO20) -> 0.3333333333 | AQ22: =IF(AP22=0,0,(AP22*((LOG(AP22))/LOG(2)))) -> -0.5283208336 | AS22: =N22 -> 2222 | AT22: =COUNTIF(L23:L25,AS22) -> 0 | AU22: =AT22/(AV4-AT20) -> 0 | AV22: =IF(AU22=0,0,(AU22*((LOG(AU22))/LOG(2)))) -> 0
A23: 21 | B23: 3694 | C23: 12 | D23: 3697 | E23: 13 | F23: 3722 | G23: 14 | H23: 3730 | K23: 0 | L23: 2111 | P23: =SUM(P7:P22) -> 1 | Q23: =-SUM(Q7:Q22) -> 2.974937501 | V23: =SUM(V7:V22) -> 1 | W23: =-SUM(W7:W22) -> 0 | AA23: =SUM(AA7:AA22) -> 1 | AB23: =-SUM(AB7:AB22) -> 1.584962501 | AF23: =SUM(AF7:AF22) -> 1 | AG23: =-SUM(AG7:AG22) -> 1.5 | AK23: =SUM(AK7:AK22) -> 1 | AL23: =-SUM(AL7:AL22) -> 1.584962501 | AP23: =SUM(AP7:AP22) -> 1 | AQ23: =-SUM(AQ7:AQ22) -> 1.584962501 | AU23: =SUM(AU7:AU22) -> 1 | AV23: =-SUM(AV7:AV22) -> 1
A24: 21 | B24: 6491 | C24: 21 | D24: 6506 | E24: 11 | F24: 6523 | G24: 12 | H24: 6531 | K24: 0 | L24: 2211 | P24: U= | Q24: =Q23/(LOG(Q4)/LOG(2)) -> 0.7134271 | V24: U1= | W24: =W23/(LOG(W4)/LOG(2)) -> 0 | AA24: U2= | AB24: =AB23/(LOG(AB4)/LOG(2)) -> 1 | AF24: U3= | AG24: =AG23/(LOG(AG4)/LOG(2)) -> 0.75 | AK24: U4= | AL24: =AL23/(LOG(AL4)/LOG(2)) -> 1 | AP24: U5= | AQ24: =AQ23/(LOG(AQ4)/LOG(2)) -> 1 | AU24: U6= | AV24: =AV23/(LOG(AV4)/LOG(2)) -> 1
A25: 21 | B25: 22802 | L25: 2
N27: Total Target Seq
N28: =COUNTIF(L7:L25,G3) -> 0 | P28: 3 | Q28: 3 | R28: 4 | S28: 3 | T28: 3 | U28: 3
P29: % of reinforcement given in 6 equal intervals based on number of trials
P30: %_1 | Q30: %_2 | R30: %_3 | S30: %_4 | T30: %_5 | U30: %_6
O31: target sequence | P31: =$G$3 -> 2212 | Q31: =$G$3 -> 2212 | R31: =$G$3 -> 2212 | S31: =$G$3 -> 2212 | T31: =$G$3 -> 2212 | U31: =$G$3 -> 2212
O32: total reinforcement | P32: =U20 -> 0 | Q32: =Z20 -> 0 | R32: =AE20 -> 0 | S32: =AJ20 -> 0 | T32: =AO20 -> 0 | U32: =AT20 -> 0
O33: % target
O34: CCRF
O35: % CCRf
O36: average response rate | P36: =H9/P28 -> 328 | Q36: =(H12-H9)/Q28 -> 149 | R36: =(H16-H12)/R28 -> 143.25 | S36: =(H19-H16)/S28 -> 170 | T36: =(H22-H19)/T28 -> 160.3333333 | U36: =(H25-H22)/U28 -> -998.3333333

Sheet !M105B4B.axt
A1: Report for:!M105B4B.axt
A2: Date: | B2: <date>
A3: Hen: | B3: <hen> | F3: Correct Sequence | G3: =Start!J2 -> 2212 | P3: Total Sequences in Data | Q3: =4994-COUNTBLANK(L7:L5000) -> 13 | V3: Total Sequences in Block Data | W3: =COUNTA(L7:L8) -> 2 | AA3: Total Sequences in Block Data | AB3: =COUNTA(L9:L10) -> 2 | AF3: Total Sequences in Block Data | AG3: =COUNTA(L11:L13) -> 3 | AK3: Total Sequences in Block Data | AL3: =COUNTA(L14:L15) -> 2 | AP3: Total Sequences in Block Data | AQ3: =COUNTA(L16:L17) -> 2 | AU3: Total Sequences in Block Data | AV3: =COUNTA(L18:L19) -> 2
P4: Total Sequences in Summary | Q4: =SUM(O7:O22) -> 12 | V4: Total Sequences in Block Summary | W4: =SUM(U7:U22) -> 2 | AA4: Total Sequences in Block Summary | AB4: =SUM(Z7:Z22) -> 2 | AF4: Total Sequences in Block Summary | AG4: =SUM(AE7:AE22) -> 3 | AK4: Total Sequences in Block Summary | AL4: =SUM(AJ7:AJ22) -> 2 | AP4: Total Sequences in Block Summary | AQ4: =SUM(AO7:AO22) -> 2 | AU4: Total Sequences in Block Summary | AV4: =SUM(AT7:AT22) -> 1
T5: Block 1 | Y5: Block 2 | AD5: Block 3 | AI5: Block 4 | AN5: Block 5 | AS5: Block 6
A6: Sequence Component 1 | B6: Time 1 | C6: Sequence Component 2 | D6: Time 2 | E6: Sequence Component 3 | F6: Time 3 | G6: Sequence Component 4 | H6: Time 4 | I6: Sequence Component 5 | J6: Time 5 | K6: Correct? 0=No 1=Yes | L6: Sequence | N6: Frequency | P6: Relative Frequency | Q6: Variability | T6: Frequency | V6: Relative Frequency | W6: Variability | Y6: Frequency | AA6: Relative Frequency | AB6: Variability | AD6: Frequency | AF6: Relative Frequency | AG6: Variability | AI6: Frequency | AK6: Relative Frequency | AL6: Variability | AN6: Frequency | AP6: Relative Frequency | AQ6: Variability | AS6: Frequency | AU6: Relative Frequency | AV6: Variability
A7: 21 | B7: 11 | C7: 21 | D7: 16 | E7: 11 | F7: 35 | G7: 21 | H7: 41 | K7: 0 | L7: 2212 | N7: 1111 | O7: =COUNTIF($L$7:$L$500,N7) -> 0 | P7: =O7/$Q$4 -> 0 | Q7: =IF(P7=0,0,(P7*((LOG(P7))/LOG(2)))) -> 0 | T7: =N7 -> 1111 | U7: =COUNTIF(L7:L8,T7) -> 0 | V7: =U7/(W4-U20) -> 0 | W7: =IF(V7=0,0,(V7*((LOG(V7))/LOG(2)))) -> 0 | Y7: =N7 -> 1111 | Z7: =COUNTIF(L9:L10,Y7) -> 0 | AA7: =Z7/(AB4-Z20) -> 0 | AB7: =IF(AA7=0,0,(AA7*((LOG(AA7))/LOG(2)))) -> 0 | AD7: =N7 -> 1111 | AE7: =COUNTIF(L11:L13,AD7) -> 0 | AF7: =AE7/(AG4-AE20) -> 0 | AG7: =IF(AF7=0,0,(AF7*((LOG(AF7))/LOG(2)))) -> 0 | AI7: =N7 -> 1111 | AJ7: =COUNTIF(L14:L15,AI7) -> 0 | AK7: =AJ7/(AL4-AJ20) -> 0 | AL7: =IF(AK7=0,0,(AK7*((LOG(AK7))/LOG(2)))) -> 0 | AN7: =N7 -> 1111 | AO7: =COUNTIF(L16:L17,AN7) -> 0 | AP7: =AO7/(AQ4-AO20) -> 0 | AQ7: =IF(AP7=0,0,(AP7*((LOG(AP7))/LOG(2)))) -> 0 | AS7: =N7 -> 1111 | AT7: =COUNTIF(L18:L19,AS7) -> 0 | AU7: =AT7/(AV4-AT20) -> 0 | AV7: =IF(AU7=0,0,(AU7*((LOG(AU7))/LOG(2)))) -> 0
A8: 12 | B8: 147 | C8: 23 | D8: 164 | E8: 24 | F8: 181 | G8: 23 | H8: 196 | K8: 0 | L8: 1222 | N8: 1112 | O8: =COUNTIF($L$7:$L$500,N8) -> 0 | P8: =O8/$Q$4 -> 0 | Q8: =IF(P8=0,0,(P8*((LOG(P8))/LOG(2)))) -> 0 | T8: =N8 -> 1112 | U8: =COUNTIF(L7:L8,T8) -> 0 | V8: =U8/(W4-U20) -> 0 | W8: =IF(V8=0,0,(V8*((LOG(V8))/LOG(2)))) -> 0 | Y8: =N8 -> 1112 | Z8: =COUNTIF(L9:L10,Y8) -> 0 | AA8: =Z8/(AB4-Z20) -> 0 | AB8: =IF(AA8=0,0,(AA8*((LOG(AA8))/LOG(2)))) -> 0 | AD8: =N8 -> 1112 | AE8: =COUNTIF(L11:L13,AD8) -> 0 | AF8: =AE8/(AG4-AE20) -> 0 | AG8: =IF(AF8=0,0,(AF8*((LOG(AF8))/LOG(2)))) -> 0 | AI8: =N8 -> 1112 | AJ8: =COUNTIF(L14:L15,AI8) -> 0 | AK8: =AJ8/(AL4-AJ20) -> 0 | AL8: =IF(AK8=0,0,(AK8*((LOG(AK8))/LOG(2)))) -> 0 | AN8: =N8 -> 1112 | AO8: =COUNTIF(L16:L17,AN8) -> 0 | AP8: =AO8/(AQ4-AO20) -> 0 | AQ8: =IF(AP8=0,0,(AP8*((LOG(AP8))/LOG(2)))) -> 0 | AS8: =N8 -> 1112 | AT8: =COUNTIF(L18:L19,AS8) -> 0 | AU8: =AT8/(AV4-AT20) -> 0 | AV8: =IF(AU8=0,0,(AU8*((LOG(AU8))/LOG(2)))) -> 0
A9: 12 | B9: 304 | C9: 23 | D9: 311 | E9: 24 | F9: 325 | G9: 23 | H9: 336 | K9: 0 | L9: 1222 | N9: 1121 | O9: =COUNTIF($L$7:$L$500,N9) -> 0 | P9: =O9/$Q$4 -> 0 | Q9: =IF(P9=0,0,(P9*((LOG(P9))/LOG(2)))) -> 0 | T9: =N9 -> 1121 | U9: =COUNTIF(L7:L8,T9) -> 0 | V9: =U9/(W4-U20) -> 0 | W9: =IF(V9=0,0,(V9*((LOG(V9))/LOG(2)))) -> 0 | Y9: =N9 -> 1121 | Z9: =COUNTIF(L9:L10,Y9) -> 0 | AA9: =Z9/(AB4-Z20) -> 0 | AB9: =IF(AA9=0,0,(AA9*((LOG(AA9))/LOG(2)))) -> 0 | AD9: =N9 -> 1121 | AE9: =COUNTIF(L11:L13,AD9) -> 0 | AF9: =AE9/(AG4-AE20) -> 0 | AG9: =IF(AF9=0,0,(AF9*((LOG(AF9))/LOG(2)))) -> 0 | AI9: =N9 -> 1121 | AJ9: =COUNTIF(L14:L15,AI9) -> 0 | AK9: =AJ9/(AL4-AJ20) -> 0 | AL9: =IF(AK9=0,0,(AK9*((LOG(AK9))/LOG(2)))) -> 0 | AN9: =N9 -> 1121 | AO9: =COUNTIF(L16:L17,AN9) -> 0 | AP9: =AO9/(AQ4-AO20) -> 0 | AQ9: =IF(AP9=0,0,(AP9*((LOG(AP9))/LOG(2)))) -> 0 | AS9: =N9 -> 1121 | AT9: =COUNTIF(L18:L19,AS9) -> 0 | AU9: =AT9/(AV4-AT20) -> 0 | AV9: =IF(AU9=0,0,(AU9*((LOG(AU9))/LOG(2)))) -> 0
A10: 21 | B10: 438 | C10: 21 | D10: 453 | E10: 11 | F10: 470 | G10: 12 | H10: 478 | K10: 0 | L10: 2211 | N10: 1122 | O10: =COUNTIF($L$7:$L$500,N10) -> 0 | P10: =O10/$Q$4 -> 0 | Q10: =IF(P10=0,0,(P10*((LOG(P10))/LOG(2)))) -> 0 | T10: =N10 -> 1122 | U10: =COUNTIF(L7:L8,T10) -> 0 | V10: =U10/(W4-U20) -> 0 | W10: =IF(V10=0,0,(V10*((LOG(V10))/LOG(2)))) -> 0 | Y10: =N10 -> 1122 | Z10: =COUNTIF(L9:L10,Y10) -> 0 | AA10: =Z10/(AB4-Z20) -> 0 | AB10: =IF(AA10=0,0,(AA10*((LOG(AA10))/LOG(2)))) -> 0 | AD10: =N10 -> 1122 | AE10: =COUNTIF(L11:L13,AD10) -> 0 | AF10: =AE10/(AG4-AE20) -> 0 | AG10: =IF(AF10=0,0,(AF10*((LOG(AF10))/LOG(2)))) -> 0 | AI10: =N10 -> 1122 | AJ10: =COUNTIF(L14:L15,AI10) -> 0 | AK10: =AJ10/(AL4-AJ20) -> 0 | AL10: =IF(AK10=0,0,(AK10*((LOG(AK10))/LOG(2)))) -> 0 | AN10: =N10 -> 1122 | AO10: =COUNTIF(L16:L17,AN10) -> 0 | AP10: =AO10/(AQ4-AO20) -> 0 | AQ10: =IF(AP10=0,0,(AP10*((LOG(AP10))/LOG(2)))) -> 0 | AS10: =N10 -> 1122 | AT10: =COUNTIF(L18:L19,AS10) -> 0 | AU10: =AT10/(AV4-AT20) -> 0 | AV10: =IF(AU10=0,0,(AU10*((LOG(AU10))/LOG(2)))) -> 0
A11: 21 | B11: 643 | C11: 21 | D11: 645 | E11: 22 | F11: 652 | G11: 23 | H11: 674 | K11: 0 | L11: 2222 | N11: 1211 | O11: =COUNTIF($L$7:$L$500,N11) -> 0 | P11: =O11/$Q$4 -> 0 | Q11: =IF(P11=0,0,(P11*((LOG(P11))/LOG(2)))) -> 0 | T11: =N11 -> 1211 | U11: =COUNTIF(L7:L8,T11) -> 0 | V11: =U11/(W4-U20) -> 0 | W11: =IF(V11=0,0,(V11*((LOG(V11))/LOG(2)))) -> 0 | Y11: =N11 -> 1211 | Z11: =COUNTIF(L9:L10,Y11) -> 0 | AA11: =Z11/(AB4-Z20) -> 0 | AB11: =IF(AA11=0,0,(AA11*((LOG(AA11))/LOG(2)))) -> 0 | AD11: =N11 -> 1211 | AE11: =COUNTIF(L11:L13,AD11) -> 0 | AF11: =AE11/(AG4-AE20) -> 0 | AG11: =IF(AF11=0,0,(AF11*((LOG(AF11))/LOG(2)))) -> 0 | AI11: =N11 -> 1211 | AJ11: =COUNTIF(L14:L15,AI11) -> 0 | AK11: =AJ11/(AL4-AJ20) -> 0 | AL11: =IF(AK11=0,0,(AK11*((LOG(AK11))/LOG(2)))) -> 0 | AN11: =N11 -> 1211 | AO11: =COUNTIF(L16:L17,AN11) -> 0 | AP11: =AO11/(AQ4-AO20) -> 0 | AQ11: =IF(AP11=0,0,(AP11*((LOG(AP11))/LOG(2)))) -> 0 | AS11: =N11 -> 1211 | AT11: =COUNTIF(L18:L19,AS11) -> 0 | AU11: =AT11/(AV4-AT20) -> 0 | AV11: =IF(AU11=0,0,(AU11*((LOG(AU11))/LOG(2)))) -> 0
A12: 12 | B12: 777 | C12: 23 | D12: 784 | E12: 24 | F12: 793 | G12: 23 | H12: 796 | K12: 0 | L12: 1222 | N12: 1212 | O12: =COUNTIF($L$7:$L$500,N12) -> 0 | P12: =O12/$Q$4 -> 0 | Q12: =IF(P12=0,0,(P12*((LOG(P12))/LOG(2)))) -> 0 | T12: =N12 -> 1212 | U12: =COUNTIF(L7:L8,T12) -> 0 | V12: =U12/(W4-U20) -> 0 | W12: =IF(V12=0,0,(V12*((LOG(V12))/LOG(2)))) -> 0 | Y12: =N12 -> 1212 | Z12: =COUNTIF(L9:L10,Y12) -> 0 | AA12: =Z12/(AB4-Z20) -> 0 | AB12: =IF(AA12=0,0,(AA12*((LOG(AA12))/LOG(2)))) -> 0 | AD12: =N12 -> 1212 | AE12: =COUNTIF(L11:L13,AD12) -> 0 | AF12: =AE12/(AG4-AE20) -> 0 | AG12: =IF(AF12=0,0,(AF12*((LOG(AF12))/LOG(2)))) -> 0 | AI12: =N12 -> 1212 | AJ12: =COUNTIF(L14:L15,AI12) -> 0 | AK12: =AJ12/(AL4-AJ20) -> 0 | AL12: =IF(AK12=0,0,(AK12*((LOG(AK12))/LOG(2)))) -> 0 | AN12: =N12 -> 1212 | AO12: =COUNTIF(L16:L17,AN12) -> 0 | AP12: =AO12/(AQ4-AO20) -> 0 | AQ12: =IF(AP12=0,0,(AP12*((LOG(AP12))/LOG(2)))) -> 0 | AS12: =N12 -> 1212 | AT12: =COUNTIF(L18:L19,AS12) -> 0 | AU12: =AT12/(AV4-AT20) -> 0 | AV12: =IF(AU12=0,0,(AU12*((LOG(AU12))/LOG(2)))) -> 0
A13: 12 | B13: 985 | C13: 23 | D13: 996 | E13: 24 | F13: 1006 | G13: 23 | H13: 1010 | K13: 0 | L13: 1222 | N13: 1221 | O13: =COUNTIF($L$7:$L$500,N13) -> 1 | P13: =O13/$Q$4 -> 0.08333333333 | Q13: =IF(P13=0,0,(P13*((LOG(P13))/LOG(2)))) -> -0.2987468751 | T13: =N13 -> 1221 | U13: =COUNTIF(L7:L8,T13) -> 0 | V13: =U13/(W4-U20) -> 0 | W13: =IF(V13=0,0,(V13*((LOG(V13))/LOG(2)))) -> 0 | Y13: =N13 -> 1221 | Z13: =COUNTIF(L9:L10,Y13) -> 0 | AA13: =Z13/(AB4-Z20) -> 0 | AB13: =IF(AA13=0,0,(AA13*((LOG(AA13))/LOG(2)))) -> 0 | AD13: =N13 -> 1221 | AE13: =COUNTIF(L11:L13,AD13) -> 0 | AF13: =AE13/(AG4-AE20) -> 0 | AG13: =IF(AF13=0,0,(AF13*((LOG(AF13))/LOG(2)))) -> 0 | AI13: =N13 -> 1221 | AJ13: =COUNTIF(L14:L15,AI13) -> 0 | AK13: =AJ13/(AL4-AJ20) -> 0 | AL13: =IF(AK13=0,0,(AK13*((LOG(AK13))/LOG(2)))) -> 0 | AN13: =N13 -> 1221 | AO13: =COUNTIF(L16:L17,AN13) -> 1 | AP13: =AO13/(AQ4-AO20) -> 0.5 | AQ13: =IF(AP13=0,0,(AP13*((LOG(AP13))/LOG(2)))) -> -0.5 | AS13: =N13 -> 1221 | AT13: =COUNTIF(L18:L19,AS13) -> 0 | AU13: =AT13/(AV4-AT20) -> 0 | AV13: =IF(AU13=0,0,(AU13*((LOG(AU13))/LOG(2)))) -> 0
A14: 21 | B14: 1159 | C14: 21 | D14: 1173 | E14: 11 | F14: 1196 | G14: 12 | H14: 1203 | K14: 0 | L14: 2211 | N14: 1222 | O14: =COUNTIF($L$7:$L$500,N14) -> 5 | P14: =O14/$Q$4 -> 0.4166666667 | Q14: =IF(P14=0,0,(P14*((LOG(P14))/LOG(2)))) -> -0.5262643358 | T14: =N14 -> 1222 | U14: =COUNTIF(L7:L8,T14) -> 1 | V14: =U14/(W4-U20) -> 1 | W14: =IF(V14=0,0,(V14*((LOG(V14))/LOG(2)))) -> 0 | Y14: =N14 -> 1222 | Z14: =COUNTIF(L9:L10,Y14) -> 1 | AA14: =Z14/(AB4-Z20) -> 0.5 | AB14: =IF(AA14=0,0,(AA14*((LOG(AA14))/LOG(2)))) -> -0.5 | AD14: =N14 -> 1222 | AE14: =COUNTIF(L11:L13,AD14) -> 2 | AF14: =AE14/(AG4-AE20) -> 0.6666666667 | AG14: =IF(AF14=0,0,(AF14*((LOG(AF14))/LOG(2)))) -> -0.3899750005 | AI14: =N14 -> 1222 | AJ14: =COUNTIF(L14:L15,AI14) -> 0 | AK14: =AJ14/(AL4-AJ20) -> 0 | AL14: =IF(AK14=0,0,(AK14*((LOG(AK14))/LOG(2)))) -> 0 | AN14: =N14 -> 1222 | AO14: =COUNTIF(L16:L17,AN14) -> 0 | AP14: =AO14/(AQ4-AO20) -> 0 | AQ14: =IF(AP14=0,0,(AP14*((LOG(AP14))/LOG(2)))) -> 0 | AS14: =N14 -> 1222 | AT14: =COUNTIF(L18:L19,AS14) -> 1 | AU14: =AT14/(AV4-AT20) -> 1 | AV14: =IF(AU14=0,0,(AU14*((LOG(AU14))/LOG(2)))) -> 0
A15: 21 | B15: 1317 | C15: 21 | D15: 1337 | E15: 22 | F15: 1342 | G15: 14 | H15: 1362 | K15: 0 | L15: 2221 | N15: 2111 | O15: =COUNTIF($L$7:$L$500,N15) -> 0 | P15: =O15/$Q$4 -> 0 | Q15: =IF(P15=0,0,(P15*((LOG(P15))/LOG(2)))) -> 0 | T15: =N15 -> 2111 | U15: =COUNTIF(L7:L8,T15) -> 0 | V15: =U15/(W4-U20) -> 0 | W15: =IF(V15=0,0,(V15*((LOG(V15))/LOG(2)))) -> 0 | Y15: =N15 -> 2111 | Z15: =COUNTIF(L9:L10,Y15) -> 0 | AA15: =Z15/(AB4-Z20) -> 0 | AB15: =IF(AA15=0,0,(AA15*((LOG(AA15))/LOG(2)))) -> 0 | AD15: =N15 -> 2111 | AE15: =COUNTIF(L11:L13,AD15) -> 0 | AF15: =AE15/(AG4-AE20) -> 0 | AG15: =IF(AF15=0,0,(AF15*((LOG(AF15))/LOG(2)))) -> 0 | AI15: =N15 -> 2111 | AJ15: =COUNTIF(L14:L15,AI15) -> 0 | AK15: =AJ15/(AL4-AJ20) -> 0 | AL15: =IF(AK15=0,0,(AK15*((LOG(AK15))/LOG(2)))) -> 0 | AN15: =N15 -> 2111 | AO15: =COUNTIF(L16:L17,AN15) -> 0 | AP15: =AO15/(AQ4-AO20) -> 0 | AQ15: =IF(AP15=0,0,(AP15*((LOG(AP15))/LOG(2)))) -> 0 | AS15: =N15 -> 2111 | AT15: =COUNTIF(L18:L19,AS15) -> 0 | AU15: =AT15/(AV4-AT20) -> 0 | AV15: =IF(AU15=0,0,(AU15*((LOG(AU15))/LOG(2)))) -> 0
A16: 12 | B16: 1522 | C16: 23 | D16: 1530 | E16: 24 | F16: 1540 | G16: 14 | H16: 1571 | K16: 0 | L16: 1221 | N16: 2112 | O16: =COUNTIF($L$7:$L$500,N16) -> 0 | P16: =O16/$Q$4 -> 0 | Q16: =IF(P16=0,0,(P16*((LOG(P16))/LOG(2)))) -> 0 | T16: =N16 -> 2112 | U16: =COUNTIF(L7:L8,T16) -> 0 | V16: =U16/(W4-U20) -> 0 | W16: =IF(V16=0,0,(V16*((LOG(V16))/LOG(2)))) -> 0 | Y16: =N16 -> 2112 | Z16: =COUNTIF(L9:L10,Y16) -> 0 | AA16: =Z16/(AB4-Z20) -> 0 | AB16: =IF(AA16=0,0,(AA16*((LOG(AA16))/LOG(2)))) -> 0 | AD16: =N16 -> 2112 | AE16: =COUNTIF(L11:L13,AD16) -> 0 | AF16: =AE16/(AG4-AE20) -> 0 | AG16: =IF(AF16=0,0,(AF16*((LOG(AF16))/LOG(2)))) -> 0 | AI16: =N16 -> 2112 | AJ16: =COUNTIF(L14:L15,AI16) -> 0 | AK16: =AJ16/(AL4-AJ20) -> 0 | AL16: =IF(AK16=0,0,(AK16*((LOG(AK16))/LOG(2)))) -> 0 | AN16: =N16 -> 2112 | AO16: =COUNTIF(L16:L17,AN16) -> 0 | AP16: =AO16/(AQ4-AO20) -> 0 | AQ16: =IF(AP16=0,0,(AP16*((LOG(AP16))/LOG(2)))) -> 0 | AS16: =N16 -> 2112 | AT16: =COUNTIF(L18:L19,AS16) -> 0 | AU16: =AT16/(AV4-AT20) -> 0 | AV16: =IF(AU16=0,0,(AU16*((LOG(AU16))/LOG(2)))) -> 0
A17: 21 | B17: 1813 | C17: 21 | D17: 1849 | E17: 11 | F17: 1885 | G17: 12 | H17: 1888 | K17: 0 | L17: 2211 | N17: 2121 | O17: =COUNTIF($L$7:$L$500,N17) -> 0 | P17: =O17/$Q$4 -> 0 | Q17: =IF(P17=0,0,(P17*((LOG(P17))/LOG(2)))) -> 0 | T17: =N17 -> 2121 | U17: =COUNTIF(L7:L8,T17) -> 0 | V17: =U17/(W4-U20) -> 0 | W17: =IF(V17=0,0,(V17*((LOG(V17))/LOG(2)))) -> 0 | Y17: =N17 -> 2121 | Z17: =COUNTIF(L9:L10,Y17) -> 0 | AA17: =Z17/(AB4-Z20) -> 0 | AB17: =IF(AA17=0,0,(AA17*((LOG(AA17))/LOG(2)))) -> 0 | AD17: =N17 -> 2121 | AE17: =COUNTIF(L11:L13,AD17) -> 0 | AF17: =AE17/(AG4-AE20) -> 0 | AG17: =IF(AF17=0,0,(AF17*((LOG(AF17))/LOG(2)))) -> 0 | AI17: =N17 -> 2121 | AJ17: =COUNTIF(L14:L15,AI17) -> 0 | AK17: =AJ17/(AL4-AJ20) -> 0 | AL17: =IF(AK17=0,0,(AK17*((LOG(AK17))/LOG(2)))) -> 0 | AN17: =N17 -> 2121 | AO17: =COUNTIF(L16:L17,AN17) -> 0 | AP17: =AO17/(AQ4-AO20) -> 0 | AQ17: =IF(AP17=0,0,(AP17*((LOG(AP17))/LOG(2)))) -> 0 | AS17: =N17 -> 2121 | AT17: =COUNTIF(L18:L19,AS17) -> 0 | AU17: =AT17/(AV4-AT20) -> 0 | AV17: =IF(AU17=0,0,(AU17*((LOG(AU17))/LOG(2)))) -> 0
A18: 12 | B18: 1991 | C18: 23 | D18: 1995 | E18: 24 | F18: 2010 | G18: 23 | H18: 2015 | K18: 0 | L18: 1222 | N18: 2122 | O18: =COUNTIF($L$7:$L$500,N18) -> 0 | P18: =O18/$Q$4 -> 0 | Q18: =IF(P18=0,0,(P18*((LOG(P18))/LOG(2)))) -> 0 | T18: =N18 -> 2122 | U18: =COUNTIF(L7:L8,T18) -> 0 | V18: =U18/(W4-U20) -> 0 | W18: =IF(V18=0,0,(V18*((LOG(V18))/LOG(2)))) -> 0 | Y18: =N18 -> 2122 | Z18: =COUNTIF(L9:L10,Y18) -> 0 | AA18: =Z18/(AB4-Z20) -> 0 | AB18: =IF(AA18=0,0,(AA18*((LOG(AA18))/LOG(2)))) -> 0 | AD18: =N18 -> 2122 | AE18: =COUNTIF(L11:L13,AD18) -> 0 | AF18: =AE18/(AG4-AE20) -> 0 | AG18: =IF(AF18=0,0,(AF18*((LOG(AF18))/LOG(2)))) -> 0 | AI18: =N18 -> 2122 | AJ18: =COUNTIF(L14:L15,AI18) -> 0 | AK18: =AJ18/(AL4-AJ20) -> 0 | AL18: =IF(AK18=0,0,(AK18*((LOG(AK18))/LOG(2)))) -> 0 | AN18: =N18 -> 2122 | AO18: =COUNTIF(L16:L17,AN18) -> 0 | AP18: =AO18/(AQ4-AO20) -> 0 | AQ18: =IF(AP18=0,0,(AP18*((LOG(AP18))/LOG(2)))) -> 0 | AS18: =N18 -> 2122 | AT18: =COUNTIF(L18:L19,AS18) -> 0 | AU18: =AT18/(AV4-AT20) -> 0 | AV18: =IF(AU18=0,0,(AU18*((LOG(AU18))/LOG(2)))) -> 0
A19: 21 | B19: 11509 | C19: 12 | D19: 11528 | E19: 24 | F19: 11534 | L19: 212 | N19: 2211 | O19: =COUNTIF($L$7:$L$500,N19) -> 3 | P19: =O19/$Q$4 -> 0.25 | Q19: =IF(P19=0,0,(P19*((LOG(P19))/LOG(2)))) -> -0.5 | T19: =N19 -> 2211 | U19: =COUNTIF(L7:L8,T19) -> 0 | V19: =U19/(W4-U20) -> 0 | W19: =IF(V19=0,0,(V19*((LOG(V19))/LOG(2)))) -> 0 | Y19: =N19 -> 2211 | Z19: =COUNTIF(L9:L10,Y19) -> 1 | AA19: =Z19/(AB4-Z20) -> 0.5 | AB19: =IF(AA19=0,0,(AA19*((LOG(AA19))/LOG(2)))) -> -0.5 | AD19: =N19 -> 2211 | AE19: =COUNTIF(L11:L13,AD19) -> 0 | AF19: =AE19/(AG4-AE20) -> 0 | AG19: =IF(AF19=0,0,(AF19*((LOG(AF19))/LOG(2)))) -> 0 | AI19: =N19 -> 2211 | AJ19: =COUNTIF(L14:L15,AI19) -> 1 | AK19: =AJ19/(AL4-AJ20) -> 0.5 | AL19: =IF(AK19=0,0,(AK19*((LOG(AK19))/LOG(2)))) -> -0.5 | AN19: =N19 -> 2211 | AO19: =COUNTIF(L16:L17,AN19) -> 1 | AP19: =AO19/(AQ4-AO20) -> 0.5 | AQ19: =IF(AP19=0,0,(AP19*((LOG(AP19))/LOG(2)))) -> -0.5 | AS19: =N19 -> 2211 | AT19: =COUNTIF(L18:L19,AS19) -> 0 | AU19: =AT19/(AV4-AT20) -> 0 | AV19: =IF(AU19=0,0,(AU19*((LOG(AU19))/LOG(2)))) -> 0
N20: 2212 | O20: =COUNTIF($L$7:$L$500,N20) -> 1 | P20: =O20/$Q$4 -> 0.08333333333 | Q20: =IF(P20=0,0,(P20*((LOG(P20))/LOG(2)))) -> -0.2987468751 | T20: =N20 -> 2212 | U20: =COUNTIF(L7:L8,T20) -> 1 | Y20: =N20 -> 2212 | Z20: =COUNTIF(L9:L10,Y20) -> 0 | AD20: =N20 -> 2212 | AE20: =COUNTIF(L11:L13,AD20) -> 0 | AI20: =N20 -> 2212 | AJ20: =COUNTIF(L14:L15,AI20) -> 0 | AN20: =N20 -> 2212 | AO20: =COUNTIF(L16:L17,AN20) -> 0 | AS20: =N20 -> 2212 | AT20: =COUNTIF(L18:L19,AS20) -> 0
N21: 2221 | O21: =COUNTIF($L$7:$L$500,N21) -> 1 | P21: =O21/$Q$4 -> 0.08333333333 | Q21: =IF(P21=0,0,(P21*((LOG(P21))/LOG(2)))) -> -0.2987468751 | T21: =N21 -> 2221 | U21: =COUNTIF(L7:L8,T21) -> 0 | V21: =U21/(W4-U20) -> 0 | W21: =IF(V21=0,0,(V21*((LOG(V21))/LOG(2)))) -> 0 | Y21: =N21 -> 2221 | Z21: =COUNTIF(L9:L10,Y21) -> 0 | AA21: =Z21/(AB4-Z20) -> 0 | AB21: =IF(AA21=0,0,(AA21*((LOG(AA21))/LOG(2)))) -> 0 | AD21: =N21 -> 2221 | AE21: =COUNTIF(L11:L13,AD21) -> 0 | AF21: =AE21/(AG4-AE20) -> 0 | AG21: =IF(AF21=0,0,(AF21*((LOG(AF21))/LOG(2)))) -> 0 | AI21: =N21 -> 2221 | AJ21: =COUNTIF(L14:L15,AI21) -> 1 | AK21: =AJ21/(AL4-AJ20) -> 0.5 | AL21: =IF(AK21=0,0,(AK21*((LOG(AK21))/LOG(2)))) -> -0.5 | AN21: =N21 -> 2221 | AO21: =COUNTIF(L16:L17,AN21) -> 0 | AP21: =AO21/(AQ4-AO20) -> 0 | AQ21: =IF(AP21=0,0,(AP21*((LOG(AP21))/LOG(2)))) -> 0 | AS21: =N21 -> 2221 | AT21: =COUNTIF(L18:L19,AS21) -> 0 | AU21: =AT21/(AV4-AT20) -> 0 | AV21: =IF(AU21=0,0,(AU21*((LOG(AU21))/LOG(2)))) -> 0
N22: 2222 | O22: =COUNTIF($L$7:$L$500,N22) -> 1 | P22: =O22/$Q$4 -> 0.08333333333 | Q22: =IF(P22=0,0,(P22*((LOG(P22))/LOG(2)))) -> -0.2987468751 | T22: =N22 -> 2222 | U22: =COUNTIF(L7:L8,T22) -> 0 | V22: =U22/(W4-U20) -> 0 | W22: =IF(V22=0,0,(V22*((LOG(V22))/LOG(2)))) -> 0 | Y22: =N22 -> 2222 | Z22: =COUNTIF(L9:L10,Y22) -> 0 | AA22: =Z22/(AB4-Z20) -> 0 | AB22: =IF(AA22=0,0,(AA22*((LOG(AA22))/LOG(2)))) -> 0 | AD22: =N22 -> 2222 | AE22: =COUNTIF(L11:L13,AD22) -> 1 | AF22: =AE22/(AG4-AE20) -> 0.3333333333 | AG22: =IF(AF22=0,0,(AF22*((LOG(AF22))/LOG(2)))) -> -0.5283208336 | AI22: =N22 -> 2222 | AJ22: =COUNTIF(L14:L15,AI22) -> 0 | AK22: =AJ22/(AL4-AJ20) -> 0 | AL22: =IF(AK22=0,0,(AK22*((LOG(AK22))/LOG(2)))) -> 0 | AN22: =N22 -> 2222 | AO22: =COUNTIF(L16:L17,AN22) -> 0 | AP22: =AO22/(AQ4-AO20) -> 0 | AQ22: =IF(AP22=0,0,(AP22*((LOG(AP22))/LOG(2)))) -> 0 | AS22: =N22 -> 2222 | AT22: =COUNTIF(L18:L19,AS22) -> 0 | AU22: =AT22/(AV4-AT20) -> 0 | AV22: =IF(AU22=0,0,(AU22*((LOG(AU22))/LOG(2)))) -> 0
P23: =SUM(P7:P22) -> 1 | Q23: =-SUM(Q7:Q22) -> 2.221251836 | V23: =SUM(V7:V22) -> 1 | W23: =-SUM(W7:W22) -> 0 | AA23: =SUM(AA7:AA22) -> 1 | AB23: =-SUM(AB7:AB22) -> 1 | AF23: =SUM(AF7:AF22) -> 1 | AG23: =-SUM(AG7:AG22) -> 0.9182958341 | AK23: =SUM(AK7:AK22) -> 1 | AL23: =-SUM(AL7:AL22) -> 1 | AP23: =SUM(AP7:AP22) -> 1 | AQ23: =-SUM(AQ7:AQ22) -> 1 | AU23: =SUM(AU7:AU22) -> 1 | AV23: =-SUM(AV7:AV22) -> 0
P24: U= | Q24: =Q23/(LOG(Q4)/LOG(2)) -> 0.6196025302 | V24: U1= | W24: =W23/(LOG(W4)/LOG(2)) -> 0 | AA24: U2= | AB24: =AB23/(LOG(AB4)/LOG(2)) -> 1 | AF24: U3= | AG24: =AG23/(LOG(AG4)/LOG(2)) -> 0.5793801643 | AK24: U4= | AL24: =AL23/(LOG(AL4)/LOG(2)) -> 1 | AP24: U5= | AQ24: =AQ23/(LOG(AQ4)/LOG(2)) -> 1 | AU24: U6= | AV24: =AV23/(LOG(AV4)/LOG(2)) -> 
N27: Total Target Seq
N28: =COUNTIF(L7:L19,G3) -> 1 | P28: 2 | Q28: 2 | R28: 3 | S28: 2 | T28: 2 | U28: 2
P29: % of reinforcement given in 6 equal intervals based on number of trials
P30: %_1 | Q30: %_2 | R30: %_3 | S30: %_4 | T30: %_5 | U30: %_6
O31: target sequence | P31: =$G$3 -> 2212 | Q31: =$G$3 -> 2212 | R31: =$G$3 -> 2212 | S31: =$G$3 -> 2212 | T31: =$G$3 -> 2212 | U31: =$G$3 -> 2212
O32: total reinforcement | P32: =U20 -> 1 | Q32: =Z20 -> 0 | R32: =AE20 -> 0 | S32: =AJ20 -> 0 | T32: =AO20 -> 0 | U32: =AT20 -> 0
O33: % target
O34: CCRF
O35: % CCRf
O36: average response rate | P36: =H8/P28 -> 98 | Q36: =(H10-H8)/Q28 -> 141 | R36: =(H13-H10)/R28 -> 177.3333333 | S36: =(H15-H13)/S28 -> 176 | T36: =(H17-H15)/T28 -> 263 | U36: =(H19-H17)/U28 -> -944

Sheet !M106B1B.axt
A1: Report for:!M106B1B.axt
A2: Date: | B2: <date>
A3: Hen: | B3: <hen> | F3: Correct Sequence | G3: =Start!J2 -> 2212 | P3: Total Sequences in Data | Q3: =4994-COUNTBLANK(L7:L5000) -> 28 | V3: Total Sequences in Block Data | W3: =COUNTA(L7:L11) -> 5 | AA3: Total Sequences in Block Data | AB3: =COUNTA(L12:L15) -> 4 | AF3: Total Sequences in Block Data | AG3: =COUNTA(L16:L20) -> 5 | AK3: Total Sequences in Block Data | AL3: =COUNTA(L21:L25) -> 5 | AP3: Total Sequences in Block Data | AQ3: =COUNTA(L26:L29) -> 4 | AU3: Total Sequences in Block Data | AV3: =COUNTA(L30:L34) -> 5
P4: Total Sequences in Summary | Q4: =SUM(O7:O22) -> 27 | V4: Total Sequences in Block Summary | W4: =SUM(U7:U22) -> 5 | AA4: Total Sequences in Block Summary | AB4: =SUM(Z7:Z22) -> 4 | AF4: Total Sequences in Block Summary | AG4: =SUM(AE7:AE22) -> 5 | AK4: Total Sequences in Block Summary | AL4: =SUM(AJ7:AJ22) -> 5 | AP4: Total Sequences in Block Summary | AQ4: =SUM(AO7:AO22) -> 4 | AU4: Total Sequences in Block Summary | AV4: =SUM(AT7:AT22) -> 4
T5: Block 1 | Y5: Block 2 | AD5: Block 3 | AI5: Block 4 | AN5: Block 5 | AS5: Block 6
A6: Sequence Component 1 | B6: Time 1 | C6: Sequence Component 2 | D6: Time 2 | E6: Sequence Component 3 | F6: Time 3 | G6: Sequence Component 4 | H6: Time 4 | I6: Sequence Component 5 | J6: Time 5 | K6: Correct? 0=No 1=Yes | L6: Sequence | N6: Frequency | P6: Relative Frequency | Q6: Variability | T6: Frequency | V6: Relative Frequency | W6: Variability | Y6: Frequency | AA6: Relative Frequency | AB6: Variability | AD6: Frequency | AF6: Relative Frequency | AG6: Variability | AI6: Frequency | AK6: Relative Frequency | AL6: Variability | AN6: Frequency | AP6: Relative Frequency | AQ6: Variability | AS6: Frequency | AU6: Relative Frequency | AV6: Variability
A7: 21 | B7: 305 | C7: 21 | D7: 308 | E7: 22 | F7: 317 | G7: 23 | H7: 328 | K7: 0 | L7: 2222 | N7: 1111 | O7: =COUNTIF($L$7:$L$500,N7) -> 0 | P7: =O7/$Q$4 -> 0 | Q7: =IF(P7=0,0,(P7*((LOG(P7))/LOG(2)))) -> 0 | T7: =N7 -> 1111 | U7: =COUNTIF(L7:L11,T7) -> 0 | V7: =U7/(W4-U20) -> 0 | W7: =IF(V7=0,0,(V7*((LOG(V7))/LOG(2)))) -> 0 | Y7: =N7 -> 1111 | Z7: =COUNTIF(L12:L15,Y7) -> 0 | AA7: =Z7/(AB4-Z20) -> 0 | AB7: =IF(AA7=0,0,(AA7*((LOG(AA7))/LOG(2)))) -> 0 | AD7: =N7 -> 1111 | AE7: =COUNTIF(L16:L20,AD7) -> 0 | AF7: =AE7/(AG4-AE20) -> 0 | AG7: =IF(AF7=0,0,(AF7*((LOG(AF7))/LOG(2)))) -> 0 | AI7: =N7 -> 1111 | AJ7: =COUNTIF(L21:L25,AI7) -> 0 | AK7: =AJ7/(AL4-AJ20) -> 0 | AL7: =IF(AK7=0,0,(AK7*((LOG(AK7))/LOG(2)))) -> 0 | AN7: =N7 -> 1111 | AO7: =COUNTIF(L26:L29,AN7) -> 0 | AP7: =AO7/(AQ4-AO20) -> 0 | AQ7: =IF(AP7=0,0,(AP7*((LOG(AP7))/LOG(2)))) -> 0 | AS7: =N7 -> 1111 | AT7: =COUNTIF(L30:L34,AS7) -> 0 | AU7: =AT7/(AV4-AT20) -> 0 | AV7: =IF(AU7=0,0,(AU7*((LOG(AU7))/LOG(2)))) -> 0
A8: 12 | B8: 446 | C8: 23 | D8: 455 | E8: 13 | F8: 485 | G8: 23 | H8: 491 | K8: 0 | L8: 1212 | N8: 1112 | O8: =COUNTIF($L$7:$L$500,N8) -> 0 | P8: =O8/$Q$4 -> 0 | Q8: =IF(P8=0,0,(P8*((LOG(P8))/LOG(2)))) -> 0 | T8: =N8 -> 1112 | U8: =COUNTIF(L7:L11,T8) -> 0 | V8: =U8/(W4-U20) -> 0 | W8: =IF(V8=0,0,(V8*((LOG(V8))/LOG(2)))) -> 0 | Y8: =N8 -> 1112 | Z8: =COUNTIF(L12:L15,Y8) -> 0 | AA8: =Z8/(AB4-Z20) -> 0 | AB8: =IF(AA8=0,0,(AA8*((LOG(AA8))/LOG(2)))) -> 0 | AD8: =N8 -> 1112 | AE8: =COUNTIF(L16:L20,AD8) -> 0 | AF8: =AE8/(AG4-AE20) -> 0 | AG8: =IF(AF8=0,0,(AF8*((LOG(AF8))/LOG(2)))) -> 0 | AI8: =N8 -> 1112 | AJ8: =COUNTIF(L21:L25,AI8) -> 0 | AK8: =AJ8/(AL4-AJ20) -> 0 | AL8: =IF(AK8=0,0,(AK8*((LOG(AK8))/LOG(2)))) -> 0 | AN8: =N8 -> 1112 | AO8: =COUNTIF(L26:L29,AN8) -> 0 | AP8: =AO8/(AQ4-AO20) -> 0 | AQ8: =IF(AP8=0,0,(AP8*((LOG(AP8))/LOG(2)))) -> 0 | AS8: =N8 -> 1112 | AT8: =COUNTIF(L30:L34,AS8) -> 0 | AU8: =AT8/(AV4-AT20) -> 0 | AV8: =IF(AU8=0,0,(AU8*((LOG(AU8))/LOG(2)))) -> 0
A9: 12 | B9: 593 | C9: 23 | D9: 597 | E9: 24 | F9: 605 | G9: 23 | H9: 611 | K9: 0 | L9: 1222 | N9: 1121 | O9: =COUNTIF($L$7:$L$500,N9) -> 0 | P9: =O9/$Q$4 -> 0 | Q9: =IF(P9=0,0,(P9*((LOG(P9))/LOG(2)))) -> 0 | T9: =N9 -> 1121 | U9: =COUNTIF(L7:L11,T9) -> 0 | V9: =U9/(W4-U20) -> 0 | W9: =IF(V9=0,0,(V9*((LOG(V9))/LOG(2)))) -> 0 | Y9: =N9 -> 1121 | Z9: =COUNTIF(L12:L15,Y9) -> 0 | AA9: =Z9/(AB4-Z20) -> 0 | AB9: =IF(AA9=0,0,(AA9*((LOG(AA9))/LOG(2)))) -> 0 | AD9: =N9 -> 1121 | AE9: =COUNTIF(L16:L20,AD9) -> 0 | AF9: =AE9/(AG4-AE20) -> 0 | AG9: =IF(AF9=0,0,(AF9*((LOG(AF9))/LOG(2)))) -> 0 | AI9: =N9 -> 1121 | AJ9: =COUNTIF(L21:L25,AI9) -> 0 | AK9: =AJ9/(AL4-AJ20) -> 0 | AL9: =IF(AK9=0,0,(AK9*((LOG(AK9))/LOG(2)))) -> 0 | AN9: =N9 -> 1121 | AO9: =COUNTIF(L26:L29,AN9) -> 0 | AP9: =AO9/(AQ4-AO20) -> 0 | AQ9: =IF(AP9=0,0,(AP9*((LOG(AP9))/LOG(2)))) -> 0 | AS9: =N9 -> 1121 | AT9: =COUNTIF(L30:L34,AS9) -> 0 | AU9: =AT9/(AV4-AT20) -> 0 | AV9: =IF(AU9=0,0,(AU9*((LOG(AU9))/LOG(2)))) -> 0
A10: 21 | B10: 717 | C10: 21 | D10: 729 | E10: 11 | F10: 751 | G10: 21 | H10: 761 | K10: 0 | L10: 2212 | N10: 1122 | O10: =COUNTIF($L$7:$L$500,N10) -> 1 | P10: =O10/$Q$4 -> 0.03703703704 | Q10: =IF(P10=0,0,(P10*((LOG(P10))/LOG(2)))) -> -0.1761069445 | T10: =N10 -> 1122 | U10: =COUNTIF(L7:L11,T10) -> 0 | V10: =U10/(W4-U20) -> 0 | W10: =IF(V10=0,0,(V10*((LOG(V10))/LOG(2)))) -> 0 | Y10: =N10 -> 1122 | Z10: =COUNTIF(L12:L15,Y10) -> 1 | AA10: =Z10/(AB4-Z20) -> 0.25 | AB10: =IF(AA10=0,0,(AA10*((LOG(AA10))/LOG(2)))) -> -0.5 | AD10: =N10 -> 1122 | AE10: =COUNTIF(L16:L20,AD10) -> 0 | AF10: =AE10/(AG4-AE20) -> 0 | AG10: =IF(AF10=0,0,(AF10*((LOG(AF10))/LOG(2)))) -> 0 | AI10: =N10 -> 1122 | AJ10: =COUNTIF(L21:L25,AI10) -> 0 | AK10: =AJ10/(AL4-AJ20) -> 0 | AL10: =IF(AK10=0,0,(AK10*((LOG(AK10))/LOG(2)))) -> 0 | AN10: =N10 -> 1122 | AO10: =COUNTIF(L26:L29,AN10) -> 0 | AP10: =AO10/(AQ4-AO20) -> 0 | AQ10: =IF(AP10=0,0,(AP10*((LOG(AP10))/LOG(2)))) -> 0 | AS10: =N10 -> 1122 | AT10: =COUNTIF(L30:L34,AS10) -> 0 | AU10: =AT10/(AV4-AT20) -> 0 | AV10: =IF(AU10=0,0,(AU10*((LOG(AU10))/LOG(2)))) -> 0
A11: 21 | B11: 920 | C11: 21 | D11: 929 | E11: 22 | F11: 944 | G11: 23 | H11: 958 | K11: 0 | L11: 2222 | N11: 1211 | O11: =COUNTIF($L$7:$L$500,N11) -> 0 | P11: =O11/$Q$4 -> 0 | Q11: =IF(P11=0,0,(P11*((LOG(P11))/LOG(2)))) -> 0 | T11: =N11 -> 1211 | U11: =COUNTIF(L7:L11,T11) -> 0 | V11: =U11/(W4-U20) -> 0 | W11: =IF(V11=0,0,(V11*((LOG(V11))/LOG(2)))) -> 0 | Y11: =N11 -> 1211 | Z11: =COUNTIF(L12:L15,Y11) -> 0 | AA11: =Z11/(AB4-Z20) -> 0 | AB11: =IF(AA11=0,0,(AA11*((LOG(AA11))/LOG(2)))) -> 0 | AD11: =N11 -> 1211 | AE11: =COUNTIF(L16:L20,AD11) -> 0 | AF11: =AE11/(AG4-AE20) -> 0 | AG11: =IF(AF11=0,0,(AF11*((LOG(AF11))/LOG(2)))) -> 0 | AI11: =N11 -> 1211 | AJ11: =COUNTIF(L21:L25,AI11) -> 0 | AK11: =AJ11/(AL4-AJ20) -> 0 | AL11: =IF(AK11=0,0,(AK11*((LOG(AK11))/LOG(2)))) -> 0 | AN11: =N11 -> 1211 | AO11: =COUNTIF(L26:L29,AN11) -> 0 | AP11: =AO11/(AQ4-AO20) -> 0 | AQ11: =IF(AP11=0,0,(AP11*((LOG(AP11))/LOG(2)))) -> 0 | AS11: =N11 -> 1211 | AT11: =COUNTIF(L30:L34,AS11) -> 0 | AU11: =AT11/(AV4-AT20) -> 0 | AV11: =IF(AU11=0,0,(AU11*((LOG(AU11))/LOG(2)))) -> 0
A12: 12 | B12: 1052 | C12: 23 | D12: 1057 | E12: 24 | F12: 1073 | G12: 23 | H12: 1085 | K12: 0 | L12: 1222 | N12: 1212 | O12: =COUNTIF($L$7:$L$500,N12) -> 1 | P12: =O12/$Q$4 -> 0.03703703704 | Q12: =IF(P12=0,0,(P12*((LOG(P12))/LOG(2)))) -> -0.1761069445 | T12: =N12 -> 1212 | U12: =COUNTIF(L7:L11,T12) -> 1 | V12: =U12/(W4-U20) -> 0.25 | W12: =IF(V12=0,0,(V12*((LOG(V12))/LOG(2)))) -> -0.5 | Y12: =N12 -> 1212 | Z12: =COUNTIF(L12:L15,Y12) -> 0 | AA12: =Z12/(AB4-Z20) -> 0 | AB12: =IF(AA12=0,0,(AA12*((LOG(AA12))/LOG(2)))) -> 0 | AD12: =N12 -> 1212 | AE12: =COUNTIF(L16:L20,AD12) -> 0 | AF12: =AE12/(AG4-AE20) -> 0 | AG12: =IF(AF12=0,0,(AF12*((LOG(AF12))/LOG(2)))) -> 0 | AI12: =N12 -> 1212 | AJ12: =COUNTIF(L21:L25,AI12) -> 0 | AK12: =AJ12/(AL4-AJ20) -> 0 | AL12: =IF(AK12=0,0,(AK12*((LOG(AK12))/LOG(2)))) -> 0 | AN12: =N12 -> 1212 | AO12: =COUNTIF(L26:L29,AN12) -> 0 | AP12: =AO12/(AQ4-AO20) -> 0 | AQ12: =IF(AP12=0,0,(AP12*((LOG(AP12))/LOG(2)))) -> 0 | AS12: =N12 -> 1212 | AT12: =COUNTIF(L30:L34,AS12) -> 0 | AU12: =AT12/(AV4-AT20) -> 0 | AV12: =IF(AU12=0,0,(AU12*((LOG(AU12))/LOG(2)))) -> 0
A13: 12 | B13: 1176 | C13: 14 | D13: 1180 | E13: 24 | F13: 1190 | G13: 23 | H13: 1206 | K13: 0 | L13: 1122 | N13: 1221 | O13: =COUNTIF($L$7:$L$500,N13) -> 2 | P13: =O13/$Q$4 -> 0.07407407407 | Q13: =IF(P13=0,0,(P13*((LOG(P13))/LOG(2)))) -> -0.278139815 | T13: =N13 -> 1221 | U13: =COUNTIF(L7:L11,T13) -> 0 | V13: =U13/(W4-U20) -> 0 | W13: =IF(V13=0,0,(V13*((LOG(V13))/LOG(2)))) -> 0 | Y13: =N13 -> 1221 | Z13: =COUNTIF(L12:L15,Y13) -> 1 | AA13: =Z13/(AB4-Z20) -> 0.25 | AB13: =IF(AA13=0,0,(AA13*((LOG(AA13))/LOG(2)))) -> -0.5 | AD13: =N13 -> 1221 | AE13: =COUNTIF(L16:L20,AD13) -> 0 | AF13: =AE13/(AG4-AE20) -> 0 | AG13: =IF(AF13=0,0,(AF13*((LOG(AF13))/LOG(2)))) -> 0 | AI13: =N13 -> 1221 | AJ13: =COUNTIF(L21:L25,AI13) -> 0 | AK13: =AJ13/(AL4-AJ20) -> 0 | AL13: =IF(AK13=0,0,(AK13*((LOG(AK13))/LOG(2)))) -> 0 | AN13: =N13 -> 1221 | AO13: =COUNTIF(L26:L29,AN13) -> 0 | AP13: =AO13/(AQ4-AO20) -> 0 | AQ13: =IF(AP13=0,0,(AP13*((LOG(AP13))/LOG(2)))) -> 0 | AS13: =N13 -> 1221 | AT13: =COUNTIF(L30:L34,AS13) -> 1 | AU13: =AT13/(AV4-AT20) -> 0.25 | AV13: =IF(AU13=0,0,(AU13*((LOG(AU13))/LOG(2)))) -> -0.5
A14: 12 | B14: 1321 | C14: 23 | D14: 1335 | E14: 24 | F14: 1350 | G14: 14 | H14: 1375 | K14: 0 | L14: 1221 | N14: 1222 | O14: =COUNTIF($L$7:$L$500,N14) -> 14 | P14: =O14/$Q$4 -> 0.5185185185 | Q14: =IF(P14=0,0,(P14*((LOG(P14))/LOG(2)))) -> -0.4913131897 | T14: =N14 -> 1222 | U14: =COUNTIF(L7:L11,T14) -> 1 | V14: =U14/(W4-U20) -> 0.25 | W14: =IF(V14=0,0,(V14*((LOG(V14))/LOG(2)))) -> -0.5 | Y14: =N14 -> 1222 | Z14: =COUNTIF(L12:L15,Y14) -> 1 | AA14: =Z14/(AB4-Z20) -> 0.25 | AB14: =IF(AA14=0,0,(AA14*((LOG(AA14))/LOG(2)))) -> -0.5 | AD14: =N14 -> 1222 | AE14: =COUNTIF(L16:L20,AD14) -> 3 | AF14: =AE14/(AG4-AE20) -> 0.6 | AG14: =IF(AF14=0,0,(AF14*((LOG(AF14))/LOG(2)))) -> -0.4421793565 | AI14: =N14 -> 1222 | AJ14: =COUNTIF(L21:L25,AI14) -> 4 | AK14: =AJ14/(AL4-AJ20) -> 0.8 | AL14: =IF(AK14=0,0,(AK14*((LOG(AK14))/LOG(2)))) -> -0.2575424759 | AN14: =N14 -> 1222 | AO14: =COUNTIF(L26:L29,AN14) -> 3 | AP14: =AO14/(AQ4-AO20) -> 0.75 | AQ14: =IF(AP14=0,0,(AP14*((LOG(AP14))/LOG(2)))) -> -0.3112781245 | AS14: =N14 -> 1222 | AT14: =COUNTIF(L30:L34,AS14) -> 2 | AU14: =AT14/(AV4-AT20) -> 0.5 | AV14: =IF(AU14=0,0,(AU14*((LOG(AU14))/LOG(2)))) -> -0.5
A15: 21 | B15: 1479 | C15: 12 | D15: 1508 | E15: 24 | F15: 1521 | G15: 23 | H15: 1523 | K15: 0 | L15: 2122 | N15: 2111 | O15: =COUNTIF($L$7:$L$500,N15) -> 0 | P15: =O15/$Q$4 -> 0 | Q15: =IF(P15=0,0,(P15*((LOG(P15))/LOG(2)))) -> 0 | T15: =N15 -> 2111 | U15: =COUNTIF(L7:L11,T15) -> 0 | V15: =U15/(W4-U20) -> 0 | W15: =IF(V15=0,0,(V15*((LOG(V15))/LOG(2)))) -> 0 | Y15: =N15 -> 2111 | Z15: =COUNTIF(L12:L15,Y15) -> 0 | AA15: =Z15/(AB4-Z20) -> 0 | AB15: =IF(AA15=0,0,(AA15*((LOG(AA15))/LOG(2)))) -> 0 | AD15: =N15 -> 2111 | AE15: =COUNTIF(L16:L20,AD15) -> 0 | AF15: =AE15/(AG4-AE20) -> 0 | AG15: =IF(AF15=0,0,(AF15*((LOG(AF15))/LOG(2)))) -> 0 | AI15: =N15 -> 2111 | AJ15: =COUNTIF(L21:L25,AI15) -> 0 | AK15: =AJ15/(AL4-AJ20) -> 0 | AL15: =IF(AK15=0,0,(AK15*((LOG(AK15))/LOG(2)))) -> 0 | AN15: =N15 -> 2111 | AO15: =COUNTIF(L26:L29,AN15) -> 0 | AP15: =AO15/(AQ4-AO20) -> 0 | AQ15: =IF(AP15=0,0,(AP15*((LOG(AP15))/LOG(2)))) -> 0 | AS15: =N15 -> 2111 | AT15: =COUNTIF(L30:L34,AS15) -> 0 | AU15: =AT15/(AV4-AT20) -> 0 | AV15: =IF(AU15=0,0,(AU15*((LOG(AU15))/LOG(2)))) -> 0
A16: 12 | B16: 1658 | C16: 23 | D16: 1671 | E16: 24 | F16: 1673 | G16: 23 | H16: 1685 | K16: 0 | L16: 1222 | N16: 2112 | O16: =COUNTIF($L$7:$L$500,N16) -> 0 | P16: =O16/$Q$4 -> 0 | Q16: =IF(P16=0,0,(P16*((LOG(P16))/LOG(2)))) -> 0 | T16: =N16 -> 2112 | U16: =COUNTIF(L7:L11,T16) -> 0 | V16: =U16/(W4-U20) -> 0 | W16: =IF(V16=0,0,(V16*((LOG(V16))/LOG(2)))) -> 0 | Y16: =N16 -> 2112 | Z16: =COUNTIF(L12:L15,Y16) -> 0 | AA16: =Z16/(AB4-Z20) -> 0 | AB16: =IF(AA16=0,0,(AA16*((LOG(AA16))/LOG(2)))) -> 0 | AD16: =N16 -> 2112 | AE16: =COUNTIF(L16:L20,AD16) -> 0 | AF16: =AE16/(AG4-AE20) -> 0 | AG16: =IF(AF16=0,0,(AF16*((LOG(AF16))/LOG(2)))) -> 0 | AI16: =N16 -> 2112 | AJ16: =COUNTIF(L21:L25,AI16) -> 0 | AK16: =AJ16/(AL4-AJ20) -> 0 | AL16: =IF(AK16=0,0,(AK16*((LOG(AK16))/LOG(2)))) -> 0 | AN16: =N16 -> 2112 | AO16: =COUNTIF(L26:L29,AN16) -> 0 | AP16: =AO16/(AQ4-AO20) -> 0 | AQ16: =IF(AP16=0,0,(AP16*((LOG(AP16))/LOG(2)))) -> 0 | AS16: =N16 -> 2112 | AT16: =COUNTIF(L30:L34,AS16) -> 0 | AU16: =AT16/(AV4-AT20) -> 0 | AV16: =IF(AU16=0,0,(AU16*((LOG(AU16))/LOG(2)))) -> 0
A17: 21 | B17: 1820 | C17: 21 | D17: 1831 | E17: 22 | F17: 1844 | G17: 14 | H17: 1865 | K17: 0 | L17: 2221 | N17: 2121 | O17: =COUNTIF($L$7:$L$500,N17) -> 1 | P17: =O17/$Q$4 -> 0.03703703704 | Q17: =IF(P17=0,0,(P17*((LOG(P17))/LOG(2)))) -> -0.1761069445 | T17: =N17 -> 2121 | U17: =COUNTIF(L7:L11,T17) -> 0 | V17: =U17/(W4-U20) -> 0 | W17: =IF(V17=0,0,(V17*((LOG(V17))/LOG(2)))) -> 0 | Y17: =N17 -> 2121 | Z17: =COUNTIF(L12:L15,Y17) -> 0 | AA17: =Z17/(AB4-Z20) -> 0 | AB17: =IF(AA17=0,0,(AA17*((LOG(AA17))/LOG(2)))) -> 0 | AD17: =N17 -> 2121 | AE17: =COUNTIF(L16:L20,AD17) -> 0 | AF17: =AE17/(AG4-AE20) -> 0 | AG17: =IF(AF17=0,0,(AF17*((LOG(AF17))/LOG(2)))) -> 0 | AI17: =N17 -> 2121 | AJ17: =COUNTIF(L21:L25,AI17) -> 0 | AK17: =AJ17/(AL4-AJ20) -> 0 | AL17: =IF(AK17=0,0,(AK17*((LOG(AK17))/LOG(2)))) -> 0 | AN17: =N17 -> 2121 | AO17: =COUNTIF(L26:L29,AN17) -> 0 | AP17: =AO17/(AQ4-AO20) -> 0 | AQ17: =IF(AP17=0,0,(AP17*((LOG(AP17))/LOG(2)))) -> 0 | AS17: =N17 -> 2121 | AT17: =COUNTIF(L30:L34,AS17) -> 1 | AU17: =AT17/(AV4-AT20) -> 0.25 | AV17: =IF(AU17=0,0,(AU17*((LOG(AU17))/LOG(2)))) -> -0.5
A18: 21 | B18: 1964 | C18: 21 | D18: 1974 | E18: 22 | F18: 1983 | G18: 14 | H18: 2007 | K18: 0 | L18: 2221 | N18: 2122 | O18: =COUNTIF($L$7:$L$500,N18) -> 1 | P18: =O18/$Q$4 -> 0.03703703704 | Q18: =IF(P18=0,0,(P18*((LOG(P18))/LOG(2)))) -> -0.1761069445 | T18: =N18 -> 2122 | U18: =COUNTIF(L7:L11,T18) -> 0 | V18: =U18/(W4-U20) -> 0 | W18: =IF(V18=0,0,(V18*((LOG(V18))/LOG(2)))) -> 0 | Y18: =N18 -> 2122 | Z18: =COUNTIF(L12:L15,Y18) -> 1 | AA18: =Z18/(AB4-Z20) -> 0.25 | AB18: =IF(AA18=0,0,(AA18*((LOG(AA18))/LOG(2)))) -> -0.5 | AD18: =N18 -> 2122 | AE18: =COUNTIF(L16:L20,AD18) -> 0 | AF18: =AE18/(AG4-AE20) -> 0 | AG18: =IF(AF18=0,0,(AF18*((LOG(AF18))/LOG(2)))) -> 0 | AI18: =N18 -> 2122 | AJ18: =COUNTIF(L21:L25,AI18) -> 0 | AK18: =AJ18/(AL4-AJ20) -> 0 | AL18: =IF(AK18=0,0,(AK18*((LOG(AK18))/LOG(2)))) -> 0 | AN18: =N18 -> 2122 | AO18: =COUNTIF(L26:L29,AN18) -> 0 | AP18: =AO18/(AQ4-AO20) -> 0 | AQ18: =IF(AP18=0,0,(AP18*((LOG(AP18))/LOG(2)))) -> 0 | AS18: =N18 -> 2122 | AT18: =COUNTIF(L30:L34,AS18) -> 0 | AU18: =AT18/(AV4-AT20) -> 0 | AV18: =IF(AU18=0,0,(AU18*((LOG(AU18))/LOG(2)))) -> 0
A19: 12 | B19: 2105 | C19: 23 | D19: 2112 | E19: 24 | F19: 2125 | G19: 23 | H19: 2136 | K19: 0 | L19: 1222 | N19: 2211 | O19: =COUNTIF($L$7:$L$500,N19) -> 0 | P19: =O19/$Q$4 -> 0 | Q19: =IF(P19=0,0,(P19*((LOG(P19))/LOG(2)))) -> 0 | T19: =N19 -> 2211 | U19: =COUNTIF(L7:L11,T19) -> 0 | V19: =U19/(W4-U20) -> 0 | W19: =IF(V19=0,0,(V19*((LOG(V19))/LOG(2)))) -> 0 | Y19: =N19 -> 2211 | Z19: =COUNTIF(L12:L15,Y19) -> 0 | AA19: =Z19/(AB4-Z20) -> 0 | AB19: =IF(AA19=0,0,(AA19*((LOG(AA19))/LOG(2)))) -> 0 | AD19: =N19 -> 2211 | AE19: =COUNTIF(L16:L20,AD19) -> 0 | AF19: =AE19/(AG4-AE20) -> 0 | AG19: =IF(AF19=0,0,(AF19*((LOG(AF19))/LOG(2)))) -> 0 | AI19: =N19 -> 2211 | AJ19: =COUNTIF(L21:L25,AI19) -> 0 | AK19: =AJ19/(AL4-AJ20) -> 0 | AL19: =IF(AK19=0,0,(AK19*((LOG(AK19))/LOG(2)))) -> 0 | AN19: =N19 -> 2211 | AO19: =COUNTIF(L26:L29,AN19) -> 0 | AP19: =AO19/(AQ4-AO20) -> 0 | AQ19: =IF(AP19=0,0,(AP19*((LOG(AP19))/LOG(2)))) -> 0 | AS19: =N19 -> 2211 | AT19: =COUNTIF(L30:L34,AS19) -> 0 | AU19: =AT19/(AV4-AT20) -> 0 | AV19: =IF(AU19=0,0,(AU19*((LOG(AU19))/LOG(2)))) -> 0
A20: 12 | B20: 2231 | C20: 23 | D20: 2239 | E20: 24 | F20: 2247 | G20: 23 | H20: 2265 | K20: 0 | L20: 1222 | N20: 2212 | O20: =COUNTIF($L$7:$L$500,N20) -> 1 | P20: =O20/$Q$4 -> 0.03703703704 | Q20: =IF(P20=0,0,(P20*((LOG(P20))/LOG(2)))) -> -0.1761069445 | T20: =N20 -> 2212 | U20: =COUNTIF(L7:L11,T20) -> 1 | Y20: =N20 -> 2212 | Z20: =COUNTIF(L12:L15,Y20) -> 0 | AD20: =N20 -> 2212 | AE20: =COUNTIF(L16:L20,AD20) -> 0 | AI20: =N20 -> 2212 | AJ20: =COUNTIF(L21:L25,AI20) -> 0 | AN20: =N20 -> 2212 | AO20: =COUNTIF(L26:L29,AN20) -> 0 | AS20: =N20 -> 2212 | AT20: =COUNTIF(L30:L34,AS20) -> 0
A21: 12 | B21: 2367 | C21: 23 | D21: 2373 | E21: 24 | F21: 2384 | G21: 23 | H21: 2397 | K21: 0 | L21: 1222 | N21: 2221 | O21: =COUNTIF($L$7:$L$500,N21) -> 2 | P21: =O21/$Q$4 -> 0.07407407407 | Q21: =IF(P21=0,0,(P21*((LOG(P21))/LOG(2)))) -> -0.278139815 | T21: =N21 -> 2221 | U21: =COUNTIF(L7:L11,T21) -> 0 | V21: =U21/(W4-U20) -> 0 | W21: =IF(V21=0,0,(V21*((LOG(V21))/LOG(2)))) -> 0 | Y21: =N21 -> 2221 | Z21: =COUNTIF(L12:L15,Y21) -> 0 | AA21: =Z21/(AB4-Z20) -> 0 | AB21: =IF(AA21=0,0,(AA21*((LOG(AA21))/LOG(2)))) -> 0 | AD21: =N21 -> 2221 | AE21: =COUNTIF(L16:L20,AD21) -> 2 | AF21: =AE21/(AG4-AE20) -> 0.4 | AG21: =IF(AF21=0,0,(AF21*((LOG(AF21))/LOG(2)))) -> -0.528771238 | AI21: =N21 -> 2221 | AJ21: =COUNTIF(L21:L25,AI21) -> 0 | AK21: =AJ21/(AL4-AJ20) -> 0 | AL21: =IF(AK21=0,0,(AK21*((LOG(AK21))/LOG(2)))) -> 0 | AN21: =N21 -> 2221 | AO21: =COUNTIF(L26:L29,AN21) -> 0 | AP21: =AO21/(AQ4-AO20) -> 0 | AQ21: =IF(AP21=0,0,(AP21*((LOG(AP21))/LOG(2)))) -> 0 | AS21: =N21 -> 2221 | AT21: =COUNTIF(L30:L34,AS21) -> 0 | AU21: =AT21/(AV4-AT20) -> 0 | AV21: =IF(AU21=0,0,(AU21*((LOG(AU21))/LOG(2)))) -> 0
A22: 12 | B22: 2494 | C22: 23 | D22: 2500 | E22: 24 | F22: 2502 | G22: 23 | H22: 2513 | K22: 0 | L22: 1222 | N22: 2222 | O22: =COUNTIF($L$7:$L$500,N22) -> 4 | P22: =O22/$Q$4 -> 0.1481481481 | Q22: =IF(P22=0,0,(P22*((LOG(P22))/LOG(2)))) -> -0.4081314818 | T22: =N22 -> 2222 | U22: =COUNTIF(L7:L11,T22) -> 2 | V22: =U22/(W4-U20) -> 0.5 | W22: =IF(V22=0,0,(V22*((LOG(V22))/LOG(2)))) -> -0.5 | Y22: =N22 -> 2222 | Z22: =COUNTIF(L12:L15,Y22) -> 0 | AA22: =Z22/(AB4-Z20) -> 0 | AB22: =IF(AA22=0,0,(AA22*((LOG(AA22))/LOG(2)))) -> 0 | AD22: =N22 -> 2222 | AE22: =COUNTIF(L16:L20,AD22) -> 0 | AF22: =AE22/(AG4-AE20) -> 0 | AG22: =IF(AF22=0,0,(AF22*((LOG(AF22))/LOG(2)))) -> 0 | AI22: =N22 -> 2222 | AJ22: =COUNTIF(L21:L25,AI22) -> 1 | AK22: =AJ22/(AL4-AJ20) -> 0.2 | AL22: =IF(AK22=0,0,(AK22*((LOG(AK22))/LOG(2)))) -> -0.464385619 | AN22: =N22 -> 2222 | AO22: =COUNTIF(L26:L29,AN22) -> 1 | AP22: =AO22/(AQ4-AO20) -> 0.25 | AQ22: =IF(AP22=0,0,(AP22*((LOG(AP22))/LOG(2)))) -> -0.5 | AS22: =N22 -> 2222 | AT22: =COUNTIF(L30:L34,AS22) -> 0 | AU22: =AT22/(AV4-AT20) -> 0 | AV22: =IF(AU22=0,0,(AU22*((LOG(AU22))/LOG(2)))) -> 0
A23: 21 | B23: 2615 | C23: 21 | D23: 2621 | E23: 22 | F23: 2624 | G23: 23 | H23: 2641 | K23: 0 | L23: 2222 | P23: =SUM(P7:P22) -> 1 | Q23: =-SUM(Q7:Q22) -> 2.336259024 | V23: =SUM(V7:V22) -> 1 | W23: =-SUM(W7:W22) -> 1.5 | AA23: =SUM(AA7:AA22) -> 1 | AB23: =-SUM(AB7:AB22) -> 2 | AF23: =SUM(AF7:AF22) -> 1 | AG23: =-SUM(AG7:AG22) -> 0.9709505945 | AK23: =SUM(AK7:AK22) -> 1 | AL23: =-SUM(AL7:AL22) -> 0.7219280949 | AP23: =SUM(AP7:AP22) -> 1 | AQ23: =-SUM(AQ7:AQ22) -> 0.8112781245 | AU23: =SUM(AU7:AU22) -> 1 | AV23: =-SUM(AV7:AV22) -> 1.5
A24: 12 | B24: 2747 | C24: 23 | D24: 2757 | E24: 24 | F24: 2761 | G24: 23 | H24: 2778 | K24: 0 | L24: 1222 | P24: U= | Q24: =Q23/(LOG(Q4)/LOG(2)) -> 0.4913384434 | V24: U1= | W24: =W23/(LOG(W4)/LOG(2)) -> 0.6460148371 | AA24: U2= | AB24: =AB23/(LOG(AB4)/LOG(2)) -> 1 | AF24: U3= | AG24: =AG23/(LOG(AG4)/LOG(2)) -> 0.4181656601 | AK24: U4= | AL24: =AL23/(LOG(AL4)/LOG(2)) -> 0.3109175071 | AP24: U5= | AQ24: =AQ23/(LOG(AQ4)/LOG(2)) -> 0.4056390622 | AU24: U6= | AV24: =AV23/(LOG(AV4)/LOG(2)) -> 0.75
A25: 12 | B25: 2878 | C25: 23 | D25: 2884 | E25: 24 | F25: 2897 | G25: 23 | H25: 2915 | K25: 0 | L25: 1222
A26: 12 | B26: 3022 | C26: 23 | D26: 3026 | E26: 24 | F26: 3034 | G26: 23 | H26: 3036 | K26: 0 | L26: 1222
A27: 12 | B27: 3131 | C27: 23 | D27: 3142 | E27: 24 | F27: 3147 | G27: 23 | H27: 3157 | K27: 0 | L27: 1222 | N27: Total Target Seq
A28: 12 | B28: 3295 | C28: 23 | D28: 3303 | E28: 24 | F28: 3313 | G28: 23 | H28: 3324 | K28: 0 | L28: 1222 | N28: =COUNTIF(L7:L34,G3) -> 1 | P28: 5 | Q28: 4 | R28: 5 | S28: 5 | T28: 4 | U28: 5
A29: 21 | B29: 3427 | C29: 21 | D29: 3435 | E29: 22 | F29: 3457 | G29: 23 | H29: 3462 | K29: 0 | L29: 2222 | P29: % of reinforcement given in 6 equal intervals based on number of trials
A30: 12 | B30: 3606 | C30: 23 | D30: 3615 | E30: 24 | F30: 3629 | G30: 23 | H30: 3664 | K30: 0 | L30: 1222 | P30: %_1 | Q30: %_2 | R30: %_3 | S30: %_4 | T30: %_5 | U30: %_6
A31: 12 | B31: 3771 | C31: 23 | D31: 3785 | E31: 24 | F31: 3797 | G31: 23 | H31: 3811 | K31: 0 | L31: 1222 | O31: target sequence | P31: =$G$3 -> 2212 | Q31: =$G$3 -> 2212 | R31: =$G$3 -> 2212 | S31: =$G$3 -> 2212 | T31: =$G$3 -> 2212 | U31: =$G$3 -> 2212
A32: 21 | B32: 3920 | C32: 12 | D32: 3944 | E32: 24 | F32: 3975 | G32: 14 | H32: 4037 | K32: 0 | L32: 2121 | O32: total reinforcement | P32: =U20 -> 1 | Q32: =Z20 -> 0 | R32: =AE20 -> 0 | S32: =AJ20 -> 0 | T32: =AO20 -> 0 | U32: =AT20 -> 0
A33: 12 | B33: 4249 | C33: 23 | D33: 4265 | E33: 24 | F33: 4280 | G33: 14 | H33: 4302 | K33: 0 | L33: 1221 | O33: % target
A34: 12 | B34: 21850 | C34: 23 | D34: 21862 | L34: 12 | O34: CCRF
O35: % CCRf
O36: average response rate | P36: =H11/P28 -> 191.6 | Q36: =(H15-H11)/Q28 -> 141.25 | R36: =(H20-H15)/R28 -> 148.4 | S36: =(H25-H20)/S28 -> 130 | T36: =(H29-H25)/T28 -> 136.75 | U36: =(H34-H29)/U28 -> -692.4

Sheet !M109B2B.axt
A1: Report for:!M109B2B.axt
A2: Date: | B2: <date>
A3: Hen: | B3: <hen> | F3: Correct Sequence | G3: =Start!J2 -> 2212 | P3: Total Sequences in Data | Q3: =4994-COUNTBLANK(L7:L5000) -> 4 | V3: Total Sequences in Block Data | W3: =COUNTA(L7:L7) -> 1 | AA3: Total Sequences in Block Data | AB3: =COUNTA(L7:L8) -> 2 | AF3: Total Sequences in Block Data | AG3: =COUNTA(L8:L8) -> 1 | AK3: Total Sequences in Block Data | AL3: =COUNTA(L9:L9) -> 1 | AP3: Total Sequences in Block Data | AQ3: =COUNTA(L9:L10) -> 2 | AU3: Total Sequences in Block Data | AV3: =COUNTA(L10:L10) -> 1
P4: Total Sequences in Summary | Q4: =SUM(O7:O22) -> 3 | V4: Total Sequences in Block Summary | W4: =SUM(U7:U22) -> 1 | AA4: Total Sequences in Block Summary | AB4: =SUM(Z7:Z22) -> 2 | AF4: Total Sequences in Block Summary | AG4: =SUM(AE7:AE22) -> 1 | AK4: Total Sequences in Block Summary | AL4: =SUM(AJ7:AJ22) -> 1 | AP4: Total Sequences in Block Summary | AQ4: =SUM(AO7:AO22) -> 1 | AU4: Total Sequences in Block Summary | AV4: =SUM(AT7:AT22) -> 0
T5: Block 1 | Y5: Block 2 | AD5: Block 3 | AI5: Block 4 | AN5: Block 5 | AS5: Block 6
A6: Sequence Component 1 | B6: Time 1 | C6: Sequence Component 2 | D6: Time 2 | E6: Sequence Component 3 | F6: Time 3 | G6: Sequence Component 4 | H6: Time 4 | I6: Sequence Component 5 | J6: Time 5 | K6: Correct? 0=No 1=Yes | L6: Sequence | N6: Frequency | P6: Relative Frequency | Q6: Variability | T6: Frequency | V6: Relative Frequency | W6: Variability | Y6: Frequency | AA6: Relative Frequency | AB6: Variability | AD6: Frequency | AF6: Relative Frequency | AG6: Variability | AI6: Frequency | AK6: Relative Frequency | AL6: Variability | AN6: Frequency | AP6: Relative Frequency | AQ6: Variability | AS6: Frequency | AU6: Relative Frequency | AV6: Variability
A7: 12 | B7: 76 | C7: 14 | D7: 83 | E7: 24 | F7: 87 | G7: 23 | H7: 102 | K7: 0 | L7: 1122 | N7: 1111 | O7: =COUNTIF($L$7:$L$500,N7) -> 0 | P7: =O7/$Q$4 -> 0 | Q7: =IF(P7=0,0,(P7*((LOG(P7))/LOG(2)))) -> 0 | T7: =N7 -> 1111 | U7: =COUNTIF(L7:L7,T7) -> 0 | V7: =U7/(W4-U20) -> 0 | W7: =IF(V7=0,0,(V7*((LOG(V7))/LOG(2)))) -> 0 | Y7: =N7 -> 1111 | Z7: =COUNTIF(L7:L8,Y7) -> 0 | AA7: =Z7/(AB4-Z20) -> 0 | AB7: =IF(AA7=0,0,(AA7*((LOG(AA7))/LOG(2)))) -> 0 | AD7: =N7 -> 1111 | AE7: =COUNTIF(L8:L8,AD7) -> 0 | AF7: =AE7/(AG4-AE20) -> 0 | AG7: =IF(AF7=0,0,(AF7*((LOG(AF7))/LOG(2)))) -> 0 | AI7: =N7 -> 1111 | AJ7: =COUNTIF(L9:L9,AI7) -> 0 | AK7: =AJ7/(AL4-AJ20) -> 0 | AL7: =IF(AK7=0,0,(AK7*((LOG(AK7))/LOG(2)))) -> 0 | AN7: =N7 -> 1111 | AO7: =COUNTIF(L9:L10,AN7) -> 0 | AP7: =AO7/(AQ4-AO20) -> 0 | AQ7: =IF(AP7=0,0,(AP7*((LOG(AP7))/LOG(2)))) -> 0 | AS7: =N7 -> 1111 | AT7: =COUNTIF(L10:L10,AS7) -> 0 | AU7: =AT7/(AV4-AT20) ->  | AV7: =IF(AU7=0,0,(AU7*((LOG(AU7))/LOG(2)))) -> 
A8: 12 | B8: 204 | C8: 23 | D8: 218 | E8: 24 | F8: 223 | G8: 14 | H8: 251 | K8: 0 | L8: 1221 | N8: 1112 | O8: =COUNTIF($L$7:$L$500,N8) -> 1 | P8: =O8/$Q$4 -> 0.3333333333 | Q8: =IF(P8=0,0,(P8*((LOG(P8))/LOG(2)))) -> -0.5283208336 | T8: =N8 -> 1112 | U8: =COUNTIF(L7:L7,T8) -> 0 | V8: =U8/(W4-U20) -> 0 | W8: =IF(V8=0,0,(V8*((LOG(V8))/LOG(2)))) -> 0 | Y8: =N8 -> 1112 | Z8: =COUNTIF(L7:L8,Y8) -> 0 | AA8: =Z8/(AB4-Z20) -> 0 | AB8: =IF(AA8=0,0,(AA8*((LOG(AA8))/LOG(2)))) -> 0 | AD8: =N8 -> 1112 | AE8: =COUNTIF(L8:L8,AD8) -> 0 | AF8: =AE8/(AG4-AE20) -> 0 | AG8: =IF(AF8=0,0,(AF8*((LOG(AF8))/LOG(2)))) -> 0 | AI8: =N8 -> 1112 | AJ8: =COUNTIF(L9:L9,AI8) -> 1 | AK8: =AJ8/(AL4-AJ20) -> 1 | AL8: =IF(AK8=0,0,(AK8*((LOG(AK8))/LOG(2)))) -> 0 | AN8: =N8 -> 1112 | AO8: =COUNTIF(L9:L10,AN8) -> 1 | AP8: =AO8/(AQ4-AO20) -> 1 | AQ8: =IF(AP8=0,0,(AP8*((LOG(AP8))/LOG(2)))) -> 0 | AS8: =N8 -> 1112 | AT8: =COUNTIF(L10:L10,AS8) -> 0 | AU8: =AT8/(AV4-AT20) ->  | AV8: =IF(AU8=0,0,(AU8*((LOG(AU8))/LOG(2)))) -> 
A9: 12 | B9: 353 | C9: 14 | D9: 362 | E9: 13 | F9: 365 | G9: 23 | H9: 376 | K9: 0 | L9: 1112 | N9: 1121 | O9: =COUNTIF($L$7:$L$500,N9) -> 0 | P9: =O9/$Q$4 -> 0 | Q9: =IF(P9=0,0,(P9*((LOG(P9))/LOG(2)))) -> 0 | T9: =N9 -> 1121 | U9: =COUNTIF(L7:L7,T9) -> 0 | V9: =U9/(W4-U20) -> 0 | W9: =IF(V9=0,0,(V9*((LOG(V9))/LOG(2)))) -> 0 | Y9: =N9 -> 1121 | Z9: =COUNTIF(L7:L8,Y9) -> 0 | AA9: =Z9/(AB4-Z20) -> 0 | AB9: =IF(AA9=0,0,(AA9*((LOG(AA9))/LOG(2)))) -> 0 | AD9: =N9 -> 1121 | AE9: =COUNTIF(L8:L8,AD9) -> 0 | AF9: =AE9/(AG4-AE20) -> 0 | AG9: =IF(AF9=0,0,(AF9*((LOG(AF9))/LOG(2)))) -> 0 | AI9: =N9 -> 1121 | AJ9: =COUNTIF(L9:L9,AI9) -> 0 | AK9: =AJ9/(AL4-AJ20) -> 0 | AL9: =IF(AK9=0,0,(AK9*((LOG(AK9))/LOG(2)))) -> 0 | AN9: =N9 -> 1121 | AO9: =COUNTIF(L9:L10,AN9) -> 0 | AP9: =AO9/(AQ4-AO20) -> 0 | AQ9: =IF(AP9=0,0,(AP9*((LOG(AP9))/LOG(2)))) -> 0 | AS9: =N9 -> 1121 | AT9: =COUNTIF(L10:L10,AS9) -> 0 | AU9: =AT9/(AV4-AT20) ->  | AV9: =IF(AU9=0,0,(AU9*((LOG(AU9))/LOG(2)))) -> 
A10: 12 | B10: 524 | C10: 23 | D10: 22380 | E10: 24 | F10: 22453 | L10: 122 | N10: 1122 | O10: =COUNTIF($L$7:$L$500,N10) -> 1 | P10: =O10/$Q$4 -> 0.3333333333 | Q10: =IF(P10=0,0,(P10*((LOG(P10))/LOG(2)))) -> -0.5283208336 | T10: =N10 -> 1122 | U10: =COUNTIF(L7:L7,T10) -> 1 | V10: =U10/(W4-U20) -> 1 | W10: =IF(V10=0,0,(V10*((LOG(V10))/LOG(2)))) -> 0 | Y10: =N10 -> 1122 | Z10: =COUNTIF(L7:L8,Y10) -> 1 | AA10: =Z10/(AB4-Z20) -> 0.5 | AB10: =IF(AA10=0,0,(AA10*((LOG(AA10))/LOG(2)))) -> -0.5 | AD10: =N10 -> 1122 | AE10: =COUNTIF(L8:L8,AD10) -> 0 | AF10: =AE10/(AG4-AE20) -> 0 | AG10: =IF(AF10=0,0,(AF10*((LOG(AF10))/LOG(2)))) -> 0 | AI10: =N10 -> 1122 | AJ10: =COUNTIF(L9:L9,AI10) -> 0 | AK10: =AJ10/(AL4-AJ20) -> 0 | AL10: =IF(AK10=0,0,(AK10*((LOG(AK10))/LOG(2)))) -> 0 | AN10: =N10 -> 1122 | AO10: =COUNTIF(L9:L10,AN10) -> 0 | AP10: =AO10/(AQ4-AO20) -> 0 | AQ10: =IF(AP10=0,0,(AP10*((LOG(AP10))/LOG(2)))) -> 0 | AS10: =N10 -> 1122 | AT10: =COUNTIF(L10:L10,AS10) -> 0 | AU10: =AT10/(AV4-AT20) ->  | AV10: =IF(AU10=0,0,(AU10*((LOG(AU10))/LOG(2)))) -> 
N11: 1211 | O11: =COUNTIF($L$7:$L$500,N11) -> 0 | P11: =O11/$Q$4 -> 0 | Q11: =IF(P11=0,0,(P11*((LOG(P11))/LOG(2)))) -> 0 | T11: =N11 -> 1211 | U11: =COUNTIF(L7:L7,T11) -> 0 | V11: =U11/(W4-U20) -> 0 | W11: =IF(V11=0,0,(V11*((LOG(V11))/LOG(2)))) -> 0 | Y11: =N11 -> 1211 | Z11: =COUNTIF(L7:L8,Y11) -> 0 | AA11: =Z11/(AB4-Z20) -> 0 | AB11: =IF(AA11=0,0,(AA11*((LOG(AA11))/LOG(2)))) -> 0 | AD11: =N11 -> 1211 | AE11: =COUNTIF(L8:L8,AD11) -> 0 | AF11: =AE11/(AG4-AE20) -> 0 | AG11: =IF(AF11=0,0,(AF11*((LOG(AF11))/LOG(2)))) -> 0 | AI11: =N11 -> 1211 | AJ11: =COUNTIF(L9:L9,AI11) -> 0 | AK11: =AJ11/(AL4-AJ20) -> 0 | AL11: =IF(AK11=0,0,(AK11*((LOG(AK11))/LOG(2)))) -> 0 | AN11: =N11 -> 1211 | AO11: =COUNTIF(L9:L10,AN11) -> 0 | AP11: =AO11/(AQ4-AO20) -> 0 | AQ11: =IF(AP11=0,0,(AP11*((LOG(AP11))/LOG(2)))) -> 0 | AS11: =N11 -> 1211 | AT11: =COUNTIF(L10:L10,AS11) -> 0 | AU11: =AT11/(AV4-AT20) ->  | AV11: =IF(AU11=0,0,(AU11*((LOG(AU11))/LOG(2)))) -> 
N12: 1212 | O12: =COUNTIF($L$7:$L$500,N12) -> 0 | P12: =O12/$Q$4 -> 0 | Q12: =IF(P12=0,0,(P12*((LOG(P12))/LOG(2)))) -> 0 | T12: =N12 -> 1212 | U12: =COUNTIF(L7:L7,T12) -> 0 | V12: =U12/(W4-U20) -> 0 | W12: =IF(V12=0,0,(V12*((LOG(V12))/LOG(2)))) -> 0 | Y12: =N12 -> 1212 | Z12: =COUNTIF(L7:L8,Y12) -> 0 | AA12: =Z12/(AB4-Z20) -> 0 | AB12: =IF(AA12=0,0,(AA12*((LOG(AA12))/LOG(2)))) -> 0 | AD12: =N12 -> 1212 | AE12: =COUNTIF(L8:L8,AD12) -> 0 | AF12: =AE12/(AG4-AE20) -> 0 | AG12: =IF(AF12=0,0,(AF12*((LOG(AF12))/LOG(2)))) -> 0 | AI12: =N12 -> 1212 | AJ12: =COUNTIF(L9:L9,AI12) -> 0 | AK12: =AJ12/(AL4-AJ20) -> 0 | AL12: =IF(AK12=0,0,(AK12*((LOG(AK12))/LOG(2)))) -> 0 | AN12: =N12 -> 1212 | AO12: =COUNTIF(L9:L10,AN12) -> 0 | AP12: =AO12/(AQ4-AO20) -> 0 | AQ12: =IF(AP12=0,0,(AP12*((LOG(AP12))/LOG(2)))) -> 0 | AS12: =N12 -> 1212 | AT12: =COUNTIF(L10:L10,AS12) -> 0 | AU12: =AT12/(AV4-AT20) ->  | AV12: =IF(AU12=0,0,(AU12*((LOG(AU12))/LOG(2)))) -> 
N13: 1221 | O13: =COUNTIF($L$7:$L$500,N13) -> 1 | P13: =O13/$Q$4 -> 0.3333333333 | Q13: =IF(P13=0,0,(P13*((LOG(P13))/LOG(2)))) -> -0.5283208336 | T13: =N13 -> 1221 | U13: =COUNTIF(L7:L7,T13) -> 0 | V13: =U13/(W4-U20) -> 0 | W13: =IF(V13=0,0,(V13*((LOG(V13))/LOG(2)))) -> 0 | Y13: =N13 -> 1221 | Z13: =COUNTIF(L7:L8,Y13) -> 1 | AA13: =Z13/(AB4-Z20) -> 0.5 | AB13: =IF(AA13=0,0,(AA13*((LOG(AA13))/LOG(2)))) -> -0.5 | AD13: =N13 -> 1221 | AE13: =COUNTIF(L8:L8,AD13) -> 1 | AF13: =AE13/(AG4-AE20) -> 1 | AG13: =IF(AF13=0,0,(AF13*((LOG(AF13))/LOG(2)))) -> 0 | AI13: =N13 -> 1221 | AJ13: =COUNTIF(L9:L9,AI13) -> 0 | AK13: =AJ13/(AL4-AJ20) -> 0 | AL13: =IF(AK13=0,0,(AK13*((LOG(AK13))/LOG(2)))) -> 0 | AN13: =N13 -> 1221 | AO13: =COUNTIF(L9:L10,AN13) -> 0 | AP13: =AO13/(AQ4-AO20) -> 0 | AQ13: =IF(AP13=0,0,(AP13*((LOG(AP13))/LOG(2)))) -> 0 | AS13: =N13 -> 1221 | AT13: =COUNTIF(L10:L10,AS13) -> 0 | AU13: =AT13/(AV4-AT20) ->  | AV13: =IF(AU13=0,0,(AU13*((LOG(AU13))/LOG(2)))) -> 
N14: 1222 | O14: =COUNTIF($L$7:$L$500,N14) -> 0 | P14: =O14/$Q$4 -> 0 | Q14: =IF(P14=0,0,(P14*((LOG(P14))/LOG(2)))) -> 0 | T14: =N14 -> 1222 | U14: =COUNTIF(L7:L7,T14) -> 0 | V14: =U14/(W4-U20) -> 0 | W14: =IF(V14=0,0,(V14*((LOG(V14))/LOG(2)))) -> 0 | Y14: =N14 -> 1222 | Z14: =COUNTIF(L7:L8,Y14) -> 0 | AA14: =Z14/(AB4-Z20) -> 0 | AB14: =IF(AA14=0,0,(AA14*((LOG(AA14))/LOG(2)))) -> 0 | AD14: =N14 -> 1222 | AE14: =COUNTIF(L8:L8,AD14) -> 0 | AF14: =AE14/(AG4-AE20) -> 0 | AG14: =IF(AF14=0,0,(AF14*((LOG(AF14))/LOG(2)))) -> 0 | AI14: =N14 -> 1222 | AJ14: =COUNTIF(L9:L9,AI14) -> 0 | AK14: =AJ14/(AL4-AJ20) -> 0 | AL14: =IF(AK14=0,0,(AK14*((LOG(AK14))/LOG(2)))) -> 0 | AN14: =N14 -> 1222 | AO14: =COUNTIF(L9:L10,AN14) -> 0 | AP14: =AO14/(AQ4-AO20) -> 0 | AQ14: =IF(AP14=0,0,(AP14*((LOG(AP14))/LOG(2)))) -> 0 | AS14: =N14 -> 1222 | AT14: =COUNTIF(L10:L10,AS14) -> 0 | AU14: =AT14/(AV4-AT20) ->  | AV14: =IF(AU14=0,0,(AU14*((LOG(AU14))/LOG(2)))) -> 
N15: 2111 | O15: =COUNTIF($L$7:$L$500,N15) -> 0 | P15: =O15/$Q$4 -> 0 | Q15: =IF(P15=0,0,(P15*((LOG(P15))/LOG(2)))) -> 0 | T15: =N15 -> 2111 | U15: =COUNTIF(L7:L7,T15) -> 0 | V15: =U15/(W4-U20) -> 0 | W15: =IF(V15=0,0,(V15*((LOG(V15))/LOG(2)))) -> 0 | Y15: =N15 -> 2111 | Z15: =COUNTIF(L7:L8,Y15) -> 0 | AA15: =Z15/(AB4-Z20) -> 0 | AB15: =IF(AA15=0,0,(AA15*((LOG(AA15))/LOG(2)))) -> 0 | AD15: =N15 -> 2111 | AE15: =COUNTIF(L8:L8,AD15) -> 0 | AF15: =AE15/(AG4-AE20) -> 0 | AG15: =IF(AF15=0,0,(AF15*((LOG(AF15))/LOG(2)))) -> 0 | AI15: =N15 -> 2111 | AJ15: =COUNTIF(L9:L9,AI15) -> 0 | AK15: =AJ15/(AL4-AJ20) -> 0 | AL15: =IF(AK15=0,0,(AK15*((LOG(AK15))/LOG(2)))) -> 0 | AN15: =N15 -> 2111 | AO15: =COUNTIF(L9:L10,AN15) -> 0 | AP15: =AO15/(AQ4-AO20) -> 0 | AQ15: =IF(AP15=0,0,(AP15*((LOG(AP15))/LOG(2)))) -> 0 | AS15: =N15 -> 2111 | AT15: =COUNTIF(L10:L10,AS15) -> 0 | AU15: =AT15/(AV4-AT20) ->  | AV15: =IF(AU15=0,0,(AU15*((LOG(AU15))/LOG(2)))) -> 
N16: 2112 | O16: =COUNTIF($L$7:$L$500,N16) -> 0 | P16: =O16/$Q$4 -> 0 | Q16: =IF(P16=0,0,(P16*((LOG(P16))/LOG(2)))) -> 0 | T16: =N16 -> 2112 | U16: =COUNTIF(L7:L7,T16) -> 0 | V16: =U16/(W4-U20) -> 0 | W16: =IF(V16=0,0,(V16*((LOG(V16))/LOG(2)))) -> 0 | Y16: =N16 -> 2112 | Z16: =COUNTIF(L7:L8,Y16) -> 0 | AA16: =Z16/(AB4-Z20) -> 0 | AB16: =IF(AA16=0,0,(AA16*((LOG(AA16))/LOG(2)))) -> 0 | AD16: =N16 -> 2112 | AE16: =COUNTIF(L8:L8,AD16) -> 0 | AF16: =AE16/(AG4-AE20) -> 0 | AG16: =IF(AF16=0,0,(AF16*((LOG(AF16))/LOG(2)))) -> 0 | AI16: =N16 -> 2112 | AJ16: =COUNTIF(L9:L9,AI16) -> 0 | AK16: =AJ16/(AL4-AJ20) -> 0 | AL16: =IF(AK16=0,0,(AK16*((LOG(AK16))/LOG(2)))) -> 0 | AN16: =N16 -> 2112 | AO16: =COUNTIF(L9:L10,AN16) -> 0 | AP16: =AO16/(AQ4-AO20) -> 0 | AQ16: =IF(AP16=0,0,(AP16*((LOG(AP16))/LOG(2)))) -> 0 | AS16: =N16 -> 2112 | AT16: =COUNTIF(L10:L10,AS16) -> 0 | AU16: =AT16/(AV4-AT20) ->  | AV16: =IF(AU16=0,0,(AU16*((LOG(AU16))/LOG(2)))) -> 
N17: 2121 | O17: =COUNTIF($L$7:$L$500,N17) -> 0 | P17: =O17/$Q$4 -> 0 | Q17: =IF(P17=0,0,(P17*((LOG(P17))/LOG(2)))) -> 0 | T17: =N17 -> 2121 | U17: =COUNTIF(L7:L7,T17) -> 0 | V17: =U17/(W4-U20) -> 0 | W17: =IF(V17=0,0,(V17*((LOG(V17))/LOG(2)))) -> 0 | Y17: =N17 -> 2121 | Z17: =COUNTIF(L7:L8,Y17) -> 0 | AA17: =Z17/(AB4-Z20) -> 0 | AB17: =IF(AA17=0,0,(AA17*((LOG(AA17))/LOG(2)))) -> 0 | AD17: =N17 -> 2121 | AE17: =COUNTIF(L8:L8,AD17) -> 0 | AF17: =AE17/(AG4-AE20) -> 0 | AG17: =IF(AF17=0,0,(AF17*((LOG(AF17))/LOG(2)))) -> 0 | AI17: =N17 -> 2121 | AJ17: =COUNTIF(L9:L9,AI17) -> 0 | AK17: =AJ17/(AL4-AJ20) -> 0 | AL17: =IF(AK17=0,0,(AK17*((LOG(AK17))/LOG(2)))) -> 0 | AN17: =N17 -> 2121 | AO17: =COUNTIF(L9:L10,AN17) -> 0 | AP17: =AO17/(AQ4-AO20) -> 0 | AQ17: =IF(AP17=0,0,(AP17*((LOG(AP17))/LOG(2)))) -> 0 | AS17: =N17 -> 2121 | AT17: =COUNTIF(L10:L10,AS17) -> 0 | AU17: =AT17/(AV4-AT20) ->  | AV17: =IF(AU17=0,0,(AU17*((LOG(AU17))/LOG(2)))) -> 
N18: 2122 | O18: =COUNTIF($L$7:$L$500,N18) -> 0 | P18: =O18/$Q$4 -> 0 | Q18: =IF(P18=0,0,(P18*((LOG(P18))/LOG(2)))) -> 0 | T18: =N18 -> 2122 | U18: =COUNTIF(L7:L7,T18) -> 0 | V18: =U18/(W4-U20) -> 0 | W18: =IF(V18=0,0,(V18*((LOG(V18))/LOG(2)))) -> 0 | Y18: =N18 -> 2122 | Z18: =COUNTIF(L7:L8,Y18) -> 0 | AA18: =Z18/(AB4-Z20) -> 0 | AB18: =IF(AA18=0,0,(AA18*((LOG(AA18))/LOG(2)))) -> 0 | AD18: =N18 -> 2122 | AE18: =COUNTIF(L8:L8,AD18) -> 0 | AF18: =AE18/(AG4-AE20) -> 0 | AG18: =IF(AF18=0,0,(AF18*((LOG(AF18))/LOG(2)))) -> 0 | AI18: =N18 -> 2122 | AJ18: =COUNTIF(L9:L9,AI18) -> 0 | AK18: =AJ18/(AL4-AJ20) -> 0 | AL18: =IF(AK18=0,0,(AK18*((LOG(AK18))/LOG(2)))) -> 0 | AN18: =N18 -> 2122 | AO18: =COUNTIF(L9:L10,AN18) -> 0 | AP18: =AO18/(AQ4-AO20) -> 0 | AQ18: =IF(AP18=0,0,(AP18*((LOG(AP18))/LOG(2)))) -> 0 | AS18: =N18 -> 2122 | AT18: =COUNTIF(L10:L10,AS18) -> 0 | AU18: =AT18/(AV4-AT20) ->  | AV18: =IF(AU18=0,0,(AU18*((LOG(AU18))/LOG(2)))) -> 
N19: 2211 | O19: =COUNTIF($L$7:$L$500,N19) -> 0 | P19: =O19/$Q$4 -> 0 | Q19: =IF(P19=0,0,(P19*((LOG(P19))/LOG(2)))) -> 0 | T19: =N19 -> 2211 | U19: =COUNTIF(L7:L7,T19) -> 0 | V19: =U19/(W4-U20) -> 0 | W19: =IF(V19=0,0,(V19*((LOG(V19))/LOG(2)))) -> 0 | Y19: =N19 -> 2211 | Z19: =COUNTIF(L7:L8,Y19) -> 0 | AA19: =Z19/(AB4-Z20) -> 0 | AB19: =IF(AA19=0,0,(AA19*((LOG(AA19))/LOG(2)))) -> 0 | AD19: =N19 -> 2211 | AE19: =COUNTIF(L8:L8,AD19) -> 0 | AF19: =AE19/(AG4-AE20) -> 0 | AG19: =IF(AF19=0,0,(AF19*((LOG(AF19))/LOG(2)))) -> 0 | AI19: =N19 -> 2211 | AJ19: =COUNTIF(L9:L9,AI19) -> 0 | AK19: =AJ19/(AL4-AJ20) -> 0 | AL19: =IF(AK19=0,0,(AK19*((LOG(AK19))/LOG(2)))) -> 0 | AN19: =N19 -> 2211 | AO19: =COUNTIF(L9:L10,AN19) -> 0 | AP19: =AO19/(AQ4-AO20) -> 0 | AQ19: =IF(AP19=0,0,(AP19*((LOG(AP19))/LOG(2)))) -> 0 | AS19: =N19 -> 2211 | AT19: =COUNTIF(L10:L10,AS19) -> 0 | AU19: =AT19/(AV4-AT20) ->  | AV19: =IF(AU19=0,0,(AU19*((LOG(AU19))/LOG(2)))) -> 
N20: 2212 | O20: =COUNTIF($L$7:$L$500,N20) -> 0 | P20: =O20/$Q$4 -> 0 | Q20: =IF(P20=0,0,(P20*((LOG(P20))/LOG(2)))) -> 0 | T20: =N20 -> 2212 | U20: =COUNTIF(L7:L7,T20) -> 0 | Y20: =N20 -> 2212 | Z20: =COUNTIF(L7:L8,Y20) -> 0 | AD20: =N20 -> 2212 | AE20: =COUNTIF(L8:L8,AD20) -> 0 | AI20: =N20 -> 2212 | AJ20: =COUNTIF(L9:L9,AI20) -> 0 | AN20: =N20 -> 2212 | AO20: =COUNTIF(L9:L10,AN20) -> 0 | AS20: =N20 -> 2212 | AT20: =COUNTIF(L10:L10,AS20) -> 0
N21: 2221 | O21: =COUNTIF($L$7:$L$500,N21) -> 0 | P21: =O21/$Q$4 -> 0 | Q21: =IF(P21=0,0,(P21*((LOG(P21))/LOG(2)))) -> 0 | T21: =N21 -> 2221 | U21: =COUNTIF(L7:L7,T21) -> 0 | V21: =U21/(W4-U20) -> 0 | W21: =IF(V21=0,0,(V21*((LOG(V21))/LOG(2)))) -> 0 | Y21: =N21 -> 2221 | Z21: =COUNTIF(L7:L8,Y21) -> 0 | AA21: =Z21/(AB4-Z20) -> 0 | AB21: =IF(AA21=0,0,(AA21*((LOG(AA21))/LOG(2)))) -> 0 | AD21: =N21 -> 2221 | AE21: =COUNTIF(L8:L8,AD21) -> 0 | AF21: =AE21/(AG4-AE20) -> 0 | AG21: =IF(AF21=0,0,(AF21*((LOG(AF21))/LOG(2)))) -> 0 | AI21: =N21 -> 2221 | AJ21: =COUNTIF(L9:L9,AI21) -> 0 | AK21: =AJ21/(AL4-AJ20) -> 0 | AL21: =IF(AK21=0,0,(AK21*((LOG(AK21))/LOG(2)))) -> 0 | AN21: =N21 -> 2221 | AO21: =COUNTIF(L9:L10,AN21) -> 0 | AP21: =AO21/(AQ4-AO20) -> 0 | AQ21: =IF(AP21=0,0,(AP21*((LOG(AP21))/LOG(2)))) -> 0 | AS21: =N21 -> 2221 | AT21: =COUNTIF(L10:L10,AS21) -> 0 | AU21: =AT21/(AV4-AT20) ->  | AV21: =IF(AU21=0,0,(AU21*((LOG(AU21))/LOG(2)))) -> 
N22: 2222 | O22: =COUNTIF($L$7:$L$500,N22) -> 0 | P22: =O22/$Q$4 -> 0 | Q22: =IF(P22=0,0,(P22*((LOG(P22))/LOG(2)))) -> 0 | T22: =N22 -> 2222 | U22: =COUNTIF(L7:L7,T22) -> 0 | V22: =U22/(W4-U20) -> 0 | W22: =IF(V22=0,0,(V22*((LOG(V22))/LOG(2)))) -> 0 | Y22: =N22 -> 2222 | Z22: =COUNTIF(L7:L8,Y22) -> 0 | AA22: =Z22/(AB4-Z20) -> 0 | AB22: =IF(AA22=0,0,(AA22*((LOG(AA22))/LOG(2)))) -> 0 | AD22: =N22 -> 2222 | AE22: =COUNTIF(L8:L8,AD22) -> 0 | AF22: =AE22/(AG4-AE20) -> 0 | AG22: =IF(AF22=0,0,(AF22*((LOG(AF22))/LOG(2)))) -> 0 | AI22: =N22 -> 2222 | AJ22: =COUNTIF(L9:L9,AI22) -> 0 | AK22: =AJ22/(AL4-AJ20) -> 0 | AL22: =IF(AK22=0,0,(AK22*((LOG(AK22))/LOG(2)))) -> 0 | AN22: =N22 -> 2222 | AO22: =COUNTIF(L9:L10,AN22) -> 0 | AP22: =AO22/(AQ4-AO20) -> 0 | AQ22: =IF(AP22=0,0,(AP22*((LOG(AP22))/LOG(2)))) -> 0 | AS22: =N22 -> 2222 | AT22: =COUNTIF(L10:L10,AS22) -> 0 | AU22: =AT22/(AV4-AT20) ->  | AV22: =IF(AU22=0,0,(AU22*((LOG(AU22))/LOG(2)))) -> 
P23: =SUM(P7:P22) -> 1 | Q23: =-SUM(Q7:Q22) -> 1.584962501 | V23: =SUM(V7:V22) -> 1 | W23: =-SUM(W7:W22) -> 0 | AA23: =SUM(AA7:AA22) -> 1 | AB23: =-SUM(AB7:AB22) -> 1 | AF23: =SUM(AF7:AF22) -> 1 | AG23: =-SUM(AG7:AG22) -> 0 | AK23: =SUM(AK7:AK22) -> 1 | AL23: =-SUM(AL7:AL22) -> 0 | AP23: =SUM(AP7:AP22) -> 1 | AQ23: =-SUM(AQ7:AQ22) -> 0 | AU23: =SUM(AU7:AU22) ->  | AV23: =-SUM(AV7:AV22) -> 
P24: U= | Q24: =Q23/(LOG(Q4)/LOG(2)) -> 1 | V24: U1= | W24: =W23/(LOG(W4)/LOG(2)) ->  | AA24: U2= | AB24: =AB23/(LOG(AB4)/LOG(2)) -> 1 | AF24: U3= | AG24: =AG23/(LOG(AG4)/LOG(2)) ->  | AK24: U4= | AL24: =AL23/(LOG(AL4)/LOG(2)) ->  | AP24: U5= | AQ24: =AQ23/(LOG(AQ4)/LOG(2)) ->  | AU24: U6= | AV24: =AV23/(LOG(AV4)/LOG(2)) -> 
N27: Total Target Seq
N28: =COUNTIF(L7:L10,G3) -> 0 | P28: 1 | Q28: 0 | R28: 1 | S28: 1 | T28: 0 | U28: 1
P29: % of reinforcement given in 6 equal intervals based on number of trials
P30: %_1 | Q30: %_2 | R30: %_3 | S30: %_4 | T30: %_5 | U30: %_6
O31: target sequence | P31: =$G$3 -> 2212 | Q31: =$G$3 -> 2212 | R31: =$G$3 -> 2212 | S31: =$G$3 -> 2212 | T31: =$G$3 -> 2212 | U31: =$G$3 -> 2212
O32: total reinforcement | P32: =U20 -> 0 | Q32: =Z20 -> 0 | R32: =AE20 -> 0 | S32: =AJ20 -> 0 | T32: =AO20 -> 0 | U32: =AT20 -> 0
O33: % target
O34: CCRF
O35: % CCRf
O36: average response rate | P36: =H7/P28 -> 102 | Q36: =(H7-H7)/Q28 ->  | R36: =(H8-H7)/R28 -> 149 | S36: =(H9-H8)/S28 -> 125 | T36: =(H9-H9)/T28 ->  | U36: =(H10-H9)/U28 -> -376

Sheet !M110A5B.axt
A1: Report for:!M110A5B.axt
A2: Date: | B2: <date>
A3: Hen: | B3: <hen> | F3: Correct Sequence | G3: =Start!J2 -> 2212 | P3: Total Sequences in Data | Q3: =4994-COUNTBLANK(L7:L5000) -> 7 | V3: Total Sequences in Block Data | W3: =COUNTA(L7:L7) -> 1 | AA3: Total Sequences in Block Data | AB3: =COUNTA(L8:L8) -> 1 | AF3: Total Sequences in Block Data | AG3: =COUNTA(L9:L10) -> 2 | AK3: Total Sequences in Block Data | AL3: =COUNTA(L11:L11) -> 1 | AP3: Total Sequences in Block Data | AQ3: =COUNTA(L12:L12) -> 1 | AU3: Total Sequences in Block Data | AV3: =COUNTA(L13:L13) -> 1
P4: Total Sequences in Summary | Q4: =SUM(O7:O22) -> 7 | V4: Total Sequences in Block Summary | W4: =SUM(U7:U22) -> 1 | AA4: Total Sequences in Block Summary | AB4: =SUM(Z7:Z22) -> 1 | AF4: Total Sequences in Block Summary | AG4: =SUM(AE7:AE22) -> 2 | AK4: Total Sequences in Block Summary | AL4: =SUM(AJ7:AJ22) -> 1 | AP4: Total Sequences in Block Summary | AQ4: =SUM(AO7:AO22) -> 1 | AU4: Total Sequences in Block Summary | AV4: =SUM(AT7:AT22) -> 1
T5: Block 1 | Y5: Block 2 | AD5: Block 3 | AI5: Block 4 | AN5: Block 5 | AS5: Block 6
A6: Sequence Component 1 | B6: Time 1 | C6: Sequence Component 2 | D6: Time 2 | E6: Sequence Component 3 | F6: Time 3 | G6: Sequence Component 4 | H6: Time 4 | I6: Sequence Component 5 | J6: Time 5 | K6: Correct? 0=No 1=Yes | L6: Sequence | N6: Frequency | P6: Relative Frequency | Q6: Variability | T6: Frequency | V6: Relative Frequency | W6: Variability | Y6: Frequency | AA6: Relative Frequency | AB6: Variability | AD6: Frequency | AF6: Relative Frequency | AG6: Variability | AI6: Frequency | AK6: Relative Frequency | AL6: Variability | AN6: Frequency | AP6: Relative Frequency | AQ6: Variability | AS6: Frequency | AU6: Relative Frequency | AV6: Variability
A7: 12 | B7: 144 | C7: 23 | D7: 155 | E7: 24 | F7: 163 | G7: 23 | H7: 174 | K7: 0 | L7: 1222 | N7: 1111 | O7: =COUNTIF($L$7:$L$500,N7) -> 0 | P7: =O7/$Q$4 -> 0 | Q7: =IF(P7=0,0,(P7*((LOG(P7))/LOG(2)))) -> 0 | T7: =N7 -> 1111 | U7: =COUNTIF(L7:L7,T7) -> 0 | V7: =U7/(W4-U20) -> 0 | W7: =IF(V7=0,0,(V7*((LOG(V7))/LOG(2)))) -> 0 | Y7: =N7 -> 1111 | Z7: =COUNTIF(L8:L8,Y7) -> 0 | AA7: =Z7/(AB4-Z20) -> 0 | AB7: =IF(AA7=0,0,(AA7*((LOG(AA7))/LOG(2)))) -> 0 | AD7: =N7 -> 1111 | AE7: =COUNTIF(L9:L10,AD7) -> 0 | AF7: =AE7/(AG4-AE20) -> 0 | AG7: =IF(AF7=0,0,(AF7*((LOG(AF7))/LOG(2)))) -> 0 | AI7: =N7 -> 1111 | AJ7: =COUNTIF(L11:L11,AI7) -> 0 | AK7: =AJ7/(AL4-AJ20) -> 0 | AL7: =IF(AK7=0,0,(AK7*((LOG(AK7))/LOG(2)))) -> 0 | AN7: =N7 -> 1111 | AO7: =COUNTIF(L12:L12,AN7) -> 0 | AP7: =AO7/(AQ4-AO20) -> 0 | AQ7: =IF(AP7=0,0,(AP7*((LOG(AP7))/LOG(2)))) -> 0 | AS7: =N7 -> 1111 | AT7: =COUNTIF(L13:L13,AS7) -> 0 | AU7: =AT7/(AV4-AT20) -> 0 | AV7: =IF(AU7=0,0,(AU7*((LOG(AU7))/LOG(2)))) -> 0
A8: 21 | B8: 483 | C8: 21 | D8: 558 | E8: 22 | F8: 562 | G8: 14 | H8: 576 | K8: 0 | L8: 2221 | N8: 1112 | O8: =COUNTIF($L$7:$L$500,N8) -> 0 | P8: =O8/$Q$4 -> 0 | Q8: =IF(P8=0,0,(P8*((LOG(P8))/LOG(2)))) -> 0 | T8: =N8 -> 1112 | U8: =COUNTIF(L7:L7,T8) -> 0 | V8: =U8/(W4-U20) -> 0 | W8: =IF(V8=0,0,(V8*((LOG(V8))/LOG(2)))) -> 0 | Y8: =N8 -> 1112 | Z8: =COUNTIF(L8:L8,Y8) -> 0 | AA8: =Z8/(AB4-Z20) -> 0 | AB8: =IF(AA8=0,0,(AA8*((LOG(AA8))/LOG(2)))) -> 0 | AD8: =N8 -> 1112 | AE8: =COUNTIF(L9:L10,AD8) -> 0 | AF8: =AE8/(AG4-AE20) -> 0 | AG8: =IF(AF8=0,0,(AF8*((LOG(AF8))/LOG(2)))) -> 0 | AI8: =N8 -> 1112 | AJ8: =COUNTIF(L11:L11,AI8) -> 0 | AK8: =AJ8/(AL4-AJ20) -> 0 | AL8: =IF(AK8=0,0,(AK8*((LOG(AK8))/LOG(2)))) -> 0 | AN8: =N8 -> 1112 | AO8: =COUNTIF(L12:L12,AN8) -> 0 | AP8: =AO8/(AQ4-AO20) -> 0 | AQ8: =IF(AP8=0,0,(AP8*((LOG(AP8))/LOG(2)))) -> 0 | AS8: =N8 -> 1112 | AT8: =COUNTIF(L13:L13,AS8) -> 0 | AU8: =AT8/(AV4-AT20) -> 0 | AV8: =IF(AU8=0,0,(AU8*((LOG(AU8))/LOG(2)))) -> 0
A9: 12 | B9: 695 | C9: 23 | D9: 699 | E9: 24 | F9: 702 | G9: 23 | H9: 704 | K9: 0 | L9: 1222 | N9: 1121 | O9: =COUNTIF($L$7:$L$500,N9) -> 1 | P9: =O9/$Q$4 -> 0.1428571429 | Q9: =IF(P9=0,0,(P9*((LOG(P9))/LOG(2)))) -> -0.4010507032 | T9: =N9 -> 1121 | U9: =COUNTIF(L7:L7,T9) -> 0 | V9: =U9/(W4-U20) -> 0 | W9: =IF(V9=0,0,(V9*((LOG(V9))/LOG(2)))) -> 0 | Y9: =N9 -> 1121 | Z9: =COUNTIF(L8:L8,Y9) -> 0 | AA9: =Z9/(AB4-Z20) -> 0 | AB9: =IF(AA9=0,0,(AA9*((LOG(AA9))/LOG(2)))) -> 0 | AD9: =N9 -> 1121 | AE9: =COUNTIF(L9:L10,AD9) -> 0 | AF9: =AE9/(AG4-AE20) -> 0 | AG9: =IF(AF9=0,0,(AF9*((LOG(AF9))/LOG(2)))) -> 0 | AI9: =N9 -> 1121 | AJ9: =COUNTIF(L11:L11,AI9) -> 1 | AK9: =AJ9/(AL4-AJ20) -> 1 | AL9: =IF(AK9=0,0,(AK9*((LOG(AK9))/LOG(2)))) -> 0 | AN9: =N9 -> 1121 | AO9: =COUNTIF(L12:L12,AN9) -> 0 | AP9: =AO9/(AQ4-AO20) -> 0 | AQ9: =IF(AP9=0,0,(AP9*((LOG(AP9))/LOG(2)))) -> 0 | AS9: =N9 -> 1121 | AT9: =COUNTIF(L13:L13,AS9) -> 0 | AU9: =AT9/(AV4-AT20) -> 0 | AV9: =IF(AU9=0,0,(AU9*((LOG(AU9))/LOG(2)))) -> 0
A10: 12 | B10: 819 | C10: 23 | D10: 833 | E10: 24 | F10: 839 | G10: 23 | H10: 852 | K10: 0 | L10: 1222 | N10: 1122 | O10: =COUNTIF($L$7:$L$500,N10) -> 1 | P10: =O10/$Q$4 -> 0.1428571429 | Q10: =IF(P10=0,0,(P10*((LOG(P10))/LOG(2)))) -> -0.4010507032 | T10: =N10 -> 1122 | U10: =COUNTIF(L7:L7,T10) -> 0 | V10: =U10/(W4-U20) -> 0 | W10: =IF(V10=0,0,(V10*((LOG(V10))/LOG(2)))) -> 0 | Y10: =N10 -> 1122 | Z10: =COUNTIF(L8:L8,Y10) -> 0 | AA10: =Z10/(AB4-Z20) -> 0 | AB10: =IF(AA10=0,0,(AA10*((LOG(AA10))/LOG(2)))) -> 0 | AD10: =N10 -> 1122 | AE10: =COUNTIF(L9:L10,AD10) -> 0 | AF10: =AE10/(AG4-AE20) -> 0 | AG10: =IF(AF10=0,0,(AF10*((LOG(AF10))/LOG(2)))) -> 0 | AI10: =N10 -> 1122 | AJ10: =COUNTIF(L11:L11,AI10) -> 0 | AK10: =AJ10/(AL4-AJ20) -> 0 | AL10: =IF(AK10=0,0,(AK10*((LOG(AK10))/LOG(2)))) -> 0 | AN10: =N10 -> 1122 | AO10: =COUNTIF(L12:L12,AN10) -> 1 | AP10: =AO10/(AQ4-AO20) -> 1 | AQ10: =IF(AP10=0,0,(AP10*((LOG(AP10))/LOG(2)))) -> 0 | AS10: =N10 -> 1122 | AT10: =COUNTIF(L13:L13,AS10) -> 0 | AU10: =AT10/(AV4-AT20) -> 0 | AV10: =IF(AU10=0,0,(AU10*((LOG(AU10))/LOG(2)))) -> 0
A11: 12 | B11: 981 | C11: 14 | D11: 985 | E11: 24 | F11: 994 | G11: 14 | H11: 1116 | K11: 0 | L11: 1121 | N11: 1211 | O11: =COUNTIF($L$7:$L$500,N11) -> 1 | P11: =O11/$Q$4 -> 0.1428571429 | Q11: =IF(P11=0,0,(P11*((LOG(P11))/LOG(2)))) -> -0.4010507032 | T11: =N11 -> 1211 | U11: =COUNTIF(L7:L7,T11) -> 0 | V11: =U11/(W4-U20) -> 0 | W11: =IF(V11=0,0,(V11*((LOG(V11))/LOG(2)))) -> 0 | Y11: =N11 -> 1211 | Z11: =COUNTIF(L8:L8,Y11) -> 0 | AA11: =Z11/(AB4-Z20) -> 0 | AB11: =IF(AA11=0,0,(AA11*((LOG(AA11))/LOG(2)))) -> 0 | AD11: =N11 -> 1211 | AE11: =COUNTIF(L9:L10,AD11) -> 0 | AF11: =AE11/(AG4-AE20) -> 0 | AG11: =IF(AF11=0,0,(AF11*((LOG(AF11))/LOG(2)))) -> 0 | AI11: =N11 -> 1211 | AJ11: =COUNTIF(L11:L11,AI11) -> 0 | AK11: =AJ11/(AL4-AJ20) -> 0 | AL11: =IF(AK11=0,0,(AK11*((LOG(AK11))/LOG(2)))) -> 0 | AN11: =N11 -> 1211 | AO11: =COUNTIF(L12:L12,AN11) -> 0 | AP11: =AO11/(AQ4-AO20) -> 0 | AQ11: =IF(AP11=0,0,(AP11*((LOG(AP11))/LOG(2)))) -> 0 | AS11: =N11 -> 1211 | AT11: =COUNTIF(L13:L13,AS11) -> 1 | AU11: =AT11/(AV4-AT20) -> 1 | AV11: =IF(AU11=0,0,(AU11*((LOG(AU11))/LOG(2)))) -> 0
A12: 12 | B12: 3451 | C12: 14 | D12: 3455 | E12: 24 | F12: 3485 | G12: 23 | H12: 3510 | K12: 0 | L12: 1122 | N12: 1212 | O12: =COUNTIF($L$7:$L$500,N12) -> 0 | P12: =O12/$Q$4 -> 0 | Q12: =IF(P12=0,0,(P12*((LOG(P12))/LOG(2)))) -> 0 | T12: =N12 -> 1212 | U12: =COUNTIF(L7:L7,T12) -> 0 | V12: =U12/(W4-U20) -> 0 | W12: =IF(V12=0,0,(V12*((LOG(V12))/LOG(2)))) -> 0 | Y12: =N12 -> 1212 | Z12: =COUNTIF(L8:L8,Y12) -> 0 | AA12: =Z12/(AB4-Z20) -> 0 | AB12: =IF(AA12=0,0,(AA12*((LOG(AA12))/LOG(2)))) -> 0 | AD12: =N12 -> 1212 | AE12: =COUNTIF(L9:L10,AD12) -> 0 | AF12: =AE12/(AG4-AE20) -> 0 | AG12: =IF(AF12=0,0,(AF12*((LOG(AF12))/LOG(2)))) -> 0 | AI12: =N12 -> 1212 | AJ12: =COUNTIF(L11:L11,AI12) -> 0 | AK12: =AJ12/(AL4-AJ20) -> 0 | AL12: =IF(AK12=0,0,(AK12*((LOG(AK12))/LOG(2)))) -> 0 | AN12: =N12 -> 1212 | AO12: =COUNTIF(L12:L12,AN12) -> 0 | AP12: =AO12/(AQ4-AO20) -> 0 | AQ12: =IF(AP12=0,0,(AP12*((LOG(AP12))/LOG(2)))) -> 0 | AS12: =N12 -> 1212 | AT12: =COUNTIF(L13:L13,AS12) -> 0 | AU12: =AT12/(AV4-AT20) -> 0 | AV12: =IF(AU12=0,0,(AU12*((LOG(AU12))/LOG(2)))) -> 0
A13: 12 | B13: 3983 | C13: 23 | D13: 4020 | E13: 13 | F13: 4191 | G13: 14 | H13: 4232 | K13: 0 | L13: 1211 | N13: 1221 | O13: =COUNTIF($L$7:$L$500,N13) -> 0 | P13: =O13/$Q$4 -> 0 | Q13: =IF(P13=0,0,(P13*((LOG(P13))/LOG(2)))) -> 0 | T13: =N13 -> 1221 | U13: =COUNTIF(L7:L7,T13) -> 0 | V13: =U13/(W4-U20) -> 0 | W13: =IF(V13=0,0,(V13*((LOG(V13))/LOG(2)))) -> 0 | Y13: =N13 -> 1221 | Z13: =COUNTIF(L8:L8,Y13) -> 0 | AA13: =Z13/(AB4-Z20) -> 0 | AB13: =IF(AA13=0,0,(AA13*((LOG(AA13))/LOG(2)))) -> 0 | AD13: =N13 -> 1221 | AE13: =COUNTIF(L9:L10,AD13) -> 0 | AF13: =AE13/(AG4-AE20) -> 0 | AG13: =IF(AF13=0,0,(AF13*((LOG(AF13))/LOG(2)))) -> 0 | AI13: =N13 -> 1221 | AJ13: =COUNTIF(L11:L11,AI13) -> 0 | AK13: =AJ13/(AL4-AJ20) -> 0 | AL13: =IF(AK13=0,0,(AK13*((LOG(AK13))/LOG(2)))) -> 0 | AN13: =N13 -> 1221 | AO13: =COUNTIF(L12:L12,AN13) -> 0 | AP13: =AO13/(AQ4-AO20) -> 0 | AQ13: =IF(AP13=0,0,(AP13*((LOG(AP13))/LOG(2)))) -> 0 | AS13: =N13 -> 1221 | AT13: =COUNTIF(L13:L13,AS13) -> 0 | AU13: =AT13/(AV4-AT20) -> 0 | AV13: =IF(AU13=0,0,(AU13*((LOG(AU13))/LOG(2)))) -> 0
N14: 1222 | O14: =COUNTIF($L$7:$L$500,N14) -> 3 | P14: =O14/$Q$4 -> 0.4285714286 | Q14: =IF(P14=0,0,(P14*((LOG(P14))/LOG(2)))) -> -0.5238824663 | T14: =N14 -> 1222 | U14: =COUNTIF(L7:L7,T14) -> 1 | V14: =U14/(W4-U20) -> 1 | W14: =IF(V14=0,0,(V14*((LOG(V14))/LOG(2)))) -> 0 | Y14: =N14 -> 1222 | Z14: =COUNTIF(L8:L8,Y14) -> 0 | AA14: =Z14/(AB4-Z20) -> 0 | AB14: =IF(AA14=0,0,(AA14*((LOG(AA14))/LOG(2)))) -> 0 | AD14: =N14 -> 1222 | AE14: =COUNTIF(L9:L10,AD14) -> 2 | AF14: =AE14/(AG4-AE20) -> 1 | AG14: =IF(AF14=0,0,(AF14*((LOG(AF14))/LOG(2)))) -> 0 | AI14: =N14 -> 1222 | AJ14: =COUNTIF(L11:L11,AI14) -> 0 | AK14: =AJ14/(AL4-AJ20) -> 0 | AL14: =IF(AK14=0,0,(AK14*((LOG(AK14))/LOG(2)))) -> 0 | AN14: =N14 -> 1222 | AO14: =COUNTIF(L12:L12,AN14) -> 0 | AP14: =AO14/(AQ4-AO20) -> 0 | AQ14: =IF(AP14=0,0,(AP14*((LOG(AP14))/LOG(2)))) -> 0 | AS14: =N14 -> 1222 | AT14: =COUNTIF(L13:L13,AS14) -> 0 | AU14: =AT14/(AV4-AT20) -> 0 | AV14: =IF(AU14=0,0,(AU14*((LOG(AU14))/LOG(2)))) -> 0
N15: 2111 | O15: =COUNTIF($L$7:$L$500,N15) -> 0 | P15: =O15/$Q$4 -> 0 | Q15: =IF(P15=0,0,(P15*((LOG(P15))/LOG(2)))) -> 0 | T15: =N15 -> 2111 | U15: =COUNTIF(L7:L7,T15) -> 0 | V15: =U15/(W4-U20) -> 0 | W15: =IF(V15=0,0,(V15*((LOG(V15))/LOG(2)))) -> 0 | Y15: =N15 -> 2111 | Z15: =COUNTIF(L8:L8,Y15) -> 0 | AA15: =Z15/(AB4-Z20) -> 0 | AB15: =IF(AA15=0,0,(AA15*((LOG(AA15))/LOG(2)))) -> 0 | AD15: =N15 -> 2111 | AE15: =COUNTIF(L9:L10,AD15) -> 0 | AF15: =AE15/(AG4-AE20) -> 0 | AG15: =IF(AF15=0,0,(AF15*((LOG(AF15))/LOG(2)))) -> 0 | AI15: =N15 -> 2111 | AJ15: =COUNTIF(L11:L11,AI15) -> 0 | AK15: =AJ15/(AL4-AJ20) -> 0 | AL15: =IF(AK15=0,0,(AK15*((LOG(AK15))/LOG(2)))) -> 0 | AN15: =N15 -> 2111 | AO15: =COUNTIF(L12:L12,AN15) -> 0 | AP15: =AO15/(AQ4-AO20) -> 0 | AQ15: =IF(AP15=0,0,(AP15*((LOG(AP15))/LOG(2)))) -> 0 | AS15: =N15 -> 2111 | AT15: =COUNTIF(L13:L13,AS15) -> 0 | AU15: =AT15/(AV4-AT20) -> 0 | AV15: =IF(AU15=0,0,(AU15*((LOG(AU15))/LOG(2)))) -> 0
N16: 2112 | O16: =COUNTIF($L$7:$L$500,N16) -> 0 | P16: =O16/$Q$4 -> 0 | Q16: =IF(P16=0,0,(P16*((LOG(P16))/LOG(2)))) -> 0 | T16: =N16 -> 2112 | U16: =COUNTIF(L7:L7,T16) -> 0 | V16: =U16/(W4-U20) -> 0 | W16: =IF(V16=0,0,(V16*((LOG(V16))/LOG(2)))) -> 0 | Y16: =N16 -> 2112 | Z16: =COUNTIF(L8:L8,Y16) -> 0 | AA16: =Z16/(AB4-Z20) -> 0 | AB16: =IF(AA16=0,0,(AA16*((LOG(AA16))/LOG(2)))) -> 0 | AD16: =N16 -> 2112 | AE16: =COUNTIF(L9:L10,AD16) -> 0 | AF16: =AE16/(AG4-AE20) -> 0 | AG16: =IF(AF16=0,0,(AF16*((LOG(AF16))/LOG(2)))) -> 0 | AI16: =N16 -> 2112 | AJ16: =COUNTIF(L11:L11,AI16) -> 0 | AK16: =AJ16/(AL4-AJ20) -> 0 | AL16: =IF(AK16=0,0,(AK16*((LOG(AK16))/LOG(2)))) -> 0 | AN16: =N16 -> 2112 | AO16: =COUNTIF(L12:L12,AN16) -> 0 | AP16: =AO16/(AQ4-AO20) -> 0 | AQ16: =IF(AP16=0,0,(AP16*((LOG(AP16))/LOG(2)))) -> 0 | AS16: =N16 -> 2112 | AT16: =COUNTIF(L13:L13,AS16) -> 0 | AU16: =AT16/(AV4-AT20) -> 0 | AV16: =IF(AU16=0,0,(AU16*((LOG(AU16))/LOG(2)))) -> 0
N17: 2121 | O17: =COUNTIF($L$7:$L$500,N17) -> 0 | P17: =O17/$Q$4 -> 0 | Q17: =IF(P17=0,0,(P17*((LOG(P17))/LOG(2)))) -> 0 | T17: =N17 -> 2121 | U17: =COUNTIF(L7:L7,T17) -> 0 | V17: =U17/(W4-U20) -> 0 | W17: =IF(V17=0,0,(V17*((LOG(V17))/LOG(2)))) -> 0 | Y17: =N17 -> 2121 | Z17: =COUNTIF(L8:L8,Y17) -> 0 | AA17: =Z17/(AB4-Z20) -> 0 | AB17: =IF(AA17=0,0,(AA17*((LOG(AA17))/LOG(2)))) -> 0 | AD17: =N17 -> 2121 | AE17: =COUNTIF(L9:L10,AD17) -> 0 | AF17: =AE17/(AG4-AE20) -> 0 | AG17: =IF(AF17=0,0,(AF17*((LOG(AF17))/LOG(2)))) -> 0 | AI17: =N17 -> 2121 | AJ17: =COUNTIF(L11:L11,AI17) -> 0 | AK17: =AJ17/(AL4-AJ20) -> 0 | AL17: =IF(AK17=0,0,(AK17*((LOG(AK17))/LOG(2)))) -> 0 | AN17: =N17 -> 2121 | AO17: =COUNTIF(L12:L12,AN17) -> 0 | AP17: =AO17/(AQ4-AO20) -> 0 | AQ17: =IF(AP17=0,0,(AP17*((LOG(AP17))/LOG(2)))) -> 0 | AS17: =N17 -> 2121 | AT17: =COUNTIF(L13:L13,AS17) -> 0 | AU17: =AT17/(AV4-AT20) -> 0 | AV17: =IF(AU17=0,0,(AU17*((LOG(AU17))/LOG(2)))) -> 0
N18: 2122 | O18: =COUNTIF($L$7:$L$500,N18) -> 0 | P18: =O18/$Q$4 -> 0 | Q18: =IF(P18=0,0,(P18*((LOG(P18))/LOG(2)))) -> 0 | T18: =N18 -> 2122 | U18: =COUNTIF(L7:L7,T18) -> 0 | V18: =U18/(W4-U20) -> 0 | W18: =IF(V18=0,0,(V18*((LOG(V18))/LOG(2)))) -> 0 | Y18: =N18 -> 2122 | Z18: =COUNTIF(L8:L8,Y18) -> 0 | AA18: =Z18/(AB4-Z20) -> 0 | AB18: =IF(AA18=0,0,(AA18*((LOG(AA18))/LOG(2)))) -> 0 | AD18: =N18 -> 2122 | AE18: =COUNTIF(L9:L10,AD18) -> 0 | AF18: =AE18/(AG4-AE20) -> 0 | AG18: =IF(AF18=0,0,(AF18*((LOG(AF18))/LOG(2)))) -> 0 | AI18: =N18 -> 2122 | AJ18: =COUNTIF(L11:L11,AI18) -> 0 | AK18: =AJ18/(AL4-AJ20) -> 0 | AL18: =IF(AK18=0,0,(AK18*((LOG(AK18))/LOG(2)))) -> 0 | AN18: =N18 -> 2122 | AO18: =COUNTIF(L12:L12,AN18) -> 0 | AP18: =AO18/(AQ4-AO20) -> 0 | AQ18: =IF(AP18=0,0,(AP18*((LOG(AP18))/LOG(2)))) -> 0 | AS18: =N18 -> 2122 | AT18: =COUNTIF(L13:L13,AS18) -> 0 | AU18: =AT18/(AV4-AT20) -> 0 | AV18: =IF(AU18=0,0,(AU18*((LOG(AU18))/LOG(2)))) -> 0
N19: 2211 | O19: =COUNTIF($L$7:$L$500,N19) -> 0 | P19: =O19/$Q$4 -> 0 | Q19: =IF(P19=0,0,(P19*((LOG(P19))/LOG(2)))) -> 0 | T19: =N19 -> 2211 | U19: =COUNTIF(L7:L7,T19) -> 0 | V19: =U19/(W4-U20) -> 0 | W19: =IF(V19=0,0,(V19*((LOG(V19))/LOG(2)))) -> 0 | Y19: =N19 -> 2211 | Z19: =COUNTIF(L8:L8,Y19) -> 0 | AA19: =Z19/(AB4-Z20) -> 0 | AB19: =IF(AA19=0,0,(AA19*((LOG(AA19))/LOG(2)))) -> 0 | AD19: =N19 -> 2211 | AE19: =COUNTIF(L9:L10,AD19) -> 0 | AF19: =AE19/(AG4-AE20) -> 0 | AG19: =IF(AF19=0,0,(AF19*((LOG(AF19))/LOG(2)))) -> 0 | AI19: =N19 -> 2211 | AJ19: =COUNTIF(L11:L11,AI19) -> 0 | AK19: =AJ19/(AL4-AJ20) -> 0 | AL19: =IF(AK19=0,0,(AK19*((LOG(AK19))/LOG(2)))) -> 0 | AN19: =N19 -> 2211 | AO19: =COUNTIF(L12:L12,AN19) -> 0 | AP19: =AO19/(AQ4-AO20) -> 0 | AQ19: =IF(AP19=0,0,(AP19*((LOG(AP19))/LOG(2)))) -> 0 | AS19: =N19 -> 2211 | AT19: =COUNTIF(L13:L13,AS19) -> 0 | AU19: =AT19/(AV4-AT20) -> 0 | AV19: =IF(AU19=0,0,(AU19*((LOG(AU19))/LOG(2)))) -> 0
N20: 2212 | O20: =COUNTIF($L$7:$L$500,N20) -> 0 | P20: =O20/$Q$4 -> 0 | Q20: =IF(P20=0,0,(P20*((LOG(P20))/LOG(2)))) -> 0 | T20: =N20 -> 2212 | U20: =COUNTIF(L7:L7,T20) -> 0 | Y20: =N20 -> 2212 | Z20: =COUNTIF(L8:L8,Y20) -> 0 | AD20: =N20 -> 2212 | AE20: =COUNTIF(L9:L10,AD20) -> 0 | AI20: =N20 -> 2212 | AJ20: =COUNTIF(L11:L11,AI20) -> 0 | AN20: =N20 -> 2212 | AO20: =COUNTIF(L12:L12,AN20) -> 0 | AS20: =N20 -> 2212 | AT20: =COUNTIF(L13:L13,AS20) -> 0
N21: 2221 | O21: =COUNTIF($L$7:$L$500,N21) -> 1 | P21: =O21/$Q$4 -> 0.1428571429 | Q21: =IF(P21=0,0,(P21*((LOG(P21))/LOG(2)))) -> -0.4010507032 | T21: =N21 -> 2221 | U21: =COUNTIF(L7:L7,T21) -> 0 | V21: =U21/(W4-U20) -> 0 | W21: =IF(V21=0,0,(V21*((LOG(V21))/LOG(2)))) -> 0 | Y21: =N21 -> 2221 | Z21: =COUNTIF(L8:L8,Y21) -> 1 | AA21: =Z21/(AB4-Z20) -> 1 | AB21: =IF(AA21=0,0,(AA21*((LOG(AA21))/LOG(2)))) -> 0 | AD21: =N21 -> 2221 | AE21: =COUNTIF(L9:L10,AD21) -> 0 | AF21: =AE21/(AG4-AE20) -> 0 | AG21: =IF(AF21=0,0,(AF21*((LOG(AF21))/LOG(2)))) -> 0 | AI21: =N21 -> 2221 | AJ21: =COUNTIF(L11:L11,AI21) -> 0 | AK21: =AJ21/(AL4-AJ20) -> 0 | AL21: =IF(AK21=0,0,(AK21*((LOG(AK21))/LOG(2)))) -> 0 | AN21: =N21 -> 2221 | AO21: =COUNTIF(L12:L12,AN21) -> 0 | AP21: =AO21/(AQ4-AO20) -> 0 | AQ21: =IF(AP21=0,0,(AP21*((LOG(AP21))/LOG(2)))) -> 0 | AS21: =N21 -> 2221 | AT21: =COUNTIF(L13:L13,AS21) -> 0 | AU21: =AT21/(AV4-AT20) -> 0 | AV21: =IF(AU21=0,0,(AU21*((LOG(AU21))/LOG(2)))) -> 0
N22: 2222 | O22: =COUNTIF($L$7:$L$500,N22) -> 0 | P22: =O22/$Q$4 -> 0 | Q22: =IF(P22=0,0,(P22*((LOG(P22))/LOG(2)))) -> 0 | T22: =N22 -> 2222 | U22: =COUNTIF(L7:L7,T22) -> 0 | V22: =U22/(W4-U20) -> 0 | W22: =IF(V22=0,0,(V22*((LOG(V22))/LOG(2)))) -> 0 | Y22: =N22 -> 2222 | Z22: =COUNTIF(L8:L8,Y22) -> 0 | AA22: =Z22/(AB4-Z20) -> 0 | AB22: =IF(AA22=0,0,(AA22*((LOG(AA22))/LOG(2)))) -> 0 | AD22: =N22 -> 2222 | AE22: =COUNTIF(L9:L10,AD22) -> 0 | AF22: =AE22/(AG4-AE20) -> 0 | AG22: =IF(AF22=0,0,(AF22*((LOG(AF22))/LOG(2)))) -> 0 | AI22: =N22 -> 2222 | AJ22: =COUNTIF(L11:L11,AI22) -> 0 | AK22: =AJ22/(AL4-AJ20) -> 0 | AL22: =IF(AK22=0,0,(AK22*((LOG(AK22))/LOG(2)))) -> 0 | AN22: =N22 -> 2222 | AO22: =COUNTIF(L12:L12,AN22) -> 0 | AP22: =AO22/(AQ4-AO20) -> 0 | AQ22: =IF(AP22=0,0,(AP22*((LOG(AP22))/LOG(2)))) -> 0 | AS22: =N22 -> 2222 | AT22: =COUNTIF(L13:L13,AS22) -> 0 | AU22: =AT22/(AV4-AT20) -> 0 | AV22: =IF(AU22=0,0,(AU22*((LOG(AU22))/LOG(2)))) -> 0
P23: =SUM(P7:P22) -> 1 | Q23: =-SUM(Q7:Q22) -> 2.128085279 | V23: =SUM(V7:V22) -> 1 | W23: =-SUM(W7:W22) -> 0 | AA23: =SUM(AA7:AA22) -> 1 | AB23: =-SUM(AB7:AB22) -> 0 | AF23: =SUM(AF7:AF22) -> 1 | AG23: =-SUM(AG7:AG22) -> 0 | AK23: =SUM(AK7:AK22) -> 1 | AL23: =-SUM(AL7:AL22) -> 0 | AP23: =SUM(AP7:AP22) -> 1 | AQ23: =-SUM(AQ7:AQ22) -> 0 | AU23: =SUM(AU7:AU22) -> 1 | AV23: =-SUM(AV7:AV22) -> 0
P24: U= | Q24: =Q23/(LOG(Q4)/LOG(2)) -> 0.7580392711 | V24: U1= | W24: =W23/(LOG(W4)/LOG(2)) ->  | AA24: U2= | AB24: =AB23/(LOG(AB4)/LOG(2)) ->  | AF24: U3= | AG24: =AG23/(LOG(AG4)/LOG(2)) -> 0 | AK24: U4= | AL24: =AL23/(LOG(AL4)/LOG(2)) ->  | AP24: U5= | AQ24: =AQ23/(LOG(AQ4)/LOG(2)) ->  | AU24: U6= | AV24: =AV23/(LOG(AV4)/LOG(2)) -> 
N27: Total Target Seq
N28: =COUNTIF(L7:L13,G3) -> 0 | P28: 1 | Q28: 1 | R28: 2 | S28: 1 | T28: 1 | U28: 1
P29: % of reinforcement given in 6 equal intervals based on number of trials
P30: %_1 | Q30: %_2 | R30: %_3 | S30: %_4 | T30: %_5 | U30: %_6
O31: target sequence | P31: =$G$3 -> 2212 | Q31: =$G$3 -> 2212 | R31: =$G$3 -> 2212 | S31: =$G$3 -> 2212 | T31: =$G$3 -> 2212 | U31: =$G$3 -> 2212
O32: total reinforcement | P32: =U20 -> 0 | Q32: =Z20 -> 0 | R32: =AE20 -> 0 | S32: =AJ20 -> 0 | T32: =AO20 -> 0 | U32: =AT20 -> 0
O33: % target
O34: CCRF
O35: % CCRf
O36: average response rate | P36: =H7/P28 -> 174 | Q36: =(H8-H7)/Q28 -> 402 | R36: =(H10-H8)/R28 -> 138 | S36: =(H11-H10)/S28 -> 264 | T36: =(H12-H11)/T28 -> 2394 | U36: =(H13-H12)/U28 -> 722

Sheet !M111B3B.axt
A1: Report for:!M111B3B.axt
A2: Date: | B2: <date>
A3: Hen: | B3: <hen> | F3: Correct Sequence | G3: =Start!J2 -> 2212 | P3: Total Sequences in Data | Q3: =4994-COUNTBLANK(L7:L5000) -> 11 | V3: Total Sequences in Block Data | W3: =COUNTA(L7:L8) -> 2 | AA3: Total Sequences in Block Data | AB3: =COUNTA(L9:L10) -> 2 | AF3: Total Sequences in Block Data | AG3: =COUNTA(L11:L11) -> 1 | AK3: Total Sequences in Block Data | AL3: =COUNTA(L12:L13) -> 2 | AP3: Total Sequences in Block Data | AQ3: =COUNTA(L14:L15) -> 2 | AU3: Total Sequences in Block Data | AV3: =COUNTA(L16:L17) -> 2
P4: Total Sequences in Summary | Q4: =SUM(O7:O22) -> 10 | V4: Total Sequences in Block Summary | W4: =SUM(U7:U22) -> 2 | AA4: Total Sequences in Block Summary | AB4: =SUM(Z7:Z22) -> 2 | AF4: Total Sequences in Block Summary | AG4: =SUM(AE7:AE22) -> 1 | AK4: Total Sequences in Block Summary | AL4: =SUM(AJ7:AJ22) -> 2 | AP4: Total Sequences in Block Summary | AQ4: =SUM(AO7:AO22) -> 2 | AU4: Total Sequences in Block Summary | AV4: =SUM(AT7:AT22) -> 1
T5: Block 1 | Y5: Block 2 | AD5: Block 3 | AI5: Block 4 | AN5: Block 5 | AS5: Block 6
A6: Sequence Component 1 | B6: Time 1 | C6: Sequence Component 2 | D6: Time 2 | E6: Sequence Component 3 | F6: Time 3 | G6: Sequence Component 4 | H6: Time 4 | I6: Sequence Component 5 | J6: Time 5 | K6: Correct? 0=No 1=Yes | L6: Sequence | N6: Frequency | P6: Relative Frequency | Q6: Variability | T6: Frequency | V6: Relative Frequency | W6: Variability | Y6: Frequency | AA6: Relative Frequency | AB6: Variability | AD6: Frequency | AF6: Relative Frequency | AG6: Variability | AI6: Frequency | AK6: Relative Frequency | AL6: Variability | AN6: Frequency | AP6: Relative Frequency | AQ6: Variability | AS6: Frequency | AU6: Relative Frequency | AV6: Variability
A7: 12 | B7: 204 | C7: 23 | D7: 287 | E7: 24 | F7: 290 | G7: 14 | H7: 302 | K7: 0 | L7: 1221 | N7: 1111 | O7: =COUNTIF($L$7:$L$500,N7) -> 0 | P7: =O7/$Q$4 -> 0 | Q7: =IF(P7=0,0,(P7*((LOG(P7))/LOG(2)))) -> 0 | T7: =N7 -> 1111 | U7: =COUNTIF(L7:L8,T7) -> 0 | V7: =U7/(W4-U20) -> 0 | W7: =IF(V7=0,0,(V7*((LOG(V7))/LOG(2)))) -> 0 | Y7: =N7 -> 1111 | Z7: =COUNTIF(L9:L10,Y7) -> 0 | AA7: =Z7/(AB4-Z20) -> 0 | AB7: =IF(AA7=0,0,(AA7*((LOG(AA7))/LOG(2)))) -> 0 | AD7: =N7 -> 1111 | AE7: =COUNTIF(L11:L11,AD7) -> 0 | AF7: =AE7/(AG4-AE20) -> 0 | AG7: =IF(AF7=0,0,(AF7*((LOG(AF7))/LOG(2)))) -> 0 | AI7: =N7 -> 1111 | AJ7: =COUNTIF(L12:L13,AI7) -> 0 | AK7: =AJ7/(AL4-AJ20) -> 0 | AL7: =IF(AK7=0,0,(AK7*((LOG(AK7))/LOG(2)))) -> 0 | AN7: =N7 -> 1111 | AO7: =COUNTIF(L14:L15,AN7) -> 0 | AP7: =AO7/(AQ4-AO20) -> 0 | AQ7: =IF(AP7=0,0,(AP7*((LOG(AP7))/LOG(2)))) -> 0 | AS7: =N7 -> 1111 | AT7: =COUNTIF(L16:L17,AS7) -> 0 | AU7: =AT7/(AV4-AT20) -> 0 | AV7: =IF(AU7=0,0,(AU7*((LOG(AU7))/LOG(2)))) -> 0
A8: 12 | B8: 623 | C8: 23 | D8: 633 | E8: 24 | F8: 644 | G8: 23 | H8: 2148 | K8: 0 | L8: 1222 | N8: 1112 | O8: =COUNTIF($L$7:$L$500,N8) -> 0 | P8: =O8/$Q$4 -> 0 | Q8: =IF(P8=0,0,(P8*((LOG(P8))/LOG(2)))) -> 0 | T8: =N8 -> 1112 | U8: =COUNTIF(L7:L8,T8) -> 0 | V8: =U8/(W4-U20) -> 0 | W8: =IF(V8=0,0,(V8*((LOG(V8))/LOG(2)))) -> 0 | Y8: =N8 -> 1112 | Z8: =COUNTIF(L9:L10,Y8) -> 0 | AA8: =Z8/(AB4-Z20) -> 0 | AB8: =IF(AA8=0,0,(AA8*((LOG(AA8))/LOG(2)))) -> 0 | AD8: =N8 -> 1112 | AE8: =COUNTIF(L11:L11,AD8) -> 0 | AF8: =AE8/(AG4-AE20) -> 0 | AG8: =IF(AF8=0,0,(AF8*((LOG(AF8))/LOG(2)))) -> 0 | AI8: =N8 -> 1112 | AJ8: =COUNTIF(L12:L13,AI8) -> 0 | AK8: =AJ8/(AL4-AJ20) -> 0 | AL8: =IF(AK8=0,0,(AK8*((LOG(AK8))/LOG(2)))) -> 0 | AN8: =N8 -> 1112 | AO8: =COUNTIF(L14:L15,AN8) -> 0 | AP8: =AO8/(AQ4-AO20) -> 0 | AQ8: =IF(AP8=0,0,(AP8*((LOG(AP8))/LOG(2)))) -> 0 | AS8: =N8 -> 1112 | AT8: =COUNTIF(L16:L17,AS8) -> 0 | AU8: =AT8/(AV4-AT20) -> 0 | AV8: =IF(AU8=0,0,(AU8*((LOG(AU8))/LOG(2)))) -> 0
A9: 12 | B9: 2817 | C9: 23 | D9: 2825 | E9: 24 | F9: 2835 | G9: 14 | H9: 2860 | K9: 0 | L9: 1221 | N9: 1121 | O9: =COUNTIF($L$7:$L$500,N9) -> 0 | P9: =O9/$Q$4 -> 0 | Q9: =IF(P9=0,0,(P9*((LOG(P9))/LOG(2)))) -> 0 | T9: =N9 -> 1121 | U9: =COUNTIF(L7:L8,T9) -> 0 | V9: =U9/(W4-U20) -> 0 | W9: =IF(V9=0,0,(V9*((LOG(V9))/LOG(2)))) -> 0 | Y9: =N9 -> 1121 | Z9: =COUNTIF(L9:L10,Y9) -> 0 | AA9: =Z9/(AB4-Z20) -> 0 | AB9: =IF(AA9=0,0,(AA9*((LOG(AA9))/LOG(2)))) -> 0 | AD9: =N9 -> 1121 | AE9: =COUNTIF(L11:L11,AD9) -> 0 | AF9: =AE9/(AG4-AE20) -> 0 | AG9: =IF(AF9=0,0,(AF9*((LOG(AF9))/LOG(2)))) -> 0 | AI9: =N9 -> 1121 | AJ9: =COUNTIF(L12:L13,AI9) -> 0 | AK9: =AJ9/(AL4-AJ20) -> 0 | AL9: =IF(AK9=0,0,(AK9*((LOG(AK9))/LOG(2)))) -> 0 | AN9: =N9 -> 1121 | AO9: =COUNTIF(L14:L15,AN9) -> 0 | AP9: =AO9/(AQ4-AO20) -> 0 | AQ9: =IF(AP9=0,0,(AP9*((LOG(AP9))/LOG(2)))) -> 0 | AS9: =N9 -> 1121 | AT9: =COUNTIF(L16:L17,AS9) -> 0 | AU9: =AT9/(AV4-AT20) -> 0 | AV9: =IF(AU9=0,0,(AU9*((LOG(AU9))/LOG(2)))) -> 0
A10: 12 | B10: 3272 | C10: 14 | D10: 3274 | E10: 24 | F10: 3282 | G10: 23 | H10: 3293 | K10: 0 | L10: 1122 | N10: 1122 | O10: =COUNTIF($L$7:$L$500,N10) -> 2 | P10: =O10/$Q$4 -> 0.2 | Q10: =IF(P10=0,0,(P10*((LOG(P10))/LOG(2)))) -> -0.464385619 | T10: =N10 -> 1122 | U10: =COUNTIF(L7:L8,T10) -> 0 | V10: =U10/(W4-U20) -> 0 | W10: =IF(V10=0,0,(V10*((LOG(V10))/LOG(2)))) -> 0 | Y10: =N10 -> 1122 | Z10: =COUNTIF(L9:L10,Y10) -> 1 | AA10: =Z10/(AB4-Z20) -> 0.5 | AB10: =IF(AA10=0,0,(AA10*((LOG(AA10))/LOG(2)))) -> -0.5 | AD10: =N10 -> 1122 | AE10: =COUNTIF(L11:L11,AD10) -> 0 | AF10: =AE10/(AG4-AE20) -> 0 | AG10: =IF(AF10=0,0,(AF10*((LOG(AF10))/LOG(2)))) -> 0 | AI10: =N10 -> 1122 | AJ10: =COUNTIF(L12:L13,AI10) -> 1 | AK10: =AJ10/(AL4-AJ20) -> 0.5 | AL10: =IF(AK10=0,0,(AK10*((LOG(AK10))/LOG(2)))) -> -0.5 | AN10: =N10 -> 1122 | AO10: =COUNTIF(L14:L15,AN10) -> 0 | AP10: =AO10/(AQ4-AO20) -> 0 | AQ10: =IF(AP10=0,0,(AP10*((LOG(AP10))/LOG(2)))) -> 0 | AS10: =N10 -> 1122 | AT10: =COUNTIF(L16:L17,AS10) -> 0 | AU10: =AT10/(AV4-AT20) -> 0 | AV10: =IF(AU10=0,0,(AU10*((LOG(AU10))/LOG(2)))) -> 0
A11: 12 | B11: 3430 | C11: 23 | D11: 3438 | E11: 24 | F11: 3448 | G11: 23 | H11: 3462 | K11: 0 | L11: 1222 | N11: 1211 | O11: =COUNTIF($L$7:$L$500,N11) -> 0 | P11: =O11/$Q$4 -> 0 | Q11: =IF(P11=0,0,(P11*((LOG(P11))/LOG(2)))) -> 0 | T11: =N11 -> 1211 | U11: =COUNTIF(L7:L8,T11) -> 0 | V11: =U11/(W4-U20) -> 0 | W11: =IF(V11=0,0,(V11*((LOG(V11))/LOG(2)))) -> 0 | Y11: =N11 -> 1211 | Z11: =COUNTIF(L9:L10,Y11) -> 0 | AA11: =Z11/(AB4-Z20) -> 0 | AB11: =IF(AA11=0,0,(AA11*((LOG(AA11))/LOG(2)))) -> 0 | AD11: =N11 -> 1211 | AE11: =COUNTIF(L11:L11,AD11) -> 0 | AF11: =AE11/(AG4-AE20) -> 0 | AG11: =IF(AF11=0,0,(AF11*((LOG(AF11))/LOG(2)))) -> 0 | AI11: =N11 -> 1211 | AJ11: =COUNTIF(L12:L13,AI11) -> 0 | AK11: =AJ11/(AL4-AJ20) -> 0 | AL11: =IF(AK11=0,0,(AK11*((LOG(AK11))/LOG(2)))) -> 0 | AN11: =N11 -> 1211 | AO11: =COUNTIF(L14:L15,AN11) -> 0 | AP11: =AO11/(AQ4-AO20) -> 0 | AQ11: =IF(AP11=0,0,(AP11*((LOG(AP11))/LOG(2)))) -> 0 | AS11: =N11 -> 1211 | AT11: =COUNTIF(L16:L17,AS11) -> 0 | AU11: =AT11/(AV4-AT20) -> 0 | AV11: =IF(AU11=0,0,(AU11*((LOG(AU11))/LOG(2)))) -> 0
A12: 12 | B12: 3740 | C12: 23 | D12: 3750 | E12: 24 | F12: 3763 | G12: 23 | H12: 3781 | K12: 0 | L12: 1222 | N12: 1212 | O12: =COUNTIF($L$7:$L$500,N12) -> 0 | P12: =O12/$Q$4 -> 0 | Q12: =IF(P12=0,0,(P12*((LOG(P12))/LOG(2)))) -> 0 | T12: =N12 -> 1212 | U12: =COUNTIF(L7:L8,T12) -> 0 | V12: =U12/(W4-U20) -> 0 | W12: =IF(V12=0,0,(V12*((LOG(V12))/LOG(2)))) -> 0 | Y12: =N12 -> 1212 | Z12: =COUNTIF(L9:L10,Y12) -> 0 | AA12: =Z12/(AB4-Z20) -> 0 | AB12: =IF(AA12=0,0,(AA12*((LOG(AA12))/LOG(2)))) -> 0 | AD12: =N12 -> 1212 | AE12: =COUNTIF(L11:L11,AD12) -> 0 | AF12: =AE12/(AG4-AE20) -> 0 | AG12: =IF(AF12=0,0,(AF12*((LOG(AF12))/LOG(2)))) -> 0 | AI12: =N12 -> 1212 | AJ12: =COUNTIF(L12:L13,AI12) -> 0 | AK12: =AJ12/(AL4-AJ20) -> 0 | AL12: =IF(AK12=0,0,(AK12*((LOG(AK12))/LOG(2)))) -> 0 | AN12: =N12 -> 1212 | AO12: =COUNTIF(L14:L15,AN12) -> 0 | AP12: =AO12/(AQ4-AO20) -> 0 | AQ12: =IF(AP12=0,0,(AP12*((LOG(AP12))/LOG(2)))) -> 0 | AS12: =N12 -> 1212 | AT12: =COUNTIF(L16:L17,AS12) -> 0 | AU12: =AT12/(AV4-AT20) -> 0 | AV12: =IF(AU12=0,0,(AU12*((LOG(AU12))/LOG(2)))) -> 0
A13: 12 | B13: 3918 | C13: 14 | D13: 3921 | E13: 24 | F13: 3927 | G13: 23 | H13: 3936 | K13: 0 | L13: 1122 | N13: 1221 | O13: =COUNTIF($L$7:$L$500,N13) -> 3 | P13: =O13/$Q$4 -> 0.3 | Q13: =IF(P13=0,0,(P13*((LOG(P13))/LOG(2)))) -> -0.5210896782 | T13: =N13 -> 1221 | U13: =COUNTIF(L7:L8,T13) -> 1 | V13: =U13/(W4-U20) -> 0.5 | W13: =IF(V13=0,0,(V13*((LOG(V13))/LOG(2)))) -> -0.5 | Y13: =N13 -> 1221 | Z13: =COUNTIF(L9:L10,Y13) -> 1 | AA13: =Z13/(AB4-Z20) -> 0.5 | AB13: =IF(AA13=0,0,(AA13*((LOG(AA13))/LOG(2)))) -> -0.5 | AD13: =N13 -> 1221 | AE13: =COUNTIF(L11:L11,AD13) -> 0 | AF13: =AE13/(AG4-AE20) -> 0 | AG13: =IF(AF13=0,0,(AF13*((LOG(AF13))/LOG(2)))) -> 0 | AI13: =N13 -> 1221 | AJ13: =COUNTIF(L12:L13,AI13) -> 0 | AK13: =AJ13/(AL4-AJ20) -> 0 | AL13: =IF(AK13=0,0,(AK13*((LOG(AK13))/LOG(2)))) -> 0 | AN13: =N13 -> 1221 | AO13: =COUNTIF(L14:L15,AN13) -> 1 | AP13: =AO13/(AQ4-AO20) -> 0.5 | AQ13: =IF(AP13=0,0,(AP13*((LOG(AP13))/LOG(2)))) -> -0.5 | AS13: =N13 -> 1221 | AT13: =COUNTIF(L16:L17,AS13) -> 0 | AU13: =AT13/(AV4-AT20) -> 0 | AV13: =IF(AU13=0,0,(AU13*((LOG(AU13))/LOG(2)))) -> 0
A14: 12 | B14: 4426 | C14: 23 | D14: 4438 | E14: 24 | F14: 4449 | G14: 23 | H14: 4454 | K14: 0 | L14: 1222 | N14: 1222 | O14: =COUNTIF($L$7:$L$500,N14) -> 5 | P14: =O14/$Q$4 -> 0.5 | Q14: =IF(P14=0,0,(P14*((LOG(P14))/LOG(2)))) -> -0.5 | T14: =N14 -> 1222 | U14: =COUNTIF(L7:L8,T14) -> 1 | V14: =U14/(W4-U20) -> 0.5 | W14: =IF(V14=0,0,(V14*((LOG(V14))/LOG(2)))) -> -0.5 | Y14: =N14 -> 1222 | Z14: =COUNTIF(L9:L10,Y14) -> 0 | AA14: =Z14/(AB4-Z20) -> 0 | AB14: =IF(AA14=0,0,(AA14*((LOG(AA14))/LOG(2)))) -> 0 | AD14: =N14 -> 1222 | AE14: =COUNTIF(L11:L11,AD14) -> 1 | AF14: =AE14/(AG4-AE20) -> 1 | AG14: =IF(AF14=0,0,(AF14*((LOG(AF14))/LOG(2)))) -> 0 | AI14: =N14 -> 1222 | AJ14: =COUNTIF(L12:L13,AI14) -> 1 | AK14: =AJ14/(AL4-AJ20) -> 0.5 | AL14: =IF(AK14=0,0,(AK14*((LOG(AK14))/LOG(2)))) -> -0.5 | AN14: =N14 -> 1222 | AO14: =COUNTIF(L14:L15,AN14) -> 1 | AP14: =AO14/(AQ4-AO20) -> 0.5 | AQ14: =IF(AP14=0,0,(AP14*((LOG(AP14))/LOG(2)))) -> -0.5 | AS14: =N14 -> 1222 | AT14: =COUNTIF(L16:L17,AS14) -> 1 | AU14: =AT14/(AV4-AT20) -> 1 | AV14: =IF(AU14=0,0,(AU14*((LOG(AU14))/LOG(2)))) -> 0
A15: 12 | B15: 4690 | C15: 23 | D15: 4705 | E15: 24 | F15: 4724 | G15: 14 | H15: 4739 | K15: 0 | L15: 1221 | N15: 2111 | O15: =COUNTIF($L$7:$L$500,N15) -> 0 | P15: =O15/$Q$4 -> 0 | Q15: =IF(P15=0,0,(P15*((LOG(P15))/LOG(2)))) -> 0 | T15: =N15 -> 2111 | U15: =COUNTIF(L7:L8,T15) -> 0 | V15: =U15/(W4-U20) -> 0 | W15: =IF(V15=0,0,(V15*((LOG(V15))/LOG(2)))) -> 0 | Y15: =N15 -> 2111 | Z15: =COUNTIF(L9:L10,Y15) -> 0 | AA15: =Z15/(AB4-Z20) -> 0 | AB15: =IF(AA15=0,0,(AA15*((LOG(AA15))/LOG(2)))) -> 0 | AD15: =N15 -> 2111 | AE15: =COUNTIF(L11:L11,AD15) -> 0 | AF15: =AE15/(AG4-AE20) -> 0 | AG15: =IF(AF15=0,0,(AF15*((LOG(AF15))/LOG(2)))) -> 0 | AI15: =N15 -> 2111 | AJ15: =COUNTIF(L12:L13,AI15) -> 0 | AK15: =AJ15/(AL4-AJ20) -> 0 | AL15: =IF(AK15=0,0,(AK15*((LOG(AK15))/LOG(2)))) -> 0 | AN15: =N15 -> 2111 | AO15: =COUNTIF(L14:L15,AN15) -> 0 | AP15: =AO15/(AQ4-AO20) -> 0 | AQ15: =IF(AP15=0,0,(AP15*((LOG(AP15))/LOG(2)))) -> 0 | AS15: =N15 -> 2111 | AT15: =COUNTIF(L16:L17,AS15) -> 0 | AU15: =AT15/(AV4-AT20) -> 0 | AV15: =IF(AU15=0,0,(AU15*((LOG(AU15))/LOG(2)))) -> 0
A16: 12 | B16: 5167 | C16: 23 | D16: 5190 | E16: 24 | F16: 5192 | G16: 23 | H16: 5197 | K16: 0 | L16: 1222 | N16: 2112 | O16: =COUNTIF($L$7:$L$500,N16) -> 0 | P16: =O16/$Q$4 -> 0 | Q16: =IF(P16=0,0,(P16*((LOG(P16))/LOG(2)))) -> 0 | T16: =N16 -> 2112 | U16: =COUNTIF(L7:L8,T16) -> 0 | V16: =U16/(W4-U20) -> 0 | W16: =IF(V16=0,0,(V16*((LOG(V16))/LOG(2)))) -> 0 | Y16: =N16 -> 2112 | Z16: =COUNTIF(L9:L10,Y16) -> 0 | AA16: =Z16/(AB4-Z20) -> 0 | AB16: =IF(AA16=0,0,(AA16*((LOG(AA16))/LOG(2)))) -> 0 | AD16: =N16 -> 2112 | AE16: =COUNTIF(L11:L11,AD16) -> 0 | AF16: =AE16/(AG4-AE20) -> 0 | AG16: =IF(AF16=0,0,(AF16*((LOG(AF16))/LOG(2)))) -> 0 | AI16: =N16 -> 2112 | AJ16: =COUNTIF(L12:L13,AI16) -> 0 | AK16: =AJ16/(AL4-AJ20) -> 0 | AL16: =IF(AK16=0,0,(AK16*((LOG(AK16))/LOG(2)))) -> 0 | AN16: =N16 -> 2112 | AO16: =COUNTIF(L14:L15,AN16) -> 0 | AP16: =AO16/(AQ4-AO20) -> 0 | AQ16: =IF(AP16=0,0,(AP16*((LOG(AP16))/LOG(2)))) -> 0 | AS16: =N16 -> 2112 | AT16: =COUNTIF(L16:L17,AS16) -> 0 | AU16: =AT16/(AV4-AT20) -> 0 | AV16: =IF(AU16=0,0,(AU16*((LOG(AU16))/LOG(2)))) -> 0
A17: 12 | B17: 15727 | C17: 23 | D17: 15742 | E17: 13 | F17: 17281 | L17: 121 | N17: 2121 | O17: =COUNTIF($L$7:$L$500,N17) -> 0 | P17: =O17/$Q$4 -> 0 | Q17: =IF(P17=0,0,(P17*((LOG(P17))/LOG(2)))) -> 0 | T17: =N17 -> 2121 | U17: =COUNTIF(L7:L8,T17) -> 0 | V17: =U17/(W4-U20) -> 0 | W17: =IF(V17=0,0,(V17*((LOG(V17))/LOG(2)))) -> 0 | Y17: =N17 -> 2121 | Z17: =COUNTIF(L9:L10,Y17) -> 0 | AA17: =Z17/(AB4-Z20) -> 0 | AB17: =IF(AA17=0,0,(AA17*((LOG(AA17))/LOG(2)))) -> 0 | AD17: =N17 -> 2121 | AE17: =COUNTIF(L11:L11,AD17) -> 0 | AF17: =AE17/(AG4-AE20) -> 0 | AG17: =IF(AF17=0,0,(AF17*((LOG(AF17))/LOG(2)))) -> 0 | AI17: =N17 -> 2121 | AJ17: =COUNTIF(L12:L13,AI17) -> 0 | AK17: =AJ17/(AL4-AJ20) -> 0 | AL17: =IF(AK17=0,0,(AK17*((LOG(AK17))/LOG(2)))) -> 0 | AN17: =N17 -> 2121 | AO17: =COUNTIF(L14:L15,AN17) -> 0 | AP17: =AO17/(AQ4-AO20) -> 0 | AQ17: =IF(AP17=0,0,(AP17*((LOG(AP17))/LOG(2)))) -> 0 | AS17: =N17 -> 2121 | AT17: =COUNTIF(L16:L17,AS17) -> 0 | AU17: =AT17/(AV4-AT20) -> 0 | AV17: =IF(AU17=0,0,(AU17*((LOG(AU17))/LOG(2)))) -> 0
N18: 2122 | O18: =COUNTIF($L$7:$L$500,N18) -> 0 | P18: =O18/$Q$4 -> 0 | Q18: =IF(P18=0,0,(P18*((LOG(P18))/LOG(2)))) -> 0 | T18: =N18 -> 2122 | U18: =COUNTIF(L7:L8,T18) -> 0 | V18: =U18/(W4-U20) -> 0 | W18: =IF(V18=0,0,(V18*((LOG(V18))/LOG(2)))) -> 0 | Y18: =N18 -> 2122 | Z18: =COUNTIF(L9:L10,Y18) -> 0 | AA18: =Z18/(AB4-Z20) -> 0 | AB18: =IF(AA18=0,0,(AA18*((LOG(AA18))/LOG(2)))) -> 0 | AD18: =N18 -> 2122 | AE18: =COUNTIF(L11:L11,AD18) -> 0 | AF18: =AE18/(AG4-AE20) -> 0 | AG18: =IF(AF18=0,0,(AF18*((LOG(AF18))/LOG(2)))) -> 0 | AI18: =N18 -> 2122 | AJ18: =COUNTIF(L12:L13,AI18) -> 0 | AK18: =AJ18/(AL4-AJ20) -> 0 | AL18: =IF(AK18=0,0,(AK18*((LOG(AK18))/LOG(2)))) -> 0 | AN18: =N18 -> 2122 | AO18: =COUNTIF(L14:L15,AN18) -> 0 | AP18: =AO18/(AQ4-AO20) -> 0 | AQ18: =IF(AP18=0,0,(AP18*((LOG(AP18))/LOG(2)))) -> 0 | AS18: =N18 -> 2122 | AT18: =COUNTIF(L16:L17,AS18) -> 0 | AU18: =AT18/(AV4-AT20) -> 0 | AV18: =IF(AU18=0,0,(AU18*((LOG(AU18))/LOG(2)))) -> 0
N19: 2211 | O19: =COUNTIF($L$7:$L$500,N19) -> 0 | P19: =O19/$Q$4 -> 0 | Q19: =IF(P19=0,0,(P19*((LOG(P19))/LOG(2)))) -> 0 | T19: =N19 -> 2211 | U19: =COUNTIF(L7:L8,T19) -> 0 | V19: =U19/(W4-U20) -> 0 | W19: =IF(V19=0,0,(V19*((LOG(V19))/LOG(2)))) -> 0 | Y19: =N19 -> 2211 | Z19: =COUNTIF(L9:L10,Y19) -> 0 | AA19: =Z19/(AB4-Z20) -> 0 | AB19: =IF(AA19=0,0,(AA19*((LOG(AA19))/LOG(2)))) -> 0 | AD19: =N19 -> 2211 | AE19: =COUNTIF(L11:L11,AD19) -> 0 | AF19: =AE19/(AG4-AE20) -> 0 | AG19: =IF(AF19=0,0,(AF19*((LOG(AF19))/LOG(2)))) -> 0 | AI19: =N19 -> 2211 | AJ19: =COUNTIF(L12:L13,AI19) -> 0 | AK19: =AJ19/(AL4-AJ20) -> 0 | AL19: =IF(AK19=0,0,(AK19*((LOG(AK19))/LOG(2)))) -> 0 | AN19: =N19 -> 2211 | AO19: =COUNTIF(L14:L15,AN19) -> 0 | AP19: =AO19/(AQ4-AO20) -> 0 | AQ19: =IF(AP19=0,0,(AP19*((LOG(AP19))/LOG(2)))) -> 0 | AS19: =N19 -> 2211 | AT19: =COUNTIF(L16:L17,AS19) -> 0 | AU19: =AT19/(AV4-AT20) -> 0 | AV19: =IF(AU19=0,0,(AU19*((LOG(AU19))/LOG(2)))) -> 0
N20: 2212 | O20: =COUNTIF($L$7:$L$500,N20) -> 0 | P20: =O20/$Q$4 -> 0 | Q20: =IF(P20=0,0,(P20*((LOG(P20))/LOG(2)))) -> 0 | T20: =N20 -> 2212 | U20: =COUNTIF(L7:L8,T20) -> 0 | Y20: =N20 -> 2212 | Z20: =COUNTIF(L9:L10,Y20) -> 0 | AD20: =N20 -> 2212 | AE20: =COUNTIF(L11:L11,AD20) -> 0 | AI20: =N20 -> 2212 | AJ20: =COUNTIF(L12:L13,AI20) -> 0 | AN20: =N20 -> 2212 | AO20: =COUNTIF(L14:L15,AN20) -> 0 | AS20: =N20 -> 2212 | AT20: =COUNTIF(L16:L17,AS20) -> 0
N21: 2221 | O21: =COUNTIF($L$7:$L$500,N21) -> 0 | P21: =O21/$Q$4 -> 0 | Q21: =IF(P21=0,0,(P21*((LOG(P21))/LOG(2)))) -> 0 | T21: =N21 -> 2221 | U21: =COUNTIF(L7:L8,T21) -> 0 | V21: =U21/(W4-U20) -> 0 | W21: =IF(V21=0,0,(V21*((LOG(V21))/LOG(2)))) -> 0 | Y21: =N21 -> 2221 | Z21: =COUNTIF(L9:L10,Y21) -> 0 | AA21: =Z21/(AB4-Z20) -> 0 | AB21: =IF(AA21=0,0,(AA21*((LOG(AA21))/LOG(2)))) -> 0 | AD21: =N21 -> 2221 | AE21: =COUNTIF(L11:L11,AD21) -> 0 | AF21: =AE21/(AG4-AE20) -> 0 | AG21: =IF(AF21=0,0,(AF21*((LOG(AF21))/LOG(2)))) -> 0 | AI21: =N21 -> 2221 | AJ21: =COUNTIF(L12:L13,AI21) -> 0 | AK21: =AJ21/(AL4-AJ20) -> 0 | AL21: =IF(AK21=0,0,(AK21*((LOG(AK21))/LOG(2)))) -> 0 | AN21: =N21 -> 2221 | AO21: =COUNTIF(L14:L15,AN21) -> 0 | AP21: =AO21/(AQ4-AO20) -> 0 | AQ21: =IF(AP21=0,0,(AP21*((LOG(AP21))/LOG(2)))) -> 0 | AS21: =N21 -> 2221 | AT21: =COUNTIF(L16:L17,AS21) -> 0 | AU21: =AT21/(AV4-AT20) -> 0 | AV21: =IF(AU21=0,0,(AU21*((LOG(AU21))/LOG(2)))) -> 0
N22: 2222 | O22: =COUNTIF($L$7:$L$500,N22) -> 0 | P22: =O22/$Q$4 -> 0 | Q22: =IF(P22=0,0,(P22*((LOG(P22))/LOG(2)))) -> 0 | T22: =N22 -> 2222 | U22: =COUNTIF(L7:L8,T22) -> 0 | V22: =U22/(W4-U20) -> 0 | W22: =IF(V22=0,0,(V22*((LOG(V22))/LOG(2)))) -> 0 | Y22: =N22 -> 2222 | Z22: =COUNTIF(L9:L10,Y22) -> 0 | AA22: =Z22/(AB4-Z20) -> 0 | AB22: =IF(AA22=0,0,(AA22*((LOG(AA22))/LOG(2)))) -> 0 | AD22: =N22 -> 2222 | AE22: =COUNTIF(L11:L11,AD22) -> 0 | AF22: =AE22/(AG4-AE20) -> 0 | AG22: =IF(AF22=0,0,(AF22*((LOG(AF22))/LOG(2)))) -> 0 | AI22: =N22 -> 2222 | AJ22: =COUNTIF(L12:L13,AI22) -> 0 | AK22: =AJ22/(AL4-AJ20) -> 0 | AL22: =IF(AK22=0,0,(AK22*((LOG(AK22))/LOG(2)))) -> 0 | AN22: =N22 -> 2222 | AO22: =COUNTIF(L14:L15,AN22) -> 0 | AP22: =AO22/(AQ4-AO20) -> 0 | AQ22: =IF(AP22=0,0,(AP22*((LOG(AP22))/LOG(2)))) -> 0 | AS22: =N22 -> 2222 | AT22: =COUNTIF(L16:L17,AS22) -> 0 | AU22: =AT22/(AV4-AT20) -> 0 | AV22: =IF(AU22=0,0,(AU22*((LOG(AU22))/LOG(2)))) -> 0
P23: =SUM(P7:P22) -> 1 | Q23: =-SUM(Q7:Q22) -> 1.485475297 | V23: =SUM(V7:V22) -> 1 | W23: =-SUM(W7:W22) -> 1 | AA23: =SUM(AA7:AA22) -> 1 | AB23: =-SUM(AB7:AB22) -> 1 | AF23: =SUM(AF7:AF22) -> 1 | AG23: =-SUM(AG7:AG22) -> 0 | AK23: =SUM(AK7:AK22) -> 1 | AL23: =-SUM(AL7:AL22) -> 1 | AP23: =SUM(AP7:AP22) -> 1 | AQ23: =-SUM(AQ7:AQ22) -> 1 | AU23: =SUM(AU7:AU22) -> 1 | AV23: =-SUM(AV7:AV22) -> 0
P24: U= | Q24: =Q23/(LOG(Q4)/LOG(2)) -> 0.4471726223 | V24: U1= | W24: =W23/(LOG(W4)/LOG(2)) -> 1 | AA24: U2= | AB24: =AB23/(LOG(AB4)/LOG(2)) -> 1 | AF24: U3= | AG24: =AG23/(LOG(AG4)/LOG(2)) ->  | AK24: U4= | AL24: =AL23/(LOG(AL4)/LOG(2)) -> 1 | AP24: U5= | AQ24: =AQ23/(LOG(AQ4)/LOG(2)) -> 1 | AU24: U6= | AV24: =AV23/(LOG(AV4)/LOG(2)) -> 
N27: Total Target Seq
N28: =COUNTIF(L7:L17,G3) -> 0 | P28: 2 | Q28: 2 | R28: 1 | S28: 2 | T28: 2 | U28: 2
P29: % of reinforcement given in 6 equal intervals based on number of trials
P30: %_1 | Q30: %_2 | R30: %_3 | S30: %_4 | T30: %_5 | U30: %_6
O31: target sequence | P31: =$G$3 -> 2212 | Q31: =$G$3 -> 2212 | R31: =$G$3 -> 2212 | S31: =$G$3 -> 2212 | T31: =$G$3 -> 2212 | U31: =$G$3 -> 2212
O32: total reinforcement | P32: =U20 -> 0 | Q32: =Z20 -> 0 | R32: =AE20 -> 0 | S32: =AJ20 -> 0 | T32: =AO20 -> 0 | U32: =AT20 -> 0
O33: % target
O34: CCRF
O35: % CCRf
O36: average response rate | P36: =H8/P28 -> 1074 | Q36: =(H10-H8)/Q28 -> 572.5 | R36: =(H11-H10)/R28 -> 169 | S36: =(H13-H11)/S28 -> 237 | T36: =(H15-H13)/T28 -> 401.5 | U36: =(H17-H15)/U28 -> -2369.5

Sheet !M112B2B.axt
A1: Report for:!M112B2B.axt
A2: Date: | B2: <date>
A3: Hen: | B3: <hen> | F3: Correct Sequence | G3: =Start!J2 -> 2212 | P3: Total Sequences in Data | Q3: =4994-COUNTBLANK(L7:L5000) -> 3 | V3: Total Sequences in Block Data | W3: =COUNTA(L7:L7) -> 1 | AA3: Total Sequences in Block Data | AB3: =COUNTA(L7:L8) -> 2 | AF3: Total Sequences in Block Data | AG3: =COUNTA(L8:L8) -> 1 | AK3: Total Sequences in Block Data | AL3: =COUNTA(L8:L9) -> 2 | AP3: Total Sequences in Block Data | AQ3: =COUNTA(L9:L9) -> 1 | AU3: Total Sequences in Block Data | AV3: =COUNTA(L9:L10) -> 1
P4: Total Sequences in Summary | Q4: =SUM(O7:O22) -> 2 | V4: Total Sequences in Block Summary | W4: =SUM(U7:U22) -> 1 | AA4: Total Sequences in Block Summary | AB4: =SUM(Z7:Z22) -> 2 | AF4: Total Sequences in Block Summary | AG4: =SUM(AE7:AE22) -> 1 | AK4: Total Sequences in Block Summary | AL4: =SUM(AJ7:AJ22) -> 1 | AP4: Total Sequences in Block Summary | AQ4: =SUM(AO7:AO22) -> 0 | AU4: Total Sequences in Block Summary | AV4: =SUM(AT7:AT22) -> 0
T5: Block 1 | Y5: Block 2 | AD5: Block 3 | AI5: Block 4 | AN5: Block 5 | AS5: Block 6
A6: Sequence Component 1 | B6: Time 1 | C6: Sequence Component 2 | D6: Time 2 | E6: Sequence Component 3 | F6: Time 3 | G6: Sequence Component 4 | H6: Time 4 | I6: Sequence Component 5 | J6: Time 5 | K6: Correct? 0=No 1=Yes | L6: Sequence | N6: Frequency | P6: Relative Frequency | Q6: Variability | T6: Frequency | V6: Relative Frequency | W6: Variability | Y6: Frequency | AA6: Relative Frequency | AB6: Variability | AD6: Frequency | AF6: Relative Frequency | AG6: Variability | AI6: Frequency | AK6: Relative Frequency | AL6: Variability | AN6: Frequency | AP6: Relative Frequency | AQ6: Variability | AS6: Frequency | AU6: Relative Frequency | AV6: Variability
A7: 12 | B7: 68 | C7: 14 | D7: 118 | E7: 24 | F7: 128 | G7: 14 | H7: 146 | K7: 0 | L7: 1121 | N7: 1111 | O7: =COUNTIF($L$7:$L$500,N7) -> 0 | P7: =O7/$Q$4 -> 0 | Q7: =IF(P7=0,0,(P7*((LOG(P7))/LOG(2)))) -> 0 | T7: =N7 -> 1111 | U7: =COUNTIF(L7:L7,T7) -> 0 | V7: =U7/(W4-U20) -> 0 | W7: =IF(V7=0,0,(V7*((LOG(V7))/LOG(2)))) -> 0 | Y7: =N7 -> 1111 | Z7: =COUNTIF(L7:L8,Y7) -> 0 | AA7: =Z7/(AB4-Z20) -> 0 | AB7: =IF(AA7=0,0,(AA7*((LOG(AA7))/LOG(2)))) -> 0 | AD7: =N7 -> 1111 | AE7: =COUNTIF(L8:L8,AD7) -> 0 | AF7: =AE7/(AG4-AE20) -> 0 | AG7: =IF(AF7=0,0,(AF7*((LOG(AF7))/LOG(2)))) -> 0 | AI7: =N7 -> 1111 | AJ7: =COUNTIF(L8:L9,AI7) -> 0 | AK7: =AJ7/(AL4-AJ20) -> 0 | AL7: =IF(AK7=0,0,(AK7*((LOG(AK7))/LOG(2)))) -> 0 | AN7: =N7 -> 1111 | AO7: =COUNTIF(L9:L9,AN7) -> 0 | AP7: =AO7/(AQ4-AO20) ->  | AQ7: =IF(AP7=0,0,(AP7*((LOG(AP7))/LOG(2)))) ->  | AS7: =N7 -> 1111 | AT7: =COUNTIF(L9:L10,AS7) -> 0 | AU7: =AT7/(AV4-AT20) ->  | AV7: =IF(AU7=0,0,(AU7*((LOG(AU7))/LOG(2)))) -> 
A8: 12 | B8: 2066 | C8: 23 | D8: 2075 | E8: 24 | F8: 2083 | G8: 23 | H8: 2136 | K8: 0 | L8: 1222 | N8: 1112 | O8: =COUNTIF($L$7:$L$500,N8) -> 0 | P8: =O8/$Q$4 -> 0 | Q8: =IF(P8=0,0,(P8*((LOG(P8))/LOG(2)))) -> 0 | T8: =N8 -> 1112 | U8: =COUNTIF(L7:L7,T8) -> 0 | V8: =U8/(W4-U20) -> 0 | W8: =IF(V8=0,0,(V8*((LOG(V8))/LOG(2)))) -> 0 | Y8: =N8 -> 1112 | Z8: =COUNTIF(L7:L8,Y8) -> 0 | AA8: =Z8/(AB4-Z20) -> 0 | AB8: =IF(AA8=0,0,(AA8*((LOG(AA8))/LOG(2)))) -> 0 | AD8: =N8 -> 1112 | AE8: =COUNTIF(L8:L8,AD8) -> 0 | AF8: =AE8/(AG4-AE20) -> 0 | AG8: =IF(AF8=0,0,(AF8*((LOG(AF8))/LOG(2)))) -> 0 | AI8: =N8 -> 1112 | AJ8: =COUNTIF(L8:L9,AI8) -> 0 | AK8: =AJ8/(AL4-AJ20) -> 0 | AL8: =IF(AK8=0,0,(AK8*((LOG(AK8))/LOG(2)))) -> 0 | AN8: =N8 -> 1112 | AO8: =COUNTIF(L9:L9,AN8) -> 0 | AP8: =AO8/(AQ4-AO20) ->  | AQ8: =IF(AP8=0,0,(AP8*((LOG(AP8))/LOG(2)))) ->  | AS8: =N8 -> 1112 | AT8: =COUNTIF(L9:L10,AS8) -> 0 | AU8: =AT8/(AV4-AT20) ->  | AV8: =IF(AU8=0,0,(AU8*((LOG(AU8))/LOG(2)))) -> 
A9: 12 | B9: 11668 | C9: 14 | D9: 23798 | L9: 11 | N9: 1121 | O9: =COUNTIF($L$7:$L$500,N9) -> 1 | P9: =O9/$Q$4 -> 0.5 | Q9: =IF(P9=0,0,(P9*((LOG(P9))/LOG(2)))) -> -0.5 | T9: =N9 -> 1121 | U9: =COUNTIF(L7:L7,T9) -> 1 | V9: =U9/(W4-U20) -> 1 | W9: =IF(V9=0,0,(V9*((LOG(V9))/LOG(2)))) -> 0 | Y9: =N9 -> 1121 | Z9: =COUNTIF(L7:L8,Y9) -> 1 | AA9: =Z9/(AB4-Z20) -> 0.5 | AB9: =IF(AA9=0,0,(AA9*((LOG(AA9))/LOG(2)))) -> -0.5 | AD9: =N9 -> 1121 | AE9: =COUNTIF(L8:L8,AD9) -> 0 | AF9: =AE9/(AG4-AE20) -> 0 | AG9: =IF(AF9=0,0,(AF9*((LOG(AF9))/LOG(2)))) -> 0 | AI9: =N9 -> 1121 | AJ9: =COUNTIF(L8:L9,AI9) -> 0 | AK9: =AJ9/(AL4-AJ20) -> 0 | AL9: =IF(AK9=0,0,(AK9*((LOG(AK9))/LOG(2)))) -> 0 | AN9: =N9 -> 1121 | AO9: =COUNTIF(L9:L9,AN9) -> 0 | AP9: =AO9/(AQ4-AO20) ->  | AQ9: =IF(AP9=0,0,(AP9*((LOG(AP9))/LOG(2)))) ->  | AS9: =N9 -> 1121 | AT9: =COUNTIF(L9:L10,AS9) -> 0 | AU9: =AT9/(AV4-AT20) ->  | AV9: =IF(AU9=0,0,(AU9*((LOG(AU9))/LOG(2)))) -> 
N10: 1122 | O10: =COUNTIF($L$7:$L$500,N10) -> 0 | P10: =O10/$Q$4 -> 0 | Q10: =IF(P10=0,0,(P10*((LOG(P10))/LOG(2)))) -> 0 | T10: =N10 -> 1122 | U10: =COUNTIF(L7:L7,T10) -> 0 | V10: =U10/(W4-U20) -> 0 | W10: =IF(V10=0,0,(V10*((LOG(V10))/LOG(2)))) -> 0 | Y10: =N10 -> 1122 | Z10: =COUNTIF(L7:L8,Y10) -> 0 | AA10: =Z10/(AB4-Z20) -> 0 | AB10: =IF(AA10=0,0,(AA10*((LOG(AA10))/LOG(2)))) -> 0 | AD10: =N10 -> 1122 | AE10: =COUNTIF(L8:L8,AD10) -> 0 | AF10: =AE10/(AG4-AE20) -> 0 | AG10: =IF(AF10=0,0,(AF10*((LOG(AF10))/LOG(2)))) -> 0 | AI10: =N10 -> 1122 | AJ10: =COUNTIF(L8:L9,AI10) -> 0 | AK10: =AJ10/(AL4-AJ20) -> 0 | AL10: =IF(AK10=0,0,(AK10*((LOG(AK10))/LOG(2)))) -> 0 | AN10: =N10 -> 1122 | AO10: =COUNTIF(L9:L9,AN10) -> 0 | AP10: =AO10/(AQ4-AO20) ->  | AQ10: =IF(AP10=0,0,(AP10*((LOG(AP10))/LOG(2)))) ->  | AS10: =N10 -> 1122 | AT10: =COUNTIF(L9:L10,AS10) -> 0 | AU10: =AT10/(AV4-AT20) ->  | AV10: =IF(AU10=0,0,(AU10*((LOG(AU10))/LOG(2)))) -> 
N11: 1211 | O11: =COUNTIF($L$7:$L$500,N11) -> 0 | P11: =O11/$Q$4 -> 0 | Q11: =IF(P11=0,0,(P11*((LOG(P11))/LOG(2)))) -> 0 | T11: =N11 -> 1211 | U11: =COUNTIF(L7:L7,T11) -> 0 | V11: =U11/(W4-U20) -> 0 | W11: =IF(V11=0,0,(V11*((LOG(V11))/LOG(2)))) -> 0 | Y11: =N11 -> 1211 | Z11: =COUNTIF(L7:L8,Y11) -> 0 | AA11: =Z11/(AB4-Z20) -> 0 | AB11: =IF(AA11=0,0,(AA11*((LOG(AA11))/LOG(2)))) -> 0 | AD11: =N11 -> 1211 | AE11: =COUNTIF(L8:L8,AD11) -> 0 | AF11: =AE11/(AG4-AE20) -> 0 | AG11: =IF(AF11=0,0,(AF11*((LOG(AF11))/LOG(2)))) -> 0 | AI11: =N11 -> 1211 | AJ11: =COUNTIF(L8:L9,AI11) -> 0 | AK11: =AJ11/(AL4-AJ20) -> 0 | AL11: =IF(AK11=0,0,(AK11*((LOG(AK11))/LOG(2)))) -> 0 | AN11: =N11 -> 1211 | AO11: =COUNTIF(L9:L9,AN11) -> 0 | AP11: =AO11/(AQ4-AO20) ->  | AQ11: =IF(AP11=0,0,(AP11*((LOG(AP11))/LOG(2)))) ->  | AS11: =N11 -> 1211 | AT11: =COUNTIF(L9:L10,AS11) -> 0 | AU11: =AT11/(AV4-AT20) ->  | AV11: =IF(AU11=0,0,(AU11*((LOG(AU11))/LOG(2)))) -> 
N12: 1212 | O12: =COUNTIF($L$7:$L$500,N12) -> 0 | P12: =O12/$Q$4 -> 0 | Q12: =IF(P12=0,0,(P12*((LOG(P12))/LOG(2)))) -> 0 | T12: =N12 -> 1212 | U12: =COUNTIF(L7:L7,T12) -> 0 | V12: =U12/(W4-U20) -> 0 | W12: =IF(V12=0,0,(V12*((LOG(V12))/LOG(2)))) -> 0 | Y12: =N12 -> 1212 | Z12: =COUNTIF(L7:L8,Y12) -> 0 | AA12: =Z12/(AB4-Z20) -> 0 | AB12: =IF(AA12=0,0,(AA12*((LOG(AA12))/LOG(2)))) -> 0 | AD12: =N12 -> 1212 | AE12: =COUNTIF(L8:L8,AD12) -> 0 | AF12: =AE12/(AG4-AE20) -> 0 | AG12: =IF(AF12=0,0,(AF12*((LOG(AF12))/LOG(2)))) -> 0 | AI12: =N12 -> 1212 | AJ12: =COUNTIF(L8:L9,AI12) -> 0 | AK12: =AJ12/(AL4-AJ20) -> 0 | AL12: =IF(AK12=0,0,(AK12*((LOG(AK12))/LOG(2)))) -> 0 | AN12: =N12 -> 1212 | AO12: =COUNTIF(L9:L9,AN12) -> 0 | AP12: =AO12/(AQ4-AO20) ->  | AQ12: =IF(AP12=0,0,(AP12*((LOG(AP12))/LOG(2)))) ->  | AS12: =N12 -> 1212 | AT12: =COUNTIF(L9:L10,AS12) -> 0 | AU12: =AT12/(AV4-AT20) ->  | AV12: =IF(AU12=0,0,(AU12*((LOG(AU12))/LOG(2)))) -> 
N13: 1221 | O13: =COUNTIF($L$7:$L$500,N13) -> 0 | P13: =O13/$Q$4 -> 0 | Q13: =IF(P13=0,0,(P13*((LOG(P13))/LOG(2)))) -> 0 | T13: =N13 -> 1221 | U13: =COUNTIF(L7:L7,T13) -> 0 | V13: =U13/(W4-U20) -> 0 | W13: =IF(V13=0,0,(V13*((LOG(V13))/LOG(2)))) -> 0 | Y13: =N13 -> 1221 | Z13: =COUNTIF(L7:L8,Y13) -> 0 | AA13: =Z13/(AB4-Z20) -> 0 | AB13: =IF(AA13=0,0,(AA13*((LOG(AA13))/LOG(2)))) -> 0 | AD13: =N13 -> 1221 | AE13: =COUNTIF(L8:L8,AD13) -> 0 | AF13: =AE13/(AG4-AE20) -> 0 | AG13: =IF(AF13=0,0,(AF13*((LOG(AF13))/LOG(2)))) -> 0 | AI13: =N13 -> 1221 | AJ13: =COUNTIF(L8:L9,AI13) -> 0 | AK13: =AJ13/(AL4-AJ20) -> 0 | AL13: =IF(AK13=0,0,(AK13*((LOG(AK13))/LOG(2)))) -> 0 | AN13: =N13 -> 1221 | AO13: =COUNTIF(L9:L9,AN13) -> 0 | AP13: =AO13/(AQ4-AO20) ->  | AQ13: =IF(AP13=0,0,(AP13*((LOG(AP13))/LOG(2)))) ->  | AS13: =N13 -> 1221 | AT13: =COUNTIF(L9:L10,AS13) -> 0 | AU13: =AT13/(AV4-AT20) ->  | AV13: =IF(AU13=0,0,(AU13*((LOG(AU13))/LOG(2)))) -> 
N14: 1222 | O14: =COUNTIF($L$7:$L$500,N14) -> 1 | P14: =O14/$Q$4 -> 0.5 | Q14: =IF(P14=0,0,(P14*((LOG(P14))/LOG(2)))) -> -0.5 | T14: =N14 -> 1222 | U14: =COUNTIF(L7:L7,T14) -> 0 | V14: =U14/(W4-U20) -> 0 | W14: =IF(V14=0,0,(V14*((LOG(V14))/LOG(2)))) -> 0 | Y14: =N14 -> 1222 | Z14: =COUNTIF(L7:L8,Y14) -> 1 | AA14: =Z14/(AB4-Z20) -> 0.5 | AB14: =IF(AA14=0,0,(AA14*((LOG(AA14))/LOG(2)))) -> -0.5 | AD14: =N14 -> 1222 | AE14: =COUNTIF(L8:L8,AD14) -> 1 | AF14: =AE14/(AG4-AE20) -> 1 | AG14: =IF(AF14=0,0,(AF14*((LOG(AF14))/LOG(2)))) -> 0 | AI14: =N14 -> 1222 | AJ14: =COUNTIF(L8:L9,AI14) -> 1 | AK14: =AJ14/(AL4-AJ20) -> 1 | AL14: =IF(AK14=0,0,(AK14*((LOG(AK14))/LOG(2)))) -> 0 | AN14: =N14 -> 1222 | AO14: =COUNTIF(L9:L9,AN14) -> 0 | AP14: =AO14/(AQ4-AO20) ->  | AQ14: =IF(AP14=0,0,(AP14*((LOG(AP14))/LOG(2)))) ->  | AS14: =N14 -> 1222 | AT14: =COUNTIF(L9:L10,AS14) -> 0 | AU14: =AT14/(AV4-AT20) ->  | AV14: =IF(AU14=0,0,(AU14*((LOG(AU14))/LOG(2)))) -> 
N15: 2111 | O15: =COUNTIF($L$7:$L$500,N15) -> 0 | P15: =O15/$Q$4 -> 0 | Q15: =IF(P15=0,0,(P15*((LOG(P15))/LOG(2)))) -> 0 | T15: =N15 -> 2111 | U15: =COUNTIF(L7:L7,T15) -> 0 | V15: =U15/(W4-U20) -> 0 | W15: =IF(V15=0,0,(V15*((LOG(V15))/LOG(2)))) -> 0 | Y15: =N15 -> 2111 | Z15: =COUNTIF(L7:L8,Y15) -> 0 | AA15: =Z15/(AB4-Z20) -> 0 | AB15: =IF(AA15=0,0,(AA15*((LOG(AA15))/LOG(2)))) -> 0 | AD15: =N15 -> 2111 | AE15: =COUNTIF(L8:L8,AD15) -> 0 | AF15: =AE15/(AG4-AE20) -> 0 | AG15: =IF(AF15=0,0,(AF15*((LOG(AF15))/LOG(2)))) -> 0 | AI15: =N15 -> 2111 | AJ15: =COUNTIF(L8:L9,AI15) -> 0 | AK15: =AJ15/(AL4-AJ20) -> 0 | AL15: =IF(AK15=0,0,(AK15*((LOG(AK15))/LOG(2)))) -> 0 | AN15: =N15 -> 2111 | AO15: =COUNTIF(L9:L9,AN15) -> 0 | AP15: =AO15/(AQ4-AO20) ->  | AQ15: =IF(AP15=0,0,(AP15*((LOG(AP15))/LOG(2)))) ->  | AS15: =N15 -> 2111 | AT15: =COUNTIF(L9:L10,AS15) -> 0 | AU15: =AT15/(AV4-AT20) ->  | AV15: =IF(AU15=0,0,(AU15*((LOG(AU15))/LOG(2)))) -> 
N16: 2112 | O16: =COUNTIF($L$7:$L$500,N16) -> 0 | P16: =O16/$Q$4 -> 0 | Q16: =IF(P16=0,0,(P16*((LOG(P16))/LOG(2)))) -> 0 | T16: =N16 -> 2112 | U16: =COUNTIF(L7:L7,T16) -> 0 | V16: =U16/(W4-U20) -> 0 | W16: =IF(V16=0,0,(V16*((LOG(V16))/LOG(2)))) -> 0 | Y16: =N16 -> 2112 | Z16: =COUNTIF(L7:L8,Y16) -> 0 | AA16: =Z16/(AB4-Z20) -> 0 | AB16: =IF(AA16=0,0,(AA16*((LOG(AA16))/LOG(2)))) -> 0 | AD16: =N16 -> 2112 | AE16: =COUNTIF(L8:L8,AD16) -> 0 | AF16: =AE16/(AG4-AE20) -> 0 | AG16: =IF(AF16=0,0,(AF16*((LOG(AF16))/LOG(2)))) -> 0 | AI16: =N16 -> 2112 | AJ16: =COUNTIF(L8:L9,AI16) -> 0 | AK16: =AJ16/(AL4-AJ20) -> 0 | AL16: =IF(AK16=0,0,(AK16*((LOG(AK16))/LOG(2)))) -> 0 | AN16: =N16 -> 2112 | AO16: =COUNTIF(L9:L9,AN16) -> 0 | AP16: =AO16/(AQ4-AO20) ->  | AQ16: =IF(AP16=0,0,(AP16*((LOG(AP16))/LOG(2)))) ->  | AS16: =N16 -> 2112 | AT16: =COUNTIF(L9:L10,AS16) -> 0 | AU16: =AT16/(AV4-AT20) ->  | AV16: =IF(AU16=0,0,(AU16*((LOG(AU16))/LOG(2)))) -> 
N17: 2121 | O17: =COUNTIF($L$7:$L$500,N17) -> 0 | P17: =O17/$Q$4 -> 0 | Q17: =IF(P17=0,0,(P17*((LOG(P17))/LOG(2)))) -> 0 | T17: =N17 -> 2121 | U17: =COUNTIF(L7:L7,T17) -> 0 | V17: =U17/(W4-U20) -> 0 | W17: =IF(V17=0,0,(V17*((LOG(V17))/LOG(2)))) -> 0 | Y17: =N17 -> 2121 | Z17: =COUNTIF(L7:L8,Y17) -> 0 | AA17: =Z17/(AB4-Z20) -> 0 | AB17: =IF(AA17=0,0,(AA17*((LOG(AA17))/LOG(2)))) -> 0 | AD17: =N17 -> 2121 | AE17: =COUNTIF(L8:L8,AD17) -> 0 | AF17: =AE17/(AG4-AE20) -> 0 | AG17: =IF(AF17=0,0,(AF17*((LOG(AF17))/LOG(2)))) -> 0 | AI17: =N17 -> 2121 | AJ17: =COUNTIF(L8:L9,AI17) -> 0 | AK17: =AJ17/(AL4-AJ20) -> 0 | AL17: =IF(AK17=0,0,(AK17*((LOG(AK17))/LOG(2)))) -> 0 | AN17: =N17 -> 2121 | AO17: =COUNTIF(L9:L9,AN17) -> 0 | AP17: =AO17/(AQ4-AO20) ->  | AQ17: =IF(AP17=0,0,(AP17*((LOG(AP17))/LOG(2)))) ->  | AS17: =N17 -> 2121 | AT17: =COUNTIF(L9:L10,AS17) -> 0 | AU17: =AT17/(AV4-AT20) ->  | AV17: =IF(AU17=0,0,(AU17*((LOG(AU17))/LOG(2)))) -> 
N18: 2122 | O18: =COUNTIF($L$7:$L$500,N18) -> 0 | P18: =O18/$Q$4 -> 0 | Q18: =IF(P18=0,0,(P18*((LOG(P18))/LOG(2)))) -> 0 | T18: =N18 -> 2122 | U18: =COUNTIF(L7:L7,T18) -> 0 | V18: =U18/(W4-U20) -> 0 | W18: =IF(V18=0,0,(V18*((LOG(V18))/LOG(2)))) -> 0 | Y18: =N18 -> 2122 | Z18: =COUNTIF(L7:L8,Y18) -> 0 | AA18: =Z18/(AB4-Z20) -> 0 | AB18: =IF(AA18=0,0,(AA18*((LOG(AA18))/LOG(2)))) -> 0 | AD18: =N18 -> 2122 | AE18: =COUNTIF(L8:L8,AD18) -> 0 | AF18: =AE18/(AG4-AE20) -> 0 | AG18: =IF(AF18=0,0,(AF18*((LOG(AF18))/LOG(2)))) -> 0 | AI18: =N18 -> 2122 | AJ18: =COUNTIF(L8:L9,AI18) -> 0 | AK18: =AJ18/(AL4-AJ20) -> 0 | AL18: =IF(AK18=0,0,(AK18*((LOG(AK18))/LOG(2)))) -> 0 | AN18: =N18 -> 2122 | AO18: =COUNTIF(L9:L9,AN18) -> 0 | AP18: =AO18/(AQ4-AO20) ->  | AQ18: =IF(AP18=0,0,(AP18*((LOG(AP18))/LOG(2)))) ->  | AS18: =N18 -> 2122 | AT18: =COUNTIF(L9:L10,AS18) -> 0 | AU18: =AT18/(AV4-AT20) ->  | AV18: =IF(AU18=0,0,(AU18*((LOG(AU18))/LOG(2)))) -> 
N19: 2211 | O19: =COUNTIF($L$7:$L$500,N19) -> 0 | P19: =O19/$Q$4 -> 0 | Q19: =IF(P19=0,0,(P19*((LOG(P19))/LOG(2)))) -> 0 | T19: =N19 -> 2211 | U19: =COUNTIF(L7:L7,T19) -> 0 | V19: =U19/(W4-U20) -> 0 | W19: =IF(V19=0,0,(V19*((LOG(V19))/LOG(2)))) -> 0 | Y19: =N19 -> 2211 | Z19: =COUNTIF(L7:L8,Y19) -> 0 | AA19: =Z19/(AB4-Z20) -> 0 | AB19: =IF(AA19=0,0,(AA19*((LOG(AA19))/LOG(2)))) -> 0 | AD19: =N19 -> 2211 | AE19: =COUNTIF(L8:L8,AD19) -> 0 | AF19: =AE19/(AG4-AE20) -> 0 | AG19: =IF(AF19=0,0,(AF19*((LOG(AF19))/LOG(2)))) -> 0 | AI19: =N19 -> 2211 | AJ19: =COUNTIF(L8:L9,AI19) -> 0 | AK19: =AJ19/(AL4-AJ20) -> 0 | AL19: =IF(AK19=0,0,(AK19*((LOG(AK19))/LOG(2)))) -> 0 | AN19: =N19 -> 2211 | AO19: =COUNTIF(L9:L9,AN19) -> 0 | AP19: =AO19/(AQ4-AO20) ->  | AQ19: =IF(AP19=0,0,(AP19*((LOG(AP19))/LOG(2)))) ->  | AS19: =N19 -> 2211 | AT19: =COUNTIF(L9:L10,AS19) -> 0 | AU19: =AT19/(AV4-AT20) ->  | AV19: =IF(AU19=0,0,(AU19*((LOG(AU19))/LOG(2)))) -> 
N20: 2212 | O20: =COUNTIF($L$7:$L$500,N20) -> 0 | P20: =O20/$Q$4 -> 0 | Q20: =IF(P20=0,0,(P20*((LOG(P20))/LOG(2)))) -> 0 | T20: =N20 -> 2212 | U20: =COUNTIF(L7:L7,T20) -> 0 | Y20: =N20 -> 2212 | Z20: =COUNTIF(L7:L8,Y20) -> 0 | AD20: =N20 -> 2212 | AE20: =COUNTIF(L8:L8,AD20) -> 0 | AI20: =N20 -> 2212 | AJ20: =COUNTIF(L8:L9,AI20) -> 0 | AN20: =N20 -> 2212 | AO20: =COUNTIF(L9:L9,AN20) -> 0 | AS20: =N20 -> 2212 | AT20: =COUNTIF(L9:L10,AS20) -> 0
N21: 2221 | O21: =COUNTIF($L$7:$L$500,N21) -> 0 | P21: =O21/$Q$4 -> 0 | Q21: =IF(P21=0,0,(P21*((LOG(P21))/LOG(2)))) -> 0 | T21: =N21 -> 2221 | U21: =COUNTIF(L7:L7,T21) -> 0 | V21: =U21/(W4-U20) -> 0 | W21: =IF(V21=0,0,(V21*((LOG(V21))/LOG(2)))) -> 0 | Y21: =N21 -> 2221 | Z21: =COUNTIF(L7:L8,Y21) -> 0 | AA21: =Z21/(AB4-Z20) -> 0 | AB21: =IF(AA21=0,0,(AA21*((LOG(AA21))/LOG(2)))) -> 0 | AD21: =N21 -> 2221 | AE21: =COUNTIF(L8:L8,AD21) -> 0 | AF21: =AE21/(AG4-AE20) -> 0 | AG21: =IF(AF21=0,0,(AF21*((LOG(AF21))/LOG(2)))) -> 0 | AI21: =N21 -> 2221 | AJ21: =COUNTIF(L8:L9,AI21) -> 0 | AK21: =AJ21/(AL4-AJ20) -> 0 | AL21: =IF(AK21=0,0,(AK21*((LOG(AK21))/LOG(2)))) -> 0 | AN21: =N21 -> 2221 | AO21: =COUNTIF(L9:L9,AN21) -> 0 | AP21: =AO21/(AQ4-AO20) ->  | AQ21: =IF(AP21=0,0,(AP21*((LOG(AP21))/LOG(2)))) ->  | AS21: =N21 -> 2221 | AT21: =COUNTIF(L9:L10,AS21) -> 0 | AU21: =AT21/(AV4-AT20) ->  | AV21: =IF(AU21=0,0,(AU21*((LOG(AU21))/LOG(2)))) -> 
N22: 2222 | O22: =COUNTIF($L$7:$L$500,N22) -> 0 | P22: =O22/$Q$4 -> 0 | Q22: =IF(P22=0,0,(P22*((LOG(P22))/LOG(2)))) -> 0 | T22: =N22 -> 2222 | U22: =COUNTIF(L7:L7,T22) -> 0 | V22: =U22/(W4-U20) -> 0 | W22: =IF(V22=0,0,(V22*((LOG(V22))/LOG(2)))) -> 0 | Y22: =N22 -> 2222 | Z22: =COUNTIF(L7:L8,Y22) -> 0 | AA22: =Z22/(AB4-Z20) -> 0 | AB22: =IF(AA22=0,0,(AA22*((LOG(AA22))/LOG(2)))) -> 0 | AD22: =N22 -> 2222 | AE22: =COUNTIF(L8:L8,AD22) -> 0 | AF22: =AE22/(AG4-AE20) -> 0 | AG22: =IF(AF22=0,0,(AF22*((LOG(AF22))/LOG(2)))) -> 0 | AI22: =N22 -> 2222 | AJ22: =COUNTIF(L8:L9,AI22) -> 0 | AK22: =AJ22/(AL4-AJ20) -> 0 | AL22: =IF(AK22=0,0,(AK22*((LOG(AK22))/LOG(2)))) -> 0 | AN22: =N22 -> 2222 | AO22: =COUNTIF(L9:L9,AN22) -> 0 | AP22: =AO22/(AQ4-AO20) ->  | AQ22: =IF(AP22=0,0,(AP22*((LOG(AP22))/LOG(2)))) ->  | AS22: =N22 -> 2222 | AT22: =COUNTIF(L9:L10,AS22) -> 0 | AU22: =AT22/(AV4-AT20) ->  | AV22: =IF(AU22=0,0,(AU22*((LOG(AU22))/LOG(2)))) -> 
P23: =SUM(P7:P22) -> 1 | Q23: =-SUM(Q7:Q22) -> 1 | V23: =SUM(V7:V22) -> 1 | W23: =-SUM(W7:W22) -> 0 | AA23: =SUM(AA7:AA22) -> 1 | AB23: =-SUM(AB7:AB22) -> 1 | AF23: =SUM(AF7:AF22) -> 1 | AG23: =-SUM(AG7:AG22) -> 0 | AK23: =SUM(AK7:AK22) -> 1 | AL23: =-SUM(AL7:AL22) -> 0 | AP23: =SUM(AP7:AP22) ->  | AQ23: =-SUM(AQ7:AQ22) ->  | AU23: =SUM(AU7:AU22) ->  | AV23: =-SUM(AV7:AV22) -> 
P24: U= | Q24: =Q23/(LOG(Q4)/LOG(2)) -> 1 | V24: U1= | W24: =W23/(LOG(W4)/LOG(2)) ->  | AA24: U2= | AB24: =AB23/(LOG(AB4)/LOG(2)) -> 1 | AF24: U3= | AG24: =AG23/(LOG(AG4)/LOG(2)) ->  | AK24: U4= | AL24: =AL23/(LOG(AL4)/LOG(2)) ->  | AP24: U5= | AQ24: =AQ23/(LOG(AQ4)/LOG(2)) ->  | AU24: U6= | AV24: =AV23/(LOG(AV4)/LOG(2)) -> 
N27: Total Target Seq
N28: =COUNTIF(L7:L9,G3) -> 0 | P28: 1 | Q28: 0 | R28: 1 | S28: 0 | T28: 1 | U28: 0
P29: % of reinforcement given in 6 equal intervals based on number of trials
P30: %_1 | Q30: %_2 | R30: %_3 | S30: %_4 | T30: %_5 | U30: %_6
O31: target sequence | P31: =$G$3 -> 2212 | Q31: =$G$3 -> 2212 | R31: =$G$3 -> 2212 | S31: =$G$3 -> 2212 | T31: =$G$3 -> 2212 | U31: =$G$3 -> 2212
O32: total reinforcement | P32: =U20 -> 0 | Q32: =Z20 -> 0 | R32: =AE20 -> 0 | S32: =AJ20 -> 0 | T32: =AO20 -> 0 | U32: =AT20 -> 0
O33: % target
O34: CCRF
O35: % CCRf
O36: average response rate | P36: =H7/P28 -> 146 | Q36: =(H7-H7)/Q28 ->  | R36: =(H8-H7)/R28 -> 1990 | S36: =(H8-H8)/S28 ->  | T36: =(H9-H8)/T28 -> -2136 | U36: =(H9-H9)/U28 -> 

Sheet !M113A5B.axt
A1: Report for:!M113A5B.axt
A2: Date: | B2: <date>
A3: Hen: | B3: <hen> | F3: Correct Sequence | G3: =Start!J2 -> 2212 | P3: Total Sequences in Data | Q3: =4994-COUNTBLANK(L7:L5000) -> 3 | V3: Total Sequences in Block Data | W3: =COUNTA(L7:L7) -> 1 | AA3: Total Sequences in Block Data | AB3: =COUNTA(L7:L8) -> 2 | AF3: Total Sequences in Block Data | AG3: =COUNTA(L8:L8) -> 1 | AK3: Total Sequences in Block Data | AL3: =COUNTA(L8:L9) -> 2 | AP3: Total Sequences in Block Data | AQ3: =COUNTA(L9:L9) -> 1 | AU3: Total Sequences in Block Data | AV3: =COUNTA(L9:L10) -> 1
P4: Total Sequences in Summary | Q4: =SUM(O7:O22) -> 3 | V4: Total Sequences in Block Summary | W4: =SUM(U7:U22) -> 1 | AA4: Total Sequences in Block Summary | AB4: =SUM(Z7:Z22) -> 2 | AF4: Total Sequences in Block Summary | AG4: =SUM(AE7:AE22) -> 1 | AK4: Total Sequences in Block Summary | AL4: =SUM(AJ7:AJ22) -> 2 | AP4: Total Sequences in Block Summary | AQ4: =SUM(AO7:AO22) -> 1 | AU4: Total Sequences in Block Summary | AV4: =SUM(AT7:AT22) -> 1
T5: Block 1 | Y5: Block 2 | AD5: Block 3 | AI5: Block 4 | AN5: Block 5 | AS5: Block 6
A6: Sequence Component 1 | B6: Time 1 | C6: Sequence Component 2 | D6: Time 2 | E6: Sequence Component 3 | F6: Time 3 | G6: Sequence Component 4 | H6: Time 4 | I6: Sequence Component 5 | J6: Time 5 | K6: Correct? 0=No 1=Yes | L6: Sequence | N6: Frequency | P6: Relative Frequency | Q6: Variability | T6: Frequency | V6: Relative Frequency | W6: Variability | Y6: Frequency | AA6: Relative Frequency | AB6: Variability | AD6: Frequency | AF6: Relative Frequency | AG6: Variability | AI6: Frequency | AK6: Relative Frequency | AL6: Variability | AN6: Frequency | AP6: Relative Frequency | AQ6: Variability | AS6: Frequency | AU6: Relative Frequency | AV6: Variability
A7: 21 | B7: 103 | C7: 12 | D7: 114 | E7: 24 | F7: 125 | G7: 23 | H7: 138 | K7: 0 | L7: 2122 | N7: 1111 | O7: =COUNTIF($L$7:$L$500,N7) -> 0 | P7: =O7/$Q$4 -> 0 | Q7: =IF(P7=0,0,(P7*((LOG(P7))/LOG(2)))) -> 0 | T7: =N7 -> 1111 | U7: =COUNTIF(L7:L7,T7) -> 0 | V7: =U7/(W4-U20) -> 0 | W7: =IF(V7=0,0,(V7*((LOG(V7))/LOG(2)))) -> 0 | Y7: =N7 -> 1111 | Z7: =COUNTIF(L7:L8,Y7) -> 0 | AA7: =Z7/(AB4-Z20) -> 0 | AB7: =IF(AA7=0,0,(AA7*((LOG(AA7))/LOG(2)))) -> 0 | AD7: =N7 -> 1111 | AE7: =COUNTIF(L8:L8,AD7) -> 0 | AF7: =AE7/(AG4-AE20) -> 0 | AG7: =IF(AF7=0,0,(AF7*((LOG(AF7))/LOG(2)))) -> 0 | AI7: =N7 -> 1111 | AJ7: =COUNTIF(L8:L9,AI7) -> 0 | AK7: =AJ7/(AL4-AJ20) -> 0 | AL7: =IF(AK7=0,0,(AK7*((LOG(AK7))/LOG(2)))) -> 0 | AN7: =N7 -> 1111 | AO7: =COUNTIF(L9:L9,AN7) -> 0 | AP7: =AO7/(AQ4-AO20) -> 0 | AQ7: =IF(AP7=0,0,(AP7*((LOG(AP7))/LOG(2)))) -> 0 | AS7: =N7 -> 1111 | AT7: =COUNTIF(L9:L10,AS7) -> 0 | AU7: =AT7/(AV4-AT20) -> 0 | AV7: =IF(AU7=0,0,(AU7*((LOG(AU7))/LOG(2)))) -> 0
A8: 12 | B8: 776 | C8: 23 | D8: 780 | E8: 13 | F8: 800 | G8: 23 | H8: 813 | K8: 0 | L8: 1212 | N8: 1112 | O8: =COUNTIF($L$7:$L$500,N8) -> 0 | P8: =O8/$Q$4 -> 0 | Q8: =IF(P8=0,0,(P8*((LOG(P8))/LOG(2)))) -> 0 | T8: =N8 -> 1112 | U8: =COUNTIF(L7:L7,T8) -> 0 | V8: =U8/(W4-U20) -> 0 | W8: =IF(V8=0,0,(V8*((LOG(V8))/LOG(2)))) -> 0 | Y8: =N8 -> 1112 | Z8: =COUNTIF(L7:L8,Y8) -> 0 | AA8: =Z8/(AB4-Z20) -> 0 | AB8: =IF(AA8=0,0,(AA8*((LOG(AA8))/LOG(2)))) -> 0 | AD8: =N8 -> 1112 | AE8: =COUNTIF(L8:L8,AD8) -> 0 | AF8: =AE8/(AG4-AE20) -> 0 | AG8: =IF(AF8=0,0,(AF8*((LOG(AF8))/LOG(2)))) -> 0 | AI8: =N8 -> 1112 | AJ8: =COUNTIF(L8:L9,AI8) -> 0 | AK8: =AJ8/(AL4-AJ20) -> 0 | AL8: =IF(AK8=0,0,(AK8*((LOG(AK8))/LOG(2)))) -> 0 | AN8: =N8 -> 1112 | AO8: =COUNTIF(L9:L9,AN8) -> 0 | AP8: =AO8/(AQ4-AO20) -> 0 | AQ8: =IF(AP8=0,0,(AP8*((LOG(AP8))/LOG(2)))) -> 0 | AS8: =N8 -> 1112 | AT8: =COUNTIF(L9:L10,AS8) -> 0 | AU8: =AT8/(AV4-AT20) -> 0 | AV8: =IF(AU8=0,0,(AU8*((LOG(AU8))/LOG(2)))) -> 0
A9: 12 | B9: 1248 | C9: 14 | D9: 6711 | E9: 24 | F9: 6725 | G9: 14 | H9: 8766 | K9: 0 | L9: 1121 | N9: 1121 | O9: =COUNTIF($L$7:$L$500,N9) -> 1 | P9: =O9/$Q$4 -> 0.3333333333 | Q9: =IF(P9=0,0,(P9*((LOG(P9))/LOG(2)))) -> -0.5283208336 | T9: =N9 -> 1121 | U9: =COUNTIF(L7:L7,T9) -> 0 | V9: =U9/(W4-U20) -> 0 | W9: =IF(V9=0,0,(V9*((LOG(V9))/LOG(2)))) -> 0 | Y9: =N9 -> 1121 | Z9: =COUNTIF(L7:L8,Y9) -> 0 | AA9: =Z9/(AB4-Z20) -> 0 | AB9: =IF(AA9=0,0,(AA9*((LOG(AA9))/LOG(2)))) -> 0 | AD9: =N9 -> 1121 | AE9: =COUNTIF(L8:L8,AD9) -> 0 | AF9: =AE9/(AG4-AE20) -> 0 | AG9: =IF(AF9=0,0,(AF9*((LOG(AF9))/LOG(2)))) -> 0 | AI9: =N9 -> 1121 | AJ9: =COUNTIF(L8:L9,AI9) -> 1 | AK9: =AJ9/(AL4-AJ20) -> 0.5 | AL9: =IF(AK9=0,0,(AK9*((LOG(AK9))/LOG(2)))) -> -0.5 | AN9: =N9 -> 1121 | AO9: =COUNTIF(L9:L9,AN9) -> 1 | AP9: =AO9/(AQ4-AO20) -> 1 | AQ9: =IF(AP9=0,0,(AP9*((LOG(AP9))/LOG(2)))) -> 0 | AS9: =N9 -> 1121 | AT9: =COUNTIF(L9:L10,AS9) -> 1 | AU9: =AT9/(AV4-AT20) -> 1 | AV9: =IF(AU9=0,0,(AU9*((LOG(AU9))/LOG(2)))) -> 0
N10: 1122 | O10: =COUNTIF($L$7:$L$500,N10) -> 0 | P10: =O10/$Q$4 -> 0 | Q10: =IF(P10=0,0,(P10*((LOG(P10))/LOG(2)))) -> 0 | T10: =N10 -> 1122 | U10: =COUNTIF(L7:L7,T10) -> 0 | V10: =U10/(W4-U20) -> 0 | W10: =IF(V10=0,0,(V10*((LOG(V10))/LOG(2)))) -> 0 | Y10: =N10 -> 1122 | Z10: =COUNTIF(L7:L8,Y10) -> 0 | AA10: =Z10/(AB4-Z20) -> 0 | AB10: =IF(AA10=0,0,(AA10*((LOG(AA10))/LOG(2)))) -> 0 | AD10: =N10 -> 1122 | AE10: =COUNTIF(L8:L8,AD10) -> 0 | AF10: =AE10/(AG4-AE20) -> 0 | AG10: =IF(AF10=0,0,(AF10*((LOG(AF10))/LOG(2)))) -> 0 | AI10: =N10 -> 1122 | AJ10: =COUNTIF(L8:L9,AI10) -> 0 | AK10: =AJ10/(AL4-AJ20) -> 0 | AL10: =IF(AK10=0,0,(AK10*((LOG(AK10))/LOG(2)))) -> 0 | AN10: =N10 -> 1122 | AO10: =COUNTIF(L9:L9,AN10) -> 0 | AP10: =AO10/(AQ4-AO20) -> 0 | AQ10: =IF(AP10=0,0,(AP10*((LOG(AP10))/LOG(2)))) -> 0 | AS10: =N10 -> 1122 | AT10: =COUNTIF(L9:L10,AS10) -> 0 | AU10: =AT10/(AV4-AT20) -> 0 | AV10: =IF(AU10=0,0,(AU10*((LOG(AU10))/LOG(2)))) -> 0
N11: 1211 | O11: =COUNTIF($L$7:$L$500,N11) -> 0 | P11: =O11/$Q$4 -> 0 | Q11: =IF(P11=0,0,(P11*((LOG(P11))/LOG(2)))) -> 0 | T11: =N11 -> 1211 | U11: =COUNTIF(L7:L7,T11) -> 0 | V11: =U11/(W4-U20) -> 0 | W11: =IF(V11=0,0,(V11*((LOG(V11))/LOG(2)))) -> 0 | Y11: =N11 -> 1211 | Z11: =COUNTIF(L7:L8,Y11) -> 0 | AA11: =Z11/(AB4-Z20) -> 0 | AB11: =IF(AA11=0,0,(AA11*((LOG(AA11))/LOG(2)))) -> 0 | AD11: =N11 -> 1211 | AE11: =COUNTIF(L8:L8,AD11) -> 0 | AF11: =AE11/(AG4-AE20) -> 0 | AG11: =IF(AF11=0,0,(AF11*((LOG(AF11))/LOG(2)))) -> 0 | AI11: =N11 -> 1211 | AJ11: =COUNTIF(L8:L9,AI11) -> 0 | AK11: =AJ11/(AL4-AJ20) -> 0 | AL11: =IF(AK11=0,0,(AK11*((LOG(AK11))/LOG(2)))) -> 0 | AN11: =N11 -> 1211 | AO11: =COUNTIF(L9:L9,AN11) -> 0 | AP11: =AO11/(AQ4-AO20) -> 0 | AQ11: =IF(AP11=0,0,(AP11*((LOG(AP11))/LOG(2)))) -> 0 | AS11: =N11 -> 1211 | AT11: =COUNTIF(L9:L10,AS11) -> 0 | AU11: =AT11/(AV4-AT20) -> 0 | AV11: =IF(AU11=0,0,(AU11*((LOG(AU11))/LOG(2)))) -> 0
N12: 1212 | O12: =COUNTIF($L$7:$L$500,N12) -> 1 | P12: =O12/$Q$4 -> 0.3333333333 | Q12: =IF(P12=0,0,(P12*((LOG(P12))/LOG(2)))) -> -0.5283208336 | T12: =N12 -> 1212 | U12: =COUNTIF(L7:L7,T12) -> 0 | V12: =U12/(W4-U20) -> 0 | W12: =IF(V12=0,0,(V12*((LOG(V12))/LOG(2)))) -> 0 | Y12: =N12 -> 1212 | Z12: =COUNTIF(L7:L8,Y12) -> 1 | AA12: =Z12/(AB4-Z20) -> 0.5 | AB12: =IF(AA12=0,0,(AA12*((LOG(AA12))/LOG(2)))) -> -0.5 | AD12: =N12 -> 1212 | AE12: =COUNTIF(L8:L8,AD12) -> 1 | AF12: =AE12/(AG4-AE20) -> 1 | AG12: =IF(AF12=0,0,(AF12*((LOG(AF12))/LOG(2)))) -> 0 | AI12: =N12 -> 1212 | AJ12: =COUNTIF(L8:L9,AI12) -> 1 | AK12: =AJ12/(AL4-AJ20) -> 0.5 | AL12: =IF(AK12=0,0,(AK12*((LOG(AK12))/LOG(2)))) -> -0.5 | AN12: =N12 -> 1212 | AO12: =COUNTIF(L9:L9,AN12) -> 0 | AP12: =AO12/(AQ4-AO20) -> 0 | AQ12: =IF(AP12=0,0,(AP12*((LOG(AP12))/LOG(2)))) -> 0 | AS12: =N12 -> 1212 | AT12: =COUNTIF(L9:L10,AS12) -> 0 | AU12: =AT12/(AV4-AT20) -> 0 | AV12: =IF(AU12=0,0,(AU12*((LOG(AU12))/LOG(2)))) -> 0
N13: 1221 | O13: =COUNTIF($L$7:$L$500,N13) -> 0 | P13: =O13/$Q$4 -> 0 | Q13: =IF(P13=0,0,(P13*((LOG(P13))/LOG(2)))) -> 0 | T13: =N13 -> 1221 | U13: =COUNTIF(L7:L7,T13) -> 0 | V13: =U13/(W4-U20) -> 0 | W13: =IF(V13=0,0,(V13*((LOG(V13))/LOG(2)))) -> 0 | Y13: =N13 -> 1221 | Z13: =COUNTIF(L7:L8,Y13) -> 0 | AA13: =Z13/(AB4-Z20) -> 0 | AB13: =IF(AA13=0,0,(AA13*((LOG(AA13))/LOG(2)))) -> 0 | AD13: =N13 -> 1221 | AE13: =COUNTIF(L8:L8,AD13) -> 0 | AF13: =AE13/(AG4-AE20) -> 0 | AG13: =IF(AF13=0,0,(AF13*((LOG(AF13))/LOG(2)))) -> 0 | AI13: =N13 -> 1221 | AJ13: =COUNTIF(L8:L9,AI13) -> 0 | AK13: =AJ13/(AL4-AJ20) -> 0 | AL13: =IF(AK13=0,0,(AK13*((LOG(AK13))/LOG(2)))) -> 0 | AN13: =N13 -> 1221 | AO13: =COUNTIF(L9:L9,AN13) -> 0 | AP13: =AO13/(AQ4-AO20) -> 0 | AQ13: =IF(AP13=0,0,(AP13*((LOG(AP13))/LOG(2)))) -> 0 | AS13: =N13 -> 1221 | AT13: =COUNTIF(L9:L10,AS13) -> 0 | AU13: =AT13/(AV4-AT20) -> 0 | AV13: =IF(AU13=0,0,(AU13*((LOG(AU13))/LOG(2)))) -> 0
N14: 1222 | O14: =COUNTIF($L$7:$L$500,N14) -> 0 | P14: =O14/$Q$4 -> 0 | Q14: =IF(P14=0,0,(P14*((LOG(P14))/LOG(2)))) -> 0 | T14: =N14 -> 1222 | U14: =COUNTIF(L7:L7,T14) -> 0 | V14: =U14/(W4-U20) -> 0 | W14: =IF(V14=0,0,(V14*((LOG(V14))/LOG(2)))) -> 0 | Y14: =N14 -> 1222 | Z14: =COUNTIF(L7:L8,Y14) -> 0 | AA14: =Z14/(AB4-Z20) -> 0 | AB14: =IF(AA14=0,0,(AA14*((LOG(AA14))/LOG(2)))) -> 0 | AD14: =N14 -> 1222 | AE14: =COUNTIF(L8:L8,AD14) -> 0 | AF14: =AE14/(AG4-AE20) -> 0 | AG14: =IF(AF14=0,0,(AF14*((LOG(AF14))/LOG(2)))) -> 0 | AI14: =N14 -> 1222 | AJ14: =COUNTIF(L8:L9,AI14) -> 0 | AK14: =AJ14/(AL4-AJ20) -> 0 | AL14: =IF(AK14=0,0,(AK14*((LOG(AK14))/LOG(2)))) -> 0 | AN14: =N14 -> 1222 | AO14: =COUNTIF(L9:L9,AN14) -> 0 | AP14: =AO14/(AQ4-AO20) -> 0 | AQ14: =IF(AP14=0,0,(AP14*((LOG(AP14))/LOG(2)))) -> 0 | AS14: =N14 -> 1222 | AT14: =COUNTIF(L9:L10,AS14) -> 0 | AU14: =AT14/(AV4-AT20) -> 0 | AV14: =IF(AU14=0,0,(AU14*((LOG(AU14))/LOG(2)))) -> 0
N15: 2111 | O15: =COUNTIF($L$7:$L$500,N15) -> 0 | P15: =O15/$Q$4 -> 0 | Q15: =IF(P15=0,0,(P15*((LOG(P15))/LOG(2)))) -> 0 | T15: =N15 -> 2111 | U15: =COUNTIF(L7:L7,T15) -> 0 | V15: =U15/(W4-U20) -> 0 | W15: =IF(V15=0,0,(V15*((LOG(V15))/LOG(2)))) -> 0 | Y15: =N15 -> 2111 | Z15: =COUNTIF(L7:L8,Y15) -> 0 | AA15: =Z15/(AB4-Z20) -> 0 | AB15: =IF(AA15=0,0,(AA15*((LOG(AA15))/LOG(2)))) -> 0 | AD15: =N15 -> 2111 | AE15: =COUNTIF(L8:L8,AD15) -> 0 | AF15: =AE15/(AG4-AE20) -> 0 | AG15: =IF(AF15=0,0,(AF15*((LOG(AF15))/LOG(2)))) -> 0 | AI15: =N15 -> 2111 | AJ15: =COUNTIF(L8:L9,AI15) -> 0 | AK15: =AJ15/(AL4-AJ20) -> 0 | AL15: =IF(AK15=0,0,(AK15*((LOG(AK15))/LOG(2)))) -> 0 | AN15: =N15 -> 2111 | AO15: =COUNTIF(L9:L9,AN15) -> 0 | AP15: =AO15/(AQ4-AO20) -> 0 | AQ15: =IF(AP15=0,0,(AP15*((LOG(AP15))/LOG(2)))) -> 0 | AS15: =N15 -> 2111 | AT15: =COUNTIF(L9:L10,AS15) -> 0 | AU15: =AT15/(AV4-AT20) -> 0 | AV15: =IF(AU15=0,0,(AU15*((LOG(AU15))/LOG(2)))) -> 0
N16: 2112 | O16: =COUNTIF($L$7:$L$500,N16) -> 0 | P16: =O16/$Q$4 -> 0 | Q16: =IF(P16=0,0,(P16*((LOG(P16))/LOG(2)))) -> 0 | T16: =N16 -> 2112 | U16: =COUNTIF(L7:L7,T16) -> 0 | V16: =U16/(W4-U20) -> 0 | W16: =IF(V16=0,0,(V16*((LOG(V16))/LOG(2)))) -> 0 | Y16: =N16 -> 2112 | Z16: =COUNTIF(L7:L8,Y16) -> 0 | AA16: =Z16/(AB4-Z20) -> 0 | AB16: =IF(AA16=0,0,(AA16*((LOG(AA16))/LOG(2)))) -> 0 | AD16: =N16 -> 2112 | AE16: =COUNTIF(L8:L8,AD16) -> 0 | AF16: =AE16/(AG4-AE20) -> 0 | AG16: =IF(AF16=0,0,(AF16*((LOG(AF16))/LOG(2)))) -> 0 | AI16: =N16 -> 2112 | AJ16: =COUNTIF(L8:L9,AI16) -> 0 | AK16: =AJ16/(AL4-AJ20) -> 0 | AL16: =IF(AK16=0,0,(AK16*((LOG(AK16))/LOG(2)))) -> 0 | AN16: =N16 -> 2112 | AO16: =COUNTIF(L9:L9,AN16) -> 0 | AP16: =AO16/(AQ4-AO20) -> 0 | AQ16: =IF(AP16=0,0,(AP16*((LOG(AP16))/LOG(2)))) -> 0 | AS16: =N16 -> 2112 | AT16: =COUNTIF(L9:L10,AS16) -> 0 | AU16: =AT16/(AV4-AT20) -> 0 | AV16: =IF(AU16=0,0,(AU16*((LOG(AU16))/LOG(2)))) -> 0
N17: 2121 | O17: =COUNTIF($L$7:$L$500,N17) -> 0 | P17: =O17/$Q$4 -> 0 | Q17: =IF(P17=0,0,(P17*((LOG(P17))/LOG(2)))) -> 0 | T17: =N17 -> 2121 | U17: =COUNTIF(L7:L7,T17) -> 0 | V17: =U17/(W4-U20) -> 0 | W17: =IF(V17=0,0,(V17*((LOG(V17))/LOG(2)))) -> 0 | Y17: =N17 -> 2121 | Z17: =COUNTIF(L7:L8,Y17) -> 0 | AA17: =Z17/(AB4-Z20) -> 0 | AB17: =IF(AA17=0,0,(AA17*((LOG(AA17))/LOG(2)))) -> 0 | AD17: =N17 -> 2121 | AE17: =COUNTIF(L8:L8,AD17) -> 0 | AF17: =AE17/(AG4-AE20) -> 0 | AG17: =IF(AF17=0,0,(AF17*((LOG(AF17))/LOG(2)))) -> 0 | AI17: =N17 -> 2121 | AJ17: =COUNTIF(L8:L9,AI17) -> 0 | AK17: =AJ17/(AL4-AJ20) -> 0 | AL17: =IF(AK17=0,0,(AK17*((LOG(AK17))/LOG(2)))) -> 0 | AN17: =N17 -> 2121 | AO17: =COUNTIF(L9:L9,AN17) -> 0 | AP17: =AO17/(AQ4-AO20) -> 0 | AQ17: =IF(AP17=0,0,(AP17*((LOG(AP17))/LOG(2)))) -> 0 | AS17: =N17 -> 2121 | AT17: =COUNTIF(L9:L10,AS17) -> 0 | AU17: =AT17/(AV4-AT20) -> 0 | AV17: =IF(AU17=0,0,(AU17*((LOG(AU17))/LOG(2)))) -> 0
N18: 2122 | O18: =COUNTIF($L$7:$L$500,N18) -> 1 | P18: =O18/$Q$4 -> 0.3333333333 | Q18: =IF(P18=0,0,(P18*((LOG(P18))/LOG(2)))) -> -0.5283208336 | T18: =N18 -> 2122 | U18: =COUNTIF(L7:L7,T18) -> 1 | V18: =U18/(W4-U20) -> 1 | W18: =IF(V18=0,0,(V18*((LOG(V18))/LOG(2)))) -> 0 | Y18: =N18 -> 2122 | Z18: =COUNTIF(L7:L8,Y18) -> 1 | AA18: =Z18/(AB4-Z20) -> 0.5 | AB18: =IF(AA18=0,0,(AA18*((LOG(AA18))/LOG(2)))) -> -0.5 | AD18: =N18 -> 2122 | AE18: =COUNTIF(L8:L8,AD18) -> 0 | AF18: =AE18/(AG4-AE20) -> 0 | AG18: =IF(AF18=0,0,(AF18*((LOG(AF18))/LOG(2)))) -> 0 | AI18: =N18 -> 2122 | AJ18: =COUNTIF(L8:L9,AI18) -> 0 | AK18: =AJ18/(AL4-AJ20) -> 0 | AL18: =IF(AK18=0,0,(AK18*((LOG(AK18))/LOG(2)))) -> 0 | AN18: =N18 -> 2122 | AO18: =COUNTIF(L9:L9,AN18) -> 0 | AP18: =AO18/(AQ4-AO20) -> 0 | AQ18: =IF(AP18=0,0,(AP18*((LOG(AP18))/LOG(2)))) -> 0 | AS18: =N18 -> 2122 | AT18: =COUNTIF(L9:L10,AS18) -> 0 | AU18: =AT18/(AV4-AT20) -> 0 | AV18: =IF(AU18=0,0,(AU18*((LOG(AU18))/LOG(2)))) -> 0
N19: 2211 | O19: =COUNTIF($L$7:$L$500,N19) -> 0 | P19: =O19/$Q$4 -> 0 | Q19: =IF(P19=0,0,(P19*((LOG(P19))/LOG(2)))) -> 0 | T19: =N19 -> 2211 | U19: =COUNTIF(L7:L7,T19) -> 0 | V19: =U19/(W4-U20) -> 0 | W19: =IF(V19=0,0,(V19*((LOG(V19))/LOG(2)))) -> 0 | Y19: =N19 -> 2211 | Z19: =COUNTIF(L7:L8,Y19) -> 0 | AA19: =Z19/(AB4-Z20) -> 0 | AB19: =IF(AA19=0,0,(AA19*((LOG(AA19))/LOG(2)))) -> 0 | AD19: =N19 -> 2211 | AE19: =COUNTIF(L8:L8,AD19) -> 0 | AF19: =AE19/(AG4-AE20) -> 0 | AG19: =IF(AF19=0,0,(AF19*((LOG(AF19))/LOG(2)))) -> 0 | AI19: =N19 -> 2211 | AJ19: =COUNTIF(L8:L9,AI19) -> 0 | AK19: =AJ19/(AL4-AJ20) -> 0 | AL19: =IF(AK19=0,0,(AK19*((LOG(AK19))/LOG(2)))) -> 0 | AN19: =N19 -> 2211 | AO19: =COUNTIF(L9:L9,AN19) -> 0 | AP19: =AO19/(AQ4-AO20) -> 0 | AQ19: =IF(AP19=0,0,(AP19*((LOG(AP19))/LOG(2)))) -> 0 | AS19: =N19 -> 2211 | AT19: =COUNTIF(L9:L10,AS19) -> 0 | AU19: =AT19/(AV4-AT20) -> 0 | AV19: =IF(AU19=0,0,(AU19*((LOG(AU19))/LOG(2)))) -> 0
N20: 2212 | O20: =COUNTIF($L$7:$L$500,N20) -> 0 | P20: =O20/$Q$4 -> 0 | Q20: =IF(P20=0,0,(P20*((LOG(P20))/LOG(2)))) -> 0 | T20: =N20 -> 2212 | U20: =COUNTIF(L7:L7,T20) -> 0 | Y20: =N20 -> 2212 | Z20: =COUNTIF(L7:L8,Y20) -> 0 | AD20: =N20 -> 2212 | AE20: =COUNTIF(L8:L8,AD20) -> 0 | AI20: =N20 -> 2212 | AJ20: =COUNTIF(L8:L9,AI20) -> 0 | AN20: =N20 -> 2212 | AO20: =COUNTIF(L9:L9,AN20) -> 0 | AS20: =N20 -> 2212 | AT20: =COUNTIF(L9:L10,AS20) -> 0
N21: 2221 | O21: =COUNTIF($L$7:$L$500,N21) -> 0 | P21: =O21/$Q$4 -> 0 | Q21: =IF(P21=0,0,(P21*((LOG(P21))/LOG(2)))) -> 0 | T21: =N21 -> 2221 | U21: =COUNTIF(L7:L7,T21) -> 0 | V21: =U21/(W4-U20) -> 0 | W21: =IF(V21=0,0,(V21*((LOG(V21))/LOG(2)))) -> 0 | Y21: =N21 -> 2221 | Z21: =COUNTIF(L7:L8,Y21) -> 0 | AA21: =Z21/(AB4-Z20) -> 0 | AB21: =IF(AA21=0,0,(AA21*((LOG(AA21))/LOG(2)))) -> 0 | AD21: =N21 -> 2221 | AE21: =COUNTIF(L8:L8,AD21) -> 0 | AF21: =AE21/(AG4-AE20) -> 0 | AG21: =IF(AF21=0,0,(AF21*((LOG(AF21))/LOG(2)))) -> 0 | AI21: =N21 -> 2221 | AJ21: =COUNTIF(L8:L9,AI21) -> 0 | AK21: =AJ21/(AL4-AJ20) -> 0 | AL21: =IF(AK21=0,0,(AK21*((LOG(AK21))/LOG(2)))) -> 0 | AN21: =N21 -> 2221 | AO21: =COUNTIF(L9:L9,AN21) -> 0 | AP21: =AO21/(AQ4-AO20) -> 0 | AQ21: =IF(AP21=0,0,(AP21*((LOG(AP21))/LOG(2)))) -> 0 | AS21: =N21 -> 2221 | AT21: =COUNTIF(L9:L10,AS21) -> 0 | AU21: =AT21/(AV4-AT20) -> 0 | AV21: =IF(AU21=0,0,(AU21*((LOG(AU21))/LOG(2)))) -> 0
N22: 2222 | O22: =COUNTIF($L$7:$L$500,N22) -> 0 | P22: =O22/$Q$4 -> 0 | Q22: =IF(P22=0,0,(P22*((LOG(P22))/LOG(2)))) -> 0 | T22: =N22 -> 2222 | U22: =COUNTIF(L7:L7,T22) -> 0 | V22: =U22/(W4-U20) -> 0 | W22: =IF(V22=0,0,(V22*((LOG(V22))/LOG(2)))) -> 0 | Y22: =N22 -> 2222 | Z22: =COUNTIF(L7:L8,Y22) -> 0 | AA22: =Z22/(AB4-Z20) -> 0 | AB22: =IF(AA22=0,0,(AA22*((LOG(AA22))/LOG(2)))) -> 0 | AD22: =N22 -> 2222 | AE22: =COUNTIF(L8:L8,AD22) -> 0 | AF22: =AE22/(AG4-AE20) -> 0 | AG22: =IF(AF22=0,0,(AF22*((LOG(AF22))/LOG(2)))) -> 0 | AI22: =N22 -> 2222 | AJ22: =COUNTIF(L8:L9,AI22) -> 0 | AK22: =AJ22/(AL4-AJ20) -> 0 | AL22: =IF(AK22=0,0,(AK22*((LOG(AK22))/LOG(2)))) -> 0 | AN22: =N22 -> 2222 | AO22: =COUNTIF(L9:L9,AN22) -> 0 | AP22: =AO22/(AQ4-AO20) -> 0 | AQ22: =IF(AP22=0,0,(AP22*((LOG(AP22))/LOG(2)))) -> 0 | AS22: =N22 -> 2222 | AT22: =COUNTIF(L9:L10,AS22) -> 0 | AU22: =AT22/(AV4-AT20) -> 0 | AV22: =IF(AU22=0,0,(AU22*((LOG(AU22))/LOG(2)))) -> 0
P23: =SUM(P7:P22) -> 1 | Q23: =-SUM(Q7:Q22) -> 1.584962501 | V23: =SUM(V7:V22) -> 1 | W23: =-SUM(W7:W22) -> 0 | AA23: =SUM(AA7:AA22) -> 1 | AB23: =-SUM(AB7:AB22) -> 1 | AF23: =SUM(AF7:AF22) -> 1 | AG23: =-SUM(AG7:AG22) -> 0 | AK23: =SUM(AK7:AK22) -> 1 | AL23: =-SUM(AL7:AL22) -> 1 | AP23: =SUM(AP7:AP22) -> 1 | AQ23: =-SUM(AQ7:AQ22) -> 0 | AU23: =SUM(AU7:AU22) -> 1 | AV23: =-SUM(AV7:AV22) -> 0
P24: U= | Q24: =Q23/(LOG(Q4)/LOG(2)) -> 1 | V24: U1= | W24: =W23/(LOG(W4)/LOG(2)) ->  | AA24: U2= | AB24: =AB23/(LOG(AB4)/LOG(2)) -> 1 | AF24: U3= | AG24: =AG23/(LOG(AG4)/LOG(2)) ->  | AK24: U4= | AL24: =AL23/(LOG(AL4)/LOG(2)) -> 1 | AP24: U5= | AQ24: =AQ23/(LOG(AQ4)/LOG(2)) ->  | AU24: U6= | AV24: =AV23/(LOG(AV4)/LOG(2)) -> 
N27: Total Target Seq
N28: =COUNTIF(L7:L9,G3) -> 0 | P28: 1 | Q28: 0 | R28: 1 | S28: 0 | T28: 1 | U28: 0
P29: % of reinforcement given in 6 equal intervals based on number of trials
P30: %_1 | Q30: %_2 | R30: %_3 | S30: %_4 | T30: %_5 | U30: %_6
O31: target sequence | P31: =$G$3 -> 2212 | Q31: =$G$3 -> 2212 | R31: =$G$3 -> 2212 | S31: =$G$3 -> 2212 | T31: =$G$3 -> 2212 | U31: =$G$3 -> 2212
O32: total reinforcement | P32: =U20 -> 0 | Q32: =Z20 -> 0 | R32: =AE20 -> 0 | S32: =AJ20 -> 0 | T32: =AO20 -> 0 | U32: =AT20 -> 0
O33: % target
O34: CCRF
O35: % CCRf
O36: average response rate | P36: =H7/P28 -> 138 | Q36: =(H7-H7)/Q28 ->  | R36: =(H8-H7)/R28 -> 675 | S36: =(H8-H8)/S28 ->  | T36: =(H9-H8)/T28 -> 7953 | U36: =(H9-H9)/U28 -> 

Sheet !M114B5B.axt
A1: Report for:!M114B5B.axt
A2: Date: | B2: <date>
A3: Hen: | B3: <hen> | F3: Correct Sequence | G3: =Start!J2 -> 2212 | P3: Total Sequences in Data | Q3: =4994-COUNTBLANK(L7:L5000) -> 3 | V3: Total Sequences in Block Data | W3: =COUNTA(L7:L7) -> 1 | AA3: Total Sequences in Block Data | AB3: =COUNTA(L7:L8) -> 2 | AF3: Total Sequences in Block Data | AG3: =COUNTA(L8:L8) -> 1 | AK3: Total Sequences in Block Data | AL3: =COUNTA(L8:L9) -> 2 | AP3: Total Sequences in Block Data | AQ3: =COUNTA(L9:L9) -> 1 | AU3: Total Sequences in Block Data | AV3: =COUNTA(L9:L10) -> 1
P4: Total Sequences in Summary | Q4: =SUM(O7:O22) -> 2 | V4: Total Sequences in Block Summary | W4: =SUM(U7:U22) -> 1 | AA4: Total Sequences in Block Summary | AB4: =SUM(Z7:Z22) -> 2 | AF4: Total Sequences in Block Summary | AG4: =SUM(AE7:AE22) -> 1 | AK4: Total Sequences in Block Summary | AL4: =SUM(AJ7:AJ22) -> 1 | AP4: Total Sequences in Block Summary | AQ4: =SUM(AO7:AO22) -> 0 | AU4: Total Sequences in Block Summary | AV4: =SUM(AT7:AT22) -> 0
T5: Block 1 | Y5: Block 2 | AD5: Block 3 | AI5: Block 4 | AN5: Block 5 | AS5: Block 6
A6: Sequence Component 1 | B6: Time 1 | C6: Sequence Component 2 | D6: Time 2 | E6: Sequence Component 3 | F6: Time 3 | G6: Sequence Component 4 | H6: Time 4 | I6: Sequence Component 5 | J6: Time 5 | K6: Correct? 0=No 1=Yes | L6: Sequence | N6: Frequency | P6: Relative Frequency | Q6: Variability | T6: Frequency | V6: Relative Frequency | W6: Variability | Y6: Frequency | AA6: Relative Frequency | AB6: Variability | AD6: Frequency | AF6: Relative Frequency | AG6: Variability | AI6: Frequency | AK6: Relative Frequency | AL6: Variability | AN6: Frequency | AP6: Relative Frequency | AQ6: Variability | AS6: Frequency | AU6: Relative Frequency | AV6: Variability
A7: 21 | B7: 271 | C7: 12 | D7: 277 | E7: 13 | F7: 282 | G7: 23 | H7: 284 | K7: 0 | L7: 2112 | N7: 1111 | O7: =COUNTIF($L$7:$L$500,N7) -> 0 | P7: =O7/$Q$4 -> 0 | Q7: =IF(P7=0,0,(P7*((LOG(P7))/LOG(2)))) -> 0 | T7: =N7 -> 1111 | U7: =COUNTIF(L7:L7,T7) -> 0 | V7: =U7/(W4-U20) -> 0 | W7: =IF(V7=0,0,(V7*((LOG(V7))/LOG(2)))) -> 0 | Y7: =N7 -> 1111 | Z7: =COUNTIF(L7:L8,Y7) -> 0 | AA7: =Z7/(AB4-Z20) -> 0 | AB7: =IF(AA7=0,0,(AA7*((LOG(AA7))/LOG(2)))) -> 0 | AD7: =N7 -> 1111 | AE7: =COUNTIF(L8:L8,AD7) -> 0 | AF7: =AE7/(AG4-AE20) -> 0 | AG7: =IF(AF7=0,0,(AF7*((LOG(AF7))/LOG(2)))) -> 0 | AI7: =N7 -> 1111 | AJ7: =COUNTIF(L8:L9,AI7) -> 0 | AK7: =AJ7/(AL4-AJ20) -> 0 | AL7: =IF(AK7=0,0,(AK7*((LOG(AK7))/LOG(2)))) -> 0 | AN7: =N7 -> 1111 | AO7: =COUNTIF(L9:L9,AN7) -> 0 | AP7: =AO7/(AQ4-AO20) ->  | AQ7: =IF(AP7=0,0,(AP7*((LOG(AP7))/LOG(2)))) ->  | AS7: =N7 -> 1111 | AT7: =COUNTIF(L9:L10,AS7) -> 0 | AU7: =AT7/(AV4-AT20) ->  | AV7: =IF(AU7=0,0,(AU7*((LOG(AU7))/LOG(2)))) -> 
A8: 12 | B8: 382 | C8: 23 | D8: 385 | E8: 13 | F8: 389 | G8: 23 | H8: 392 | K8: 0 | L8: 1212 | N8: 1112 | O8: =COUNTIF($L$7:$L$500,N8) -> 0 | P8: =O8/$Q$4 -> 0 | Q8: =IF(P8=0,0,(P8*((LOG(P8))/LOG(2)))) -> 0 | T8: =N8 -> 1112 | U8: =COUNTIF(L7:L7,T8) -> 0 | V8: =U8/(W4-U20) -> 0 | W8: =IF(V8=0,0,(V8*((LOG(V8))/LOG(2)))) -> 0 | Y8: =N8 -> 1112 | Z8: =COUNTIF(L7:L8,Y8) -> 0 | AA8: =Z8/(AB4-Z20) -> 0 | AB8: =IF(AA8=0,0,(AA8*((LOG(AA8))/LOG(2)))) -> 0 | AD8: =N8 -> 1112 | AE8: =COUNTIF(L8:L8,AD8) -> 0 | AF8: =AE8/(AG4-AE20) -> 0 | AG8: =IF(AF8=0,0,(AF8*((LOG(AF8))/LOG(2)))) -> 0 | AI8: =N8 -> 1112 | AJ8: =COUNTIF(L8:L9,AI8) -> 0 | AK8: =AJ8/(AL4-AJ20) -> 0 | AL8: =IF(AK8=0,0,(AK8*((LOG(AK8))/LOG(2)))) -> 0 | AN8: =N8 -> 1112 | AO8: =COUNTIF(L9:L9,AN8) -> 0 | AP8: =AO8/(AQ4-AO20) ->  | AQ8: =IF(AP8=0,0,(AP8*((LOG(AP8))/LOG(2)))) ->  | AS8: =N8 -> 1112 | AT8: =COUNTIF(L9:L10,AS8) -> 0 | AU8: =AT8/(AV4-AT20) ->  | AV8: =IF(AU8=0,0,(AU8*((LOG(AU8))/LOG(2)))) -> 
A9: 21 | B9: 628 | C9: 12 | D9: 9678 | L9: 21 | N9: 1121 | O9: =COUNTIF($L$7:$L$500,N9) -> 0 | P9: =O9/$Q$4 -> 0 | Q9: =IF(P9=0,0,(P9*((LOG(P9))/LOG(2)))) -> 0 | T9: =N9 -> 1121 | U9: =COUNTIF(L7:L7,T9) -> 0 | V9: =U9/(W4-U20) -> 0 | W9: =IF(V9=0,0,(V9*((LOG(V9))/LOG(2)))) -> 0 | Y9: =N9 -> 1121 | Z9: =COUNTIF(L7:L8,Y9) -> 0 | AA9: =Z9/(AB4-Z20) -> 0 | AB9: =IF(AA9=0,0,(AA9*((LOG(AA9))/LOG(2)))) -> 0 | AD9: =N9 -> 1121 | AE9: =COUNTIF(L8:L8,AD9) -> 0 | AF9: =AE9/(AG4-AE20) -> 0 | AG9: =IF(AF9=0,0,(AF9*((LOG(AF9))/LOG(2)))) -> 0 | AI9: =N9 -> 1121 | AJ9: =COUNTIF(L8:L9,AI9) -> 0 | AK9: =AJ9/(AL4-AJ20) -> 0 | AL9: =IF(AK9=0,0,(AK9*((LOG(AK9))/LOG(2)))) -> 0 | AN9: =N9 -> 1121 | AO9: =COUNTIF(L9:L9,AN9) -> 0 | AP9: =AO9/(AQ4-AO20) ->  | AQ9: =IF(AP9=0,0,(AP9*((LOG(AP9))/LOG(2)))) ->  | AS9: =N9 -> 1121 | AT9: =COUNTIF(L9:L10,AS9) -> 0 | AU9: =AT9/(AV4-AT20) ->  | AV9: =IF(AU9=0,0,(AU9*((LOG(AU9))/LOG(2)))) -> 
N10: 1122 | O10: =COUNTIF($L$7:$L$500,N10) -> 0 | P10: =O10/$Q$4 -> 0 | Q10: =IF(P10=0,0,(P10*((LOG(P10))/LOG(2)))) -> 0 | T10: =N10 -> 1122 | U10: =COUNTIF(L7:L7,T10) -> 0 | V10: =U10/(W4-U20) -> 0 | W10: =IF(V10=0,0,(V10*((LOG(V10))/LOG(2)))) -> 0 | Y10: =N10 -> 1122 | Z10: =COUNTIF(L7:L8,Y10) -> 0 | AA10: =Z10/(AB4-Z20) -> 0 | AB10: =IF(AA10=0,0,(AA10*((LOG(AA10))/LOG(2)))) -> 0 | AD10: =N10 -> 1122 | AE10: =COUNTIF(L8:L8,AD10) -> 0 | AF10: =AE10/(AG4-AE20) -> 0 | AG10: =IF(AF10=0,0,(AF10*((LOG(AF10))/LOG(2)))) -> 0 | AI10: =N10 -> 1122 | AJ10: =COUNTIF(L8:L9,AI10) -> 0 | AK10: =AJ10/(AL4-AJ20) -> 0 | AL10: =IF(AK10=0,0,(AK10*((LOG(AK10))/LOG(2)))) -> 0 | AN10: =N10 -> 1122 | AO10: =COUNTIF(L9:L9,AN10) -> 0 | AP10: =AO10/(AQ4-AO20) ->  | AQ10: =IF(AP10=0,0,(AP10*((LOG(AP10))/LOG(2)))) ->  | AS10: =N10 -> 1122 | AT10: =COUNTIF(L9:L10,AS10) -> 0 | AU10: =AT10/(AV4-AT20) ->  | AV10: =IF(AU10=0,0,(AU10*((LOG(AU10))/LOG(2)))) -> 
N11: 1211 | O11: =COUNTIF($L$7:$L$500,N11) -> 0 | P11: =O11/$Q$4 -> 0 | Q11: =IF(P11=0,0,(P11*((LOG(P11))/LOG(2)))) -> 0 | T11: =N11 -> 1211 | U11: =COUNTIF(L7:L7,T11) -> 0 | V11: =U11/(W4-U20) -> 0 | W11: =IF(V11=0,0,(V11*((LOG(V11))/LOG(2)))) -> 0 | Y11: =N11 -> 1211 | Z11: =COUNTIF(L7:L8,Y11) -> 0 | AA11: =Z11/(AB4-Z20) -> 0 | AB11: =IF(AA11=0,0,(AA11*((LOG(AA11))/LOG(2)))) -> 0 | AD11: =N11 -> 1211 | AE11: =COUNTIF(L8:L8,AD11) -> 0 | AF11: =AE11/(AG4-AE20) -> 0 | AG11: =IF(AF11=0,0,(AF11*((LOG(AF11))/LOG(2)))) -> 0 | AI11: =N11 -> 1211 | AJ11: =COUNTIF(L8:L9,AI11) -> 0 | AK11: =AJ11/(AL4-AJ20) -> 0 | AL11: =IF(AK11=0,0,(AK11*((LOG(AK11))/LOG(2)))) -> 0 | AN11: =N11 -> 1211 | AO11: =COUNTIF(L9:L9,AN11) -> 0 | AP11: =AO11/(AQ4-AO20) ->  | AQ11: =IF(AP11=0,0,(AP11*((LOG(AP11))/LOG(2)))) ->  | AS11: =N11 -> 1211 | AT11: =COUNTIF(L9:L10,AS11) -> 0 | AU11: =AT11/(AV4-AT20) ->  | AV11: =IF(AU11=0,0,(AU11*((LOG(AU11))/LOG(2)))) -> 
N12: 1212 | O12: =COUNTIF($L$7:$L$500,N12) -> 1 | P12: =O12/$Q$4 -> 0.5 | Q12: =IF(P12=0,0,(P12*((LOG(P12))/LOG(2)))) -> -0.5 | T12: =N12 -> 1212 | U12: =COUNTIF(L7:L7,T12) -> 0 | V12: =U12/(W4-U20) -> 0 | W12: =IF(V12=0,0,(V12*((LOG(V12))/LOG(2)))) -> 0 | Y12: =N12 -> 1212 | Z12: =COUNTIF(L7:L8,Y12) -> 1 | AA12: =Z12/(AB4-Z20) -> 0.5 | AB12: =IF(AA12=0,0,(AA12*((LOG(AA12))/LOG(2)))) -> -0.5 | AD12: =N12 -> 1212 | AE12: =COUNTIF(L8:L8,AD12) -> 1 | AF12: =AE12/(AG4-AE20) -> 1 | AG12: =IF(AF12=0,0,(AF12*((LOG(AF12))/LOG(2)))) -> 0 | AI12: =N12 -> 1212 | AJ12: =COUNTIF(L8:L9,AI12) -> 1 | AK12: =AJ12/(AL4-AJ20) -> 1 | AL12: =IF(AK12=0,0,(AK12*((LOG(AK12))/LOG(2)))) -> 0 | AN12: =N12 -> 1212 | AO12: =COUNTIF(L9:L9,AN12) -> 0 | AP12: =AO12/(AQ4-AO20) ->  | AQ12: =IF(AP12=0,0,(AP12*((LOG(AP12))/LOG(2)))) ->  | AS12: =N12 -> 1212 | AT12: =COUNTIF(L9:L10,AS12) -> 0 | AU12: =AT12/(AV4-AT20) ->  | AV12: =IF(AU12=0,0,(AU12*((LOG(AU12))/LOG(2)))) -> 
N13: 1221 | O13: =COUNTIF($L$7:$L$500,N13) -> 0 | P13: =O13/$Q$4 -> 0 | Q13: =IF(P13=0,0,(P13*((LOG(P13))/LOG(2)))) -> 0 | T13: =N13 -> 1221 | U13: =COUNTIF(L7:L7,T13) -> 0 | V13: =U13/(W4-U20) -> 0 | W13: =IF(V13=0,0,(V13*((LOG(V13))/LOG(2)))) -> 0 | Y13: =N13 -> 1221 | Z13: =COUNTIF(L7:L8,Y13) -> 0 | AA13: =Z13/(AB4-Z20) -> 0 | AB13: =IF(AA13=0,0,(AA13*((LOG(AA13))/LOG(2)))) -> 0 | AD13: =N13 -> 1221 | AE13: =COUNTIF(L8:L8,AD13) -> 0 | AF13: =AE13/(AG4-AE20) -> 0 | AG13: =IF(AF13=0,0,(AF13*((LOG(AF13))/LOG(2)))) -> 0 | AI13: =N13 -> 1221 | AJ13: =COUNTIF(L8:L9,AI13) -> 0 | AK13: =AJ13/(AL4-AJ20) -> 0 | AL13: =IF(AK13=0,0,(AK13*((LOG(AK13))/LOG(2)))) -> 0 | AN13: =N13 -> 1221 | AO13: =COUNTIF(L9:L9,AN13) -> 0 | AP13: =AO13/(AQ4-AO20) ->  | AQ13: =IF(AP13=0,0,(AP13*((LOG(AP13))/LOG(2)))) ->  | AS13: =N13 -> 1221 | AT13: =COUNTIF(L9:L10,AS13) -> 0 | AU13: =AT13/(AV4-AT20) ->  | AV13: =IF(AU13=0,0,(AU13*((LOG(AU13))/LOG(2)))) -> 
N14: 1222 | O14: =COUNTIF($L$7:$L$500,N14) -> 0 | P14: =O14/$Q$4 -> 0 | Q14: =IF(P14=0,0,(P14*((LOG(P14))/LOG(2)))) -> 0 | T14: =N14 -> 1222 | U14: =COUNTIF(L7:L7,T14) -> 0 | V14: =U14/(W4-U20) -> 0 | W14: =IF(V14=0,0,(V14*((LOG(V14))/LOG(2)))) -> 0 | Y14: =N14 -> 1222 | Z14: =COUNTIF(L7:L8,Y14) -> 0 | AA14: =Z14/(AB4-Z20) -> 0 | AB14: =IF(AA14=0,0,(AA14*((LOG(AA14))/LOG(2)))) -> 0 | AD14: =N14 -> 1222 | AE14: =COUNTIF(L8:L8,AD14) -> 0 | AF14: =AE14/(AG4-AE20) -> 0 | AG14: =IF(AF14=0,0,(AF14*((LOG(AF14))/LOG(2)))) -> 0 | AI14: =N14 -> 1222 | AJ14: =COUNTIF(L8:L9,AI14) -> 0 | AK14: =AJ14/(AL4-AJ20) -> 0 | AL14: =IF(AK14=0,0,(AK14*((LOG(AK14))/LOG(2)))) -> 0 | AN14: =N14 -> 1222 | AO14: =COUNTIF(L9:L9,AN14) -> 0 | AP14: =AO14/(AQ4-AO20) ->  | AQ14: =IF(AP14=0,0,(AP14*((LOG(AP14))/LOG(2)))) ->  | AS14: =N14 -> 1222 | AT14: =COUNTIF(L9:L10,AS14) -> 0 | AU14: =AT14/(AV4-AT20) ->  | AV14: =IF(AU14=0,0,(AU14*((LOG(AU14))/LOG(2)))) -> 
N15: 2111 | O15: =COUNTIF($L$7:$L$500,N15) -> 0 | P15: =O15/$Q$4 -> 0 | Q15: =IF(P15=0,0,(P15*((LOG(P15))/LOG(2)))) -> 0 | T15: =N15 -> 2111 | U15: =COUNTIF(L7:L7,T15) -> 0 | V15: =U15/(W4-U20) -> 0 | W15: =IF(V15=0,0,(V15*((LOG(V15))/LOG(2)))) -> 0 | Y15: =N15 -> 2111 | Z15: =COUNTIF(L7:L8,Y15) -> 0 | AA15: =Z15/(AB4-Z20) -> 0 | AB15: =IF(AA15=0,0,(AA15*((LOG(AA15))/LOG(2)))) -> 0 | AD15: =N15 -> 2111 | AE15: =COUNTIF(L8:L8,AD15) -> 0 | AF15: =AE15/(AG4-AE20) -> 0 | AG15: =IF(AF15=0,0,(AF15*((LOG(AF15))/LOG(2)))) -> 0 | AI15: =N15 -> 2111 | AJ15: =COUNTIF(L8:L9,AI15) -> 0 | AK15: =AJ15/(AL4-AJ20) -> 0 | AL15: =IF(AK15=0,0,(AK15*((LOG(AK15))/LOG(2)))) -> 0 | AN15: =N15 -> 2111 | AO15: =COUNTIF(L9:L9,AN15) -> 0 | AP15: =AO15/(AQ4-AO20) ->  | AQ15: =IF(AP15=0,0,(AP15*((LOG(AP15))/LOG(2)))) ->  | AS15: =N15 -> 2111 | AT15: =COUNTIF(L9:L10,AS15) -> 0 | AU15: =AT15/(AV4-AT20) ->  | AV15: =IF(AU15=0,0,(AU15*((LOG(AU15))/LOG(2)))) -> 
N16: 2112 | O16: =COUNTIF($L$7:$L$500,N16) -> 1 | P16: =O16/$Q$4 -> 0.5 | Q16: =IF(P16=0,0,(P16*((LOG(P16))/LOG(2)))) -> -0.5 | T16: =N16 -> 2112 | U16: =COUNTIF(L7:L7,T16) -> 1 | V16: =U16/(W4-U20) -> 1 | W16: =IF(V16=0,0,(V16*((LOG(V16))/LOG(2)))) -> 0 | Y16: =N16 -> 2112 | Z16: =COUNTIF(L7:L8,Y16) -> 1 | AA16: =Z16/(AB4-Z20) -> 0.5 | AB16: =IF(AA16=0,0,(AA16*((LOG(AA16))/LOG(2)))) -> -0.5 | AD16: =N16 -> 2112 | AE16: =COUNTIF(L8:L8,AD16) -> 0 | AF16: =AE16/(AG4-AE20) -> 0 | AG16: =IF(AF16=0,0,(AF16*((LOG(AF16))/LOG(2)))) -> 0 | AI16: =N16 -> 2112 | AJ16: =COUNTIF(L8:L9,AI16) -> 0 | AK16: =AJ16/(AL4-AJ20) -> 0 | AL16: =IF(AK16=0,0,(AK16*((LOG(AK16))/LOG(2)))) -> 0 | AN16: =N16 -> 2112 | AO16: =COUNTIF(L9:L9,AN16) -> 0 | AP16: =AO16/(AQ4-AO20) ->  | AQ16: =IF(AP16=0,0,(AP16*((LOG(AP16))/LOG(2)))) ->  | AS16: =N16 -> 2112 | AT16: =COUNTIF(L9:L10,AS16) -> 0 | AU16: =AT16/(AV4-AT20) ->  | AV16: =IF(AU16=0,0,(AU16*((LOG(AU16))/LOG(2)))) -> 
N17: 2121 | O17: =COUNTIF($L$7:$L$500,N17) -> 0 | P17: =O17/$Q$4 -> 0 | Q17: =IF(P17=0,0,(P17*((LOG(P17))/LOG(2)))) -> 0 | T17: =N17 -> 2121 | U17: =COUNTIF(L7:L7,T17) -> 0 | V17: =U17/(W4-U20) -> 0 | W17: =IF(V17=0,0,(V17*((LOG(V17))/LOG(2)))) -> 0 | Y17: =N17 -> 2121 | Z17: =COUNTIF(L7:L8,Y17) -> 0 | AA17: =Z17/(AB4-Z20) -> 0 | AB17: =IF(AA17=0,0,(AA17*((LOG(AA17))/LOG(2)))) -> 0 | AD17: =N17 -> 2121 | AE17: =COUNTIF(L8:L8,AD17) -> 0 | AF17: =AE17/(AG4-AE20) -> 0 | AG17: =IF(AF17=0,0,(AF17*((LOG(AF17))/LOG(2)))) -> 0 | AI17: =N17 -> 2121 | AJ17: =COUNTIF(L8:L9,AI17) -> 0 | AK17: =AJ17/(AL4-AJ20) -> 0 | AL17: =IF(AK17=0,0,(AK17*((LOG(AK17))/LOG(2)))) -> 0 | AN17: =N17 -> 2121 | AO17: =COUNTIF(L9:L9,AN17) -> 0 | AP17: =AO17/(AQ4-AO20) ->  | AQ17: =IF(AP17=0,0,(AP17*((LOG(AP17))/LOG(2)))) ->  | AS17: =N17 -> 2121 | AT17: =COUNTIF(L9:L10,AS17) -> 0 | AU17: =AT17/(AV4-AT20) ->  | AV17: =IF(AU17=0,0,(AU17*((LOG(AU17))/LOG(2)))) -> 
N18: 2122 | O18: =COUNTIF($L$7:$L$500,N18) -> 0 | P18: =O18/$Q$4 -> 0 | Q18: =IF(P18=0,0,(P18*((LOG(P18))/LOG(2)))) -> 0 | T18: =N18 -> 2122 | U18: =COUNTIF(L7:L7,T18) -> 0 | V18: =U18/(W4-U20) -> 0 | W18: =IF(V18=0,0,(V18*((LOG(V18))/LOG(2)))) -> 0 | Y18: =N18 -> 2122 | Z18: =COUNTIF(L7:L8,Y18) -> 0 | AA18: =Z18/(AB4-Z20) -> 0 | AB18: =IF(AA18=0,0,(AA18*((LOG(AA18))/LOG(2)))) -> 0 | AD18: =N18 -> 2122 | AE18: =COUNTIF(L8:L8,AD18) -> 0 | AF18: =AE18/(AG4-AE20) -> 0 | AG18: =IF(AF18=0,0,(AF18*((LOG(AF18))/LOG(2)))) -> 0 | AI18: =N18 -> 2122 | AJ18: =COUNTIF(L8:L9,AI18) -> 0 | AK18: =AJ18/(AL4-AJ20) -> 0 | AL18: =IF(AK18=0,0,(AK18*((LOG(AK18))/LOG(2)))) -> 0 | AN18: =N18 -> 2122 | AO18: =COUNTIF(L9:L9,AN18) -> 0 | AP18: =AO18/(AQ4-AO20) ->  | AQ18: =IF(AP18=0,0,(AP18*((LOG(AP18))/LOG(2)))) ->  | AS18: =N18 -> 2122 | AT18: =COUNTIF(L9:L10,AS18) -> 0 | AU18: =AT18/(AV4-AT20) ->  | AV18: =IF(AU18=0,0,(AU18*((LOG(AU18))/LOG(2)))) -> 
N19: 2211 | O19: =COUNTIF($L$7:$L$500,N19) -> 0 | P19: =O19/$Q$4 -> 0 | Q19: =IF(P19=0,0,(P19*((LOG(P19))/LOG(2)))) -> 0 | T19: =N19 -> 2211 | U19: =COUNTIF(L7:L7,T19) -> 0 | V19: =U19/(W4-U20) -> 0 | W19: =IF(V19=0,0,(V19*((LOG(V19))/LOG(2)))) -> 0 | Y19: =N19 -> 2211 | Z19: =COUNTIF(L7:L8,Y19) -> 0 | AA19: =Z19/(AB4-Z20) -> 0 | AB19: =IF(AA19=0,0,(AA19*((LOG(AA19))/LOG(2)))) -> 0 | AD19: =N19 -> 2211 | AE19: =COUNTIF(L8:L8,AD19) -> 0 | AF19: =AE19/(AG4-AE20) -> 0 | AG19: =IF(AF19=0,0,(AF19*((LOG(AF19))/LOG(2)))) -> 0 | AI19: =N19 -> 2211 | AJ19: =COUNTIF(L8:L9,AI19) -> 0 | AK19: =AJ19/(AL4-AJ20) -> 0 | AL19: =IF(AK19=0,0,(AK19*((LOG(AK19))/LOG(2)))) -> 0 | AN19: =N19 -> 2211 | AO19: =COUNTIF(L9:L9,AN19) -> 0 | AP19: =AO19/(AQ4-AO20) ->  | AQ19: =IF(AP19=0,0,(AP19*((LOG(AP19))/LOG(2)))) ->  | AS19: =N19 -> 2211 | AT19: =COUNTIF(L9:L10,AS19) -> 0 | AU19: =AT19/(AV4-AT20) ->  | AV19: =IF(AU19=0,0,(AU19*((LOG(AU19))/LOG(2)))) -> 
N20: 2212 | O20: =COUNTIF($L$7:$L$500,N20) -> 0 | P20: =O20/$Q$4 -> 0 | Q20: =IF(P20=0,0,(P20*((LOG(P20))/LOG(2)))) -> 0 | T20: =N20 -> 2212 | U20: =COUNTIF(L7:L7,T20) -> 0 | Y20: =N20 -> 2212 | Z20: =COUNTIF(L7:L8,Y20) -> 0 | AD20: =N20 -> 2212 | AE20: =COUNTIF(L8:L8,AD20) -> 0 | AI20: =N20 -> 2212 | AJ20: =COUNTIF(L8:L9,AI20) -> 0 | AN20: =N20 -> 2212 | AO20: =COUNTIF(L9:L9,AN20) -> 0 | AS20: =N20 -> 2212 | AT20: =COUNTIF(L9:L10,AS20) -> 0
N21: 2221 | O21: =COUNTIF($L$7:$L$500,N21) -> 0 | P21: =O21/$Q$4 -> 0 | Q21: =IF(P21=0,0,(P21*((LOG(P21))/LOG(2)))) -> 0 | T21: =N21 -> 2221 | U21: =COUNTIF(L7:L7,T21) -> 0 | V21: =U21/(W4-U20) -> 0 | W21: =IF(V21=0,0,(V21*((LOG(V21))/LOG(2)))) -> 0 | Y21: =N21 -> 2221 | Z21: =COUNTIF(L7:L8,Y21) -> 0 | AA21: =Z21/(AB4-Z20) -> 0 | AB21: =IF(AA21=0,0,(AA21*((LOG(AA21))/LOG(2)))) -> 0 | AD21: =N21 -> 2221 | AE21: =COUNTIF(L8:L8,AD21) -> 0 | AF21: =AE21/(AG4-AE20) -> 0 | AG21: =IF(AF21=0,0,(AF21*((LOG(AF21))/LOG(2)))) -> 0 | AI21: =N21 -> 2221 | AJ21: =COUNTIF(L8:L9,AI21) -> 0 | AK21: =AJ21/(AL4-AJ20) -> 0 | AL21: =IF(AK21=0,0,(AK21*((LOG(AK21))/LOG(2)))) -> 0 | AN21: =N21 -> 2221 | AO21: =COUNTIF(L9:L9,AN21) -> 0 | AP21: =AO21/(AQ4-AO20) ->  | AQ21: =IF(AP21=0,0,(AP21*((LOG(AP21))/LOG(2)))) ->  | AS21: =N21 -> 2221 | AT21: =COUNTIF(L9:L10,AS21) -> 0 | AU21: =AT21/(AV4-AT20) ->  | AV21: =IF(AU21=0,0,(AU21*((LOG(AU21))/LOG(2)))) -> 
N22: 2222 | O22: =COUNTIF($L$7:$L$500,N22) -> 0 | P22: =O22/$Q$4 -> 0 | Q22: =IF(P22=0,0,(P22*((LOG(P22))/LOG(2)))) -> 0 | T22: =N22 -> 2222 | U22: =COUNTIF(L7:L7,T22) -> 0 | V22: =U22/(W4-U20) -> 0 | W22: =IF(V22=0,0,(V22*((LOG(V22))/LOG(2)))) -> 0 | Y22: =N22 -> 2222 | Z22: =COUNTIF(L7:L8,Y22) -> 0 | AA22: =Z22/(AB4-Z20) -> 0 | AB22: =IF(AA22=0,0,(AA22*((LOG(AA22))/LOG(2)))) -> 0 | AD22: =N22 -> 2222 | AE22: =COUNTIF(L8:L8,AD22) -> 0 | AF22: =AE22/(AG4-AE20) -> 0 | AG22: =IF(AF22=0,0,(AF22*((LOG(AF22))/LOG(2)))) -> 0 | AI22: =N22 -> 2222 | AJ22: =COUNTIF(L8:L9,AI22) -> 0 | AK22: =AJ22/(AL4-AJ20) -> 0 | AL22: =IF(AK22=0,0,(AK22*((LOG(AK22))/LOG(2)))) -> 0 | AN22: =N22 -> 2222 | AO22: =COUNTIF(L9:L9,AN22) -> 0 | AP22: =AO22/(AQ4-AO20) ->  | AQ22: =IF(AP22=0,0,(AP22*((LOG(AP22))/LOG(2)))) ->  | AS22: =N22 -> 2222 | AT22: =COUNTIF(L9:L10,AS22) -> 0 | AU22: =AT22/(AV4-AT20) ->  | AV22: =IF(AU22=0,0,(AU22*((LOG(AU22))/LOG(2)))) -> 
P23: =SUM(P7:P22) -> 1 | Q23: =-SUM(Q7:Q22) -> 1 | V23: =SUM(V7:V22) -> 1 | W23: =-SUM(W7:W22) -> 0 | AA23: =SUM(AA7:AA22) -> 1 | AB23: =-SUM(AB7:AB22) -> 1 | AF23: =SUM(AF7:AF22) -> 1 | AG23: =-SUM(AG7:AG22) -> 0 | AK23: =SUM(AK7:AK22) -> 1 | AL23: =-SUM(AL7:AL22) -> 0 | AP23: =SUM(AP7:AP22) ->  | AQ23: =-SUM(AQ7:AQ22) ->  | AU23: =SUM(AU7:AU22) ->  | AV23: =-SUM(AV7:AV22) -> 
P24: U= | Q24: =Q23/(LOG(Q4)/LOG(2)) -> 1 | V24: U1= | W24: =W23/(LOG(W4)/LOG(2)) ->  | AA24: U2= | AB24: =AB23/(LOG(AB4)/LOG(2)) -> 1 | AF24: U3= | AG24: =AG23/(LOG(AG4)/LOG(2)) ->  | AK24: U4= | AL24: =AL23/(LOG(AL4)/LOG(2)) ->  | AP24: U5= | AQ24: =AQ23/(LOG(AQ4)/LOG(2)) ->  | AU24: U6= | AV24: =AV23/(LOG(AV4)/LOG(2)) -> 
N27: Total Target Seq
N28: =COUNTIF(L7:L9,G3) -> 0 | P28: 1 | Q28: 0 | R28: 1 | S28: 0 | T28: 1 | U28: 0
P29: % of reinforcement given in 6 equal intervals based on number of trials
P30: %_1 | Q30: %_2 | R30: %_3 | S30: %_4 | T30: %_5 | U30: %_6
O31: target sequence | P31: =$G$3 -> 2212 | Q31: =$G$3 -> 2212 | R31: =$G$3 -> 2212 | S31: =$G$3 -> 2212 | T31: =$G$3 -> 2212 | U31: =$G$3 -> 2212
O32: total reinforcement | P32: =U20 -> 0 | Q32: =Z20 -> 0 | R32: =AE20 -> 0 | S32: =AJ20 -> 0 | T32: =AO20 -> 0 | U32: =AT20 -> 0
O33: % target
O34: CCRF
O35: % CCRf
O36: average response rate | P36: =H7/P28 -> 284 | Q36: =(H7-H7)/Q28 ->  | R36: =(H8-H7)/R28 -> 108 | S36: =(H8-H8)/S28 ->  | T36: =(H9-H8)/T28 -> -392 | U36: =(H9-H9)/U28 -> 

Sheet !M115A3B.axt
A1: Report for:!M115A3B.axt
A2: Date: | B2: <date>
A3: Hen: | B3: <hen> | F3: Correct Sequence | G3: =Start!J2 -> 2212 | P3: Total Sequences in Data | Q3: =4994-COUNTBLANK(L7:L5000) -> 3 | V3: Total Sequences in Block Data | W3: =COUNTA(L7:L7) -> 1 | AA3: Total Sequences in Block Data | AB3: =COUNTA(L7:L8) -> 2 | AF3: Total Sequences in Block Data | AG3: =COUNTA(L8:L8) -> 1 | AK3: Total Sequences in Block Data | AL3: =COUNTA(L8:L9) -> 2 | AP3: Total Sequences in Block Data | AQ3: =COUNTA(L9:L9) -> 1 | AU3: Total Sequences in Block Data | AV3: =COUNTA(L9:L10) -> 1
P4: Total Sequences in Summary | Q4: =SUM(O7:O22) -> 3 | V4: Total Sequences in Block Summary | W4: =SUM(U7:U22) -> 1 | AA4: Total Sequences in Block Summary | AB4: =SUM(Z7:Z22) -> 2 | AF4: Total Sequences in Block Summary | AG4: =SUM(AE7:AE22) -> 1 | AK4: Total Sequences in Block Summary | AL4: =SUM(AJ7:AJ22) -> 2 | AP4: Total Sequences in Block Summary | AQ4: =SUM(AO7:AO22) -> 1 | AU4: Total Sequences in Block Summary | AV4: =SUM(AT7:AT22) -> 1
T5: Block 1 | Y5: Block 2 | AD5: Block 3 | AI5: Block 4 | AN5: Block 5 | AS5: Block 6
A6: Sequence Component 1 | B6: Time 1 | C6: Sequence Component 2 | D6: Time 2 | E6: Sequence Component 3 | F6: Time 3 | G6: Sequence Component 4 | H6: Time 4 | I6: Sequence Component 5 | J6: Time 5 | K6: Correct? 0=No 1=Yes | L6: Sequence | N6: Frequency | P6: Relative Frequency | Q6: Variability | T6: Frequency | V6: Relative Frequency | W6: Variability | Y6: Frequency | AA6: Relative Frequency | AB6: Variability | AD6: Frequency | AF6: Relative Frequency | AG6: Variability | AI6: Frequency | AK6: Relative Frequency | AL6: Variability | AN6: Frequency | AP6: Relative Frequency | AQ6: Variability | AS6: Frequency | AU6: Relative Frequency | AV6: Variability
A7: 12 | B7: 119 | C7: 14 | D7: 127 | E7: 24 | F7: 134 | G7: 14 | H7: 162 | K7: 0 | L7: 1121 | N7: 1111 | O7: =COUNTIF($L$7:$L$500,N7) -> 0 | P7: =O7/$Q$4 -> 0 | Q7: =IF(P7=0,0,(P7*((LOG(P7))/LOG(2)))) -> 0 | T7: =N7 -> 1111 | U7: =COUNTIF(L7:L7,T7) -> 0 | V7: =U7/(W4-U20) -> 0 | W7: =IF(V7=0,0,(V7*((LOG(V7))/LOG(2)))) -> 0 | Y7: =N7 -> 1111 | Z7: =COUNTIF(L7:L8,Y7) -> 0 | AA7: =Z7/(AB4-Z20) -> 0 | AB7: =IF(AA7=0,0,(AA7*((LOG(AA7))/LOG(2)))) -> 0 | AD7: =N7 -> 1111 | AE7: =COUNTIF(L8:L8,AD7) -> 0 | AF7: =AE7/(AG4-AE20) -> 0 | AG7: =IF(AF7=0,0,(AF7*((LOG(AF7))/LOG(2)))) -> 0 | AI7: =N7 -> 1111 | AJ7: =COUNTIF(L8:L9,AI7) -> 0 | AK7: =AJ7/(AL4-AJ20) -> 0 | AL7: =IF(AK7=0,0,(AK7*((LOG(AK7))/LOG(2)))) -> 0 | AN7: =N7 -> 1111 | AO7: =COUNTIF(L9:L9,AN7) -> 0 | AP7: =AO7/(AQ4-AO20) -> 0 | AQ7: =IF(AP7=0,0,(AP7*((LOG(AP7))/LOG(2)))) -> 0 | AS7: =N7 -> 1111 | AT7: =COUNTIF(L9:L10,AS7) -> 0 | AU7: =AT7/(AV4-AT20) -> 0 | AV7: =IF(AU7=0,0,(AU7*((LOG(AU7))/LOG(2)))) -> 0
A8: 12 | B8: 575 | C8: 23 | D8: 581 | E8: 24 | F8: 591 | G8: 14 | H8: 608 | K8: 0 | L8: 1221 | N8: 1112 | O8: =COUNTIF($L$7:$L$500,N8) -> 0 | P8: =O8/$Q$4 -> 0 | Q8: =IF(P8=0,0,(P8*((LOG(P8))/LOG(2)))) -> 0 | T8: =N8 -> 1112 | U8: =COUNTIF(L7:L7,T8) -> 0 | V8: =U8/(W4-U20) -> 0 | W8: =IF(V8=0,0,(V8*((LOG(V8))/LOG(2)))) -> 0 | Y8: =N8 -> 1112 | Z8: =COUNTIF(L7:L8,Y8) -> 0 | AA8: =Z8/(AB4-Z20) -> 0 | AB8: =IF(AA8=0,0,(AA8*((LOG(AA8))/LOG(2)))) -> 0 | AD8: =N8 -> 1112 | AE8: =COUNTIF(L8:L8,AD8) -> 0 | AF8: =AE8/(AG4-AE20) -> 0 | AG8: =IF(AF8=0,0,(AF8*((LOG(AF8))/LOG(2)))) -> 0 | AI8: =N8 -> 1112 | AJ8: =COUNTIF(L8:L9,AI8) -> 0 | AK8: =AJ8/(AL4-AJ20) -> 0 | AL8: =IF(AK8=0,0,(AK8*((LOG(AK8))/LOG(2)))) -> 0 | AN8: =N8 -> 1112 | AO8: =COUNTIF(L9:L9,AN8) -> 0 | AP8: =AO8/(AQ4-AO20) -> 0 | AQ8: =IF(AP8=0,0,(AP8*((LOG(AP8))/LOG(2)))) -> 0 | AS8: =N8 -> 1112 | AT8: =COUNTIF(L9:L10,AS8) -> 0 | AU8: =AT8/(AV4-AT20) -> 0 | AV8: =IF(AU8=0,0,(AU8*((LOG(AU8))/LOG(2)))) -> 0
A9: 12 | B9: 809 | C9: 14 | D9: 833 | E9: 24 | F9: 840 | G9: 23 | H9: 854 | K9: 0 | L9: 1122 | N9: 1121 | O9: =COUNTIF($L$7:$L$500,N9) -> 1 | P9: =O9/$Q$4 -> 0.3333333333 | Q9: =IF(P9=0,0,(P9*((LOG(P9))/LOG(2)))) -> -0.5283208336 | T9: =N9 -> 1121 | U9: =COUNTIF(L7:L7,T9) -> 1 | V9: =U9/(W4-U20) -> 1 | W9: =IF(V9=0,0,(V9*((LOG(V9))/LOG(2)))) -> 0 | Y9: =N9 -> 1121 | Z9: =COUNTIF(L7:L8,Y9) -> 1 | AA9: =Z9/(AB4-Z20) -> 0.5 | AB9: =IF(AA9=0,0,(AA9*((LOG(AA9))/LOG(2)))) -> -0.5 | AD9: =N9 -> 1121 | AE9: =COUNTIF(L8:L8,AD9) -> 0 | AF9: =AE9/(AG4-AE20) -> 0 | AG9: =IF(AF9=0,0,(AF9*((LOG(AF9))/LOG(2)))) -> 0 | AI9: =N9 -> 1121 | AJ9: =COUNTIF(L8:L9,AI9) -> 0 | AK9: =AJ9/(AL4-AJ20) -> 0 | AL9: =IF(AK9=0,0,(AK9*((LOG(AK9))/LOG(2)))) -> 0 | AN9: =N9 -> 1121 | AO9: =COUNTIF(L9:L9,AN9) -> 0 | AP9: =AO9/(AQ4-AO20) -> 0 | AQ9: =IF(AP9=0,0,(AP9*((LOG(AP9))/LOG(2)))) -> 0 | AS9: =N9 -> 1121 | AT9: =COUNTIF(L9:L10,AS9) -> 0 | AU9: =AT9/(AV4-AT20) -> 0 | AV9: =IF(AU9=0,0,(AU9*((LOG(AU9))/LOG(2)))) -> 0
N10: 1122 | O10: =COUNTIF($L$7:$L$500,N10) -> 1 | P10: =O10/$Q$4 -> 0.3333333333 | Q10: =IF(P10=0,0,(P10*((LOG(P10))/LOG(2)))) -> -0.5283208336 | T10: =N10 -> 1122 | U10: =COUNTIF(L7:L7,T10) -> 0 | V10: =U10/(W4-U20) -> 0 | W10: =IF(V10=0,0,(V10*((LOG(V10))/LOG(2)))) -> 0 | Y10: =N10 -> 1122 | Z10: =COUNTIF(L7:L8,Y10) -> 0 | AA10: =Z10/(AB4-Z20) -> 0 | AB10: =IF(AA10=0,0,(AA10*((LOG(AA10))/LOG(2)))) -> 0 | AD10: =N10 -> 1122 | AE10: =COUNTIF(L8:L8,AD10) -> 0 | AF10: =AE10/(AG4-AE20) -> 0 | AG10: =IF(AF10=0,0,(AF10*((LOG(AF10))/LOG(2)))) -> 0 | AI10: =N10 -> 1122 | AJ10: =COUNTIF(L8:L9,AI10) -> 1 | AK10: =AJ10/(AL4-AJ20) -> 0.5 | AL10: =IF(AK10=0,0,(AK10*((LOG(AK10))/LOG(2)))) -> -0.5 | AN10: =N10 -> 1122 | AO10: =COUNTIF(L9:L9,AN10) -> 1 | AP10: =AO10/(AQ4-AO20) -> 1 | AQ10: =IF(AP10=0,0,(AP10*((LOG(AP10))/LOG(2)))) -> 0 | AS10: =N10 -> 1122 | AT10: =COUNTIF(L9:L10,AS10) -> 1 | AU10: =AT10/(AV4-AT20) -> 1 | AV10: =IF(AU10=0,0,(AU10*((LOG(AU10))/LOG(2)))) -> 0
N11: 1211 | O11: =COUNTIF($L$7:$L$500,N11) -> 0 | P11: =O11/$Q$4 -> 0 | Q11: =IF(P11=0,0,(P11*((LOG(P11))/LOG(2)))) -> 0 | T11: =N11 -> 1211 | U11: =COUNTIF(L7:L7,T11) -> 0 | V11: =U11/(W4-U20) -> 0 | W11: =IF(V11=0,0,(V11*((LOG(V11))/LOG(2)))) -> 0 | Y11: =N11 -> 1211 | Z11: =COUNTIF(L7:L8,Y11) -> 0 | AA11: =Z11/(AB4-Z20) -> 0 | AB11: =IF(AA11=0,0,(AA11*((LOG(AA11))/LOG(2)))) -> 0 | AD11: =N11 -> 1211 | AE11: =COUNTIF(L8:L8,AD11) -> 0 | AF11: =AE11/(AG4-AE20) -> 0 | AG11: =IF(AF11=0,0,(AF11*((LOG(AF11))/LOG(2)))) -> 0 | AI11: =N11 -> 1211 | AJ11: =COUNTIF(L8:L9,AI11) -> 0 | AK11: =AJ11/(AL4-AJ20) -> 0 | AL11: =IF(AK11=0,0,(AK11*((LOG(AK11))/LOG(2)))) -> 0 | AN11: =N11 -> 1211 | AO11: =COUNTIF(L9:L9,AN11) -> 0 | AP11: =AO11/(AQ4-AO20) -> 0 | AQ11: =IF(AP11=0,0,(AP11*((LOG(AP11))/LOG(2)))) -> 0 | AS11: =N11 -> 1211 | AT11: =COUNTIF(L9:L10,AS11) -> 0 | AU11: =AT11/(AV4-AT20) -> 0 | AV11: =IF(AU11=0,0,(AU11*((LOG(AU11))/LOG(2)))) -> 0
N12: 1212 | O12: =COUNTIF($L$7:$L$500,N12) -> 0 | P12: =O12/$Q$4 -> 0 | Q12: =IF(P12=0,0,(P12*((LOG(P12))/LOG(2)))) -> 0 | T12: =N12 -> 1212 | U12: =COUNTIF(L7:L7,T12) -> 0 | V12: =U12/(W4-U20) -> 0 | W12: =IF(V12=0,0,(V12*((LOG(V12))/LOG(2)))) -> 0 | Y12: =N12 -> 1212 | Z12: =COUNTIF(L7:L8,Y12) -> 0 | AA12: =Z12/(AB4-Z20) -> 0 | AB12: =IF(AA12=0,0,(AA12*((LOG(AA12))/LOG(2)))) -> 0 | AD12: =N12 -> 1212 | AE12: =COUNTIF(L8:L8,AD12) -> 0 | AF12: =AE12/(AG4-AE20) -> 0 | AG12: =IF(AF12=0,0,(AF12*((LOG(AF12))/LOG(2)))) -> 0 | AI12: =N12 -> 1212 | AJ12: =COUNTIF(L8:L9,AI12) -> 0 | AK12: =AJ12/(AL4-AJ20) -> 0 | AL12: =IF(AK12=0,0,(AK12*((LOG(AK12))/LOG(2)))) -> 0 | AN12: =N12 -> 1212 | AO12: =COUNTIF(L9:L9,AN12) -> 0 | AP12: =AO12/(AQ4-AO20) -> 0 | AQ12: =IF(AP12=0,0,(AP12*((LOG(AP12))/LOG(2)))) -> 0 | AS12: =N12 -> 1212 | AT12: =COUNTIF(L9:L10,AS12) -> 0 | AU12: =AT12/(AV4-AT20) -> 0 | AV12: =IF(AU12=0,0,(AU12*((LOG(AU12))/LOG(2)))) -> 0
N13: 1221 | O13: =COUNTIF($L$7:$L$500,N13) -> 1 | P13: =O13/$Q$4 -> 0.3333333333 | Q13: =IF(P13=0,0,(P13*((LOG(P13))/LOG(2)))) -> -0.5283208336 | T13: =N13 -> 1221 | U13: =COUNTIF(L7:L7,T13) -> 0 | V13: =U13/(W4-U20) -> 0 | W13: =IF(V13=0,0,(V13*((LOG(V13))/LOG(2)))) -> 0 | Y13: =N13 -> 1221 | Z13: =COUNTIF(L7:L8,Y13) -> 1 | AA13: =Z13/(AB4-Z20) -> 0.5 | AB13: =IF(AA13=0,0,(AA13*((LOG(AA13))/LOG(2)))) -> -0.5 | AD13: =N13 -> 1221 | AE13: =COUNTIF(L8:L8,AD13) -> 1 | AF13: =AE13/(AG4-AE20) -> 1 | AG13: =IF(AF13=0,0,(AF13*((LOG(AF13))/LOG(2)))) -> 0 | AI13: =N13 -> 1221 | AJ13: =COUNTIF(L8:L9,AI13) -> 1 | AK13: =AJ13/(AL4-AJ20) -> 0.5 | AL13: =IF(AK13=0,0,(AK13*((LOG(AK13))/LOG(2)))) -> -0.5 | AN13: =N13 -> 1221 | AO13: =COUNTIF(L9:L9,AN13) -> 0 | AP13: =AO13/(AQ4-AO20) -> 0 | AQ13: =IF(AP13=0,0,(AP13*((LOG(AP13))/LOG(2)))) -> 0 | AS13: =N13 -> 1221 | AT13: =COUNTIF(L9:L10,AS13) -> 0 | AU13: =AT13/(AV4-AT20) -> 0 | AV13: =IF(AU13=0,0,(AU13*((LOG(AU13))/LOG(2)))) -> 0
N14: 1222 | O14: =COUNTIF($L$7:$L$500,N14) -> 0 | P14: =O14/$Q$4 -> 0 | Q14: =IF(P14=0,0,(P14*((LOG(P14))/LOG(2)))) -> 0 | T14: =N14 -> 1222 | U14: =COUNTIF(L7:L7,T14) -> 0 | V14: =U14/(W4-U20) -> 0 | W14: =IF(V14=0,0,(V14*((LOG(V14))/LOG(2)))) -> 0 | Y14: =N14 -> 1222 | Z14: =COUNTIF(L7:L8,Y14) -> 0 | AA14: =Z14/(AB4-Z20) -> 0 | AB14: =IF(AA14=0,0,(AA14*((LOG(AA14))/LOG(2)))) -> 0 | AD14: =N14 -> 1222 | AE14: =COUNTIF(L8:L8,AD14) -> 0 | AF14: =AE14/(AG4-AE20) -> 0 | AG14: =IF(AF14=0,0,(AF14*((LOG(AF14))/LOG(2)))) -> 0 | AI14: =N14 -> 1222 | AJ14: =COUNTIF(L8:L9,AI14) -> 0 | AK14: =AJ14/(AL4-AJ20) -> 0 | AL14: =IF(AK14=0,0,(AK14*((LOG(AK14))/LOG(2)))) -> 0 | AN14: =N14 -> 1222 | AO14: =COUNTIF(L9:L9,AN14) -> 0 | AP14: =AO14/(AQ4-AO20) -> 0 | AQ14: =IF(AP14=0,0,(AP14*((LOG(AP14))/LOG(2)))) -> 0 | AS14: =N14 -> 1222 | AT14: =COUNTIF(L9:L10,AS14) -> 0 | AU14: =AT14/(AV4-AT20) -> 0 | AV14: =IF(AU14=0,0,(AU14*((LOG(AU14))/LOG(2)))) -> 0
N15: 2111 | O15: =COUNTIF($L$7:$L$500,N15) -> 0 | P15: =O15/$Q$4 -> 0 | Q15: =IF(P15=0,0,(P15*((LOG(P15))/LOG(2)))) -> 0 | T15: =N15 -> 2111 | U15: =COUNTIF(L7:L7,T15) -> 0 | V15: =U15/(W4-U20) -> 0 | W15: =IF(V15=0,0,(V15*((LOG(V15))/LOG(2)))) -> 0 | Y15: =N15 -> 2111 | Z15: =COUNTIF(L7:L8,Y15) -> 0 | AA15: =Z15/(AB4-Z20) -> 0 | AB15: =IF(AA15=0,0,(AA15*((LOG(AA15))/LOG(2)))) -> 0 | AD15: =N15 -> 2111 | AE15: =COUNTIF(L8:L8,AD15) -> 0 | AF15: =AE15/(AG4-AE20) -> 0 | AG15: =IF(AF15=0,0,(AF15*((LOG(AF15))/LOG(2)))) -> 0 | AI15: =N15 -> 2111 | AJ15: =COUNTIF(L8:L9,AI15) -> 0 | AK15: =AJ15/(AL4-AJ20) -> 0 | AL15: =IF(AK15=0,0,(AK15*((LOG(AK15))/LOG(2)))) -> 0 | AN15: =N15 -> 2111 | AO15: =COUNTIF(L9:L9,AN15) -> 0 | AP15: =AO15/(AQ4-AO20) -> 0 | AQ15: =IF(AP15=0,0,(AP15*((LOG(AP15))/LOG(2)))) -> 0 | AS15: =N15 -> 2111 | AT15: =COUNTIF(L9:L10,AS15) -> 0 | AU15: =AT15/(AV4-AT20) -> 0 | AV15: =IF(AU15=0,0,(AU15*((LOG(AU15))/LOG(2)))) -> 0
N16: 2112 | O16: =COUNTIF($L$7:$L$500,N16) -> 0 | P16: =O16/$Q$4 -> 0 | Q16: =IF(P16=0,0,(P16*((LOG(P16))/LOG(2)))) -> 0 | T16: =N16 -> 2112 | U16: =COUNTIF(L7:L7,T16) -> 0 | V16: =U16/(W4-U20) -> 0 | W16: =IF(V16=0,0,(V16*((LOG(V16))/LOG(2)))) -> 0 | Y16: =N16 -> 2112 | Z16: =COUNTIF(L7:L8,Y16) -> 0 | AA16: =Z16/(AB4-Z20) -> 0 | AB16: =IF(AA16=0,0,(AA16*((LOG(AA16))/LOG(2)))) -> 0 | AD16: =N16 -> 2112 | AE16: =COUNTIF(L8:L8,AD16) -> 0 | AF16: =AE16/(AG4-AE20) -> 0 | AG16: =IF(AF16=0,0,(AF16*((LOG(AF16))/LOG(2)))) -> 0 | AI16: =N16 -> 2112 | AJ16: =COUNTIF(L8:L9,AI16) -> 0 | AK16: =AJ16/(AL4-AJ20) -> 0 | AL16: =IF(AK16=0,0,(AK16*((LOG(AK16))/LOG(2)))) -> 0 | AN16: =N16 -> 2112 | AO16: =COUNTIF(L9:L9,AN16) -> 0 | AP16: =AO16/(AQ4-AO20) -> 0 | AQ16: =IF(AP16=0,0,(AP16*((LOG(AP16))/LOG(2)))) -> 0 | AS16: =N16 -> 2112 | AT16: =COUNTIF(L9:L10,AS16) -> 0 | AU16: =AT16/(AV4-AT20) -> 0 | AV16: =IF(AU16=0,0,(AU16*((LOG(AU16))/LOG(2)))) -> 0
N17: 2121 | O17: =COUNTIF($L$7:$L$500,N17) -> 0 | P17: =O17/$Q$4 -> 0 | Q17: =IF(P17=0,0,(P17*((LOG(P17))/LOG(2)))) -> 0 | T17: =N17 -> 2121 | U17: =COUNTIF(L7:L7,T17) -> 0 | V17: =U17/(W4-U20) -> 0 | W17: =IF(V17=0,0,(V17*((LOG(V17))/LOG(2)))) -> 0 | Y17: =N17 -> 2121 | Z17: =COUNTIF(L7:L8,Y17) -> 0 | AA17: =Z17/(AB4-Z20) -> 0 | AB17: =IF(AA17=0,0,(AA17*((LOG(AA17))/LOG(2)))) -> 0 | AD17: =N17 -> 2121 | AE17: =COUNTIF(L8:L8,AD17) -> 0 | AF17: =AE17/(AG4-AE20) -> 0 | AG17: =IF(AF17=0,0,(AF17*((LOG(AF17))/LOG(2)))) -> 0 | AI17: =N17 -> 2121 | AJ17: =COUNTIF(L8:L9,AI17) -> 0 | AK17: =AJ17/(AL4-AJ20) -> 0 | AL17: =IF(AK17=0,0,(AK17*((LOG(AK17))/LOG(2)))) -> 0 | AN17: =N17 -> 2121 | AO17: =COUNTIF(L9:L9,AN17) -> 0 | AP17: =AO17/(AQ4-AO20) -> 0 | AQ17: =IF(AP17=0,0,(AP17*((LOG(AP17))/LOG(2)))) -> 0 | AS17: =N17 -> 2121 | AT17: =COUNTIF(L9:L10,AS17) -> 0 | AU17: =AT17/(AV4-AT20) -> 0 | AV17: =IF(AU17=0,0,(AU17*((LOG(AU17))/LOG(2)))) -> 0
N18: 2122 | O18: =COUNTIF($L$7:$L$500,N18) -> 0 | P18: =O18/$Q$4 -> 0 | Q18: =IF(P18=0,0,(P18*((LOG(P18))/LOG(2)))) -> 0 | T18: =N18 -> 2122 | U18: =COUNTIF(L7:L7,T18) -> 0 | V18: =U18/(W4-U20) -> 0 | W18: =IF(V18=0,0,(V18*((LOG(V18))/LOG(2)))) -> 0 | Y18: =N18 -> 2122 | Z18: =COUNTIF(L7:L8,Y18) -> 0 | AA18: =Z18/(AB4-Z20) -> 0 | AB18: =IF(AA18=0,0,(AA18*((LOG(AA18))/LOG(2)))) -> 0 | AD18: =N18 -> 2122 | AE18: =COUNTIF(L8:L8,AD18) -> 0 | AF18: =AE18/(AG4-AE20) -> 0 | AG18: =IF(AF18=0,0,(AF18*((LOG(AF18))/LOG(2)))) -> 0 | AI18: =N18 -> 2122 | AJ18: =COUNTIF(L8:L9,AI18) -> 0 | AK18: =AJ18/(AL4-AJ20) -> 0 | AL18: =IF(AK18=0,0,(AK18*((LOG(AK18))/LOG(2)))) -> 0 | AN18: =N18 -> 2122 | AO18: =COUNTIF(L9:L9,AN18) -> 0 | AP18: =AO18/(AQ4-AO20) -> 0 | AQ18: =IF(AP18=0,0,(AP18*((LOG(AP18))/LOG(2)))) -> 0 | AS18: =N18 -> 2122 | AT18: =COUNTIF(L9:L10,AS18) -> 0 | AU18: =AT18/(AV4-AT20) -> 0 | AV18: =IF(AU18=0,0,(AU18*((LOG(AU18))/LOG(2)))) -> 0
N19: 2211 | O19: =COUNTIF($L$7:$L$500,N19) -> 0 | P19: =O19/$Q$4 -> 0 | Q19: =IF(P19=0,0,(P19*((LOG(P19))/LOG(2)))) -> 0 | T19: =N19 -> 2211 | U19: =COUNTIF(L7:L7,T19) -> 0 | V19: =U19/(W4-U20) -> 0 | W19: =IF(V19=0,0,(V19*((LOG(V19))/LOG(2)))) -> 0 | Y19: =N19 -> 2211 | Z19: =COUNTIF(L7:L8,Y19) -> 0 | AA19: =Z19/(AB4-Z20) -> 0 | AB19: =IF(AA19=0,0,(AA19*((LOG(AA19))/LOG(2)))) -> 0 | AD19: =N19 -> 2211 | AE19: =COUNTIF(L8:L8,AD19) -> 0 | AF19: =AE19/(AG4-AE20) -> 0 | AG19: =IF(AF19=0,0,(AF19*((LOG(AF19))/LOG(2)))) -> 0 | AI19: =N19 -> 2211 | AJ19: =COUNTIF(L8:L9,AI19) -> 0 | AK19: =AJ19/(AL4-AJ20) -> 0 | AL19: =IF(AK19=0,0,(AK19*((LOG(AK19))/LOG(2)))) -> 0 | AN19: =N19 -> 2211 | AO19: =COUNTIF(L9:L9,AN19) -> 0 | AP19: =AO19/(AQ4-AO20) -> 0 | AQ19: =IF(AP19=0,0,(AP19*((LOG(AP19))/LOG(2)))) -> 0 | AS19: =N19 -> 2211 | AT19: =COUNTIF(L9:L10,AS19) -> 0 | AU19: =AT19/(AV4-AT20) -> 0 | AV19: =IF(AU19=0,0,(AU19*((LOG(AU19))/LOG(2)))) -> 0
N20: 2212 | O20: =COUNTIF($L$7:$L$500,N20) -> 0 | P20: =O20/$Q$4 -> 0 | Q20: =IF(P20=0,0,(P20*((LOG(P20))/LOG(2)))) -> 0 | T20: =N20 -> 2212 | U20: =COUNTIF(L7:L7,T20) -> 0 | Y20: =N20 -> 2212 | Z20: =COUNTIF(L7:L8,Y20) -> 0 | AD20: =N20 -> 2212 | AE20: =COUNTIF(L8:L8,AD20) -> 0 | AI20: =N20 -> 2212 | AJ20: =COUNTIF(L8:L9,AI20) -> 0 | AN20: =N20 -> 2212 | AO20: =COUNTIF(L9:L9,AN20) -> 0 | AS20: =N20 -> 2212 | AT20: =COUNTIF(L9:L10,AS20) -> 0
N21: 2221 | O21: =COUNTIF($L$7:$L$500,N21) -> 0 | P21: =O21/$Q$4 -> 0 | Q21: =IF(P21=0,0,(P21*((LOG(P21))/LOG(2)))) -> 0 | T21: =N21 -> 2221 | U21: =COUNTIF(L7:L7,T21) -> 0 | V21: =U21/(W4-U20) -> 0 | W21: =IF(V21=0,0,(V21*((LOG(V21))/LOG(2)))) -> 0 | Y21: =N21 -> 2221 | Z21: =COUNTIF(L7:L8,Y21) -> 0 | AA21: =Z21/(AB4-Z20) -> 0 | AB21: =IF(AA21=0,0,(AA21*((LOG(AA21))/LOG(2)))) -> 0 | AD21: =N21 -> 2221 | AE21: =COUNTIF(L8:L8,AD21) -> 0 | AF21: =AE21/(AG4-AE20) -> 0 | AG21: =IF(AF21=0,0,(AF21*((LOG(AF21))/LOG(2)))) -> 0 | AI21: =N21 -> 2221 | AJ21: =COUNTIF(L8:L9,AI21) -> 0 | AK21: =AJ21/(AL4-AJ20) -> 0 | AL21: =IF(AK21=0,0,(AK21*((LOG(AK21))/LOG(2)))) -> 0 | AN21: =N21 -> 2221 | AO21: =COUNTIF(L9:L9,AN21) -> 0 | AP21: =AO21/(AQ4-AO20) -> 0 | AQ21: =IF(AP21=0,0,(AP21*((LOG(AP21))/LOG(2)))) -> 0 | AS21: =N21 -> 2221 | AT21: =COUNTIF(L9:L10,AS21) -> 0 | AU21: =AT21/(AV4-AT20) -> 0 | AV21: =IF(AU21=0,0,(AU21*((LOG(AU21))/LOG(2)))) -> 0
N22: 2222 | O22: =COUNTIF($L$7:$L$500,N22) -> 0 | P22: =O22/$Q$4 -> 0 | Q22: =IF(P22=0,0,(P22*((LOG(P22))/LOG(2)))) -> 0 | T22: =N22 -> 2222 | U22: =COUNTIF(L7:L7,T22) -> 0 | V22: =U22/(W4-U20) -> 0 | W22: =IF(V22=0,0,(V22*((LOG(V22))/LOG(2)))) -> 0 | Y22: =N22 -> 2222 | Z22: =COUNTIF(L7:L8,Y22) -> 0 | AA22: =Z22/(AB4-Z20) -> 0 | AB22: =IF(AA22=0,0,(AA22*((LOG(AA22))/LOG(2)))) -> 0 | AD22: =N22 -> 2222 | AE22: =COUNTIF(L8:L8,AD22) -> 0 | AF22: =AE22/(AG4-AE20) -> 0 | AG22: =IF(AF22=0,0,(AF22*((LOG(AF22))/LOG(2)))) -> 0 | AI22: =N22 -> 2222 | AJ22: =COUNTIF(L8:L9,AI22) -> 0 | AK22: =AJ22/(AL4-AJ20) -> 0 | AL22: =IF(AK22=0,0,(AK22*((LOG(AK22))/LOG(2)))) -> 0 | AN22: =N22 -> 2222 | AO22: =COUNTIF(L9:L9,AN22) -> 0 | AP22: =AO22/(AQ4-AO20) -> 0 | AQ22: =IF(AP22=0,0,(AP22*((LOG(AP22))/LOG(2)))) -> 0 | AS22: =N22 -> 2222 | AT22: =COUNTIF(L9:L10,AS22) -> 0 | AU22: =AT22/(AV4-AT20) -> 0 | AV22: =IF(AU22=0,0,(AU22*((LOG(AU22))/LOG(2)))) -> 0
P23: =SUM(P7:P22) -> 1 | Q23: =-SUM(Q7:Q22) -> 1.584962501 | V23: =SUM(V7:V22) -> 1 | W23: =-SUM(W7:W22) -> 0 | AA23: =SUM(AA7:AA22) -> 1 | AB23: =-SUM(AB7:AB22) -> 1 | AF23: =SUM(AF7:AF22) -> 1 | AG23: =-SUM(AG7:AG22) -> 0 | AK23: =SUM(AK7:AK22) -> 1 | AL23: =-SUM(AL7:AL22) -> 1 | AP23: =SUM(AP7:AP22) -> 1 | AQ23: =-SUM(AQ7:AQ22) -> 0 | AU23: =SUM(AU7:AU22) -> 1 | AV23: =-SUM(AV7:AV22) -> 0
P24: U= | Q24: =Q23/(LOG(Q4)/LOG(2)) -> 1 | V24: U1= | W24: =W23/(LOG(W4)/LOG(2)) ->  | AA24: U2= | AB24: =AB23/(LOG(AB4)/LOG(2)) -> 1 | AF24: U3= | AG24: =AG23/(LOG(AG4)/LOG(2)) ->  | AK24: U4= | AL24: =AL23/(LOG(AL4)/LOG(2)) -> 1 | AP24: U5= | AQ24: =AQ23/(LOG(AQ4)/LOG(2)) ->  | AU24: U6= | AV24: =AV23/(LOG(AV4)/LOG(2)) -> 
N27: Total Target Seq
N28: =COUNTIF(L7:L9,G3) -> 0 | P28: 1 | Q28: 0 | R28: 1 | S28: 0 | T28: 1 | U28: 0
P29: % of reinforcement given in 6 equal intervals based on number of trials
P30: %_1 | Q30: %_2 | R30: %_3 | S30: %_4 | T30: %_5 | U30: %_6
O31: target sequence | P31: =$G$3 -> 2212 | Q31: =$G$3 -> 2212 | R31: =$G$3 -> 2212 | S31: =$G$3 -> 2212 | T31: =$G$3 -> 2212 | U31: =$G$3 -> 2212
O32: total reinforcement | P32: =U20 -> 0 | Q32: =Z20 -> 0 | R32: =AE20 -> 0 | S32: =AJ20 -> 0 | T32: =AO20 -> 0 | U32: =AT20 -> 0
O33: % target
O34: CCRF
O35: % CCRf
O36: average response rate | P36: =H7/P28 -> 162 | Q36: =(H7-H7)/Q28 ->  | R36: =(H8-H7)/R28 -> 446 | S36: =(H8-H8)/S28 ->  | T36: =(H9-H8)/T28 -> 246 | U36: =(H9-H9)/U28 -> 

Sheet !M116B2B.axt
A1: Report for:!M116B2B.axt
A2: Date: | B2: <date>
A3: Hen: | B3: <hen> | F3: Correct Sequence | G3: =Start!J2 -> 2212 | P3: Total Sequences in Data | Q3: =4994-COUNTBLANK(L7:L5000) -> 3 | V3: Total Sequences in Block Data | W3: =COUNTA(L7:L7) -> 1 | AA3: Total Sequences in Block Data | AB3: =COUNTA(L7:L8) -> 2 | AF3: Total Sequences in Block Data | AG3: =COUNTA(L8:L8) -> 1 | AK3: Total Sequences in Block Data | AL3: =COUNTA(L8:L9) -> 2 | AP3: Total Sequences in Block Data | AQ3: =COUNTA(L9:L9) -> 1 | AU3: Total Sequences in Block Data | AV3: =COUNTA(L9:L10) -> 1
P4: Total Sequences in Summary | Q4: =SUM(O7:O22) -> 2 | V4: Total Sequences in Block Summary | W4: =SUM(U7:U22) -> 1 | AA4: Total Sequences in Block Summary | AB4: =SUM(Z7:Z22) -> 2 | AF4: Total Sequences in Block Summary | AG4: =SUM(AE7:AE22) -> 1 | AK4: Total Sequences in Block Summary | AL4: =SUM(AJ7:AJ22) -> 1 | AP4: Total Sequences in Block Summary | AQ4: =SUM(AO7:AO22) -> 0 | AU4: Total Sequences in Block Summary | AV4: =SUM(AT7:AT22) -> 0
T5: Block 1 | Y5: Block 2 | AD5: Block 3 | AI5: Block 4 | AN5: Block 5 | AS5: Block 6
A6: Sequence Component 1 | B6: Time 1 | C6: Sequence Component 2 | D6: Time 2 | E6: Sequence Component 3 | F6: Time 3 | G6: Sequence Component 4 | H6: Time 4 | I6: Sequence Component 5 | J6: Time 5 | K6: Correct? 0=No 1=Yes | L6: Sequence | N6: Frequency | P6: Relative Frequency | Q6: Variability | T6: Frequency | V6: Relative Frequency | W6: Variability | Y6: Frequency | AA6: Relative Frequency | AB6: Variability | AD6: Frequency | AF6: Relative Frequency | AG6: Variability | AI6: Frequency | AK6: Relative Frequency | AL6: Variability | AN6: Frequency | AP6: Relative Frequency | AQ6: Variability | AS6: Frequency | AU6: Relative Frequency | AV6: Variability
A7: 12 | B7: 59 | C7: 23 | D7: 74 | E7: 13 | F7: 97 | G7: 14 | H7: 108 | K7: 0 | L7: 1211 | N7: 1111 | O7: =COUNTIF($L$7:$L$500,N7) -> 0 | P7: =O7/$Q$4 -> 0 | Q7: =IF(P7=0,0,(P7*((LOG(P7))/LOG(2)))) -> 0 | T7: =N7 -> 1111 | U7: =COUNTIF(L7:L7,T7) -> 0 | V7: =U7/(W4-U20) -> 0 | W7: =IF(V7=0,0,(V7*((LOG(V7))/LOG(2)))) -> 0 | Y7: =N7 -> 1111 | Z7: =COUNTIF(L7:L8,Y7) -> 0 | AA7: =Z7/(AB4-Z20) -> 0 | AB7: =IF(AA7=0,0,(AA7*((LOG(AA7))/LOG(2)))) -> 0 | AD7: =N7 -> 1111 | AE7: =COUNTIF(L8:L8,AD7) -> 0 | AF7: =AE7/(AG4-AE20) -> 0 | AG7: =IF(AF7=0,0,(AF7*((LOG(AF7))/LOG(2)))) -> 0 | AI7: =N7 -> 1111 | AJ7: =COUNTIF(L8:L9,AI7) -> 0 | AK7: =AJ7/(AL4-AJ20) -> 0 | AL7: =IF(AK7=0,0,(AK7*((LOG(AK7))/LOG(2)))) -> 0 | AN7: =N7 -> 1111 | AO7: =COUNTIF(L9:L9,AN7) -> 0 | AP7: =AO7/(AQ4-AO20) ->  | AQ7: =IF(AP7=0,0,(AP7*((LOG(AP7))/LOG(2)))) ->  | AS7: =N7 -> 1111 | AT7: =COUNTIF(L9:L10,AS7) -> 0 | AU7: =AT7/(AV4-AT20) ->  | AV7: =IF(AU7=0,0,(AU7*((LOG(AU7))/LOG(2)))) -> 
A8: 12 | B8: 4053 | C8: 14 | D8: 4060 | E8: 13 | F8: 4063 | G8: 23 | H8: 4065 | K8: 0 | L8: 1112 | N8: 1112 | O8: =COUNTIF($L$7:$L$500,N8) -> 1 | P8: =O8/$Q$4 -> 0.5 | Q8: =IF(P8=0,0,(P8*((LOG(P8))/LOG(2)))) -> -0.5 | T8: =N8 -> 1112 | U8: =COUNTIF(L7:L7,T8) -> 0 | V8: =U8/(W4-U20) -> 0 | W8: =IF(V8=0,0,(V8*((LOG(V8))/LOG(2)))) -> 0 | Y8: =N8 -> 1112 | Z8: =COUNTIF(L7:L8,Y8) -> 1 | AA8: =Z8/(AB4-Z20) -> 0.5 | AB8: =IF(AA8=0,0,(AA8*((LOG(AA8))/LOG(2)))) -> -0.5 | AD8: =N8 -> 1112 | AE8: =COUNTIF(L8:L8,AD8) -> 1 | AF8: =AE8/(AG4-AE20) -> 1 | AG8: =IF(AF8=0,0,(AF8*((LOG(AF8))/LOG(2)))) -> 0 | AI8: =N8 -> 1112 | AJ8: =COUNTIF(L8:L9,AI8) -> 1 | AK8: =AJ8/(AL4-AJ20) -> 1 | AL8: =IF(AK8=0,0,(AK8*((LOG(AK8))/LOG(2)))) -> 0 | AN8: =N8 -> 1112 | AO8: =COUNTIF(L9:L9,AN8) -> 0 | AP8: =AO8/(AQ4-AO20) ->  | AQ8: =IF(AP8=0,0,(AP8*((LOG(AP8))/LOG(2)))) ->  | AS8: =N8 -> 1112 | AT8: =COUNTIF(L9:L10,AS8) -> 0 | AU8: =AT8/(AV4-AT20) ->  | AV8: =IF(AU8=0,0,(AU8*((LOG(AU8))/LOG(2)))) -> 
A9: 12 | B9: 11102 | C9: 23 | D9: 11116 | L9: 12 | N9: 1121 | O9: =COUNTIF($L$7:$L$500,N9) -> 0 | P9: =O9/$Q$4 -> 0 | Q9: =IF(P9=0,0,(P9*((LOG(P9))/LOG(2)))) -> 0 | T9: =N9 -> 1121 | U9: =COUNTIF(L7:L7,T9) -> 0 | V9: =U9/(W4-U20) -> 0 | W9: =IF(V9=0,0,(V9*((LOG(V9))/LOG(2)))) -> 0 | Y9: =N9 -> 1121 | Z9: =COUNTIF(L7:L8,Y9) -> 0 | AA9: =Z9/(AB4-Z20) -> 0 | AB9: =IF(AA9=0,0,(AA9*((LOG(AA9))/LOG(2)))) -> 0 | AD9: =N9 -> 1121 | AE9: =COUNTIF(L8:L8,AD9) -> 0 | AF9: =AE9/(AG4-AE20) -> 0 | AG9: =IF(AF9=0,0,(AF9*((LOG(AF9))/LOG(2)))) -> 0 | AI9: =N9 -> 1121 | AJ9: =COUNTIF(L8:L9,AI9) -> 0 | AK9: =AJ9/(AL4-AJ20) -> 0 | AL9: =IF(AK9=0,0,(AK9*((LOG(AK9))/LOG(2)))) -> 0 | AN9: =N9 -> 1121 | AO9: =COUNTIF(L9:L9,AN9) -> 0 | AP9: =AO9/(AQ4-AO20) ->  | AQ9: =IF(AP9=0,0,(AP9*((LOG(AP9))/LOG(2)))) ->  | AS9: =N9 -> 1121 | AT9: =COUNTIF(L9:L10,AS9) -> 0 | AU9: =AT9/(AV4-AT20) ->  | AV9: =IF(AU9=0,0,(AU9*((LOG(AU9))/LOG(2)))) -> 
N10: 1122 | O10: =COUNTIF($L$7:$L$500,N10) -> 0 | P10: =O10/$Q$4 -> 0 | Q10: =IF(P10=0,0,(P10*((LOG(P10))/LOG(2)))) -> 0 | T10: =N10 -> 1122 | U10: =COUNTIF(L7:L7,T10) -> 0 | V10: =U10/(W4-U20) -> 0 | W10: =IF(V10=0,0,(V10*((LOG(V10))/LOG(2)))) -> 0 | Y10: =N10 -> 1122 | Z10: =COUNTIF(L7:L8,Y10) -> 0 | AA10: =Z10/(AB4-Z20) -> 0 | AB10: =IF(AA10=0,0,(AA10*((LOG(AA10))/LOG(2)))) -> 0 | AD10: =N10 -> 1122 | AE10: =COUNTIF(L8:L8,AD10) -> 0 | AF10: =AE10/(AG4-AE20) -> 0 | AG10: =IF(AF10=0,0,(AF10*((LOG(AF10))/LOG(2)))) -> 0 | AI10: =N10 -> 1122 | AJ10: =COUNTIF(L8:L9,AI10) -> 0 | AK10: =AJ10/(AL4-AJ20) -> 0 | AL10: =IF(AK10=0,0,(AK10*((LOG(AK10))/LOG(2)))) -> 0 | AN10: =N10 -> 1122 | AO10: =COUNTIF(L9:L9,AN10) -> 0 | AP10: =AO10/(AQ4-AO20) ->  | AQ10: =IF(AP10=0,0,(AP10*((LOG(AP10))/LOG(2)))) ->  | AS10: =N10 -> 1122 | AT10: =COUNTIF(L9:L10,AS10) -> 0 | AU10: =AT10/(AV4-AT20) ->  | AV10: =IF(AU10=0,0,(AU10*((LOG(AU10))/LOG(2)))) -> 
N11: 1211 | O11: =COUNTIF($L$7:$L$500,N11) -> 1 | P11: =O11/$Q$4 -> 0.5 | Q11: =IF(P11=0,0,(P11*((LOG(P11))/LOG(2)))) -> -0.5 | T11: =N11 -> 1211 | U11: =COUNTIF(L7:L7,T11) -> 1 | V11: =U11/(W4-U20) -> 1 | W11: =IF(V11=0,0,(V11*((LOG(V11))/LOG(2)))) -> 0 | Y11: =N11 -> 1211 | Z11: =COUNTIF(L7:L8,Y11) -> 1 | AA11: =Z11/(AB4-Z20) -> 0.5 | AB11: =IF(AA11=0,0,(AA11*((LOG(AA11))/LOG(2)))) -> -0.5 | AD11: =N11 -> 1211 | AE11: =COUNTIF(L8:L8,AD11) -> 0 | AF11: =AE11/(AG4-AE20) -> 0 | AG11: =IF(AF11=0,0,(AF11*((LOG(AF11))/LOG(2)))) -> 0 | AI11: =N11 -> 1211 | AJ11: =COUNTIF(L8:L9,AI11) -> 0 | AK11: =AJ11/(AL4-AJ20) -> 0 | AL11: =IF(AK11=0,0,(AK11*((LOG(AK11))/LOG(2)))) -> 0 | AN11: =N11 -> 1211 | AO11: =COUNTIF(L9:L9,AN11) -> 0 | AP11: =AO11/(AQ4-AO20) ->  | AQ11: =IF(AP11=0,0,(AP11*((LOG(AP11))/LOG(2)))) ->  | AS11: =N11 -> 1211 | AT11: =COUNTIF(L9:L10,AS11) -> 0 | AU11: =AT11/(AV4-AT20) ->  | AV11: =IF(AU11=0,0,(AU11*((LOG(AU11))/LOG(2)))) -> 
N12: 1212 | O12: =COUNTIF($L$7:$L$500,N12) -> 0 | P12: =O12/$Q$4 -> 0 | Q12: =IF(P12=0,0,(P12*((LOG(P12))/LOG(2)))) -> 0 | T12: =N12 -> 1212 | U12: =COUNTIF(L7:L7,T12) -> 0 | V12: =U12/(W4-U20) -> 0 | W12: =IF(V12=0,0,(V12*((LOG(V12))/LOG(2)))) -> 0 | Y12: =N12 -> 1212 | Z12: =COUNTIF(L7:L8,Y12) -> 0 | AA12: =Z12/(AB4-Z20) -> 0 | AB12: =IF(AA12=0,0,(AA12*((LOG(AA12))/LOG(2)))) -> 0 | AD12: =N12 -> 1212 | AE12: =COUNTIF(L8:L8,AD12) -> 0 | AF12: =AE12/(AG4-AE20) -> 0 | AG12: =IF(AF12=0,0,(AF12*((LOG(AF12))/LOG(2)))) -> 0 | AI12: =N12 -> 1212 | AJ12: =COUNTIF(L8:L9,AI12) -> 0 | AK12: =AJ12/(AL4-AJ20) -> 0 | AL12: =IF(AK12=0,0,(AK12*((LOG(AK12))/LOG(2)))) -> 0 | AN12: =N12 -> 1212 | AO12: =COUNTIF(L9:L9,AN12) -> 0 | AP12: =AO12/(AQ4-AO20) ->  | AQ12: =IF(AP12=0,0,(AP12*((LOG(AP12))/LOG(2)))) ->  | AS12: =N12 -> 1212 | AT12: =COUNTIF(L9:L10,AS12) -> 0 | AU12: =AT12/(AV4-AT20) ->  | AV12: =IF(AU12=0,0,(AU12*((LOG(AU12))/LOG(2)))) -> 
N13: 1221 | O13: =COUNTIF($L$7:$L$500,N13) -> 0 | P13: =O13/$Q$4 -> 0 | Q13: =IF(P13=0,0,(P13*((LOG(P13))/LOG(2)))) -> 0 | T13: =N13 -> 1221 | U13: =COUNTIF(L7:L7,T13) -> 0 | V13: =U13/(W4-U20) -> 0 | W13: =IF(V13=0,0,(V13*((LOG(V13))/LOG(2)))) -> 0 | Y13: =N13 -> 1221 | Z13: =COUNTIF(L7:L8,Y13) -> 0 | AA13: =Z13/(AB4-Z20) -> 0 | AB13: =IF(AA13=0,0,(AA13*((LOG(AA13))/LOG(2)))) -> 0 | AD13: =N13 -> 1221 | AE13: =COUNTIF(L8:L8,AD13) -> 0 | AF13: =AE13/(AG4-AE20) -> 0 | AG13: =IF(AF13=0,0,(AF13*((LOG(AF13))/LOG(2)))) -> 0 | AI13: =N13 -> 1221 | AJ13: =COUNTIF(L8:L9,AI13) -> 0 | AK13: =AJ13/(AL4-AJ20) -> 0 | AL13: =IF(AK13=0,0,(AK13*((LOG(AK13))/LOG(2)))) -> 0 | AN13: =N13 -> 1221 | AO13: =COUNTIF(L9:L9,AN13) -> 0 | AP13: =AO13/(AQ4-AO20) ->  | AQ13: =IF(AP13=0,0,(AP13*((LOG(AP13))/LOG(2)))) ->  | AS13: =N13 -> 1221 | AT13: =COUNTIF(L9:L10,AS13) -> 0 | AU13: =AT13/(AV4-AT20) ->  | AV13: =IF(AU13=0,0,(AU13*((LOG(AU13))/LOG(2)))) -> 
N14: 1222 | O14: =COUNTIF($L$7:$L$500,N14) -> 0 | P14: =O14/$Q$4 -> 0 | Q14: =IF(P14=0,0,(P14*((LOG(P14))/LOG(2)))) -> 0 | T14: =N14 -> 1222 | U14: =COUNTIF(L7:L7,T14) -> 0 | V14: =U14/(W4-U20) -> 0 | W14: =IF(V14=0,0,(V14*((LOG(V14))/LOG(2)))) -> 0 | Y14: =N14 -> 1222 | Z14: =COUNTIF(L7:L8,Y14) -> 0 | AA14: =Z14/(AB4-Z20) -> 0 | AB14: =IF(AA14=0,0,(AA14*((LOG(AA14))/LOG(2)))) -> 0 | AD14: =N14 -> 1222 | AE14: =COUNTIF(L8:L8,AD14) -> 0 | AF14: =AE14/(AG4-AE20) -> 0 | AG14: =IF(AF14=0,0,(AF14*((LOG(AF14))/LOG(2)))) -> 0 | AI14: =N14 -> 1222 | AJ14: =COUNTIF(L8:L9,AI14) -> 0 | AK14: =AJ14/(AL4-AJ20) -> 0 | AL14: =IF(AK14=0,0,(AK14*((LOG(AK14))/LOG(2)))) -> 0 | AN14: =N14 -> 1222 | AO14: =COUNTIF(L9:L9,AN14) -> 0 | AP14: =AO14/(AQ4-AO20) ->  | AQ14: =IF(AP14=0,0,(AP14*((LOG(AP14))/LOG(2)))) ->  | AS14: =N14 -> 1222 | AT14: =COUNTIF(L9:L10,AS14) -> 0 | AU14: =AT14/(AV4-AT20) ->  | AV14: =IF(AU14=0,0,(AU14*((LOG(AU14))/LOG(2)))) -> 
N15: 2111 | O15: =COUNTIF($L$7:$L$500,N15) -> 0 | P15: =O15/$Q$4 -> 0 | Q15: =IF(P15=0,0,(P15*((LOG(P15))/LOG(2)))) -> 0 | T15: =N15 -> 2111 | U15: =COUNTIF(L7:L7,T15) -> 0 | V15: =U15/(W4-U20) -> 0 | W15: =IF(V15=0,0,(V15*((LOG(V15))/LOG(2)))) -> 0 | Y15: =N15 -> 2111 | Z15: =COUNTIF(L7:L8,Y15) -> 0 | AA15: =Z15/(AB4-Z20) -> 0 | AB15: =IF(AA15=0,0,(AA15*((LOG(AA15))/LOG(2)))) -> 0 | AD15: =N15 -> 2111 | AE15: =COUNTIF(L8:L8,AD15) -> 0 | AF15: =AE15/(AG4-AE20) -> 0 | AG15: =IF(AF15=0,0,(AF15*((LOG(AF15))/LOG(2)))) -> 0 | AI15: =N15 -> 2111 | AJ15: =COUNTIF(L8:L9,AI15) -> 0 | AK15: =AJ15/(AL4-AJ20) -> 0 | AL15: =IF(AK15=0,0,(AK15*((LOG(AK15))/LOG(2)))) -> 0 | AN15: =N15 -> 2111 | AO15: =COUNTIF(L9:L9,AN15) -> 0 | AP15: =AO15/(AQ4-AO20) ->  | AQ15: =IF(AP15=0,0,(AP15*((LOG(AP15))/LOG(2)))) ->  | AS15: =N15 -> 2111 | AT15: =COUNTIF(L9:L10,AS15) -> 0 | AU15: =AT15/(AV4-AT20) ->  | AV15: =IF(AU15=0,0,(AU15*((LOG(AU15))/LOG(2)))) -> 
N16: 2112 | O16: =COUNTIF($L$7:$L$500,N16) -> 0 | P16: =O16/$Q$4 -> 0 | Q16: =IF(P16=0,0,(P16*((LOG(P16))/LOG(2)))) -> 0 | T16: =N16 -> 2112 | U16: =COUNTIF(L7:L7,T16) -> 0 | V16: =U16/(W4-U20) -> 0 | W16: =IF(V16=0,0,(V16*((LOG(V16))/LOG(2)))) -> 0 | Y16: =N16 -> 2112 | Z16: =COUNTIF(L7:L8,Y16) -> 0 | AA16: =Z16/(AB4-Z20) -> 0 | AB16: =IF(AA16=0,0,(AA16*((LOG(AA16))/LOG(2)))) -> 0 | AD16: =N16 -> 2112 | AE16: =COUNTIF(L8:L8,AD16) -> 0 | AF16: =AE16/(AG4-AE20) -> 0 | AG16: =IF(AF16=0,0,(AF16*((LOG(AF16))/LOG(2)))) -> 0 | AI16: =N16 -> 2112 | AJ16: =COUNTIF(L8:L9,AI16) -> 0 | AK16: =AJ16/(AL4-AJ20) -> 0 | AL16: =IF(AK16=0,0,(AK16*((LOG(AK16))/LOG(2)))) -> 0 | AN16: =N16 -> 2112 | AO16: =COUNTIF(L9:L9,AN16) -> 0 | AP16: =AO16/(AQ4-AO20) ->  | AQ16: =IF(AP16=0,0,(AP16*((LOG(AP16))/LOG(2)))) ->  | AS16: =N16 -> 2112 | AT16: =COUNTIF(L9:L10,AS16) -> 0 | AU16: =AT16/(AV4-AT20) ->  | AV16: =IF(AU16=0,0,(AU16*((LOG(AU16))/LOG(2)))) -> 
N17: 2121 | O17: =COUNTIF($L$7:$L$500,N17) -> 0 | P17: =O17/$Q$4 -> 0 | Q17: =IF(P17=0,0,(P17*((LOG(P17))/LOG(2)))) -> 0 | T17: =N17 -> 2121 | U17: =COUNTIF(L7:L7,T17) -> 0 | V17: =U17/(W4-U20) -> 0 | W17: =IF(V17=0,0,(V17*((LOG(V17))/LOG(2)))) -> 0 | Y17: =N17 -> 2121 | Z17: =COUNTIF(L7:L8,Y17) -> 0 | AA17: =Z17/(AB4-Z20) -> 0 | AB17: =IF(AA17=0,0,(AA17*((LOG(AA17))/LOG(2)))) -> 0 | AD17: =N17 -> 2121 | AE17: =COUNTIF(L8:L8,AD17) -> 0 | AF17: =AE17/(AG4-AE20) -> 0 | AG17: =IF(AF17=0,0,(AF17*((LOG(AF17))/LOG(2)))) -> 0 | AI17: =N17 -> 2121 | AJ17: =COUNTIF(L8:L9,AI17) -> 0 | AK17: =AJ17/(AL4-AJ20) -> 0 | AL17: =IF(AK17=0,0,(AK17*((LOG(AK17))/LOG(2)))) -> 0 | AN17: =N17 -> 2121 | AO17: =COUNTIF(L9:L9,AN17) -> 0 | AP17: =AO17/(AQ4-AO20) ->  | AQ17: =IF(AP17=0,0,(AP17*((LOG(AP17))/LOG(2)))) ->  | AS17: =N17 -> 2121 | AT17: =COUNTIF(L9:L10,AS17) -> 0 | AU17: =AT17/(AV4-AT20) ->  | AV17: =IF(AU17=0,0,(AU17*((LOG(AU17))/LOG(2)))) -> 
N18: 2122 | O18: =COUNTIF($L$7:$L$500,N18) -> 0 | P18: =O18/$Q$4 -> 0 | Q18: =IF(P18=0,0,(P18*((LOG(P18))/LOG(2)))) -> 0 | T18: =N18 -> 2122 | U18: =COUNTIF(L7:L7,T18) -> 0 | V18: =U18/(W4-U20) -> 0 | W18: =IF(V18=0,0,(V18*((LOG(V18))/LOG(2)))) -> 0 | Y18: =N18 -> 2122 | Z18: =COUNTIF(L7:L8,Y18) -> 0 | AA18: =Z18/(AB4-Z20) -> 0 | AB18: =IF(AA18=0,0,(AA18*((LOG(AA18))/LOG(2)))) -> 0 | AD18: =N18 -> 2122 | AE18: =COUNTIF(L8:L8,AD18) -> 0 | AF18: =AE18/(AG4-AE20) -> 0 | AG18: =IF(AF18=0,0,(AF18*((LOG(AF18))/LOG(2)))) -> 0 | AI18: =N18 -> 2122 | AJ18: =COUNTIF(L8:L9,AI18) -> 0 | AK18: =AJ18/(AL4-AJ20) -> 0 | AL18: =IF(AK18=0,0,(AK18*((LOG(AK18))/LOG(2)))) -> 0 | AN18: =N18 -> 2122 | AO18: =COUNTIF(L9:L9,AN18) -> 0 | AP18: =AO18/(AQ4-AO20) ->  | AQ18: =IF(AP18=0,0,(AP18*((LOG(AP18))/LOG(2)))) ->  | AS18: =N18 -> 2122 | AT18: =COUNTIF(L9:L10,AS18) -> 0 | AU18: =AT18/(AV4-AT20) ->  | AV18: =IF(AU18=0,0,(AU18*((LOG(AU18))/LOG(2)))) -> 
N19: 2211 | O19: =COUNTIF($L$7:$L$500,N19) -> 0 | P19: =O19/$Q$4 -> 0 | Q19: =IF(P19=0,0,(P19*((LOG(P19))/LOG(2)))) -> 0 | T19: =N19 -> 2211 | U19: =COUNTIF(L7:L7,T19) -> 0 | V19: =U19/(W4-U20) -> 0 | W19: =IF(V19=0,0,(V19*((LOG(V19))/LOG(2)))) -> 0 | Y19: =N19 -> 2211 | Z19: =COUNTIF(L7:L8,Y19) -> 0 | AA19: =Z19/(AB4-Z20) -> 0 | AB19: =IF(AA19=0,0,(AA19*((LOG(AA19))/LOG(2)))) -> 0 | AD19: =N19 -> 2211 | AE19: =COUNTIF(L8:L8,AD19) -> 0 | AF19: =AE19/(AG4-AE20) -> 0 | AG19: =IF(AF19=0,0,(AF19*((LOG(AF19))/LOG(2)))) -> 0 | AI19: =N19 -> 2211 | AJ19: =COUNTIF(L8:L9,AI19) -> 0 | AK19: =AJ19/(AL4-AJ20) -> 0 | AL19: =IF(AK19=0,0,(AK19*((LOG(AK19))/LOG(2)))) -> 0 | AN19: =N19 -> 2211 | AO19: =COUNTIF(L9:L9,AN19) -> 0 | AP19: =AO19/(AQ4-AO20) ->  | AQ19: =IF(AP19=0,0,(AP19*((LOG(AP19))/LOG(2)))) ->  | AS19: =N19 -> 2211 | AT19: =COUNTIF(L9:L10,AS19) -> 0 | AU19: =AT19/(AV4-AT20) ->  | AV19: =IF(AU19=0,0,(AU19*((LOG(AU19))/LOG(2)))) -> 
N20: 2212 | O20: =COUNTIF($L$7:$L$500,N20) -> 0 | P20: =O20/$Q$4 -> 0 | Q20: =IF(P20=0,0,(P20*((LOG(P20))/LOG(2)))) -> 0 | T20: =N20 -> 2212 | U20: =COUNTIF(L7:L7,T20) -> 0 | Y20: =N20 -> 2212 | Z20: =COUNTIF(L7:L8,Y20) -> 0 | AD20: =N20 -> 2212 | AE20: =COUNTIF(L8:L8,AD20) -> 0 | AI20: =N20 -> 2212 | AJ20: =COUNTIF(L8:L9,AI20) -> 0 | AN20: =N20 -> 2212 | AO20: =COUNTIF(L9:L9,AN20) -> 0 | AS20: =N20 -> 2212 | AT20: =COUNTIF(L9:L10,AS20) -> 0
N21: 2221 | O21: =COUNTIF($L$7:$L$500,N21) -> 0 | P21: =O21/$Q$4 -> 0 | Q21: =IF(P21=0,0,(P21*((LOG(P21))/LOG(2)))) -> 0 | T21: =N21 -> 2221 | U21: =COUNTIF(L7:L7,T21) -> 0 | V21: =U21/(W4-U20) -> 0 | W21: =IF(V21=0,0,(V21*((LOG(V21))/LOG(2)))) -> 0 | Y21: =N21 -> 2221 | Z21: =COUNTIF(L7:L8,Y21) -> 0 | AA21: =Z21/(AB4-Z20) -> 0 | AB21: =IF(AA21=0,0,(AA21*((LOG(AA21))/LOG(2)))) -> 0 | AD21: =N21 -> 2221 | AE21: =COUNTIF(L8:L8,AD21) -> 0 | AF21: =AE21/(AG4-AE20) -> 0 | AG21: =IF(AF21=0,0,(AF21*((LOG(AF21))/LOG(2)))) -> 0 | AI21: =N21 -> 2221 | AJ21: =COUNTIF(L8:L9,AI21) -> 0 | AK21: =AJ21/(AL4-AJ20) -> 0 | AL21: =IF(AK21=0,0,(AK21*((LOG(AK21))/LOG(2)))) -> 0 | AN21: =N21 -> 2221 | AO21: =COUNTIF(L9:L9,AN21) -> 0 | AP21: =AO21/(AQ4-AO20) ->  | AQ21: =IF(AP21=0,0,(AP21*((LOG(AP21))/LOG(2)))) ->  | AS21: =N21 -> 2221 | AT21: =COUNTIF(L9:L10,AS21) -> 0 | AU21: =AT21/(AV4-AT20) ->  | AV21: =IF(AU21=0,0,(AU21*((LOG(AU21))/LOG(2)))) -> 
N22: 2222 | O22: =COUNTIF($L$7:$L$500,N22) -> 0 | P22: =O22/$Q$4 -> 0 | Q22: =IF(P22=0,0,(P22*((LOG(P22))/LOG(2)))) -> 0 | T22: =N22 -> 2222 | U22: =COUNTIF(L7:L7,T22) -> 0 | V22: =U22/(W4-U20) -> 0 | W22: =IF(V22=0,0,(V22*((LOG(V22))/LOG(2)))) -> 0 | Y22: =N22 -> 2222 | Z22: =COUNTIF(L7:L8,Y22) -> 0 | AA22: =Z22/(AB4-Z20) -> 0 | AB22: =IF(AA22=0,0,(AA22*((LOG(AA22))/LOG(2)))) -> 0 | AD22: =N22 -> 2222 | AE22: =COUNTIF(L8:L8,AD22) -> 0 | AF22: =AE22/(AG4-AE20) -> 0 | AG22: =IF(AF22=0,0,(AF22*((LOG(AF22))/LOG(2)))) -> 0 | AI22: =N22 -> 2222 | AJ22: =COUNTIF(L8:L9,AI22) -> 0 | AK22: =AJ22/(AL4-AJ20) -> 0 | AL22: =IF(AK22=0,0,(AK22*((LOG(AK22))/LOG(2)))) -> 0 | AN22: =N22 -> 2222 | AO22: =COUNTIF(L9:L9,AN22) -> 0 | AP22: =AO22/(AQ4-AO20) ->  | AQ22: =IF(AP22=0,0,(AP22*((LOG(AP22))/LOG(2)))) ->  | AS22: =N22 -> 2222 | AT22: =COUNTIF(L9:L10,AS22) -> 0 | AU22: =AT22/(AV4-AT20) ->  | AV22: =IF(AU22=0,0,(AU22*((LOG(AU22))/LOG(2)))) -> 
P23: =SUM(P7:P22) -> 1 | Q23: =-SUM(Q7:Q22) -> 1 | V23: =SUM(V7:V22) -> 1 | W23: =-SUM(W7:W22) -> 0 | AA23: =SUM(AA7:AA22) -> 1 | AB23: =-SUM(AB7:AB22) -> 1 | AF23: =SUM(AF7:AF22) -> 1 | AG23: =-SUM(AG7:AG22) -> 0 | AK23: =SUM(AK7:AK22) -> 1 | AL23: =-SUM(AL7:AL22) -> 0 | AP23: =SUM(AP7:AP22) ->  | AQ23: =-SUM(AQ7:AQ22) ->  | AU23: =SUM(AU7:AU22) ->  | AV23: =-SUM(AV7:AV22) -> 
P24: U= | Q24: =Q23/(LOG(Q4)/LOG(2)) -> 1 | V24: U1= | W24: =W23/(LOG(W4)/LOG(2)) ->  | AA24: U2= | AB24: =AB23/(LOG(AB4)/LOG(2)) -> 1 | AF24: U3= | AG24: =AG23/(LOG(AG4)/LOG(2)) ->  | AK24: U4= | AL24: =AL23/(LOG(AL4)/LOG(2)) ->  | AP24: U5= | AQ24: =AQ23/(LOG(AQ4)/LOG(2)) ->  | AU24: U6= | AV24: =AV23/(LOG(AV4)/LOG(2)) -> 
N27: Total Target Seq
N28: =COUNTIF(L7:L9,G3) -> 0 | P28: 1 | Q28: 0 | R28: 1 | S28: 0 | T28: 1 | U28: 0
P29: % of reinforcement given in 6 equal intervals based on number of trials
P30: %_1 | Q30: %_2 | R30: %_3 | S30: %_4 | T30: %_5 | U30: %_6
O31: target sequence | P31: =$G$3 -> 2212 | Q31: =$G$3 -> 2212 | R31: =$G$3 -> 2212 | S31: =$G$3 -> 2212 | T31: =$G$3 -> 2212 | U31: =$G$3 -> 2212
O32: total reinforcement | P32: =U20 -> 0 | Q32: =Z20 -> 0 | R32: =AE20 -> 0 | S32: =AJ20 -> 0 | T32: =AO20 -> 0 | U32: =AT20 -> 0
O33: % target
O34: CCRF
O35: % CCRf
O36: average response rate | P36: =H7/P28 -> 108 | Q36: =(H7-H7)/Q28 ->  | R36: =(H8-H7)/R28 -> 3957 | S36: =(H8-H8)/S28 ->  | T36: =(H9-H8)/T28 -> -4065 | U36: =(H9-H9)/U28 -> 

Sheet !M117A2B.axt
A1: Report for:!M117A2B.axt
A2: Date: | B2: <date>
A3: Hen: | B3: <hen> | F3: Correct Sequence | G3: =Start!J2 -> 2212 | P3: Total Sequences in Data | Q3: =4994-COUNTBLANK(L7:L5000) -> 3 | V3: Total Sequences in Block Data | W3: =COUNTA(L7:L7) -> 1 | AA3: Total Sequences in Block Data | AB3: =COUNTA(L7:L8) -> 2 | AF3: Total Sequences in Block Data | AG3: =COUNTA(L8:L8) -> 1 | AK3: Total Sequences in Block Data | AL3: =COUNTA(L8:L9) -> 2 | AP3: Total Sequences in Block Data | AQ3: =COUNTA(L9:L9) -> 1 | AU3: Total Sequences in Block Data | AV3: =COUNTA(L9:L10) -> 1
P4: Total Sequences in Summary | Q4: =SUM(O7:O22) -> 2 | V4: Total Sequences in Block Summary | W4: =SUM(U7:U22) -> 1 | AA4: Total Sequences in Block Summary | AB4: =SUM(Z7:Z22) -> 2 | AF4: Total Sequences in Block Summary | AG4: =SUM(AE7:AE22) -> 1 | AK4: Total Sequences in Block Summary | AL4: =SUM(AJ7:AJ22) -> 1 | AP4: Total Sequences in Block Summary | AQ4: =SUM(AO7:AO22) -> 0 | AU4: Total Sequences in Block Summary | AV4: =SUM(AT7:AT22) -> 0
T5: Block 1 | Y5: Block 2 | AD5: Block 3 | AI5: Block 4 | AN5: Block 5 | AS5: Block 6
A6: Sequence Component 1 | B6: Time 1 | C6: Sequence Component 2 | D6: Time 2 | E6: Sequence Component 3 | F6: Time 3 | G6: Sequence Component 4 | H6: Time 4 | I6: Sequence Component 5 | J6: Time 5 | K6: Correct? 0=No 1=Yes | L6: Sequence | N6: Frequency | P6: Relative Frequency | Q6: Variability | T6: Frequency | V6: Relative Frequency | W6: Variability | Y6: Frequency | AA6: Relative Frequency | AB6: Variability | AD6: Frequency | AF6: Relative Frequency | AG6: Variability | AI6: Frequency | AK6: Relative Frequency | AL6: Variability | AN6: Frequency | AP6: Relative Frequency | AQ6: Variability | AS6: Frequency | AU6: Relative Frequency | AV6: Variability
A7: 21 | B7: 130 | C7: 12 | D7: 164 | E7: 13 | F7: 476 | G7: 14 | H7: 489 | K7: 0 | L7: 2111 | N7: 1111 | O7: =COUNTIF($L$7:$L$500,N7) -> 0 | P7: =O7/$Q$4 -> 0 | Q7: =IF(P7=0,0,(P7*((LOG(P7))/LOG(2)))) -> 0 | T7: =N7 -> 1111 | U7: =COUNTIF(L7:L7,T7) -> 0 | V7: =U7/(W4-U20) -> 0 | W7: =IF(V7=0,0,(V7*((LOG(V7))/LOG(2)))) -> 0 | Y7: =N7 -> 1111 | Z7: =COUNTIF(L7:L8,Y7) -> 0 | AA7: =Z7/(AB4-Z20) -> 0 | AB7: =IF(AA7=0,0,(AA7*((LOG(AA7))/LOG(2)))) -> 0 | AD7: =N7 -> 1111 | AE7: =COUNTIF(L8:L8,AD7) -> 0 | AF7: =AE7/(AG4-AE20) -> 0 | AG7: =IF(AF7=0,0,(AF7*((LOG(AF7))/LOG(2)))) -> 0 | AI7: =N7 -> 1111 | AJ7: =COUNTIF(L8:L9,AI7) -> 0 | AK7: =AJ7/(AL4-AJ20) -> 0 | AL7: =IF(AK7=0,0,(AK7*((LOG(AK7))/LOG(2)))) -> 0 | AN7: =N7 -> 1111 | AO7: =COUNTIF(L9:L9,AN7) -> 0 | AP7: =AO7/(AQ4-AO20) ->  | AQ7: =IF(AP7=0,0,(AP7*((LOG(AP7))/LOG(2)))) ->  | AS7: =N7 -> 1111 | AT7: =COUNTIF(L9:L10,AS7) -> 0 | AU7: =AT7/(AV4-AT20) ->  | AV7: =IF(AU7=0,0,(AU7*((LOG(AU7))/LOG(2)))) -> 
A8: 12 | B8: 769 | C8: 14 | D8: 773 | E8: 13 | F8: 783 | G8: 23 | H8: 790 | K8: 0 | L8: 1112 | N8: 1112 | O8: =COUNTIF($L$7:$L$500,N8) -> 1 | P8: =O8/$Q$4 -> 0.5 | Q8: =IF(P8=0,0,(P8*((LOG(P8))/LOG(2)))) -> -0.5 | T8: =N8 -> 1112 | U8: =COUNTIF(L7:L7,T8) -> 0 | V8: =U8/(W4-U20) -> 0 | W8: =IF(V8=0,0,(V8*((LOG(V8))/LOG(2)))) -> 0 | Y8: =N8 -> 1112 | Z8: =COUNTIF(L7:L8,Y8) -> 1 | AA8: =Z8/(AB4-Z20) -> 0.5 | AB8: =IF(AA8=0,0,(AA8*((LOG(AA8))/LOG(2)))) -> -0.5 | AD8: =N8 -> 1112 | AE8: =COUNTIF(L8:L8,AD8) -> 1 | AF8: =AE8/(AG4-AE20) -> 1 | AG8: =IF(AF8=0,0,(AF8*((LOG(AF8))/LOG(2)))) -> 0 | AI8: =N8 -> 1112 | AJ8: =COUNTIF(L8:L9,AI8) -> 1 | AK8: =AJ8/(AL4-AJ20) -> 1 | AL8: =IF(AK8=0,0,(AK8*((LOG(AK8))/LOG(2)))) -> 0 | AN8: =N8 -> 1112 | AO8: =COUNTIF(L9:L9,AN8) -> 0 | AP8: =AO8/(AQ4-AO20) ->  | AQ8: =IF(AP8=0,0,(AP8*((LOG(AP8))/LOG(2)))) ->  | AS8: =N8 -> 1112 | AT8: =COUNTIF(L9:L10,AS8) -> 0 | AU8: =AT8/(AV4-AT20) ->  | AV8: =IF(AU8=0,0,(AU8*((LOG(AU8))/LOG(2)))) -> 
A9: 21 | B9: 2369 | C9: 12 | D9: 2401 | L9: 21 | N9: 1121 | O9: =COUNTIF($L$7:$L$500,N9) -> 0 | P9: =O9/$Q$4 -> 0 | Q9: =IF(P9=0,0,(P9*((LOG(P9))/LOG(2)))) -> 0 | T9: =N9 -> 1121 | U9: =COUNTIF(L7:L7,T9) -> 0 | V9: =U9/(W4-U20) -> 0 | W9: =IF(V9=0,0,(V9*((LOG(V9))/LOG(2)))) -> 0 | Y9: =N9 -> 1121 | Z9: =COUNTIF(L7:L8,Y9) -> 0 | AA9: =Z9/(AB4-Z20) -> 0 | AB9: =IF(AA9=0,0,(AA9*((LOG(AA9))/LOG(2)))) -> 0 | AD9: =N9 -> 1121 | AE9: =COUNTIF(L8:L8,AD9) -> 0 | AF9: =AE9/(AG4-AE20) -> 0 | AG9: =IF(AF9=0,0,(AF9*((LOG(AF9))/LOG(2)))) -> 0 | AI9: =N9 -> 1121 | AJ9: =COUNTIF(L8:L9,AI9) -> 0 | AK9: =AJ9/(AL4-AJ20) -> 0 | AL9: =IF(AK9=0,0,(AK9*((LOG(AK9))/LOG(2)))) -> 0 | AN9: =N9 -> 1121 | AO9: =COUNTIF(L9:L9,AN9) -> 0 | AP9: =AO9/(AQ4-AO20) ->  | AQ9: =IF(AP9=0,0,(AP9*((LOG(AP9))/LOG(2)))) ->  | AS9: =N9 -> 1121 | AT9: =COUNTIF(L9:L10,AS9) -> 0 | AU9: =AT9/(AV4-AT20) ->  | AV9: =IF(AU9=0,0,(AU9*((LOG(AU9))/LOG(2)))) -> 
N10: 1122 | O10: =COUNTIF($L$7:$L$500,N10) -> 0 | P10: =O10/$Q$4 -> 0 | Q10: =IF(P10=0,0,(P10*((LOG(P10))/LOG(2)))) -> 0 | T10: =N10 -> 1122 | U10: =COUNTIF(L7:L7,T10) -> 0 | V10: =U10/(W4-U20) -> 0 | W10: =IF(V10=0,0,(V10*((LOG(V10))/LOG(2)))) -> 0 | Y10: =N10 -> 1122 | Z10: =COUNTIF(L7:L8,Y10) -> 0 | AA10: =Z10/(AB4-Z20) -> 0 | AB10: =IF(AA10=0,0,(AA10*((LOG(AA10))/LOG(2)))) -> 0 | AD10: =N10 -> 1122 | AE10: =COUNTIF(L8:L8,AD10) -> 0 | AF10: =AE10/(AG4-AE20) -> 0 | AG10: =IF(AF10=0,0,(AF10*((LOG(AF10))/LOG(2)))) -> 0 | AI10: =N10 -> 1122 | AJ10: =COUNTIF(L8:L9,AI10) -> 0 | AK10: =AJ10/(AL4-AJ20) -> 0 | AL10: =IF(AK10=0,0,(AK10*((LOG(AK10))/LOG(2)))) -> 0 | AN10: =N10 -> 1122 | AO10: =COUNTIF(L9:L9,AN10) -> 0 | AP10: =AO10/(AQ4-AO20) ->  | AQ10: =IF(AP10=0,0,(AP10*((LOG(AP10))/LOG(2)))) ->  | AS10: =N10 -> 1122 | AT10: =COUNTIF(L9:L10,AS10) -> 0 | AU10: =AT10/(AV4-AT20) ->  | AV10: =IF(AU10=0,0,(AU10*((LOG(AU10))/LOG(2)))) -> 
N11: 1211 | O11: =COUNTIF($L$7:$L$500,N11) -> 0 | P11: =O11/$Q$4 -> 0 | Q11: =IF(P11=0,0,(P11*((LOG(P11))/LOG(2)))) -> 0 | T11: =N11 -> 1211 | U11: =COUNTIF(L7:L7,T11) -> 0 | V11: =U11/(W4-U20) -> 0 | W11: =IF(V11=0,0,(V11*((LOG(V11))/LOG(2)))) -> 0 | Y11: =N11 -> 1211 | Z11: =COUNTIF(L7:L8,Y11) -> 0 | AA11: =Z11/(AB4-Z20) -> 0 | AB11: =IF(AA11=0,0,(AA11*((LOG(AA11))/LOG(2)))) -> 0 | AD11: =N11 -> 1211 | AE11: =COUNTIF(L8:L8,AD11) -> 0 | AF11: =AE11/(AG4-AE20) -> 0 | AG11: =IF(AF11=0,0,(AF11*((LOG(AF11))/LOG(2)))) -> 0 | AI11: =N11 -> 1211 | AJ11: =COUNTIF(L8:L9,AI11) -> 0 | AK11: =AJ11/(AL4-AJ20) -> 0 | AL11: =IF(AK11=0,0,(AK11*((LOG(AK11))/LOG(2)))) -> 0 | AN11: =N11 -> 1211 | AO11: =COUNTIF(L9:L9,AN11) -> 0 | AP11: =AO11/(AQ4-AO20) ->  | AQ11: =IF(AP11=0,0,(AP11*((LOG(AP11))/LOG(2)))) ->  | AS11: =N11 -> 1211 | AT11: =COUNTIF(L9:L10,AS11) -> 0 | AU11: =AT11/(AV4-AT20) ->  | AV11: =IF(AU11=0,0,(AU11*((LOG(AU11))/LOG(2)))) -> 
N12: 1212 | O12: =COUNTIF($L$7:$L$500,N12) -> 0 | P12: =O12/$Q$4 -> 0 | Q12: =IF(P12=0,0,(P12*((LOG(P12))/LOG(2)))) -> 0 | T12: =N12 -> 1212 | U12: =COUNTIF(L7:L7,T12) -> 0 | V12: =U12/(W4-U20) -> 0 | W12: =IF(V12=0,0,(V12*((LOG(V12))/LOG(2)))) -> 0 | Y12: =N12 -> 1212 | Z12: =COUNTIF(L7:L8,Y12) -> 0 | AA12: =Z12/(AB4-Z20) -> 0 | AB12: =IF(AA12=0,0,(AA12*((LOG(AA12))/LOG(2)))) -> 0 | AD12: =N12 -> 1212 | AE12: =COUNTIF(L8:L8,AD12) -> 0 | AF12: =AE12/(AG4-AE20) -> 0 | AG12: =IF(AF12=0,0,(AF12*((LOG(AF12))/LOG(2)))) -> 0 | AI12: =N12 -> 1212 | AJ12: =COUNTIF(L8:L9,AI12) -> 0 | AK12: =AJ12/(AL4-AJ20) -> 0 | AL12: =IF(AK12=0,0,(AK12*((LOG(AK12))/LOG(2)))) -> 0 | AN12: =N12 -> 1212 | AO12: =COUNTIF(L9:L9,AN12) -> 0 | AP12: =AO12/(AQ4-AO20) ->  | AQ12: =IF(AP12=0,0,(AP12*((LOG(AP12))/LOG(2)))) ->  | AS12: =N12 -> 1212 | AT12: =COUNTIF(L9:L10,AS12) -> 0 | AU12: =AT12/(AV4-AT20) ->  | AV12: =IF(AU12=0,0,(AU12*((LOG(AU12))/LOG(2)))) -> 
N13: 1221 | O13: =COUNTIF($L$7:$L$500,N13) -> 0 | P13: =O13/$Q$4 -> 0 | Q13: =IF(P13=0,0,(P13*((LOG(P13))/LOG(2)))) -> 0 | T13: =N13 -> 1221 | U13: =COUNTIF(L7:L7,T13) -> 0 | V13: =U13/(W4-U20) -> 0 | W13: =IF(V13=0,0,(V13*((LOG(V13))/LOG(2)))) -> 0 | Y13: =N13 -> 1221 | Z13: =COUNTIF(L7:L8,Y13) -> 0 | AA13: =Z13/(AB4-Z20) -> 0 | AB13: =IF(AA13=0,0,(AA13*((LOG(AA13))/LOG(2)))) -> 0 | AD13: =N13 -> 1221 | AE13: =COUNTIF(L8:L8,AD13) -> 0 | AF13: =AE13/(AG4-AE20) -> 0 | AG13: =IF(AF13=0,0,(AF13*((LOG(AF13))/LOG(2)))) -> 0 | AI13: =N13 -> 1221 | AJ13: =COUNTIF(L8:L9,AI13) -> 0 | AK13: =AJ13/(AL4-AJ20) -> 0 | AL13: =IF(AK13=0,0,(AK13*((LOG(AK13))/LOG(2)))) -> 0 | AN13: =N13 -> 1221 | AO13: =COUNTIF(L9:L9,AN13) -> 0 | AP13: =AO13/(AQ4-AO20) ->  | AQ13: =IF(AP13=0,0,(AP13*((LOG(AP13))/LOG(2)))) ->  | AS13: =N13 -> 1221 | AT13: =COUNTIF(L9:L10,AS13) -> 0 | AU13: =AT13/(AV4-AT20) ->  | AV13: =IF(AU13=0,0,(AU13*((LOG(AU13))/LOG(2)))) -> 
N14: 1222 | O14: =COUNTIF($L$7:$L$500,N14) -> 0 | P14: =O14/$Q$4 -> 0 | Q14: =IF(P14=0,0,(P14*((LOG(P14))/LOG(2)))) -> 0 | T14: =N14 -> 1222 | U14: =COUNTIF(L7:L7,T14) -> 0 | V14: =U14/(W4-U20) -> 0 | W14: =IF(V14=0,0,(V14*((LOG(V14))/LOG(2)))) -> 0 | Y14: =N14 -> 1222 | Z14: =COUNTIF(L7:L8,Y14) -> 0 | AA14: =Z14/(AB4-Z20) -> 0 | AB14: =IF(AA14=0,0,(AA14*((LOG(AA14))/LOG(2)))) -> 0 | AD14: =N14 -> 1222 | AE14: =COUNTIF(L8:L8,AD14) -> 0 | AF14: =AE14/(AG4-AE20) -> 0 | AG14: =IF(AF14=0,0,(AF14*((LOG(AF14))/LOG(2)))) -> 0 | AI14: =N14 -> 1222 | AJ14: =COUNTIF(L8:L9,AI14) -> 0 | AK14: =AJ14/(AL4-AJ20) -> 0 | AL14: =IF(AK14=0,0,(AK14*((LOG(AK14))/LOG(2)))) -> 0 | AN14: =N14 -> 1222 | AO14: =COUNTIF(L9:L9,AN14) -> 0 | AP14: =AO14/(AQ4-AO20) ->  | AQ14: =IF(AP14=0,0,(AP14*((LOG(AP14))/LOG(2)))) ->  | AS14: =N14 -> 1222 | AT14: =COUNTIF(L9:L10,AS14) -> 0 | AU14: =AT14/(AV4-AT20) ->  | AV14: =IF(AU14=0,0,(AU14*((LOG(AU14))/LOG(2)))) -> 
N15: 2111 | O15: =COUNTIF($L$7:$L$500,N15) -> 1 | P15: =O15/$Q$4 -> 0.5 | Q15: =IF(P15=0,0,(P15*((LOG(P15))/LOG(2)))) -> -0.5 | T15: =N15 -> 2111 | U15: =COUNTIF(L7:L7,T15) -> 1 | V15: =U15/(W4-U20) -> 1 | W15: =IF(V15=0,0,(V15*((LOG(V15))/LOG(2)))) -> 0 | Y15: =N15 -> 2111 | Z15: =COUNTIF(L7:L8,Y15) -> 1 | AA15: =Z15/(AB4-Z20) -> 0.5 | AB15: =IF(AA15=0,0,(AA15*((LOG(AA15))/LOG(2)))) -> -0.5 | AD15: =N15 -> 2111 | AE15: =COUNTIF(L8:L8,AD15) -> 0 | AF15: =AE15/(AG4-AE20) -> 0 | AG15: =IF(AF15=0,0,(AF15*((LOG(AF15))/LOG(2)))) -> 0 | AI15: =N15 -> 2111 | AJ15: =COUNTIF(L8:L9,AI15) -> 0 | AK15: =AJ15/(AL4-AJ20) -> 0 | AL15: =IF(AK15=0,0,(AK15*((LOG(AK15))/LOG(2)))) -> 0 | AN15: =N15 -> 2111 | AO15: =COUNTIF(L9:L9,AN15) -> 0 | AP15: =AO15/(AQ4-AO20) ->  | AQ15: =IF(AP15=0,0,(AP15*((LOG(AP15))/LOG(2)))) ->  | AS15: =N15 -> 2111 | AT15: =COUNTIF(L9:L10,AS15) -> 0 | AU15: =AT15/(AV4-AT20) ->  | AV15: =IF(AU15=0,0,(AU15*((LOG(AU15))/LOG(2)))) -> 
N16: 2112 | O16: =COUNTIF($L$7:$L$500,N16) -> 0 | P16: =O16/$Q$4 -> 0 | Q16: =IF(P16=0,0,(P16*((LOG(P16))/LOG(2)))) -> 0 | T16: =N16 -> 2112 | U16: =COUNTIF(L7:L7,T16) -> 0 | V16: =U16/(W4-U20) -> 0 | W16: =IF(V16=0,0,(V16*((LOG(V16))/LOG(2)))) -> 0 | Y16: =N16 -> 2112 | Z16: =COUNTIF(L7:L8,Y16) -> 0 | AA16: =Z16/(AB4-Z20) -> 0 | AB16: =IF(AA16=0,0,(AA16*((LOG(AA16))/LOG(2)))) -> 0 | AD16: =N16 -> 2112 | AE16: =COUNTIF(L8:L8,AD16) -> 0 | AF16: =AE16/(AG4-AE20) -> 0 | AG16: =IF(AF16=0,0,(AF16*((LOG(AF16))/LOG(2)))) -> 0 | AI16: =N16 -> 2112 | AJ16: =COUNTIF(L8:L9,AI16) -> 0 | AK16: =AJ16/(AL4-AJ20) -> 0 | AL16: =IF(AK16=0,0,(AK16*((LOG(AK16))/LOG(2)))) -> 0 | AN16: =N16 -> 2112 | AO16: =COUNTIF(L9:L9,AN16) -> 0 | AP16: =AO16/(AQ4-AO20) ->  | AQ16: =IF(AP16=0,0,(AP16*((LOG(AP16))/LOG(2)))) ->  | AS16: =N16 -> 2112 | AT16: =COUNTIF(L9:L10,AS16) -> 0 | AU16: =AT16/(AV4-AT20) ->  | AV16: =IF(AU16=0,0,(AU16*((LOG(AU16))/LOG(2)))) -> 
N17: 2121 | O17: =COUNTIF($L$7:$L$500,N17) -> 0 | P17: =O17/$Q$4 -> 0 | Q17: =IF(P17=0,0,(P17*((LOG(P17))/LOG(2)))) -> 0 | T17: =N17 -> 2121 | U17: =COUNTIF(L7:L7,T17) -> 0 | V17: =U17/(W4-U20) -> 0 | W17: =IF(V17=0,0,(V17*((LOG(V17))/LOG(2)))) -> 0 | Y17: =N17 -> 2121 | Z17: =COUNTIF(L7:L8,Y17) -> 0 | AA17: =Z17/(AB4-Z20) -> 0 | AB17: =IF(AA17=0,0,(AA17*((LOG(AA17))/LOG(2)))) -> 0 | AD17: =N17 -> 2121 | AE17: =COUNTIF(L8:L8,AD17) -> 0 | AF17: =AE17/(AG4-AE20) -> 0 | AG17: =IF(AF17=0,0,(AF17*((LOG(AF17))/LOG(2)))) -> 0 | AI17: =N17 -> 2121 | AJ17: =COUNTIF(L8:L9,AI17) -> 0 | AK17: =AJ17/(AL4-AJ20) -> 0 | AL17: =IF(AK17=0,0,(AK17*((LOG(AK17))/LOG(2)))) -> 0 | AN17: =N17 -> 2121 | AO17: =COUNTIF(L9:L9,AN17) -> 0 | AP17: =AO17/(AQ4-AO20) ->  | AQ17: =IF(AP17=0,0,(AP17*((LOG(AP17))/LOG(2)))) ->  | AS17: =N17 -> 2121 | AT17: =COUNTIF(L9:L10,AS17) -> 0 | AU17: =AT17/(AV4-AT20) ->  | AV17: =IF(AU17=0,0,(AU17*((LOG(AU17))/LOG(2)))) -> 
N18: 2122 | O18: =COUNTIF($L$7:$L$500,N18) -> 0 | P18: =O18/$Q$4 -> 0 | Q18: =IF(P18=0,0,(P18*((LOG(P18))/LOG(2)))) -> 0 | T18: =N18 -> 2122 | U18: =COUNTIF(L7:L7,T18) -> 0 | V18: =U18/(W4-U20) -> 0 | W18: =IF(V18=0,0,(V18*((LOG(V18))/LOG(2)))) -> 0 | Y18: =N18 -> 2122 | Z18: =COUNTIF(L7:L8,Y18) -> 0 | AA18: =Z18/(AB4-Z20) -> 0 | AB18: =IF(AA18=0,0,(AA18*((LOG(AA18))/LOG(2)))) -> 0 | AD18: =N18 -> 2122 | AE18: =COUNTIF(L8:L8,AD18) -> 0 | AF18: =AE18/(AG4-AE20) -> 0 | AG18: =IF(AF18=0,0,(AF18*((LOG(AF18))/LOG(2)))) -> 0 | AI18: =N18 -> 2122 | AJ18: =COUNTIF(L8:L9,AI18) -> 0 | AK18: =AJ18/(AL4-AJ20) -> 0 | AL18: =IF(AK18=0,0,(AK18*((LOG(AK18))/LOG(2)))) -> 0 | AN18: =N18 -> 2122 | AO18: =COUNTIF(L9:L9,AN18) -> 0 | AP18: =AO18/(AQ4-AO20) ->  | AQ18: =IF(AP18=0,0,(AP18*((LOG(AP18))/LOG(2)))) ->  | AS18: =N18 -> 2122 | AT18: =COUNTIF(L9:L10,AS18) -> 0 | AU18: =AT18/(AV4-AT20) ->  | AV18: =IF(AU18=0,0,(AU18*((LOG(AU18))/LOG(2)))) -> 
N19: 2211 | O19: =COUNTIF($L$7:$L$500,N19) -> 0 | P19: =O19/$Q$4 -> 0 | Q19: =IF(P19=0,0,(P19*((LOG(P19))/LOG(2)))) -> 0 | T19: =N19 -> 2211 | U19: =COUNTIF(L7:L7,T19) -> 0 | V19: =U19/(W4-U20) -> 0 | W19: =IF(V19=0,0,(V19*((LOG(V19))/LOG(2)))) -> 0 | Y19: =N19 -> 2211 | Z19: =COUNTIF(L7:L8,Y19) -> 0 | AA19: =Z19/(AB4-Z20) -> 0 | AB19: =IF(AA19=0,0,(AA19*((LOG(AA19))/LOG(2)))) -> 0 | AD19: =N19 -> 2211 | AE19: =COUNTIF(L8:L8,AD19) -> 0 | AF19: =AE19/(AG4-AE20) -> 0 | AG19: =IF(AF19=0,0,(AF19*((LOG(AF19))/LOG(2)))) -> 0 | AI19: =N19 -> 2211 | AJ19: =COUNTIF(L8:L9,AI19) -> 0 | AK19: =AJ19/(AL4-AJ20) -> 0 | AL19: =IF(AK19=0,0,(AK19*((LOG(AK19))/LOG(2)))) -> 0 | AN19: =N19 -> 2211 | AO19: =COUNTIF(L9:L9,AN19) -> 0 | AP19: =AO19/(AQ4-AO20) ->  | AQ19: =IF(AP19=0,0,(AP19*((LOG(AP19))/LOG(2)))) ->  | AS19: =N19 -> 2211 | AT19: =COUNTIF(L9:L10,AS19) -> 0 | AU19: =AT19/(AV4-AT20) ->  | AV19: =IF(AU19=0,0,(AU19*((LOG(AU19))/LOG(2)))) -> 
N20: 2212 | O20: =COUNTIF($L$7:$L$500,N20) -> 0 | P20: =O20/$Q$4 -> 0 | Q20: =IF(P20=0,0,(P20*((LOG(P20))/LOG(2)))) -> 0 | T20: =N20 -> 2212 | U20: =COUNTIF(L7:L7,T20) -> 0 | Y20: =N20 -> 2212 | Z20: =COUNTIF(L7:L8,Y20) -> 0 | AD20: =N20 -> 2212 | AE20: =COUNTIF(L8:L8,AD20) -> 0 | AI20: =N20 -> 2212 | AJ20: =COUNTIF(L8:L9,AI20) -> 0 | AN20: =N20 -> 2212 | AO20: =COUNTIF(L9:L9,AN20) -> 0 | AS20: =N20 -> 2212 | AT20: =COUNTIF(L9:L10,AS20) -> 0
N21: 2221 | O21: =COUNTIF($L$7:$L$500,N21) -> 0 | P21: =O21/$Q$4 -> 0 | Q21: =IF(P21=0,0,(P21*((LOG(P21))/LOG(2)))) -> 0 | T21: =N21 -> 2221 | U21: =COUNTIF(L7:L7,T21) -> 0 | V21: =U21/(W4-U20) -> 0 | W21: =IF(V21=0,0,(V21*((LOG(V21))/LOG(2)))) -> 0 | Y21: =N21 -> 2221 | Z21: =COUNTIF(L7:L8,Y21) -> 0 | AA21: =Z21/(AB4-Z20) -> 0 | AB21: =IF(AA21=0,0,(AA21*((LOG(AA21))/LOG(2)))) -> 0 | AD21: =N21 -> 2221 | AE21: =COUNTIF(L8:L8,AD21) -> 0 | AF21: =AE21/(AG4-AE20) -> 0 | AG21: =IF(AF21=0,0,(AF21*((LOG(AF21))/LOG(2)))) -> 0 | AI21: =N21 -> 2221 | AJ21: =COUNTIF(L8:L9,AI21) -> 0 | AK21: =AJ21/(AL4-AJ20) -> 0 | AL21: =IF(AK21=0,0,(AK21*((LOG(AK21))/LOG(2)))) -> 0 | AN21: =N21 -> 2221 | AO21: =COUNTIF(L9:L9,AN21) -> 0 | AP21: =AO21/(AQ4-AO20) ->  | AQ21: =IF(AP21=0,0,(AP21*((LOG(AP21))/LOG(2)))) ->  | AS21: =N21 -> 2221 | AT21: =COUNTIF(L9:L10,AS21) -> 0 | AU21: =AT21/(AV4-AT20) ->  | AV21: =IF(AU21=0,0,(AU21*((LOG(AU21))/LOG(2)))) -> 
N22: 2222 | O22: =COUNTIF($L$7:$L$500,N22) -> 0 | P22: =O22/$Q$4 -> 0 | Q22: =IF(P22=0,0,(P22*((LOG(P22))/LOG(2)))) -> 0 | T22: =N22 -> 2222 | U22: =COUNTIF(L7:L7,T22) -> 0 | V22: =U22/(W4-U20) -> 0 | W22: =IF(V22=0,0,(V22*((LOG(V22))/LOG(2)))) -> 0 | Y22: =N22 -> 2222 | Z22: =COUNTIF(L7:L8,Y22) -> 0 | AA22: =Z22/(AB4-Z20) -> 0 | AB22: =IF(AA22=0,0,(AA22*((LOG(AA22))/LOG(2)))) -> 0 | AD22: =N22 -> 2222 | AE22: =COUNTIF(L8:L8,AD22) -> 0 | AF22: =AE22/(AG4-AE20) -> 0 | AG22: =IF(AF22=0,0,(AF22*((LOG(AF22))/LOG(2)))) -> 0 | AI22: =N22 -> 2222 | AJ22: =COUNTIF(L8:L9,AI22) -> 0 | AK22: =AJ22/(AL4-AJ20) -> 0 | AL22: =IF(AK22=0,0,(AK22*((LOG(AK22))/LOG(2)))) -> 0 | AN22: =N22 -> 2222 | AO22: =COUNTIF(L9:L9,AN22) -> 0 | AP22: =AO22/(AQ4-AO20) ->  | AQ22: =IF(AP22=0,0,(AP22*((LOG(AP22))/LOG(2)))) ->  | AS22: =N22 -> 2222 | AT22: =COUNTIF(L9:L10,AS22) -> 0 | AU22: =AT22/(AV4-AT20) ->  | AV22: =IF(AU22=0,0,(AU22*((LOG(AU22))/LOG(2)))) -> 
P23: =SUM(P7:P22) -> 1 | Q23: =-SUM(Q7:Q22) -> 1 | V23: =SUM(V7:V22) -> 1 | W23: =-SUM(W7:W22) -> 0 | AA23: =SUM(AA7:AA22) -> 1 | AB23: =-SUM(AB7:AB22) -> 1 | AF23: =SUM(AF7:AF22) -> 1 | AG23: =-SUM(AG7:AG22) -> 0 | AK23: =SUM(AK7:AK22) -> 1 | AL23: =-SUM(AL7:AL22) -> 0 | AP23: =SUM(AP7:AP22) ->  | AQ23: =-SUM(AQ7:AQ22) ->  | AU23: =SUM(AU7:AU22) ->  | AV23: =-SUM(AV7:AV22) -> 
P24: U= | Q24: =Q23/(LOG(Q4)/LOG(2)) -> 1 | V24: U1= | W24: =W23/(LOG(W4)/LOG(2)) ->  | AA24: U2= | AB24: =AB23/(LOG(AB4)/LOG(2)) -> 1 | AF24: U3= | AG24: =AG23/(LOG(AG4)/LOG(2)) ->  | AK24: U4= | AL24: =AL23/(LOG(AL4)/LOG(2)) ->  | AP24: U5= | AQ24: =AQ23/(LOG(AQ4)/LOG(2)) ->  | AU24: U6= | AV24: =AV23/(LOG(AV4)/LOG(2)) -> 
N27: Total Target Seq
N28: =COUNTIF(L7:L9,G3) -> 0 | P28: 1 | Q28: 0 | R28: 1 | S28: 0 | T28: 1 | U28: 0
P29: % of reinforcement given in 6 equal intervals based on number of trials
P30: %_1 | Q30: %_2 | R30: %_3 | S30: %_4 | T30: %_5 | U30: %_6
O31: target sequence | P31: =$G$3 -> 2212 | Q31: =$G$3 -> 2212 | R31: =$G$3 -> 2212 | S31: =$G$3 -> 2212 | T31: =$G$3 -> 2212 | U31: =$G$3 -> 2212
O32: total reinforcement | P32: =U20 -> 0 | Q32: =Z20 -> 0 | R32: =AE20 -> 0 | S32: =AJ20 -> 0 | T32: =AO20 -> 0 | U32: =AT20 -> 0
O33: % target
O34: CCRF
O35: % CCRf
O36: average response rate | P36: =H7/P28 -> 489 | Q36: =(H7-H7)/Q28 ->  | R36: =(H8-H7)/R28 -> 301 | S36: =(H8-H8)/S28 ->  | T36: =(H9-H8)/T28 -> -790 | U36: =(H9-H9)/U28 -> 

Sheet !M118B3B.axt
A1: Report for:!M118B3B.axt
A2: Date: | B2: <date>
A3: Hen: | B3: <hen> | F3: Correct Sequence | G3: =Start!J2 -> 2212 | P3: Total Sequences in Data | Q3: =4994-COUNTBLANK(L7:L5000) -> 2 | V3: Total Sequences in Block Data | W3: =COUNTA(L6:L7) -> 2 | AA3: Total Sequences in Block Data | AB3: =COUNTA(L7:L7) -> 1 | AF3: Total Sequences in Block Data | AG3: =COUNTA(L7:L8) -> 2 | AK3: Total Sequences in Block Data | AL3: =COUNTA(L7:L8) -> 2 | AP3: Total Sequences in Block Data | AQ3: =COUNTA(L8:L8) -> 1 | AU3: Total Sequences in Block Data | AV3: =COUNTA(L8:L9) -> 1
P4: Total Sequences in Summary | Q4: =SUM(O7:O22) -> 1 | V4: Total Sequences in Block Summary | W4: =SUM(U7:U22) -> 1 | AA4: Total Sequences in Block Summary | AB4: =SUM(Z7:Z22) -> 1 | AF4: Total Sequences in Block Summary | AG4: =SUM(AE7:AE22) -> 1 | AK4: Total Sequences in Block Summary | AL4: =SUM(AJ7:AJ22) -> 1 | AP4: Total Sequences in Block Summary | AQ4: =SUM(AO7:AO22) -> 0 | AU4: Total Sequences in Block Summary | AV4: =SUM(AT7:AT22) -> 0
T5: Block 1 | Y5: Block 2 | AD5: Block 3 | AI5: Block 4 | AN5: Block 5 | AS5: Block 6
A6: Sequence Component 1 | B6: Time 1 | C6: Sequence Component 2 | D6: Time 2 | E6: Sequence Component 3 | F6: Time 3 | G6: Sequence Component 4 | H6: Time 4 | I6: Sequence Component 5 | J6: Time 5 | K6: Correct? 0=No 1=Yes | L6: Sequence | N6: Frequency | P6: Relative Frequency | Q6: Variability | T6: Frequency | V6: Relative Frequency | W6: Variability | Y6: Frequency | AA6: Relative Frequency | AB6: Variability | AD6: Frequency | AF6: Relative Frequency | AG6: Variability | AI6: Frequency | AK6: Relative Frequency | AL6: Variability | AN6: Frequency | AP6: Relative Frequency | AQ6: Variability | AS6: Frequency | AU6: Relative Frequency | AV6: Variability
A7: 12 | B7: 3825 | C7: 14 | D7: 3833 | E7: 13 | F7: 5873 | G7: 23 | H7: 11402 | K7: 0 | L7: 1112 | N7: 1111 | O7: =COUNTIF($L$7:$L$500,N7) -> 0 | P7: =O7/$Q$4 -> 0 | Q7: =IF(P7=0,0,(P7*((LOG(P7))/LOG(2)))) -> 0 | T7: =N7 -> 1111 | U7: =COUNTIF(L6:L7,T7) -> 0 | V7: =U7/(W4-U20) -> 0 | W7: =IF(V7=0,0,(V7*((LOG(V7))/LOG(2)))) -> 0 | Y7: =N7 -> 1111 | Z7: =COUNTIF(L7:L7,Y7) -> 0 | AA7: =Z7/(AB4-Z20) -> 0 | AB7: =IF(AA7=0,0,(AA7*((LOG(AA7))/LOG(2)))) -> 0 | AD7: =N7 -> 1111 | AE7: =COUNTIF(L7:L8,AD7) -> 0 | AF7: =AE7/(AG4-AE20) -> 0 | AG7: =IF(AF7=0,0,(AF7*((LOG(AF7))/LOG(2)))) -> 0 | AI7: =N7 -> 1111 | AJ7: =COUNTIF(L7:L8,AI7) -> 0 | AK7: =AJ7/(AL4-AJ20) -> 0 | AL7: =IF(AK7=0,0,(AK7*((LOG(AK7))/LOG(2)))) -> 0 | AN7: =N7 -> 1111 | AO7: =COUNTIF(L8:L8,AN7) -> 0 | AP7: =AO7/(AQ4-AO20) ->  | AQ7: =IF(AP7=0,0,(AP7*((LOG(AP7))/LOG(2)))) ->  | AS7: =N7 -> 1111 | AT7: =COUNTIF(L8:L9,AS7) -> 0 | AU7: =AT7/(AV4-AT20) ->  | AV7: =IF(AU7=0,0,(AU7*((LOG(AU7))/LOG(2)))) -> 
A8: 12 | B8: 16882 | L8: 1 | N8: 1112 | O8: =COUNTIF($L$7:$L$500,N8) -> 1 | P8: =O8/$Q$4 -> 1 | Q8: =IF(P8=0,0,(P8*((LOG(P8))/LOG(2)))) -> 0 | T8: =N8 -> 1112 | U8: =COUNTIF(L6:L7,T8) -> 1 | V8: =U8/(W4-U20) -> 1 | W8: =IF(V8=0,0,(V8*((LOG(V8))/LOG(2)))) -> 0 | Y8: =N8 -> 1112 | Z8: =COUNTIF(L7:L7,Y8) -> 1 | AA8: =Z8/(AB4-Z20) -> 1 | AB8: =IF(AA8=0,0,(AA8*((LOG(AA8))/LOG(2)))) -> 0 | AD8: =N8 -> 1112 | AE8: =COUNTIF(L7:L8,AD8) -> 1 | AF8: =AE8/(AG4-AE20) -> 1 | AG8: =IF(AF8=0,0,(AF8*((LOG(AF8))/LOG(2)))) -> 0 | AI8: =N8 -> 1112 | AJ8: =COUNTIF(L7:L8,AI8) -> 1 | AK8: =AJ8/(AL4-AJ20) -> 1 | AL8: =IF(AK8=0,0,(AK8*((LOG(AK8))/LOG(2)))) -> 0 | AN8: =N8 -> 1112 | AO8: =COUNTIF(L8:L8,AN8) -> 0 | AP8: =AO8/(AQ4-AO20) ->  | AQ8: =IF(AP8=0,0,(AP8*((LOG(AP8))/LOG(2)))) ->  | AS8: =N8 -> 1112 | AT8: =COUNTIF(L8:L9,AS8) -> 0 | AU8: =AT8/(AV4-AT20) ->  | AV8: =IF(AU8=0,0,(AU8*((LOG(AU8))/LOG(2)))) -> 
N9: 1121 | O9: =COUNTIF($L$7:$L$500,N9) -> 0 | P9: =O9/$Q$4 -> 0 | Q9: =IF(P9=0,0,(P9*((LOG(P9))/LOG(2)))) -> 0 | T9: =N9 -> 1121 | U9: =COUNTIF(L6:L7,T9) -> 0 | V9: =U9/(W4-U20) -> 0 | W9: =IF(V9=0,0,(V9*((LOG(V9))/LOG(2)))) -> 0 | Y9: =N9 -> 1121 | Z9: =COUNTIF(L7:L7,Y9) -> 0 | AA9: =Z9/(AB4-Z20) -> 0 | AB9: =IF(AA9=0,0,(AA9*((LOG(AA9))/LOG(2)))) -> 0 | AD9: =N9 -> 1121 | AE9: =COUNTIF(L7:L8,AD9) -> 0 | AF9: =AE9/(AG4-AE20) -> 0 | AG9: =IF(AF9=0,0,(AF9*((LOG(AF9))/LOG(2)))) -> 0 | AI9: =N9 -> 1121 | AJ9: =COUNTIF(L7:L8,AI9) -> 0 | AK9: =AJ9/(AL4-AJ20) -> 0 | AL9: =IF(AK9=0,0,(AK9*((LOG(AK9))/LOG(2)))) -> 0 | AN9: =N9 -> 1121 | AO9: =COUNTIF(L8:L8,AN9) -> 0 | AP9: =AO9/(AQ4-AO20) ->  | AQ9: =IF(AP9=0,0,(AP9*((LOG(AP9))/LOG(2)))) ->  | AS9: =N9 -> 1121 | AT9: =COUNTIF(L8:L9,AS9) -> 0 | AU9: =AT9/(AV4-AT20) ->  | AV9: =IF(AU9=0,0,(AU9*((LOG(AU9))/LOG(2)))) -> 
N10: 1122 | O10: =COUNTIF($L$7:$L$500,N10) -> 0 | P10: =O10/$Q$4 -> 0 | Q10: =IF(P10=0,0,(P10*((LOG(P10))/LOG(2)))) -> 0 | T10: =N10 -> 1122 | U10: =COUNTIF(L6:L7,T10) -> 0 | V10: =U10/(W4-U20) -> 0 | W10: =IF(V10=0,0,(V10*((LOG(V10))/LOG(2)))) -> 0 | Y10: =N10 -> 1122 | Z10: =COUNTIF(L7:L7,Y10) -> 0 | AA10: =Z10/(AB4-Z20) -> 0 | AB10: =IF(AA10=0,0,(AA10*((LOG(AA10))/LOG(2)))) -> 0 | AD10: =N10 -> 1122 | AE10: =COUNTIF(L7:L8,AD10) -> 0 | AF10: =AE10/(AG4-AE20) -> 0 | AG10: =IF(AF10=0,0,(AF10*((LOG(AF10))/LOG(2)))) -> 0 | AI10: =N10 -> 1122 | AJ10: =COUNTIF(L7:L8,AI10) -> 0 | AK10: =AJ10/(AL4-AJ20) -> 0 | AL10: =IF(AK10=0,0,(AK10*((LOG(AK10))/LOG(2)))) -> 0 | AN10: =N10 -> 1122 | AO10: =COUNTIF(L8:L8,AN10) -> 0 | AP10: =AO10/(AQ4-AO20) ->  | AQ10: =IF(AP10=0,0,(AP10*((LOG(AP10))/LOG(2)))) ->  | AS10: =N10 -> 1122 | AT10: =COUNTIF(L8:L9,AS10) -> 0 | AU10: =AT10/(AV4-AT20) ->  | AV10: =IF(AU10=0,0,(AU10*((LOG(AU10))/LOG(2)))) -> 
N11: 1211 | O11: =COUNTIF($L$7:$L$500,N11) -> 0 | P11: =O11/$Q$4 -> 0 | Q11: =IF(P11=0,0,(P11*((LOG(P11))/LOG(2)))) -> 0 | T11: =N11 -> 1211 | U11: =COUNTIF(L6:L7,T11) -> 0 | V11: =U11/(W4-U20) -> 0 | W11: =IF(V11=0,0,(V11*((LOG(V11))/LOG(2)))) -> 0 | Y11: =N11 -> 1211 | Z11: =COUNTIF(L7:L7,Y11) -> 0 | AA11: =Z11/(AB4-Z20) -> 0 | AB11: =IF(AA11=0,0,(AA11*((LOG(AA11))/LOG(2)))) -> 0 | AD11: =N11 -> 1211 | AE11: =COUNTIF(L7:L8,AD11) -> 0 | AF11: =AE11/(AG4-AE20) -> 0 | AG11: =IF(AF11=0,0,(AF11*((LOG(AF11))/LOG(2)))) -> 0 | AI11: =N11 -> 1211 | AJ11: =COUNTIF(L7:L8,AI11) -> 0 | AK11: =AJ11/(AL4-AJ20) -> 0 | AL11: =IF(AK11=0,0,(AK11*((LOG(AK11))/LOG(2)))) -> 0 | AN11: =N11 -> 1211 | AO11: =COUNTIF(L8:L8,AN11) -> 0 | AP11: =AO11/(AQ4-AO20) ->  | AQ11: =IF(AP11=0,0,(AP11*((LOG(AP11))/LOG(2)))) ->  | AS11: =N11 -> 1211 | AT11: =COUNTIF(L8:L9,AS11) -> 0 | AU11: =AT11/(AV4-AT20) ->  | AV11: =IF(AU11=0,0,(AU11*((LOG(AU11))/LOG(2)))) -> 
N12: 1212 | O12: =COUNTIF($L$7:$L$500,N12) -> 0 | P12: =O12/$Q$4 -> 0 | Q12: =IF(P12=0,0,(P12*((LOG(P12))/LOG(2)))) -> 0 | T12: =N12 -> 1212 | U12: =COUNTIF(L6:L7,T12) -> 0 | V12: =U12/(W4-U20) -> 0 | W12: =IF(V12=0,0,(V12*((LOG(V12))/LOG(2)))) -> 0 | Y12: =N12 -> 1212 | Z12: =COUNTIF(L7:L7,Y12) -> 0 | AA12: =Z12/(AB4-Z20) -> 0 | AB12: =IF(AA12=0,0,(AA12*((LOG(AA12))/LOG(2)))) -> 0 | AD12: =N12 -> 1212 | AE12: =COUNTIF(L7:L8,AD12) -> 0 | AF12: =AE12/(AG4-AE20) -> 0 | AG12: =IF(AF12=0,0,(AF12*((LOG(AF12))/LOG(2)))) -> 0 | AI12: =N12 -> 1212 | AJ12: =COUNTIF(L7:L8,AI12) -> 0 | AK12: =AJ12/(AL4-AJ20) -> 0 | AL12: =IF(AK12=0,0,(AK12*((LOG(AK12))/LOG(2)))) -> 0 | AN12: =N12 -> 1212 | AO12: =COUNTIF(L8:L8,AN12) -> 0 | AP12: =AO12/(AQ4-AO20) ->  | AQ12: =IF(AP12=0,0,(AP12*((LOG(AP12))/LOG(2)))) ->  | AS12: =N12 -> 1212 | AT12: =COUNTIF(L8:L9,AS12) -> 0 | AU12: =AT12/(AV4-AT20) ->  | AV12: =IF(AU12=0,0,(AU12*((LOG(AU12))/LOG(2)))) -> 
N13: 1221 | O13: =COUNTIF($L$7:$L$500,N13) -> 0 | P13: =O13/$Q$4 -> 0 | Q13: =IF(P13=0,0,(P13*((LOG(P13))/LOG(2)))) -> 0 | T13: =N13 -> 1221 | U13: =COUNTIF(L6:L7,T13) -> 0 | V13: =U13/(W4-U20) -> 0 | W13: =IF(V13=0,0,(V13*((LOG(V13))/LOG(2)))) -> 0 | Y13: =N13 -> 1221 | Z13: =COUNTIF(L7:L7,Y13) -> 0 | AA13: =Z13/(AB4-Z20) -> 0 | AB13: =IF(AA13=0,0,(AA13*((LOG(AA13))/LOG(2)))) -> 0 | AD13: =N13 -> 1221 | AE13: =COUNTIF(L7:L8,AD13) -> 0 | AF13: =AE13/(AG4-AE20) -> 0 | AG13: =IF(AF13=0,0,(AF13*((LOG(AF13))/LOG(2)))) -> 0 | AI13: =N13 -> 1221 | AJ13: =COUNTIF(L7:L8,AI13) -> 0 | AK13: =AJ13/(AL4-AJ20) -> 0 | AL13: =IF(AK13=0,0,(AK13*((LOG(AK13))/LOG(2)))) -> 0 | AN13: =N13 -> 1221 | AO13: =COUNTIF(L8:L8,AN13) -> 0 | AP13: =AO13/(AQ4-AO20) ->  | AQ13: =IF(AP13=0,0,(AP13*((LOG(AP13))/LOG(2)))) ->  | AS13: =N13 -> 1221 | AT13: =COUNTIF(L8:L9,AS13) -> 0 | AU13: =AT13/(AV4-AT20) ->  | AV13: =IF(AU13=0,0,(AU13*((LOG(AU13))/LOG(2)))) -> 
N14: 1222 | O14: =COUNTIF($L$7:$L$500,N14) -> 0 | P14: =O14/$Q$4 -> 0 | Q14: =IF(P14=0,0,(P14*((LOG(P14))/LOG(2)))) -> 0 | T14: =N14 -> 1222 | U14: =COUNTIF(L6:L7,T14) -> 0 | V14: =U14/(W4-U20) -> 0 | W14: =IF(V14=0,0,(V14*((LOG(V14))/LOG(2)))) -> 0 | Y14: =N14 -> 1222 | Z14: =COUNTIF(L7:L7,Y14) -> 0 | AA14: =Z14/(AB4-Z20) -> 0 | AB14: =IF(AA14=0,0,(AA14*((LOG(AA14))/LOG(2)))) -> 0 | AD14: =N14 -> 1222 | AE14: =COUNTIF(L7:L8,AD14) -> 0 | AF14: =AE14/(AG4-AE20) -> 0 | AG14: =IF(AF14=0,0,(AF14*((LOG(AF14))/LOG(2)))) -> 0 | AI14: =N14 -> 1222 | AJ14: =COUNTIF(L7:L8,AI14) -> 0 | AK14: =AJ14/(AL4-AJ20) -> 0 | AL14: =IF(AK14=0,0,(AK14*((LOG(AK14))/LOG(2)))) -> 0 | AN14: =N14 -> 1222 | AO14: =COUNTIF(L8:L8,AN14) -> 0 | AP14: =AO14/(AQ4-AO20) ->  | AQ14: =IF(AP14=0,0,(AP14*((LOG(AP14))/LOG(2)))) ->  | AS14: =N14 -> 1222 | AT14: =COUNTIF(L8:L9,AS14) -> 0 | AU14: =AT14/(AV4-AT20) ->  | AV14: =IF(AU14=0,0,(AU14*((LOG(AU14))/LOG(2)))) -> 
N15: 2111 | O15: =COUNTIF($L$7:$L$500,N15) -> 0 | P15: =O15/$Q$4 -> 0 | Q15: =IF(P15=0,0,(P15*((LOG(P15))/LOG(2)))) -> 0 | T15: =N15 -> 2111 | U15: =COUNTIF(L6:L7,T15) -> 0 | V15: =U15/(W4-U20) -> 0 | W15: =IF(V15=0,0,(V15*((LOG(V15))/LOG(2)))) -> 0 | Y15: =N15 -> 2111 | Z15: =COUNTIF(L7:L7,Y15) -> 0 | AA15: =Z15/(AB4-Z20) -> 0 | AB15: =IF(AA15=0,0,(AA15*((LOG(AA15))/LOG(2)))) -> 0 | AD15: =N15 -> 2111 | AE15: =COUNTIF(L7:L8,AD15) -> 0 | AF15: =AE15/(AG4-AE20) -> 0 | AG15: =IF(AF15=0,0,(AF15*((LOG(AF15))/LOG(2)))) -> 0 | AI15: =N15 -> 2111 | AJ15: =COUNTIF(L7:L8,AI15) -> 0 | AK15: =AJ15/(AL4-AJ20) -> 0 | AL15: =IF(AK15=0,0,(AK15*((LOG(AK15))/LOG(2)))) -> 0 | AN15: =N15 -> 2111 | AO15: =COUNTIF(L8:L8,AN15) -> 0 | AP15: =AO15/(AQ4-AO20) ->  | AQ15: =IF(AP15=0,0,(AP15*((LOG(AP15))/LOG(2)))) ->  | AS15: =N15 -> 2111 | AT15: =COUNTIF(L8:L9,AS15) -> 0 | AU15: =AT15/(AV4-AT20) ->  | AV15: =IF(AU15=0,0,(AU15*((LOG(AU15))/LOG(2)))) -> 
N16: 2112 | O16: =COUNTIF($L$7:$L$500,N16) -> 0 | P16: =O16/$Q$4 -> 0 | Q16: =IF(P16=0,0,(P16*((LOG(P16))/LOG(2)))) -> 0 | T16: =N16 -> 2112 | U16: =COUNTIF(L6:L7,T16) -> 0 | V16: =U16/(W4-U20) -> 0 | W16: =IF(V16=0,0,(V16*((LOG(V16))/LOG(2)))) -> 0 | Y16: =N16 -> 2112 | Z16: =COUNTIF(L7:L7,Y16) -> 0 | AA16: =Z16/(AB4-Z20) -> 0 | AB16: =IF(AA16=0,0,(AA16*((LOG(AA16))/LOG(2)))) -> 0 | AD16: =N16 -> 2112 | AE16: =COUNTIF(L7:L8,AD16) -> 0 | AF16: =AE16/(AG4-AE20) -> 0 | AG16: =IF(AF16=0,0,(AF16*((LOG(AF16))/LOG(2)))) -> 0 | AI16: =N16 -> 2112 | AJ16: =COUNTIF(L7:L8,AI16) -> 0 | AK16: =AJ16/(AL4-AJ20) -> 0 | AL16: =IF(AK16=0,0,(AK16*((LOG(AK16))/LOG(2)))) -> 0 | AN16: =N16 -> 2112 | AO16: =COUNTIF(L8:L8,AN16) -> 0 | AP16: =AO16/(AQ4-AO20) ->  | AQ16: =IF(AP16=0,0,(AP16*((LOG(AP16))/LOG(2)))) ->  | AS16: =N16 -> 2112 | AT16: =COUNTIF(L8:L9,AS16) -> 0 | AU16: =AT16/(AV4-AT20) ->  | AV16: =IF(AU16=0,0,(AU16*((LOG(AU16))/LOG(2)))) -> 
N17: 2121 | O17: =COUNTIF($L$7:$L$500,N17) -> 0 | P17: =O17/$Q$4 -> 0 | Q17: =IF(P17=0,0,(P17*((LOG(P17))/LOG(2)))) -> 0 | T17: =N17 -> 2121 | U17: =COUNTIF(L6:L7,T17) -> 0 | V17: =U17/(W4-U20) -> 0 | W17: =IF(V17=0,0,(V17*((LOG(V17))/LOG(2)))) -> 0 | Y17: =N17 -> 2121 | Z17: =COUNTIF(L7:L7,Y17) -> 0 | AA17: =Z17/(AB4-Z20) -> 0 | AB17: =IF(AA17=0,0,(AA17*((LOG(AA17))/LOG(2)))) -> 0 | AD17: =N17 -> 2121 | AE17: =COUNTIF(L7:L8,AD17) -> 0 | AF17: =AE17/(AG4-AE20) -> 0 | AG17: =IF(AF17=0,0,(AF17*((LOG(AF17))/LOG(2)))) -> 0 | AI17: =N17 -> 2121 | AJ17: =COUNTIF(L7:L8,AI17) -> 0 | AK17: =AJ17/(AL4-AJ20) -> 0 | AL17: =IF(AK17=0,0,(AK17*((LOG(AK17))/LOG(2)))) -> 0 | AN17: =N17 -> 2121 | AO17: =COUNTIF(L8:L8,AN17) -> 0 | AP17: =AO17/(AQ4-AO20) ->  | AQ17: =IF(AP17=0,0,(AP17*((LOG(AP17))/LOG(2)))) ->  | AS17: =N17 -> 2121 | AT17: =COUNTIF(L8:L9,AS17) -> 0 | AU17: =AT17/(AV4-AT20) ->  | AV17: =IF(AU17=0,0,(AU17*((LOG(AU17))/LOG(2)))) -> 
N18: 2122 | O18: =COUNTIF($L$7:$L$500,N18) -> 0 | P18: =O18/$Q$4 -> 0 | Q18: =IF(P18=0,0,(P18*((LOG(P18))/LOG(2)))) -> 0 | T18: =N18 -> 2122 | U18: =COUNTIF(L6:L7,T18) -> 0 | V18: =U18/(W4-U20) -> 0 | W18: =IF(V18=0,0,(V18*((LOG(V18))/LOG(2)))) -> 0 | Y18: =N18 -> 2122 | Z18: =COUNTIF(L7:L7,Y18) -> 0 | AA18: =Z18/(AB4-Z20) -> 0 | AB18: =IF(AA18=0,0,(AA18*((LOG(AA18))/LOG(2)))) -> 0 | AD18: =N18 -> 2122 | AE18: =COUNTIF(L7:L8,AD18) -> 0 | AF18: =AE18/(AG4-AE20) -> 0 | AG18: =IF(AF18=0,0,(AF18*((LOG(AF18))/LOG(2)))) -> 0 | AI18: =N18 -> 2122 | AJ18: =COUNTIF(L7:L8,AI18) -> 0 | AK18: =AJ18/(AL4-AJ20) -> 0 | AL18: =IF(AK18=0,0,(AK18*((LOG(AK18))/LOG(2)))) -> 0 | AN18: =N18 -> 2122 | AO18: =COUNTIF(L8:L8,AN18) -> 0 | AP18: =AO18/(AQ4-AO20) ->  | AQ18: =IF(AP18=0,0,(AP18*((LOG(AP18))/LOG(2)))) ->  | AS18: =N18 -> 2122 | AT18: =COUNTIF(L8:L9,AS18) -> 0 | AU18: =AT18/(AV4-AT20) ->  | AV18: =IF(AU18=0,0,(AU18*((LOG(AU18))/LOG(2)))) -> 
N19: 2211 | O19: =COUNTIF($L$7:$L$500,N19) -> 0 | P19: =O19/$Q$4 -> 0 | Q19: =IF(P19=0,0,(P19*((LOG(P19))/LOG(2)))) -> 0 | T19: =N19 -> 2211 | U19: =COUNTIF(L6:L7,T19) -> 0 | V19: =U19/(W4-U20) -> 0 | W19: =IF(V19=0,0,(V19*((LOG(V19))/LOG(2)))) -> 0 | Y19: =N19 -> 2211 | Z19: =COUNTIF(L7:L7,Y19) -> 0 | AA19: =Z19/(AB4-Z20) -> 0 | AB19: =IF(AA19=0,0,(AA19*((LOG(AA19))/LOG(2)))) -> 0 | AD19: =N19 -> 2211 | AE19: =COUNTIF(L7:L8,AD19) -> 0 | AF19: =AE19/(AG4-AE20) -> 0 | AG19: =IF(AF19=0,0,(AF19*((LOG(AF19))/LOG(2)))) -> 0 | AI19: =N19 -> 2211 | AJ19: =COUNTIF(L7:L8,AI19) -> 0 | AK19: =AJ19/(AL4-AJ20) -> 0 | AL19: =IF(AK19=0,0,(AK19*((LOG(AK19))/LOG(2)))) -> 0 | AN19: =N19 -> 2211 | AO19: =COUNTIF(L8:L8,AN19) -> 0 | AP19: =AO19/(AQ4-AO20) ->  | AQ19: =IF(AP19=0,0,(AP19*((LOG(AP19))/LOG(2)))) ->  | AS19: =N19 -> 2211 | AT19: =COUNTIF(L8:L9,AS19) -> 0 | AU19: =AT19/(AV4-AT20) ->  | AV19: =IF(AU19=0,0,(AU19*((LOG(AU19))/LOG(2)))) -> 
N20: 2212 | O20: =COUNTIF($L$7:$L$500,N20) -> 0 | P20: =O20/$Q$4 -> 0 | Q20: =IF(P20=0,0,(P20*((LOG(P20))/LOG(2)))) -> 0 | T20: =N20 -> 2212 | U20: =COUNTIF(L6:L7,T20) -> 0 | Y20: =N20 -> 2212 | Z20: =COUNTIF(L7:L7,Y20) -> 0 | AD20: =N20 -> 2212 | AE20: =COUNTIF(L7:L8,AD20) -> 0 | AI20: =N20 -> 2212 | AJ20: =COUNTIF(L7:L8,AI20) -> 0 | AN20: =N20 -> 2212 | AO20: =COUNTIF(L8:L8,AN20) -> 0 | AS20: =N20 -> 2212 | AT20: =COUNTIF(L8:L9,AS20) -> 0
N21: 2221 | O21: =COUNTIF($L$7:$L$500,N21) -> 0 | P21: =O21/$Q$4 -> 0 | Q21: =IF(P21=0,0,(P21*((LOG(P21))/LOG(2)))) -> 0 | T21: =N21 -> 2221 | U21: =COUNTIF(L6:L7,T21) -> 0 | V21: =U21/(W4-U20) -> 0 | W21: =IF(V21=0,0,(V21*((LOG(V21))/LOG(2)))) -> 0 | Y21: =N21 -> 2221 | Z21: =COUNTIF(L7:L7,Y21) -> 0 | AA21: =Z21/(AB4-Z20) -> 0 | AB21: =IF(AA21=0,0,(AA21*((LOG(AA21))/LOG(2)))) -> 0 | AD21: =N21 -> 2221 | AE21: =COUNTIF(L7:L8,AD21) -> 0 | AF21: =AE21/(AG4-AE20) -> 0 | AG21: =IF(AF21=0,0,(AF21*((LOG(AF21))/LOG(2)))) -> 0 | AI21: =N21 -> 2221 | AJ21: =COUNTIF(L7:L8,AI21) -> 0 | AK21: =AJ21/(AL4-AJ20) -> 0 | AL21: =IF(AK21=0,0,(AK21*((LOG(AK21))/LOG(2)))) -> 0 | AN21: =N21 -> 2221 | AO21: =COUNTIF(L8:L8,AN21) -> 0 | AP21: =AO21/(AQ4-AO20) ->  | AQ21: =IF(AP21=0,0,(AP21*((LOG(AP21))/LOG(2)))) ->  | AS21: =N21 -> 2221 | AT21: =COUNTIF(L8:L9,AS21) -> 0 | AU21: =AT21/(AV4-AT20) ->  | AV21: =IF(AU21=0,0,(AU21*((LOG(AU21))/LOG(2)))) -> 
N22: 2222 | O22: =COUNTIF($L$7:$L$500,N22) -> 0 | P22: =O22/$Q$4 -> 0 | Q22: =IF(P22=0,0,(P22*((LOG(P22))/LOG(2)))) -> 0 | T22: =N22 -> 2222 | U22: =COUNTIF(L6:L7,T22) -> 0 | V22: =U22/(W4-U20) -> 0 | W22: =IF(V22=0,0,(V22*((LOG(V22))/LOG(2)))) -> 0 | Y22: =N22 -> 2222 | Z22: =COUNTIF(L7:L7,Y22) -> 0 | AA22: =Z22/(AB4-Z20) -> 0 | AB22: =IF(AA22=0,0,(AA22*((LOG(AA22))/LOG(2)))) -> 0 | AD22: =N22 -> 2222 | AE22: =COUNTIF(L7:L8,AD22) -> 0 | AF22: =AE22/(AG4-AE20) -> 0 | AG22: =IF(AF22=0,0,(AF22*((LOG(AF22))/LOG(2)))) -> 0 | AI22: =N22 -> 2222 | AJ22: =COUNTIF(L7:L8,AI22) -> 0 | AK22: =AJ22/(AL4-AJ20) -> 0 | AL22: =IF(AK22=0,0,(AK22*((LOG(AK22))/LOG(2)))) -> 0 | AN22: =N22 -> 2222 | AO22: =COUNTIF(L8:L8,AN22) -> 0 | AP22: =AO22/(AQ4-AO20) ->  | AQ22: =IF(AP22=0,0,(AP22*((LOG(AP22))/LOG(2)))) ->  | AS22: =N22 -> 2222 | AT22: =COUNTIF(L8:L9,AS22) -> 0 | AU22: =AT22/(AV4-AT20) ->  | AV22: =IF(AU22=0,0,(AU22*((LOG(AU22))/LOG(2)))) -> 
P23: =SUM(P7:P22) -> 1 | Q23: =-SUM(Q7:Q22) -> 0 | V23: =SUM(V7:V22) -> 1 | W23: =-SUM(W7:W22) -> 0 | AA23: =SUM(AA7:AA22) -> 1 | AB23: =-SUM(AB7:AB22) -> 0 | AF23: =SUM(AF7:AF22) -> 1 | AG23: =-SUM(AG7:AG22) -> 0 | AK23: =SUM(AK7:AK22) -> 1 | AL23: =-SUM(AL7:AL22) -> 0 | AP23: =SUM(AP7:AP22) ->  | AQ23: =-SUM(AQ7:AQ22) ->  | AU23: =SUM(AU7:AU22) ->  | AV23: =-SUM(AV7:AV22) -> 
P24: U= | Q24: =Q23/(LOG(Q4)/LOG(2)) ->  | V24: U1= | W24: =W23/(LOG(W4)/LOG(2)) ->  | AA24: U2= | AB24: =AB23/(LOG(AB4)/LOG(2)) ->  | AF24: U3= | AG24: =AG23/(LOG(AG4)/LOG(2)) ->  | AK24: U4= | AL24: =AL23/(LOG(AL4)/LOG(2)) ->  | AP24: U5= | AQ24: =AQ23/(LOG(AQ4)/LOG(2)) ->  | AU24: U6= | AV24: =AV23/(LOG(AV4)/LOG(2)) -> 
N27: Total Target Seq
N28: =COUNTIF(L7:L8,G3) -> 0 | P28: 0 | Q28: 1 | R28: 0 | S28: 0 | T28: 1 | U28: 0
P29: % of reinforcement given in 6 equal intervals based on number of trials
P30: %_1 | Q30: %_2 | R30: %_3 | S30: %_4 | T30: %_5 | U30: %_6
O31: target sequence | P31: =$G$3 -> 2212 | Q31: =$G$3 -> 2212 | R31: =$G$3 -> 2212 | S31: =$G$3 -> 2212 | T31: =$G$3 -> 2212 | U31: =$G$3 -> 2212
O32: total reinforcement | P32: =U20 -> 0 | Q32: =Z20 -> 0 | R32: =AE20 -> 0 | S32: =AJ20 -> 0 | T32: =AO20 -> 0 | U32: =AT20 -> 0
O33: % target
O34: CCRF
O35: % CCRf
O36: average response rate | P36: =H6/P28 ->  | Q36: =(H7-H6)/Q28 ->  | R36: =(H7-H7)/R28 ->  | S36: =(H7-H7)/S28 ->  | T36: =(H8-H7)/T28 -> -11402 | U36: =(H8-H8)/U28 -> 

Sheet !M119B4B.axt
A1: Report for:!M119B4B.axt
A2: Date: | B2: <date>
A3: Hen: | B3: <hen> | F3: Correct Sequence | G3: =Start!J2 -> 2212 | P3: Total Sequences in Data | Q3: =4994-COUNTBLANK(L7:L5000) -> 1 | V3: Total Sequences in Block Data | W3: =COUNTA(L6:L7) -> 2 | AA3: Total Sequences in Block Data | AB3: =COUNTA(L6:L7) -> 2 | AF3: Total Sequences in Block Data | AG3: =COUNTA(L7:L7) -> 1 | AK3: Total Sequences in Block Data | AL3: =COUNTA(L7:L8) -> 1 | AP3: Total Sequences in Block Data | AQ3: =COUNTA(L7:L8) -> 1 | AU3: Total Sequences in Block Data | AV3: =COUNTA(L7:L8) -> 1
P4: Total Sequences in Summary | Q4: =SUM(O7:O22) -> 1 | V4: Total Sequences in Block Summary | W4: =SUM(U7:U22) -> 1 | AA4: Total Sequences in Block Summary | AB4: =SUM(Z7:Z22) -> 1 | AF4: Total Sequences in Block Summary | AG4: =SUM(AE7:AE22) -> 1 | AK4: Total Sequences in Block Summary | AL4: =SUM(AJ7:AJ22) -> 1 | AP4: Total Sequences in Block Summary | AQ4: =SUM(AO7:AO22) -> 1 | AU4: Total Sequences in Block Summary | AV4: =SUM(AT7:AT22) -> 1
T5: Block 1 | Y5: Block 2 | AD5: Block 3 | AI5: Block 4 | AN5: Block 5 | AS5: Block 6
A6: Sequence Component 1 | B6: Time 1 | C6: Sequence Component 2 | D6: Time 2 | E6: Sequence Component 3 | F6: Time 3 | G6: Sequence Component 4 | H6: Time 4 | I6: Sequence Component 5 | J6: Time 5 | K6: Correct? 0=No 1=Yes | L6: Sequence | N6: Frequency | P6: Relative Frequency | Q6: Variability | T6: Frequency | V6: Relative Frequency | W6: Variability | Y6: Frequency | AA6: Relative Frequency | AB6: Variability | AD6: Frequency | AF6: Relative Frequency | AG6: Variability | AI6: Frequency | AK6: Relative Frequency | AL6: Variability | AN6: Frequency | AP6: Relative Frequency | AQ6: Variability | AS6: Frequency | AU6: Relative Frequency | AV6: Variability
A7: 21 | B7: 278 | C7: 12 | D7: 22793 | E7: 24 | F7: 22808 | G7: 14 | H7: 22817 | K7: 0 | L7: 2121 | N7: 1111 | O7: =COUNTIF($L$7:$L$500,N7) -> 0 | P7: =O7/$Q$4 -> 0 | Q7: =IF(P7=0,0,(P7*((LOG(P7))/LOG(2)))) -> 0 | T7: =N7 -> 1111 | U7: =COUNTIF(L6:L7,T7) -> 0 | V7: =U7/(W4-U20) -> 0 | W7: =IF(V7=0,0,(V7*((LOG(V7))/LOG(2)))) -> 0 | Y7: =N7 -> 1111 | Z7: =COUNTIF(L6:L7,Y7) -> 0 | AA7: =Z7/(AB4-Z20) -> 0 | AB7: =IF(AA7=0,0,(AA7*((LOG(AA7))/LOG(2)))) -> 0 | AD7: =N7 -> 1111 | AE7: =COUNTIF(L7:L7,AD7) -> 0 | AF7: =AE7/(AG4-AE20) -> 0 | AG7: =IF(AF7=0,0,(AF7*((LOG(AF7))/LOG(2)))) -> 0 | AI7: =N7 -> 1111 | AJ7: =COUNTIF(L7:L8,AI7) -> 0 | AK7: =AJ7/(AL4-AJ20) -> 0 | AL7: =IF(AK7=0,0,(AK7*((LOG(AK7))/LOG(2)))) -> 0 | AN7: =N7 -> 1111 | AO7: =COUNTIF(L7:L8,AN7) -> 0 | AP7: =AO7/(AQ4-AO20) -> 0 | AQ7: =IF(AP7=0,0,(AP7*((LOG(AP7))/LOG(2)))) -> 0 | AS7: =N7 -> 1111 | AT7: =COUNTIF(L7:L8,AS7) -> 0 | AU7: =AT7/(AV4-AT20) -> 0 | AV7: =IF(AU7=0,0,(AU7*((LOG(AU7))/LOG(2)))) -> 0
N8: 1112 | O8: =COUNTIF($L$7:$L$500,N8) -> 0 | P8: =O8/$Q$4 -> 0 | Q8: =IF(P8=0,0,(P8*((LOG(P8))/LOG(2)))) -> 0 | T8: =N8 -> 1112 | U8: =COUNTIF(L6:L7,T8) -> 0 | V8: =U8/(W4-U20) -> 0 | W8: =IF(V8=0,0,(V8*((LOG(V8))/LOG(2)))) -> 0 | Y8: =N8 -> 1112 | Z8: =COUNTIF(L6:L7,Y8) -> 0 | AA8: =Z8/(AB4-Z20) -> 0 | AB8: =IF(AA8=0,0,(AA8*((LOG(AA8))/LOG(2)))) -> 0 | AD8: =N8 -> 1112 | AE8: =COUNTIF(L7:L7,AD8) -> 0 | AF8: =AE8/(AG4-AE20) -> 0 | AG8: =IF(AF8=0,0,(AF8*((LOG(AF8))/LOG(2)))) -> 0 | AI8: =N8 -> 1112 | AJ8: =COUNTIF(L7:L8,AI8) -> 0 | AK8: =AJ8/(AL4-AJ20) -> 0 | AL8: =IF(AK8=0,0,(AK8*((LOG(AK8))/LOG(2)))) -> 0 | AN8: =N8 -> 1112 | AO8: =COUNTIF(L7:L8,AN8) -> 0 | AP8: =AO8/(AQ4-AO20) -> 0 | AQ8: =IF(AP8=0,0,(AP8*((LOG(AP8))/LOG(2)))) -> 0 | AS8: =N8 -> 1112 | AT8: =COUNTIF(L7:L8,AS8) -> 0 | AU8: =AT8/(AV4-AT20) -> 0 | AV8: =IF(AU8=0,0,(AU8*((LOG(AU8))/LOG(2)))) -> 0
N9: 1121 | O9: =COUNTIF($L$7:$L$500,N9) -> 0 | P9: =O9/$Q$4 -> 0 | Q9: =IF(P9=0,0,(P9*((LOG(P9))/LOG(2)))) -> 0 | T9: =N9 -> 1121 | U9: =COUNTIF(L6:L7,T9) -> 0 | V9: =U9/(W4-U20) -> 0 | W9: =IF(V9=0,0,(V9*((LOG(V9))/LOG(2)))) -> 0 | Y9: =N9 -> 1121 | Z9: =COUNTIF(L6:L7,Y9) -> 0 | AA9: =Z9/(AB4-Z20) -> 0 | AB9: =IF(AA9=0,0,(AA9*((LOG(AA9))/LOG(2)))) -> 0 | AD9: =N9 -> 1121 | AE9: =COUNTIF(L7:L7,AD9) -> 0 | AF9: =AE9/(AG4-AE20) -> 0 | AG9: =IF(AF9=0,0,(AF9*((LOG(AF9))/LOG(2)))) -> 0 | AI9: =N9 -> 1121 | AJ9: =COUNTIF(L7:L8,AI9) -> 0 | AK9: =AJ9/(AL4-AJ20) -> 0 | AL9: =IF(AK9=0,0,(AK9*((LOG(AK9))/LOG(2)))) -> 0 | AN9: =N9 -> 1121 | AO9: =COUNTIF(L7:L8,AN9) -> 0 | AP9: =AO9/(AQ4-AO20) -> 0 | AQ9: =IF(AP9=0,0,(AP9*((LOG(AP9))/LOG(2)))) -> 0 | AS9: =N9 -> 1121 | AT9: =COUNTIF(L7:L8,AS9) -> 0 | AU9: =AT9/(AV4-AT20) -> 0 | AV9: =IF(AU9=0,0,(AU9*((LOG(AU9))/LOG(2)))) -> 0
N10: 1122 | O10: =COUNTIF($L$7:$L$500,N10) -> 0 | P10: =O10/$Q$4 -> 0 | Q10: =IF(P10=0,0,(P10*((LOG(P10))/LOG(2)))) -> 0 | T10: =N10 -> 1122 | U10: =COUNTIF(L6:L7,T10) -> 0 | V10: =U10/(W4-U20) -> 0 | W10: =IF(V10=0,0,(V10*((LOG(V10))/LOG(2)))) -> 0 | Y10: =N10 -> 1122 | Z10: =COUNTIF(L6:L7,Y10) -> 0 | AA10: =Z10/(AB4-Z20) -> 0 | AB10: =IF(AA10=0,0,(AA10*((LOG(AA10))/LOG(2)))) -> 0 | AD10: =N10 -> 1122 | AE10: =COUNTIF(L7:L7,AD10) -> 0 | AF10: =AE10/(AG4-AE20) -> 0 | AG10: =IF(AF10=0,0,(AF10*((LOG(AF10))/LOG(2)))) -> 0 | AI10: =N10 -> 1122 | AJ10: =COUNTIF(L7:L8,AI10) -> 0 | AK10: =AJ10/(AL4-AJ20) -> 0 | AL10: =IF(AK10=0,0,(AK10*((LOG(AK10))/LOG(2)))) -> 0 | AN10: =N10 -> 1122 | AO10: =COUNTIF(L7:L8,AN10) -> 0 | AP10: =AO10/(AQ4-AO20) -> 0 | AQ10: =IF(AP10=0,0,(AP10*((LOG(AP10))/LOG(2)))) -> 0 | AS10: =N10 -> 1122 | AT10: =COUNTIF(L7:L8,AS10) -> 0 | AU10: =AT10/(AV4-AT20) -> 0 | AV10: =IF(AU10=0,0,(AU10*((LOG(AU10))/LOG(2)))) -> 0
N11: 1211 | O11: =COUNTIF($L$7:$L$500,N11) -> 0 | P11: =O11/$Q$4 -> 0 | Q11: =IF(P11=0,0,(P11*((LOG(P11))/LOG(2)))) -> 0 | T11: =N11 -> 1211 | U11: =COUNTIF(L6:L7,T11) -> 0 | V11: =U11/(W4-U20) -> 0 | W11: =IF(V11=0,0,(V11*((LOG(V11))/LOG(2)))) -> 0 | Y11: =N11 -> 1211 | Z11: =COUNTIF(L6:L7,Y11) -> 0 | AA11: =Z11/(AB4-Z20) -> 0 | AB11: =IF(AA11=0,0,(AA11*((LOG(AA11))/LOG(2)))) -> 0 | AD11: =N11 -> 1211 | AE11: =COUNTIF(L7:L7,AD11) -> 0 | AF11: =AE11/(AG4-AE20) -> 0 | AG11: =IF(AF11=0,0,(AF11*((LOG(AF11))/LOG(2)))) -> 0 | AI11: =N11 -> 1211 | AJ11: =COUNTIF(L7:L8,AI11) -> 0 | AK11: =AJ11/(AL4-AJ20) -> 0 | AL11: =IF(AK11=0,0,(AK11*((LOG(AK11))/LOG(2)))) -> 0 | AN11: =N11 -> 1211 | AO11: =COUNTIF(L7:L8,AN11) -> 0 | AP11: =AO11/(AQ4-AO20) -> 0 | AQ11: =IF(AP11=0,0,(AP11*((LOG(AP11))/LOG(2)))) -> 0 | AS11: =N11 -> 1211 | AT11: =COUNTIF(L7:L8,AS11) -> 0 | AU11: =AT11/(AV4-AT20) -> 0 | AV11: =IF(AU11=0,0,(AU11*((LOG(AU11))/LOG(2)))) -> 0
N12: 1212 | O12: =COUNTIF($L$7:$L$500,N12) -> 0 | P12: =O12/$Q$4 -> 0 | Q12: =IF(P12=0,0,(P12*((LOG(P12))/LOG(2)))) -> 0 | T12: =N12 -> 1212 | U12: =COUNTIF(L6:L7,T12) -> 0 | V12: =U12/(W4-U20) -> 0 | W12: =IF(V12=0,0,(V12*((LOG(V12))/LOG(2)))) -> 0 | Y12: =N12 -> 1212 | Z12: =COUNTIF(L6:L7,Y12) -> 0 | AA12: =Z12/(AB4-Z20) -> 0 | AB12: =IF(AA12=0,0,(AA12*((LOG(AA12))/LOG(2)))) -> 0 | AD12: =N12 -> 1212 | AE12: =COUNTIF(L7:L7,AD12) -> 0 | AF12: =AE12/(AG4-AE20) -> 0 | AG12: =IF(AF12=0,0,(AF12*((LOG(AF12))/LOG(2)))) -> 0 | AI12: =N12 -> 1212 | AJ12: =COUNTIF(L7:L8,AI12) -> 0 | AK12: =AJ12/(AL4-AJ20) -> 0 | AL12: =IF(AK12=0,0,(AK12*((LOG(AK12))/LOG(2)))) -> 0 | AN12: =N12 -> 1212 | AO12: =COUNTIF(L7:L8,AN12) -> 0 | AP12: =AO12/(AQ4-AO20) -> 0 | AQ12: =IF(AP12=0,0,(AP12*((LOG(AP12))/LOG(2)))) -> 0 | AS12: =N12 -> 1212 | AT12: =COUNTIF(L7:L8,AS12) -> 0 | AU12: =AT12/(AV4-AT20) -> 0 | AV12: =IF(AU12=0,0,(AU12*((LOG(AU12))/LOG(2)))) -> 0
N13: 1221 | O13: =COUNTIF($L$7:$L$500,N13) -> 0 | P13: =O13/$Q$4 -> 0 | Q13: =IF(P13=0,0,(P13*((LOG(P13))/LOG(2)))) -> 0 | T13: =N13 -> 1221 | U13: =COUNTIF(L6:L7,T13) -> 0 | V13: =U13/(W4-U20) -> 0 | W13: =IF(V13=0,0,(V13*((LOG(V13))/LOG(2)))) -> 0 | Y13: =N13 -> 1221 | Z13: =COUNTIF(L6:L7,Y13) -> 0 | AA13: =Z13/(AB4-Z20) -> 0 | AB13: =IF(AA13=0,0,(AA13*((LOG(AA13))/LOG(2)))) -> 0 | AD13: =N13 -> 1221 | AE13: =COUNTIF(L7:L7,AD13) -> 0 | AF13: =AE13/(AG4-AE20) -> 0 | AG13: =IF(AF13=0,0,(AF13*((LOG(AF13))/LOG(2)))) -> 0 | AI13: =N13 -> 1221 | AJ13: =COUNTIF(L7:L8,AI13) -> 0 | AK13: =AJ13/(AL4-AJ20) -> 0 | AL13: =IF(AK13=0,0,(AK13*((LOG(AK13))/LOG(2)))) -> 0 | AN13: =N13 -> 1221 | AO13: =COUNTIF(L7:L8,AN13) -> 0 | AP13: =AO13/(AQ4-AO20) -> 0 | AQ13: =IF(AP13=0,0,(AP13*((LOG(AP13))/LOG(2)))) -> 0 | AS13: =N13 -> 1221 | AT13: =COUNTIF(L7:L8,AS13) -> 0 | AU13: =AT13/(AV4-AT20) -> 0 | AV13: =IF(AU13=0,0,(AU13*((LOG(AU13))/LOG(2)))) -> 0
N14: 1222 | O14: =COUNTIF($L$7:$L$500,N14) -> 0 | P14: =O14/$Q$4 -> 0 | Q14: =IF(P14=0,0,(P14*((LOG(P14))/LOG(2)))) -> 0 | T14: =N14 -> 1222 | U14: =COUNTIF(L6:L7,T14) -> 0 | V14: =U14/(W4-U20) -> 0 | W14: =IF(V14=0,0,(V14*((LOG(V14))/LOG(2)))) -> 0 | Y14: =N14 -> 1222 | Z14: =COUNTIF(L6:L7,Y14) -> 0 | AA14: =Z14/(AB4-Z20) -> 0 | AB14: =IF(AA14=0,0,(AA14*((LOG(AA14))/LOG(2)))) -> 0 | AD14: =N14 -> 1222 | AE14: =COUNTIF(L7:L7,AD14) -> 0 | AF14: =AE14/(AG4-AE20) -> 0 | AG14: =IF(AF14=0,0,(AF14*((LOG(AF14))/LOG(2)))) -> 0 | AI14: =N14 -> 1222 | AJ14: =COUNTIF(L7:L8,AI14) -> 0 | AK14: =AJ14/(AL4-AJ20) -> 0 | AL14: =IF(AK14=0,0,(AK14*((LOG(AK14))/LOG(2)))) -> 0 | AN14: =N14 -> 1222 | AO14: =COUNTIF(L7:L8,AN14) -> 0 | AP14: =AO14/(AQ4-AO20) -> 0 | AQ14: =IF(AP14=0,0,(AP14*((LOG(AP14))/LOG(2)))) -> 0 | AS14: =N14 -> 1222 | AT14: =COUNTIF(L7:L8,AS14) -> 0 | AU14: =AT14/(AV4-AT20) -> 0 | AV14: =IF(AU14=0,0,(AU14*((LOG(AU14))/LOG(2)))) -> 0
N15: 2111 | O15: =COUNTIF($L$7:$L$500,N15) -> 0 | P15: =O15/$Q$4 -> 0 | Q15: =IF(P15=0,0,(P15*((LOG(P15))/LOG(2)))) -> 0 | T15: =N15 -> 2111 | U15: =COUNTIF(L6:L7,T15) -> 0 | V15: =U15/(W4-U20) -> 0 | W15: =IF(V15=0,0,(V15*((LOG(V15))/LOG(2)))) -> 0 | Y15: =N15 -> 2111 | Z15: =COUNTIF(L6:L7,Y15) -> 0 | AA15: =Z15/(AB4-Z20) -> 0 | AB15: =IF(AA15=0,0,(AA15*((LOG(AA15))/LOG(2)))) -> 0 | AD15: =N15 -> 2111 | AE15: =COUNTIF(L7:L7,AD15) -> 0 | AF15: =AE15/(AG4-AE20) -> 0 | AG15: =IF(AF15=0,0,(AF15*((LOG(AF15))/LOG(2)))) -> 0 | AI15: =N15 -> 2111 | AJ15: =COUNTIF(L7:L8,AI15) -> 0 | AK15: =AJ15/(AL4-AJ20) -> 0 | AL15: =IF(AK15=0,0,(AK15*((LOG(AK15))/LOG(2)))) -> 0 | AN15: =N15 -> 2111 | AO15: =COUNTIF(L7:L8,AN15) -> 0 | AP15: =AO15/(AQ4-AO20) -> 0 | AQ15: =IF(AP15=0,0,(AP15*((LOG(AP15))/LOG(2)))) -> 0 | AS15: =N15 -> 2111 | AT15: =COUNTIF(L7:L8,AS15) -> 0 | AU15: =AT15/(AV4-AT20) -> 0 | AV15: =IF(AU15=0,0,(AU15*((LOG(AU15))/LOG(2)))) -> 0
N16: 2112 | O16: =COUNTIF($L$7:$L$500,N16) -> 0 | P16: =O16/$Q$4 -> 0 | Q16: =IF(P16=0,0,(P16*((LOG(P16))/LOG(2)))) -> 0 | T16: =N16 -> 2112 | U16: =COUNTIF(L6:L7,T16) -> 0 | V16: =U16/(W4-U20) -> 0 | W16: =IF(V16=0,0,(V16*((LOG(V16))/LOG(2)))) -> 0 | Y16: =N16 -> 2112 | Z16: =COUNTIF(L6:L7,Y16) -> 0 | AA16: =Z16/(AB4-Z20) -> 0 | AB16: =IF(AA16=0,0,(AA16*((LOG(AA16))/LOG(2)))) -> 0 | AD16: =N16 -> 2112 | AE16: =COUNTIF(L7:L7,AD16) -> 0 | AF16: =AE16/(AG4-AE20) -> 0 | AG16: =IF(AF16=0,0,(AF16*((LOG(AF16))/LOG(2)))) -> 0 | AI16: =N16 -> 2112 | AJ16: =COUNTIF(L7:L8,AI16) -> 0 | AK16: =AJ16/(AL4-AJ20) -> 0 | AL16: =IF(AK16=0,0,(AK16*((LOG(AK16))/LOG(2)))) -> 0 | AN16: =N16 -> 2112 | AO16: =COUNTIF(L7:L8,AN16) -> 0 | AP16: =AO16/(AQ4-AO20) -> 0 | AQ16: =IF(AP16=0,0,(AP16*((LOG(AP16))/LOG(2)))) -> 0 | AS16: =N16 -> 2112 | AT16: =COUNTIF(L7:L8,AS16) -> 0 | AU16: =AT16/(AV4-AT20) -> 0 | AV16: =IF(AU16=0,0,(AU16*((LOG(AU16))/LOG(2)))) -> 0
N17: 2121 | O17: =COUNTIF($L$7:$L$500,N17) -> 1 | P17: =O17/$Q$4 -> 1 | Q17: =IF(P17=0,0,(P17*((LOG(P17))/LOG(2)))) -> 0 | T17: =N17 -> 2121 | U17: =COUNTIF(L6:L7,T17) -> 1 | V17: =U17/(W4-U20) -> 1 | W17: =IF(V17=0,0,(V17*((LOG(V17))/LOG(2)))) -> 0 | Y17: =N17 -> 2121 | Z17: =COUNTIF(L6:L7,Y17) -> 1 | AA17: =Z17/(AB4-Z20) -> 1 | AB17: =IF(AA17=0,0,(AA17*((LOG(AA17))/LOG(2)))) -> 0 | AD17: =N17 -> 2121 | AE17: =COUNTIF(L7:L7,AD17) -> 1 | AF17: =AE17/(AG4-AE20) -> 1 | AG17: =IF(AF17=0,0,(AF17*((LOG(AF17))/LOG(2)))) -> 0 | AI17: =N17 -> 2121 | AJ17: =COUNTIF(L7:L8,AI17) -> 1 | AK17: =AJ17/(AL4-AJ20) -> 1 | AL17: =IF(AK17=0,0,(AK17*((LOG(AK17))/LOG(2)))) -> 0 | AN17: =N17 -> 2121 | AO17: =COUNTIF(L7:L8,AN17) -> 1 | AP17: =AO17/(AQ4-AO20) -> 1 | AQ17: =IF(AP17=0,0,(AP17*((LOG(AP17))/LOG(2)))) -> 0 | AS17: =N17 -> 2121 | AT17: =COUNTIF(L7:L8,AS17) -> 1 | AU17: =AT17/(AV4-AT20) -> 1 | AV17: =IF(AU17=0,0,(AU17*((LOG(AU17))/LOG(2)))) -> 0
N18: 2122 | O18: =COUNTIF($L$7:$L$500,N18) -> 0 | P18: =O18/$Q$4 -> 0 | Q18: =IF(P18=0,0,(P18*((LOG(P18))/LOG(2)))) -> 0 | T18: =N18 -> 2122 | U18: =COUNTIF(L6:L7,T18) -> 0 | V18: =U18/(W4-U20) -> 0 | W18: =IF(V18=0,0,(V18*((LOG(V18))/LOG(2)))) -> 0 | Y18: =N18 -> 2122 | Z18: =COUNTIF(L6:L7,Y18) -> 0 | AA18: =Z18/(AB4-Z20) -> 0 | AB18: =IF(AA18=0,0,(AA18*((LOG(AA18))/LOG(2)))) -> 0 | AD18: =N18 -> 2122 | AE18: =COUNTIF(L7:L7,AD18) -> 0 | AF18: =AE18/(AG4-AE20) -> 0 | AG18: =IF(AF18=0,0,(AF18*((LOG(AF18))/LOG(2)))) -> 0 | AI18: =N18 -> 2122 | AJ18: =COUNTIF(L7:L8,AI18) -> 0 | AK18: =AJ18/(AL4-AJ20) -> 0 | AL18: =IF(AK18=0,0,(AK18*((LOG(AK18))/LOG(2)))) -> 0 | AN18: =N18 -> 2122 | AO18: =COUNTIF(L7:L8,AN18) -> 0 | AP18: =AO18/(AQ4-AO20) -> 0 | AQ18: =IF(AP18=0,0,(AP18*((LOG(AP18))/LOG(2)))) -> 0 | AS18: =N18 -> 2122 | AT18: =COUNTIF(L7:L8,AS18) -> 0 | AU18: =AT18/(AV4-AT20) -> 0 | AV18: =IF(AU18=0,0,(AU18*((LOG(AU18))/LOG(2)))) -> 0
N19: 2211 | O19: =COUNTIF($L$7:$L$500,N19) -> 0 | P19: =O19/$Q$4 -> 0 | Q19: =IF(P19=0,0,(P19*((LOG(P19))/LOG(2)))) -> 0 | T19: =N19 -> 2211 | U19: =COUNTIF(L6:L7,T19) -> 0 | V19: =U19/(W4-U20) -> 0 | W19: =IF(V19=0,0,(V19*((LOG(V19))/LOG(2)))) -> 0 | Y19: =N19 -> 2211 | Z19: =COUNTIF(L6:L7,Y19) -> 0 | AA19: =Z19/(AB4-Z20) -> 0 | AB19: =IF(AA19=0,0,(AA19*((LOG(AA19))/LOG(2)))) -> 0 | AD19: =N19 -> 2211 | AE19: =COUNTIF(L7:L7,AD19) -> 0 | AF19: =AE19/(AG4-AE20) -> 0 | AG19: =IF(AF19=0,0,(AF19*((LOG(AF19))/LOG(2)))) -> 0 | AI19: =N19 -> 2211 | AJ19: =COUNTIF(L7:L8,AI19) -> 0 | AK19: =AJ19/(AL4-AJ20) -> 0 | AL19: =IF(AK19=0,0,(AK19*((LOG(AK19))/LOG(2)))) -> 0 | AN19: =N19 -> 2211 | AO19: =COUNTIF(L7:L8,AN19) -> 0 | AP19: =AO19/(AQ4-AO20) -> 0 | AQ19: =IF(AP19=0,0,(AP19*((LOG(AP19))/LOG(2)))) -> 0 | AS19: =N19 -> 2211 | AT19: =COUNTIF(L7:L8,AS19) -> 0 | AU19: =AT19/(AV4-AT20) -> 0 | AV19: =IF(AU19=0,0,(AU19*((LOG(AU19))/LOG(2)))) -> 0
N20: 2212 | O20: =COUNTIF($L$7:$L$500,N20) -> 0 | P20: =O20/$Q$4 -> 0 | Q20: =IF(P20=0,0,(P20*((LOG(P20))/LOG(2)))) -> 0 | T20: =N20 -> 2212 | U20: =COUNTIF(L6:L7,T20) -> 0 | Y20: =N20 -> 2212 | Z20: =COUNTIF(L6:L7,Y20) -> 0 | AD20: =N20 -> 2212 | AE20: =COUNTIF(L7:L7,AD20) -> 0 | AI20: =N20 -> 2212 | AJ20: =COUNTIF(L7:L8,AI20) -> 0 | AN20: =N20 -> 2212 | AO20: =COUNTIF(L7:L8,AN20) -> 0 | AS20: =N20 -> 2212 | AT20: =COUNTIF(L7:L8,AS20) -> 0
N21: 2221 | O21: =COUNTIF($L$7:$L$500,N21) -> 0 | P21: =O21/$Q$4 -> 0 | Q21: =IF(P21=0,0,(P21*((LOG(P21))/LOG(2)))) -> 0 | T21: =N21 -> 2221 | U21: =COUNTIF(L6:L7,T21) -> 0 | V21: =U21/(W4-U20) -> 0 | W21: =IF(V21=0,0,(V21*((LOG(V21))/LOG(2)))) -> 0 | Y21: =N21 -> 2221 | Z21: =COUNTIF(L6:L7,Y21) -> 0 | AA21: =Z21/(AB4-Z20) -> 0 | AB21: =IF(AA21=0,0,(AA21*((LOG(AA21))/LOG(2)))) -> 0 | AD21: =N21 -> 2221 | AE21: =COUNTIF(L7:L7,AD21) -> 0 | AF21: =AE21/(AG4-AE20) -> 0 | AG21: =IF(AF21=0,0,(AF21*((LOG(AF21))/LOG(2)))) -> 0 | AI21: =N21 -> 2221 | AJ21: =COUNTIF(L7:L8,AI21) -> 0 | AK21: =AJ21/(AL4-AJ20) -> 0 | AL21: =IF(AK21=0,0,(AK21*((LOG(AK21))/LOG(2)))) -> 0 | AN21: =N21 -> 2221 | AO21: =COUNTIF(L7:L8,AN21) -> 0 | AP21: =AO21/(AQ4-AO20) -> 0 | AQ21: =IF(AP21=0,0,(AP21*((LOG(AP21))/LOG(2)))) -> 0 | AS21: =N21 -> 2221 | AT21: =COUNTIF(L7:L8,AS21) -> 0 | AU21: =AT21/(AV4-AT20) -> 0 | AV21: =IF(AU21=0,0,(AU21*((LOG(AU21))/LOG(2)))) -> 0
N22: 2222 | O22: =COUNTIF($L$7:$L$500,N22) -> 0 | P22: =O22/$Q$4 -> 0 | Q22: =IF(P22=0,0,(P22*((LOG(P22))/LOG(2)))) -> 0 | T22: =N22 -> 2222 | U22: =COUNTIF(L6:L7,T22) -> 0 | V22: =U22/(W4-U20) -> 0 | W22: =IF(V22=0,0,(V22*((LOG(V22))/LOG(2)))) -> 0 | Y22: =N22 -> 2222 | Z22: =COUNTIF(L6:L7,Y22) -> 0 | AA22: =Z22/(AB4-Z20) -> 0 | AB22: =IF(AA22=0,0,(AA22*((LOG(AA22))/LOG(2)))) -> 0 | AD22: =N22 -> 2222 | AE22: =COUNTIF(L7:L7,AD22) -> 0 | AF22: =AE22/(AG4-AE20) -> 0 | AG22: =IF(AF22=0,0,(AF22*((LOG(AF22))/LOG(2)))) -> 0 | AI22: =N22 -> 2222 | AJ22: =COUNTIF(L7:L8,AI22) -> 0 | AK22: =AJ22/(AL4-AJ20) -> 0 | AL22: =IF(AK22=0,0,(AK22*((LOG(AK22))/LOG(2)))) -> 0 | AN22: =N22 -> 2222 | AO22: =COUNTIF(L7:L8,AN22) -> 0 | AP22: =AO22/(AQ4-AO20) -> 0 | AQ22: =IF(AP22=0,0,(AP22*((LOG(AP22))/LOG(2)))) -> 0 | AS22: =N22 -> 2222 | AT22: =COUNTIF(L7:L8,AS22) -> 0 | AU22: =AT22/(AV4-AT20) -> 0 | AV22: =IF(AU22=0,0,(AU22*((LOG(AU22))/LOG(2)))) -> 0
P23: =SUM(P7:P22) -> 1 | Q23: =-SUM(Q7:Q22) -> 0 | V23: =SUM(V7:V22) -> 1 | W23: =-SUM(W7:W22) -> 0 | AA23: =SUM(AA7:AA22) -> 1 | AB23: =-SUM(AB7:AB22) -> 0 | AF23: =SUM(AF7:AF22) -> 1 | AG23: =-SUM(AG7:AG22) -> 0 | AK23: =SUM(AK7:AK22) -> 1 | AL23: =-SUM(AL7:AL22) -> 0 | AP23: =SUM(AP7:AP22) -> 1 | AQ23: =-SUM(AQ7:AQ22) -> 0 | AU23: =SUM(AU7:AU22) -> 1 | AV23: =-SUM(AV7:AV22) -> 0
P24: U= | Q24: =Q23/(LOG(Q4)/LOG(2)) ->  | V24: U1= | W24: =W23/(LOG(W4)/LOG(2)) ->  | AA24: U2= | AB24: =AB23/(LOG(AB4)/LOG(2)) ->  | AF24: U3= | AG24: =AG23/(LOG(AG4)/LOG(2)) ->  | AK24: U4= | AL24: =AL23/(LOG(AL4)/LOG(2)) ->  | AP24: U5= | AQ24: =AQ23/(LOG(AQ4)/LOG(2)) ->  | AU24: U6= | AV24: =AV23/(LOG(AV4)/LOG(2)) -> 
N27: Total Target Seq
N28: =COUNTIF(L7:L7,G3) -> 0 | P28: 0 | Q28: 0 | R28: 1 | S28: 0 | T28: 0 | U28: 0
P29: % of reinforcement given in 6 equal intervals based on number of trials
P30: %_1 | Q30: %_2 | R30: %_3 | S30: %_4 | T30: %_5 | U30: %_6
O31: target sequence | P31: =$G$3 -> 2212 | Q31: =$G$3 -> 2212 | R31: =$G$3 -> 2212 | S31: =$G$3 -> 2212 | T31: =$G$3 -> 2212 | U31: =$G$3 -> 2212
O32: total reinforcement | P32: =U20 -> 0 | Q32: =Z20 -> 0 | R32: =AE20 -> 0 | S32: =AJ20 -> 0 | T32: =AO20 -> 0 | U32: =AT20 -> 0
O33: % target
O34: CCRF
O35: % CCRf
O36: average response rate | P36: =H6/P28 ->  | Q36: =(H6-H6)/Q28 ->  | R36: =(H7-H6)/R28 ->  | S36: =(H7-H7)/S28 ->  | T36: =(H7-H7)/T28 ->  | U36: =(H7-H7)/U28 -> 

Sheet !M120A3B.axt
A1: Report for:!M120A3B.axt
A2: Date: | B2: <date>
A3: Hen: | B3: <hen> | F3: Correct Sequence | G3: =Start!J2 -> 2212 | P3: Total Sequences in Data | Q3: =4994-COUNTBLANK(L7:L5000) -> 6 | V3: Total Sequences in Block Data | W3: =COUNTA(L7:L7) -> 1 | AA3: Total Sequences in Block Data | AB3: =COUNTA(L8:L8) -> 1 | AF3: Total Sequences in Block Data | AG3: =COUNTA(L9:L9) -> 1 | AK3: Total Sequences in Block Data | AL3: =COUNTA(L10:L10) -> 1 | AP3: Total Sequences in Block Data | AQ3: =COUNTA(L11:L11) -> 1 | AU3: Total Sequences in Block Data | AV3: =COUNTA(L12:L12) -> 1
P4: Total Sequences in Summary | Q4: =SUM(O7:O22) -> 5 | V4: Total Sequences in Block Summary | W4: =SUM(U7:U22) -> 1 | AA4: Total Sequences in Block Summary | AB4: =SUM(Z7:Z22) -> 1 | AF4: Total Sequences in Block Summary | AG4: =SUM(AE7:AE22) -> 1 | AK4: Total Sequences in Block Summary | AL4: =SUM(AJ7:AJ22) -> 1 | AP4: Total Sequences in Block Summary | AQ4: =SUM(AO7:AO22) -> 1 | AU4: Total Sequences in Block Summary | AV4: =SUM(AT7:AT22) -> 0
T5: Block 1 | Y5: Block 2 | AD5: Block 3 | AI5: Block 4 | AN5: Block 5 | AS5: Block 6
A6: Sequence Component 1 | B6: Time 1 | C6: Sequence Component 2 | D6: Time 2 | E6: Sequence Component 3 | F6: Time 3 | G6: Sequence Component 4 | H6: Time 4 | I6: Sequence Component 5 | J6: Time 5 | K6: Correct? 0=No 1=Yes | L6: Sequence | N6: Frequency | P6: Relative Frequency | Q6: Variability | T6: Frequency | V6: Relative Frequency | W6: Variability | Y6: Frequency | AA6: Relative Frequency | AB6: Variability | AD6: Frequency | AF6: Relative Frequency | AG6: Variability | AI6: Frequency | AK6: Relative Frequency | AL6: Variability | AN6: Frequency | AP6: Relative Frequency | AQ6: Variability | AS6: Frequency | AU6: Relative Frequency | AV6: Variability
A7: 12 | B7: 0 | C7: 14 | D7: 0 | E7: 13 | F7: 0 | G7: 23 | H7: 0 | K7: 0 | L7: 1112 | N7: 1111 | O7: =COUNTIF($L$7:$L$500,N7) -> 1 | P7: =O7/$Q$4 -> 0.2 | Q7: =IF(P7=0,0,(P7*((LOG(P7))/LOG(2)))) -> -0.464385619 | T7: =N7 -> 1111 | U7: =COUNTIF(L7:L7,T7) -> 0 | V7: =U7/(W4-U20) -> 0 | W7: =IF(V7=0,0,(V7*((LOG(V7))/LOG(2)))) -> 0 | Y7: =N7 -> 1111 | Z7: =COUNTIF(L8:L8,Y7) -> 0 | AA7: =Z7/(AB4-Z20) -> 0 | AB7: =IF(AA7=0,0,(AA7*((LOG(AA7))/LOG(2)))) -> 0 | AD7: =N7 -> 1111 | AE7: =COUNTIF(L9:L9,AD7) -> 1 | AF7: =AE7/(AG4-AE20) -> 1 | AG7: =IF(AF7=0,0,(AF7*((LOG(AF7))/LOG(2)))) -> 0 | AI7: =N7 -> 1111 | AJ7: =COUNTIF(L10:L10,AI7) -> 0 | AK7: =AJ7/(AL4-AJ20) -> 0 | AL7: =IF(AK7=0,0,(AK7*((LOG(AK7))/LOG(2)))) -> 0 | AN7: =N7 -> 1111 | AO7: =COUNTIF(L11:L11,AN7) -> 0 | AP7: =AO7/(AQ4-AO20) -> 0 | AQ7: =IF(AP7=0,0,(AP7*((LOG(AP7))/LOG(2)))) -> 0 | AS7: =N7 -> 1111 | AT7: =COUNTIF(L12:L12,AS7) -> 0 | AU7: =AT7/(AV4-AT20) ->  | AV7: =IF(AU7=0,0,(AU7*((LOG(AU7))/LOG(2)))) -> 
A8: 12 | B8: 0 | C8: 14 | D8: 0 | E8: 24 | F8: 0 | G8: 14 | H8: 0 | K8: 0 | L8: 1121 | N8: 1112 | O8: =COUNTIF($L$7:$L$500,N8) -> 1 | P8: =O8/$Q$4 -> 0.2 | Q8: =IF(P8=0,0,(P8*((LOG(P8))/LOG(2)))) -> -0.464385619 | T8: =N8 -> 1112 | U8: =COUNTIF(L7:L7,T8) -> 1 | V8: =U8/(W4-U20) -> 1 | W8: =IF(V8=0,0,(V8*((LOG(V8))/LOG(2)))) -> 0 | Y8: =N8 -> 1112 | Z8: =COUNTIF(L8:L8,Y8) -> 0 | AA8: =Z8/(AB4-Z20) -> 0 | AB8: =IF(AA8=0,0,(AA8*((LOG(AA8))/LOG(2)))) -> 0 | AD8: =N8 -> 1112 | AE8: =COUNTIF(L9:L9,AD8) -> 0 | AF8: =AE8/(AG4-AE20) -> 0 | AG8: =IF(AF8=0,0,(AF8*((LOG(AF8))/LOG(2)))) -> 0 | AI8: =N8 -> 1112 | AJ8: =COUNTIF(L10:L10,AI8) -> 0 | AK8: =AJ8/(AL4-AJ20) -> 0 | AL8: =IF(AK8=0,0,(AK8*((LOG(AK8))/LOG(2)))) -> 0 | AN8: =N8 -> 1112 | AO8: =COUNTIF(L11:L11,AN8) -> 0 | AP8: =AO8/(AQ4-AO20) -> 0 | AQ8: =IF(AP8=0,0,(AP8*((LOG(AP8))/LOG(2)))) -> 0 | AS8: =N8 -> 1112 | AT8: =COUNTIF(L12:L12,AS8) -> 0 | AU8: =AT8/(AV4-AT20) ->  | AV8: =IF(AU8=0,0,(AU8*((LOG(AU8))/LOG(2)))) -> 
A9: 12 | B9: 0 | C9: 14 | D9: 0 | E9: 13 | F9: 0 | G9: 14 | H9: 0 | K9: 0 | L9: 1111 | N9: 1121 | O9: =COUNTIF($L$7:$L$500,N9) -> 2 | P9: =O9/$Q$4 -> 0.4 | Q9: =IF(P9=0,0,(P9*((LOG(P9))/LOG(2)))) -> -0.528771238 | T9: =N9 -> 1121 | U9: =COUNTIF(L7:L7,T9) -> 0 | V9: =U9/(W4-U20) -> 0 | W9: =IF(V9=0,0,(V9*((LOG(V9))/LOG(2)))) -> 0 | Y9: =N9 -> 1121 | Z9: =COUNTIF(L8:L8,Y9) -> 1 | AA9: =Z9/(AB4-Z20) -> 1 | AB9: =IF(AA9=0,0,(AA9*((LOG(AA9))/LOG(2)))) -> 0 | AD9: =N9 -> 1121 | AE9: =COUNTIF(L9:L9,AD9) -> 0 | AF9: =AE9/(AG4-AE20) -> 0 | AG9: =IF(AF9=0,0,(AF9*((LOG(AF9))/LOG(2)))) -> 0 | AI9: =N9 -> 1121 | AJ9: =COUNTIF(L10:L10,AI9) -> 1 | AK9: =AJ9/(AL4-AJ20) -> 1 | AL9: =IF(AK9=0,0,(AK9*((LOG(AK9))/LOG(2)))) -> 0 | AN9: =N9 -> 1121 | AO9: =COUNTIF(L11:L11,AN9) -> 0 | AP9: =AO9/(AQ4-AO20) -> 0 | AQ9: =IF(AP9=0,0,(AP9*((LOG(AP9))/LOG(2)))) -> 0 | AS9: =N9 -> 1121 | AT9: =COUNTIF(L12:L12,AS9) -> 0 | AU9: =AT9/(AV4-AT20) ->  | AV9: =IF(AU9=0,0,(AU9*((LOG(AU9))/LOG(2)))) -> 
